Workbook

Sheet Intro
B7: INTRODUCTION
B19: MODEL SCOPE
B25: TEAM
B27: Project Oversight | M27: Guineng Chen, ITF
B28: Project Management | M28: Joshua Paternina Blanco, ITF
B29: Model Design and Development | M29: Andrea Papu Carrone, ITF
B34: Go to Data Explorer
B37: UPDATES
B39: Date | D39: Description of update | N39: Name

Sheet Data Explorer
B1: Data Explorer
B3: Sheet | C3: Variables / description | D3: Link
B5: Scenario building and key outputs
B6: Scenario building | C6: Define scenarios | D6: Link
B7: Results summary - country | C7: Visualise key mobility and emission outputs for baseline and alternative scenarios for the entire study area | D7: Link
B8: Results summary - zone level | C8: Visualise key mobility and emission outputs for baseline and alternative scenarios for a given zone within the study area | D8: Link
B9: Full model outputs | C9: Detailed model outputs by OD pair, scenario, and year | D9: Link
B11: Model Inputs
B12: Input summary | C12: Summarise key inputs | D12: Link
B13: Model parameters | C13: Groups and summarises model parameters | D13: Link
B15: Model Components
B16: Trip generation | C16: Trip generation and attraction sheet - Baseline | D16: Link
C17: Trip generation and attraction sheet - Alternative | D17: Link
B18: Trip distribution | C18: Trip distribution sheet - Baseline | D18: Link
C19: Trip distribution sheet - Alternative | D19: Link
B20: Mode choice | C20: Summary sheet | D20: Link
C21: Computation sheet | D21: Link
B22: Vehicle stock & CO2 | C22: Private car stock module and CO2 factors - Baseline | D22: Link
C23: Private car stock module and CO2 factors - Alternative | D23: Link
C24: Public transport module and CO2 factors | D24: Link
B25: Other | C25: Load factors | D25: Link

Sheet Scenario build
B2: MOROCCO NON-URBAN PASSENGER MODEL SCENARIO DEFINITION PAGE | Q2: Return to Data Explorer
B8: Transport Supply and Demand Policy Measures
C10: Country wide measures
C12: Bus Service Improvements | I12: Load factor increases - Private cars | M12: Regional | Q12: Intercity
C13: Improvement of bus services, infrastructure and operations increases preference towards bus. | I13: Increase in the preference to share trips (increase in the average load factors).
F14: Baseline | G14: Alternative | L14: Baseline | M14: Alternative | P14: Baseline | Q14: Alternative
D15: Year implemented | E15: Regional | G15: 2030 | K15: Year implemented | M15: 2030 | O15: Year implemented | Q15: 2030
E16: Intercity | G16: 2035 | K16: Load factor increase | M16: 0.15 | O16: Load factor increase | Q16: 0.1
C19: Eco Driving (buses) | I19: Load factor increases - Grand taxi | M19: Regional | Q19: Intercity
C20: Promotion of driving behaviour that reduces fuel consumption. | I20: Increase in the preference to share trips (increase in the average load factors).
F21: Baseline | G21: Alternative | L21: Baseline | M21: Alternative | P21: Baseline | Q21: Alternative
E22: Year implemented | F22: 2025 | G22: 2025 | K22: Year implemented | O22: Year implemented | Q22: 2030
K23: Load factor increase | O23: Load factor increase | Q23: 0.1
C24: Fuel Pricing
C25: Taxation on fuels affect car, bus and grand taxi modes. | I25: Air taxes (% of air ticket price)
E26: Year | F26: Baseline | G26: Alternative | I26: Taxation on air transport.
E27: 2020
E28: 2025 | G28: 0 | J28: Year | K28: Baseline | L28: Alternative
E29: 2030 | G29: 0.05 | J29: 2030 | L29: 0.03
E30: 2035 | G30: 0.05 | J30: 2050 | L30: 0.08
E31: 2040 | G31: 0.05
E32: 2045 | G32: 0.08
E33: 2050 | G33: 0.08
C35: OD-specific measures
C37: New Rail lines
C38: Construction of new rail lines (Speed 1: <100 km/h, 2:100-200 km/h, 3: >200km/h).
F40: Baseline | N40: Alternative
F41: Year implemented | G41: From Zone | H41: To Zone | I41: Speed | J41: Cost ($US) | N41: Year implemented | O41: From Zone | P41: To Zone | Q41: Speed | R41: Cost ($US)
E42: 1 | F42: 2045 | G42: Zone 7 | H42: Zone 9 | I42: 3 | J42: 25 | M42: 1 | N42: 2045 | O42: Zone 7 | P42: Zone 9 | Q42: 3 | R42: 25
E43: 2 | M43: 2
E44: 3 | M44: 3
E45: 4 | M45: 4
E46: 5 | M46: 5
E47: 6 | M47: 6
C50: Update existing rail lines
C51: Improvement of speed, frequency and/or electrification of existing rail lines.
E53: Baseline
H54: Speed improvements | K54: Electrification | M54: Frequency improvements
H55: High Speed | I55: High speed +
E56: Origin | F56: Destination | G56: Year | H56: (100km/h) | I56: (200km/h) | K56: Year | M56: Year | N56: Increase
D57: Intercity | E57: Tanger-Tétouan-Al Hoceima | F57: Rabat-Salé-Kenitra | H57: TRUE | I57: TRUE
D58: Intercity | E58: Rabat-Salé-Kenitra | F58: Grand Casablanca-Settat | H58: TRUE | I58: TRUE
D59: Intercity | E59: Rabat-Salé-Kenitra | F59: Fès-Meknès
D60: Intercity | E60: Fès-Meknès | F60: Oriental | K60: 2040
D61: Intercity | E61: Grand Casablanca-Settat | F61: Marrakech - Safi
D62: Regional | E62: Grand Casablanca-Settat | F62: Grand Casablanca-Settat
D63: Regional | E63: Rabat-Salé-Kenitra | F63: Rabat-Salé-Kenitra
D64: Regional | E64: Tanger-Tétouan-Al Hoceima | F64: Tanger-Tétouan-Al Hoceima
D65: Regional | E65: Oriental | F65: Oriental
D66: Regional | E66: Marrakech - Safi | F66: Marrakech - Safi
E69: Alternative
H70: Speed improvements | K70: Electrification | M70: Frequency improvements
H71: High Speed | I71: High speed +
E72: Origin | F72: Destination | G72: Year | H72: (100km/h) | I72: (200km/h) | K72: Year | M72: Year | N72: Increase
D73: Intercity | E73: Tanger-Tétouan-Al Hoceima | F73: Rabat-Salé-Kenitra | H73: TRUE | I73: TRUE
D74: Intercity | E74: Rabat-Salé-Kenitra | F74: Grand Casablanca-Settat | H74: TRUE | I74: TRUE
D75: Intercity | E75: Rabat-Salé-Kenitra | F75: Fès-Meknès
D76: Intercity | E76: Fès-Meknès | F76: Oriental | K76: 2040
D77: Intercity | E77: Grand Casablanca-Settat | F77: Marrakech - Safi | G77: 2030 | I77: TRUE
D78: Regional | E78: Grand Casablanca-Settat | F78: Grand Casablanca-Settat | M78: 2030 | N78: x2
D79: Regional | E79: Rabat-Salé-Kenitra | F79: Rabat-Salé-Kenitra | M79: 2030 | N79: x2
D80: Regional | E80: Tanger-Tétouan-Al Hoceima | F80: Tanger-Tétouan-Al Hoceima | M80: 2045 | N80: x3
D81: Regional | E81: Oriental | F81: Oriental | M81: 2045 | N81: x3
D82: Regional | E82: Marrakech - Safi | F82: Marrakech - Safi | M82: 2045 | N82: x3
C84: New Motorway developments
C85: Construction of new motorways.
F86: Baseline: New corridors | N86: Alternative: New corridors
F87: Year implemented | G87: From Zone | H87: To Zone | I87: Travel time reduction (%) | N87: Year implemented | O87: From Zone | P87: To Zone | Q87: Travel time reduction (%)
E88: 1 | F88: 2040 | G88: Zone 1 | H88: Zone 3 | I88: 0.15 | M88: 1 | N88: 2040 | O88: Zone 1 | P88: Zone 3 | Q88: 0.15
E89: 2 | F89: 2040 | G89: Zone 3 | H89: Zone 5 | I89: 0.15 | M89: 2 | N89: 2040 | O89: Zone 3 | P89: Zone 5 | Q89: 0.15
E90: 3 | F90: 2040 | G90: Zone 5 | H90: Zone 7 | I90: 0.15 | M90: 3 | N90: 2040 | O90: Zone 5 | P90: Zone 7 | Q90: 0.15
E91: 4 | M91: 4
E92: 5 | M92: 5
E93: 6 | M93: 6
E94: 7 | M94: 7
E95: 8 | M95: 8
E96: 9 | M96: 9
E97: 10 | M97: 10
E98: 11 | M98: 11
E99: 12 | M99: 12
E100: 13 | M100: 13
E101: 14 | M101: 14
E102: 15 | M102: 15
C106: Vehicle stock changes
C107: Measures that target private and public transport fleet renewal.
C109: Public transport fleet | M109: Private vehicles
C111: Zero Emission Vehicles (ZEV) | F111: Baseline
D112: Regional bus stock composition in: | F112: 2030 | G112: 2050 | L112: Zero Emission Vehicles (ZEV)
E113: Baseline | O113: Vehicle sales target in: | P113: 2030 | Q113: 2050
E114: Alternative | F114: 0.05 | G114: 0.1 | O114: Baseline | P114: 0.05 | Q114: 0.2
O115: Alternative | P115: 0.1 | Q115: 0.5
D116: Intercity bus stock composition in: | F116: 2030 | G116: 2050
E117: Baseline
E118: Alternative | F118: 0.02 | G118: 0.05 | L118: Internal Combustion Engine Vehicles (ICE)
O119: Stricter fuel economy standards in new vehicles from: | P119: 2030
O120: Baseline | P120: 0.05
O121: Alternative | P121: 0.2

Sheet Country Results
F2: Non-urban passenger transport indicators for the entire country
B6: Number of trips
B7: (in millions) | D7: 2019 | E7: 2020 | F7: 2025 | G7: 2030 | H7: 2035 | I7: 2040 | J7: 2045 | K7: 2050
C8: Car
C9: Baseline | D9: =Outputs!U$5/1000000 -> 228.451905 | E9: =Outputs!V$5/1000000 -> 225.7935074 | F9: =Outputs!W$5/1000000 -> 274.5303556 | G9: =Outputs!X$5/1000000 -> 320.1405787 | H9: =Outputs!Y$5/1000000 -> 361.1132493 | I9: =Outputs!Z$5/1000000 -> 399.1675199 | J9: =Outputs!AA$5/1000000 -> 436.0845255 | K9: =Outputs!AB$5/1000000 -> 471.0142858
C10: Alternative | D10: =Outputs!AC$5/1000000 -> 228.451905 | E10: =Outputs!AD$5/1000000 -> 225.7935074 | F10: =Outputs!AE$5/1000000 -> 274.5303556 | G10: =Outputs!AF$5/1000000 -> 298.1178363 | H10: =Outputs!AG$5/1000000 -> 309.0722202 | I10: =Outputs!AH$5/1000000 -> 323.6472734 | J10: =Outputs!AI$5/1000000 -> 351.1450847 | K10: =Outputs!AJ$5/1000000 -> 365.4530661
C11: Rail
C12: Baseline | D12: =Outputs!AK$5/1000000 -> 45.61810443 | E12: =Outputs!AL$5/1000000 -> 45.02487458 | F12: =Outputs!AM$5/1000000 -> 55.12669131 | G12: =Outputs!AN$5/1000000 -> 64.52282818 | H12: =Outputs!AO$5/1000000 -> 72.92925157 | I12: =Outputs!AP$5/1000000 -> 80.4180577 | J12: =Outputs!AQ$5/1000000 -> 93.64921857 | K12: =Outputs!AR$5/1000000 -> 101.5936455
C13: Alternative | D13: =Outputs!AS$5/1000000 -> 45.61810443 | E13: =Outputs!AT$5/1000000 -> 45.02487458 | F13: =Outputs!AU$5/1000000 -> 55.12669131 | G13: =Outputs!AV$5/1000000 -> 84.26045479 | H13: =Outputs!AW$5/1000000 -> 101.7477205 | I13: =Outputs!AX$5/1000000 -> 121.3933793 | J13: =Outputs!AY$5/1000000 -> 161.1586205 | K13: =Outputs!AZ$5/1000000 -> 198.6479926
C14: Bus
C15: Baseline | D15: =Outputs!BA$5/1000000 -> 63.32292236 | E15: =Outputs!BB$5/1000000 -> 62.39141987 | F15: =Outputs!BC$5/1000000 -> 77.47230822 | G15: =Outputs!BD$5/1000000 -> 91.28921824 | H15: =Outputs!BE$5/1000000 -> 103.6761312 | I15: =Outputs!BF$5/1000000 -> 116.2371792 | J15: =Outputs!BG$5/1000000 -> 127.3602144 | K15: =Outputs!BH$5/1000000 -> 137.9715353
C16: Alternative | D16: =Outputs!BI$5/1000000 -> 63.32292236 | E16: =Outputs!BJ$5/1000000 -> 62.39141987 | F16: =Outputs!BK$5/1000000 -> 77.47230822 | G16: =Outputs!BL$5/1000000 -> 96.86258346 | H16: =Outputs!BM$5/1000000 -> 130.8459747 | I16: =Outputs!BN$5/1000000 -> 155.1257428 | J16: =Outputs!BO$5/1000000 -> 195.5631341 | K16: =Outputs!BP$5/1000000 -> 239.138433
C17: Air
C18: Baseline | D18: =Outputs!BQ$5/1000000 -> 2.251080204 | E18: =Outputs!BR$5/1000000 -> 2.261298406 | F18: =Outputs!BS$5/1000000 -> 2.636936025 | G18: =Outputs!BT$5/1000000 -> 3.230395871 | H18: =Outputs!BU$5/1000000 -> 3.935721417 | I18: =Outputs!BV$5/1000000 -> 4.715843769 | J18: =Outputs!BW$5/1000000 -> 5.678339733 | K18: =Outputs!BX$5/1000000 -> 6.7390189
C19: Alternative | D19: =Outputs!BY$5/1000000 -> 2.251080204 | E19: =Outputs!BZ$5/1000000 -> 2.261298406 | F19: =Outputs!CA$5/1000000 -> 2.636936025 | G19: =Outputs!CB$5/1000000 -> 3.179177897 | H19: =Outputs!CC$5/1000000 -> 3.899424247 | I19: =Outputs!CD$5/1000000 -> 4.745131326 | J19: =Outputs!CE$5/1000000 -> 5.791447445 | K19: =Outputs!CF$5/1000000 -> 5.236640789
C20: Grand taxi
C21: Baseline | D21: =Outputs!CG$5/1000000 -> 82.65103782 | E21: =Outputs!CH$5/1000000 -> 81.49959961 | F21: =Outputs!CI$5/1000000 -> 100.5768046 | G21: =Outputs!CJ$5/1000000 -> 118.1467785 | H21: =Outputs!CK$5/1000000 -> 134.0179751 | I21: =Outputs!CL$5/1000000 -> 148.6378248 | J21: =Outputs!CM$5/1000000 -> 163.8003273 | K21: =Outputs!CN$5/1000000 -> 177.3129821
C22: Alternative | D22: =Outputs!CO$5/1000000 -> 82.65103782 | E22: =Outputs!CP$5/1000000 -> 81.49959961 | F22: =Outputs!CQ$5/1000000 -> 100.5768046 | G22: =Outputs!CR$5/1000000 -> 117.8761869 | H22: =Outputs!CS$5/1000000 -> 133.4435303 | I22: =Outputs!CT$5/1000000 -> 147.9878235 | J22: =Outputs!CU$5/1000000 -> 117.2024727 | K22: =Outputs!CV$5/1000000 -> 90.74867748
C23: Total
C24: Baseline | D24: =Outputs!E$5/1000000 -> 422.2950498 | E24: =Outputs!F$5/1000000 -> 416.9706999 | F24: =Outputs!G$5/1000000 -> 510.3430957 | G24: =Outputs!H$5/1000000 -> 597.3297995 | H24: =Outputs!I$5/1000000 -> 675.6723286 | I24: =Outputs!J$5/1000000 -> 749.1764254 | J24: =Outputs!K$5/1000000 -> 826.5726255 | K24: =Outputs!L$5/1000000 -> 894.6314675
C25: Alternative | D25: =Outputs!M$5/1000000 -> 422.2950498 | E25: =Outputs!N$5/1000000 -> 416.9706999 | F25: =Outputs!O$5/1000000 -> 510.3430957 | G25: =Outputs!P$5/1000000 -> 600.2962394 | H25: =Outputs!Q$5/1000000 -> 679.00887 | I25: =Outputs!R$5/1000000 -> 752.8993504 | J25: =Outputs!S$5/1000000 -> 830.8607593 | K25: =Outputs!T$5/1000000 -> 899.22481
B27: Mode share by trips
B28: (%) | D28: 2019 | E28: 2020 | F28: 2025 | G28: 2030 | H28: 2035 | I28: 2040 | J28: 2045 | K28: 2050
C29: Car
C30: Baseline | D30: =D9/D$24 -> 0.5409769901 | E30: 0.5415092894 | F30: 0.5379329276 | G30: 0.5359528003 | H30: 0.5344502564 | I30: 0.5328084366 | J30: 0.5275816209 | K30: 0.5264897367
C31: Alternative | D31: =D10/D$25 -> 0.5409769901 | E31: 0.5415092894 | F31: 0.5379329276 | G31: 0.4966178642 | H31: 0.4551814178 | I31: 0.4298679143 | J31: 0.4226280767 | K31: 0.4064090115
C32: Rail
C33: Baseline | D33: =D12/D$24 -> 0.1080242462 | E33: 0.1079809075 | F33: 0.1080188833 | G33: 0.1080187666 | H33: 0.107935827 | I33: 0.1073419491 | J33: 0.1132982338 | K33: 0.1135592131
C34: Alternative | D34: =D13/D$25 -> 0.1080242462 | E34: 0.1079809075 | F34: 0.1080188833 | G34: 0.1403647887 | H34: 0.14984741 | I34: 0.1612345386 | J34: 0.1939658585 | K34: 0.2209102667
C35: Bus
C36: Baseline | D36: =D15/D$24 -> 0.1499494782 | E36: 0.1496302256 | F36: 0.1518043623 | G36: 0.1528288365 | H36: 0.1534414343 | I36: 0.1551532793 | J36: 0.1540823038 | K36: 0.1542216435
C37: Alternative | D37: =D16/D$25 -> 0.1499494782 | E37: 0.1496302256 | F37: 0.1518043623 | G37: 0.1613579715 | H37: 0.1927014219 | I37: 0.2060378227 | J37: 0.2353741368 | K37: 0.2659384287
C38: Air
C39: Baseline | D39: =D18/D$24 -> 0.005330586293 | E39: 0.005423159006 | F39: 0.005166986772 | G39: 0.005408060797 | H39: 0.005824896552 | I39: 0.006294703904 | J39: 0.006869740853 | K39: 0.007532731795
C40: Alternative | D40: =D19/D$25 -> 0.005330586293 | E40: 0.005423159006 | F40: 0.005166986772 | G40: 0.005296015015 | H40: 0.005742817833 | I40: 0.006302477646 | J40: 0.006970418786 | K40: 0.00582350568
C41: Grand taxi
C42: Baseline | D42: =D21/D$24 -> 0.1957186992 | E42: 0.1954564185 | F42: 0.1970768399 | G42: 0.1977915359 | H42: 0.1983475857 | I42: 0.1984016311 | J42: 0.1981681007 | K42: 0.1981966748
C43: Alternative | D43: =D22/D$25 -> 0.1957186992 | E43: 0.1954564185 | F43: 0.1970768399 | G43: 0.1963633606 | H43: 0.1965269325 | I43: 0.1965572469 | J43: 0.1410615092 | K43: 0.1009187875
B45: PKM
B46: (in billion) | D46: 2019 | E46: 2020 | F46: 2025 | G46: 2030 | H46: 2035 | I46: 2040 | J46: 2045 | K46: 2050
C47: Car
C48: Baseline | D48: =Outputs!U4/(1*10^9) -> 31.95418493 | E48: =Outputs!V4/(1*10^9) -> 32.91623531 | F48: =Outputs!W4/(1*10^9) -> 31.52912943 | G48: =Outputs!X4/(1*10^9) -> 32.19477177 | H48: =Outputs!Y4/(1*10^9) -> 32.95269473 | I48: =Outputs!Z4/(1*10^9) -> 34.35154521 | J48: =Outputs!AA4/(1*10^9) -> 35.02274549 | K48: =Outputs!AB4/(1*10^9) -> 36.9918488
C49: Alternative | D49: =Outputs!AC4/(1*10^9) -> 31.95418493 | E49: =Outputs!AD4/(1*10^9) -> 32.91623531 | F49: =Outputs!AE4/(1*10^9) -> 31.52912943 | G49: =Outputs!AF4/(1*10^9) -> 29.08729388 | H49: =Outputs!AG4/(1*10^9) -> 22.07307781 | I49: =Outputs!AH4/(1*10^9) -> 21.39609562 | J49: =Outputs!AI4/(1*10^9) -> 23.02605993 | K49: =Outputs!AJ4/(1*10^9) -> 23.84597009
C50: Rail
C51: Baseline | D51: =Outputs!AK4/(1*10^9) -> 4.991518611 | E51: =Outputs!AL4/(1*10^9) -> 4.934889627 | F51: =Outputs!AM4/(1*10^9) -> 5.986051651 | G51: =Outputs!AN4/(1*10^9) -> 6.978314097 | H51: =Outputs!AO4/(1*10^9) -> 7.863714777 | I51: =Outputs!AP4/(1*10^9) -> 8.63187485 | J51: =Outputs!AQ4/(1*10^9) -> 11.81973607 | K51: =Outputs!AR4/(1*10^9) -> 12.98094725
C52: Alternative | D52: =Outputs!AS4/(1*10^9) -> 4.991518611 | E52: =Outputs!AT4/(1*10^9) -> 4.934889627 | F52: =Outputs!AU4/(1*10^9) -> 5.986051651 | G52: =Outputs!AV4/(1*10^9) -> 9.751766939 | H52: =Outputs!AW4/(1*10^9) -> 11.60164006 | I52: =Outputs!AX4/(1*10^9) -> 13.58300363 | J52: =Outputs!AY4/(1*10^9) -> 18.95297697 | K52: =Outputs!AZ4/(1*10^9) -> 22.32079278
C53: Bus
C54: Baseline | D54: =Outputs!BA4/(1*10^9) -> 5.565328414 | E54: =Outputs!BB4/(1*10^9) -> 5.488374841 | F54: =Outputs!BC4/(1*10^9) -> 6.728585499 | G54: =Outputs!BD4/(1*10^9) -> 7.853691829 | H54: =Outputs!BE4/(1*10^9) -> 8.849773029 | I54: =Outputs!BF4/(1*10^9) -> 9.976719709 | J54: =Outputs!BG4/(1*10^9) -> 10.67989521 | K54: =Outputs!BH4/(1*10^9) -> 11.51445591
C55: Alternative | D55: =Outputs!BI4/(1*10^9) -> 5.565328414 | E55: =Outputs!BJ4/(1*10^9) -> 5.488374841 | F55: =Outputs!BK4/(1*10^9) -> 6.728585499 | G55: =Outputs!BL4/(1*10^9) -> 8.986508709 | H55: =Outputs!BM4/(1*10^9) -> 14.34641094 | I55: =Outputs!BN4/(1*10^9) -> 16.9687367 | J55: =Outputs!BO4/(1*10^9) -> 20.72988529 | K55: =Outputs!BP4/(1*10^9) -> 25.66677411
C56: Air
C57: Baseline | D57: =Outputs!BQ4/(1*10^9) -> 2.121938679 | E57: =Outputs!BR4/(1*10^9) -> 2.160893947 | F57: =Outputs!BS4/(1*10^9) -> 2.308992474 | G57: =Outputs!BT4/(1*10^9) -> 2.667768659 | H57: =Outputs!BU4/(1*10^9) -> 3.123884037 | I57: =Outputs!BV4/(1*10^9) -> 3.64226488 | J57: =Outputs!BW4/(1*10^9) -> 4.299663339 | K57: =Outputs!BX4/(1*10^9) -> 5.029770673
C58: Alternative | D58: =Outputs!BY4/(1*10^9) -> 2.121938679 | E58: =Outputs!BZ4/(1*10^9) -> 2.160893947 | F58: =Outputs!CA4/(1*10^9) -> 2.308992474 | G58: =Outputs!CB4/(1*10^9) -> 2.664638786 | H58: =Outputs!CC4/(1*10^9) -> 3.135943175 | I58: =Outputs!CD4/(1*10^9) -> 3.704286197 | J58: =Outputs!CE4/(1*10^9) -> 4.427006157 | K58: =Outputs!CF4/(1*10^9) -> 3.985509132
C59: Grand taxi
C60: Baseline | D60: =Outputs!CG4/(1*10^9) -> 6.503205273 | E60: =Outputs!CH4/(1*10^9) -> 6.443624014 | F60: =Outputs!CI4/(1*10^9) -> 7.731805428 | G60: =Outputs!CJ4/(1*10^9) -> 8.962070174 | H60: =Outputs!CK4/(1*10^9) -> 10.09320803 | I60: =Outputs!CL4/(1*10^9) -> 11.12872508 | J60: =Outputs!CM4/(1*10^9) -> 12.22405395 | K60: =Outputs!CN4/(1*10^9) -> 13.22192299
C61: Alternative | D61: =Outputs!CO4/(1*10^9) -> 6.503205273 | E61: =Outputs!CP4/(1*10^9) -> 6.443624014 | F61: =Outputs!CQ4/(1*10^9) -> 7.731805428 | G61: =Outputs!CR4/(1*10^9) -> 10.05340896 | H61: =Outputs!CS4/(1*10^9) -> 14.48460977 | I61: =Outputs!CT4/(1*10^9) -> 15.46153405 | J61: =Outputs!CU4/(1*10^9) -> 10.96281101 | K61: =Outputs!CV4/(1*10^9) -> 8.093495611
C62: Total
C63: Baseline | D63: =SUM(D48,D51,D54,D57,D60) -> 51.1361759 | E63: 51.94401774 | F63: 54.28456448 | G63: 58.65661653 | H63: 62.8832746 | I63: 67.73112973 | J63: 74.04609406 | K63: 79.73894562
C64: Alternative | D64: 51.1361759 | E64: 51.94401774 | F64: 54.28456448 | G64: 60.54361728 | H64: 65.64168176 | I64: 71.1136562 | J64: 78.09873935 | K64: 83.91254172
B66: Mode share by PKM
B67: (%) | D67: 2019 | E67: 2020 | F67: 2025 | G67: 2030 | H67: 2035 | I67: 2040 | J67: 2045 | K67: 2050
C68: Car
C69: Baseline | D69: =D48/D$63 -> 0.6248841326 | E69: =E48/E$63 -> 0.6336867409 | F69: =F48/F$63 -> 0.5808120546 | G69: 0.548868545 | H69: 0.5240295601 | I69: 0.5071751401 | J69: 0.4729857251 | K69: 0.4639119381
C70: Alternative | D70: =D49/D$64 -> 0.6248841326 | E70: =E49/E$64 -> 0.6336867409 | F70: 0.5808120546 | G70: 0.4804353487 | H70: 0.3362661836 | I70: 0.3008718263 | J70: 0.2948326711 | K70: 0.2841764723
C71: Rail
C72: Baseline | D72: =D51/D$63 -> 0.09761227786 | E72: =E51/E$63 -> 0.09500400319 | F72: 0.1102717081 | G72: 0.1189689162 | H72: 0.1250525649 | I72: 0.1274432434 | J72: 0.1596267328 | K72: 0.1627930637
C73: Alternative | D73: =D52/D$64 -> 0.09761227786 | E73: =E52/E$64 -> 0.09500400319 | F73: 0.1102717081 | G73: 0.1610701074 | H73: 0.1767419687 | I73: 0.1910041525 | J73: =J52/J$64 -> 0.2426796786 | K73: 0.2660006755
C74: Bus
C75: Baseline | D75: =D54/D$63 -> 0.1088334885 | E75: =E54/E$63 -> 0.105659421 | F75: 0.123950253 | G75: 0.1338926841 | H75: 0.1407333363 | I75: 0.1472988823 | J75: 0.1442330665 | K75: 0.1444019082
C76: Alternative | D76: =D55/D$64 -> 0.1088334885 | E76: =E55/E$64 -> 0.105659421 | F76: 0.123950253 | G76: 0.1484303237 | H76: 0.2185564196 | I76: 0.2386143198 | J76: 0.2654317529 | K76: 0.3058753029
C77: Air
C78: Baseline | D78: =D57/D$63 -> 0.04149584207 | E78: =E57/E$63 -> 0.04160043911 | F78: 0.04253497281 | G78: 0.04548112074 | H78: 0.04967750259 | I78: 0.05377534517 | J78: 0.05806738888 | K78: 0.06307796816
C79: Alternative | D79: =D58/D$64 -> 0.04149584207 | E79: =E58/E$64 -> 0.04160043911 | F79: 0.04253497281 | G79: 0.04401188607 | H79: 0.04777365678 | I79: 0.05208966034 | J79: 0.0566847326 | K79: 0.04749598868
C80: Grand taxi
C81: Baseline | D81: =D60/D$63 -> 0.1271742589 | E81: =E60/E$63 -> 0.1240493958 | F81: 0.1424310115 | G81: 0.1527887339 | H81: 0.1605070362 | I81: 0.164307389 | J81: 0.1650870867 | K81: 0.1658151219
C82: Alternative | D82: =D61/D$64 -> 0.1271742589 | E82: =E61/E$64 -> 0.1240493958 | F82: 0.1424310115 | G82: 0.1660523341 | H82: 0.2206617714 | I82: 0.2174200411 | J82: 0.1403711647 | K82: 0.0964515607
B84: VKM
B85: (in mllion) | D85: 2019 | E85: 2020 | F85: 2025 | G85: 2030 | H85: 2035 | I85: 2040 | J85: 2045 | K85: 2050
C86: Car
C87: Baseline | D87: =+Outputs!CW4/(1*10^6) -> 19971.36558 | E87: =+Outputs!CX4/(1*10^6) -> 20572.64707 | F87: =+Outputs!CY4/(1*10^6) -> 19705.70589 | G87: =+Outputs!CZ4/(1*10^6) -> 20121.73236 | H87: =+Outputs!DA4/(1*10^6) -> 20595.43421 | I87: =+Outputs!DB4/(1*10^6) -> 21469.71576 | J87: =+Outputs!DC4/(1*10^6) -> 21889.21593 | K87: =+Outputs!DD4/(1*10^6) -> 23119.9055
C88: Alternative | D88: =+Outputs!DE4/(1*10^6) -> 19971.36558 | E88: =+Outputs!DF4/(1*10^6) -> 20572.64707 | F88: =+Outputs!DG4/(1*10^6) -> 19705.70589 | G88: =+Outputs!DH4/(1*10^6) -> 16057.14602 | H88: =+Outputs!DI4/(1*10^6) -> 12044.77944 | I88: =+Outputs!DJ4/(1*10^6) -> 11633.83783 | J88: =+Outputs!DK4/(1*10^6) -> 12515.27157 | K88: =+Outputs!DL4/(1*10^6) -> 12960.38621
C89: Rail
C90: Baseline | D90: =+Outputs!DM4/(1*10^6) -> 19.95200427 | E90: =+Outputs!DN4/(1*10^6) -> 19.72564796 | F90: =+Outputs!DO4/(1*10^6) -> 23.92733302 | G90: =+Outputs!DP4/(1*10^6) -> 27.8935858 | H90: =+Outputs!DQ4/(1*10^6) -> 31.43269274 | I90: =+Outputs!DR4/(1*10^6) -> 34.50316773 | J90: =+Outputs!DS4/(1*10^6) -> 47.24562661 | K90: =+Outputs!DT4/(1*10^6) -> 51.88719809
C91: Alternative | D91: =+Outputs!DU4/(1*10^6) -> 19.95200427 | E91: =+Outputs!DV4/(1*10^6) -> 19.72564796 | F91: =+Outputs!DW4/(1*10^6) -> 23.92733302 | G91: =+Outputs!DX4/(1*10^6) -> 38.97957931 | H91: =+Outputs!DY4/(1*10^6) -> 46.37385735 | I91: =+Outputs!DZ4/(1*10^6) -> 54.29372653 | J91: =+Outputs!EA4/(1*10^6) -> 75.75848289 | K91: =+Outputs!EB4/(1*10^6) -> 89.22025288
C92: Bus
C93: Baseline | D93: =+Outputs!EC4/(1*10^6) -> 347.8330259 | E93: =+Outputs!ED4/(1*10^6) -> 343.0234275 | F93: =+Outputs!EE4/(1*10^6) -> 420.5365937 | G93: =+Outputs!EF4/(1*10^6) -> 490.8557393 | H93: =+Outputs!EG4/(1*10^6) -> 553.1108143 | I93: =+Outputs!EH4/(1*10^6) -> 623.5449818 | J93: =+Outputs!EI4/(1*10^6) -> 667.4934508 | K93: =+Outputs!EJ4/(1*10^6) -> 719.6534942
C94: Alternative | D94: =+Outputs!EK4/(1*10^6) -> 347.8330259 | E94: =+Outputs!EL4/(1*10^6) -> 343.0234275 | F94: =+Outputs!EM4/(1*10^6) -> 420.5365937 | G94: =+Outputs!EN4/(1*10^6) -> 561.6567943 | H94: =+Outputs!EO4/(1*10^6) -> 896.6506838 | I94: =+Outputs!EP4/(1*10^6) -> 1060.546044 | J94: =+Outputs!EQ4/(1*10^6) -> 1295.61783 | K94: =+Outputs!ER4/(1*10^6) -> 1604.173382
C95: Air
C96: Baseline | D96: =+Outputs!ES4/(1*10^6) -> 35.36564466 | E96: =+Outputs!ET4/(1*10^6) -> 36.01489911 | F96: =+Outputs!EU4/(1*10^6) -> 38.48320791 | G96: =+Outputs!EV4/(1*10^6) -> 44.46281098 | H96: =+Outputs!EW4/(1*10^6) -> 52.06473395 | I96: =+Outputs!EX4/(1*10^6) -> 60.70441466 | J96: =+Outputs!EY4/(1*10^6) -> 71.66105565 | K96: =+Outputs!EZ4/(1*10^6) -> 83.82951122
C97: Alternative | D97: =+Outputs!FA4/(1*10^6) -> 35.36564466 | E97: =+Outputs!FB4/(1*10^6) -> 36.01489911 | F97: =+Outputs!FC4/(1*10^6) -> 38.48320791 | G97: =+Outputs!FD4/(1*10^6) -> 44.41064643 | H97: =+Outputs!FE4/(1*10^6) -> 52.26571958 | I97: =+Outputs!FF4/(1*10^6) -> 61.73810328 | J97: =+Outputs!FG4/(1*10^6) -> 73.78343595 | K97: =+Outputs!FH4/(1*10^6) -> 66.4251522
C98: Grand taxi
C99: Baseline | D99: =+Outputs!FI4/(1*10^6) -> 1659.382691 | E99: =+Outputs!FJ4/(1*10^6) -> 1661.16383 | F99: =+Outputs!FK4/(1*10^6) -> 1870.490589 | G99: =+Outputs!FL4/(1*10^6) -> 2089.704857 | H99: =+Outputs!FM4/(1*10^6) -> 2299.869327 | I99: =+Outputs!FN4/(1*10^6) -> 2486.874122 | J99: =+Outputs!FO4/(1*10^6) -> 2699.148617 | K99: =+Outputs!FP4/(1*10^6) -> 2901.368069
C100: Alternative | D100: =+Outputs!FQ4/(1*10^6) -> 1659.382691 | E100: =+Outputs!FR4/(1*10^6) -> 1661.16383 | F100: =+Outputs!FS4/(1*10^6) -> 1870.490589 | G100: =+Outputs!FT4/(1*10^6) -> 2660.530132 | H100: =+Outputs!FU4/(1*10^6) -> 4815.443542 | I100: =+Outputs!FV4/(1*10^6) -> 4976.275161 | J100: =+Outputs!FW4/(1*10^6) -> 3255.78576 | K100: =+Outputs!FX4/(1*10^6) -> 2345.773239
C101: Total
C102: Baseline | D102: =SUM(D87,D90,D93,D96,D99) -> 22033.89895 | E102: 22632.57487 | F102: 22059.14362 | G102: 22774.64935 | H102: 23531.91178 | I102: 24675.34244 | J102: 25374.76468 | K102: 26876.64377
C103: Alternative | D103: =SUM(D88,D91,D94,D97,D100) -> 22033.89895 | E103: 22632.57487 | F103: 22059.14362 | G103: 19362.72318 | H103: 17855.51324 | I103: 17786.69087 | J103: 17216.21708 | K103: 17065.97823
B105: CO2 Emission
B106: (in thousand Tonnes) | D106: 2019 | E106: 2020 | F106: 2025 | G106: 2030 | H106: 2035 | I106: 2040 | J106: 2045 | K106: 2050
C107: Car
C108: Baseline | D108: =Outputs!FZ4/(1000*1*10^6) -> 3617.646713 | E108: =Outputs!GA4/(1000*1*10^6) -> 3677.939686 | F108: =Outputs!GB4/(1000*1*10^6) -> 3296.54103 | G108: =Outputs!GC4/(1000*1*10^6) -> 3145.913059 | H108: =Outputs!GD4/(1000*1*10^6) -> 2977.103163 | I108: =Outputs!GE4/(1000*1*10^6) -> 2888.781742 | J108: =Outputs!GF4/(1000*1*10^6) -> 2723.020803 | K108: =Outputs!GG4/(1000*1*10^6) -> 2675.293927
C109: Alternative | D109: =Outputs!GH4/(1000*1*10^6) -> 3617.646713 | E109: =Outputs!GI4/(1000*1*10^6) -> 3677.981601 | F109: =Outputs!GJ4/(1000*1*10^6) -> 3282.443116 | G109: =Outputs!GK4/(1000*1*10^6) -> 2487.157263 | H109: =Outputs!GL4/(1000*1*10^6) -> 1627.034336 | I109: =Outputs!GM4/(1000*1*10^6) -> 1355.311526 | J109: =Outputs!GN4/(1000*1*10^6) -> 1236.230644 | K109: =Outputs!GO4/(1000*1*10^6) -> 1086.034236
C110: Rail
C111: Baseline | D111: =Outputs!GP4/(1000*1*10^6) -> 16.39153211 | E111: =Outputs!GQ4/(1000*1*10^6) -> 15.85827046 | F111: =Outputs!GR4/(1000*1*10^6) -> 17.45930751 | G111: =Outputs!GS4/(1000*1*10^6) -> 17.88631354 | H111: =Outputs!GT4/(1000*1*10^6) -> 17.23343869 | I111: =Outputs!GU4/(1000*1*10^6) -> 16.17961723 | J111: =Outputs!GV4/(1000*1*10^6) -> 15.0165261 | K111: =Outputs!GW4/(1000*1*10^6) -> 17.46145049
C112: Alternative | D112: =Outputs!GX4/(1000*1*10^6) -> 16.39153211 | E112: =Outputs!GY4/(1000*1*10^6) -> 15.85827046 | F112: =Outputs!GZ4/(1000*1*10^6) -> 17.45930751 | G112: =Outputs!HA4/(1000*1*10^6) -> 18.6205682 | H112: =Outputs!HB4/(1000*1*10^6) -> 18.48806946 | I112: =Outputs!HC4/(1000*1*10^6) -> 18.23536537 | J112: =Outputs!HD4/(1000*1*10^6) -> 19.34102604 | K112: =Outputs!HE4/(1000*1*10^6) -> 25.20086737
C113: Bus
C114: Baseline | D114: =Outputs!HF4/(1000*1*10^6) -> 155.6881418 | E114: =Outputs!HG4/(1000*1*10^6) -> 153.6917459 | F114: =Outputs!HH4/(1000*1*10^6) -> 174.2899267 | G114: =Outputs!HI4/(1000*1*10^6) -> 197.6355984 | H114: =Outputs!HJ4/(1000*1*10^6) -> 216.3546603 | I114: =Outputs!HK4/(1000*1*10^6) -> 236.9543566 | J114: =Outputs!HL4/(1000*1*10^6) -> 246.4261111 | K114: =Outputs!HM4/(1000*1*10^6) -> 258.1106698
C115: Alternative | D115: =Outputs!HN4/(1000*1*10^6) -> 155.6881418 | E115: =Outputs!HO4/(1000*1*10^6) -> 153.6917459 | F115: =Outputs!HP4/(1000*1*10^6) -> 172.5470275 | G115: =Outputs!HQ4/(1000*1*10^6) -> 217.0638358 | H115: =Outputs!HR4/(1000*1*10^6) -> 335.0750449 | I115: =Outputs!HS4/(1000*1*10^6) -> 381.9346754 | J115: =Outputs!HT4/(1000*1*10^6) -> 449.0146253 | K115: =Outputs!HU4/(1000*1*10^6) -> 528.5443438
C116: Air
C117: Baseline | D117: =Outputs!HV4/(1000*1*10^6) -> 262.6875208 | E117: =Outputs!HW4/(1000*1*10^6) -> 241.611497 | F117: =Outputs!HX4/(1000*1*10^6) -> 213.848608 | G117: =Outputs!HY4/(1000*1*10^6) -> 222.5877324 | H117: =Outputs!HZ4/(1000*1*10^6) -> 246.4342149 | I117: =Outputs!IA4/(1000*1*10^6) -> 267.5817939 | J117: =Outputs!IB4/(1000*1*10^6) -> 299.1585791 | K117: =Outputs!IC4/(1000*1*10^6) -> 332.8566931
C118: Alternative | D118: =Outputs!ID4/(1000*1*10^6) -> 262.6875208 | E118: =Outputs!IE4/(1000*1*10^6) -> 241.611497 | F118: =Outputs!IF4/(1000*1*10^6) -> 213.848608 | G118: =Outputs!IG4/(1000*1*10^6) -> 222.3265886 | H118: =Outputs!IH4/(1000*1*10^6) -> 247.3855255 | I118: =Outputs!II4/(1000*1*10^6) -> 272.1382377 | J118: =Outputs!IJ4/(1000*1*10^6) -> 308.018737 | K118: =Outputs!IK4/(1000*1*10^6) -> 263.7502733
C119: Grand taxi
C120: Baseline | D120: =Outputs!IL4/(1000*1*10^6) -> 330.6417053 | E120: =Outputs!IM4/(1000*1*10^6) -> 326.6777675 | F120: =Outputs!IN4/(1000*1*10^6) -> 344.2030398 | G120: =Outputs!IO4/(1000*1*10^6) -> 359.3842047 | H120: =Outputs!IP4/(1000*1*10^6) -> 365.6947942 | I120: =Outputs!IQ4/(1000*1*10^6) -> 368.0738173 | J120: =Outputs!IR4/(1000*1*10^6) -> 369.3518154 | K120: =Outputs!IS4/(1000*1*10^6) -> 369.3014074
C121: Alternative | D121: =Outputs!IT4/(1000*1*10^6) -> 330.6417053 | E121: =Outputs!IU4/(1000*1*10^6) -> 326.6814904 | F121: =Outputs!IV4/(1000*1*10^6) -> 342.7310287 | G121: =Outputs!IW4/(1000*1*10^6) -> 453.310477 | H121: =Outputs!IX4/(1000*1*10^6) -> 715.5283524 | I121: =Outputs!IY4/(1000*1*10^6) -> 637.6952728 | J121: =Outputs!IZ4/(1000*1*10^6) -> 353.7591904 | K121: =Outputs!JA4/(1000*1*10^6) -> 216.2241934
C122: Total
C123: Baseline | D123: =SUM(D108,D111,D114,D117,D120) -> 4383.055613 | E123: 4415.778967 | F123: 4046.341912 | G123: 3943.406908 | H123: 3822.820271 | I123: 3777.571327 | J123: 3652.973835 | K123: 3653.024148
C124: Alternative | D124: =SUM(D109,D112,D115,D118,D121) -> 4383.055613 | E124: 4415.824605 | F124: 4029.029087 | G124: 3398.478732 | H124: 2943.511328 | I124: 2665.315077 | J124: 2366.364223 | K124: 2119.753914

Sheet Zone Results
F1: Non-urban passenger transport indicators for zones
E3: Select zone | F3: 3 | G3: Select | H3: As Origin
B8: Number of trips
B9: (in millions) | D9: 2019 | E9: 2020 | F9: 2025 | G9: 2030 | H9: 2035 | I9: 2040 | J9: 2045 | K9: 2050
C10: Car
C11: Baseline | D11: =_xlfn.SWITCH($H$3,"As Origin",SUMIFS(Outputs!CW$12:CW$155,Outputs!$B$12:$B$155,$F$3),"As Destination",SUMIFS(Outputs!CW$12:CW$155,Outputs!$C$12:$C$155,$F$3),"Within Zone",SUMIFS(Outputs!CW$12:CW$155,Outputs!$B$12:$B$155,$F$3,Outputs!$C$12:$C$155,$F$3))/10^6 -> 19.97146907 | E11: =_xlfn.SWITCH($H$3,"As Origin",SUMIFS(Outputs!CX$12:CX$155,Outputs!$B$12:$B$155,$F$3),"As Destination",SUMIFS(Outputs!CX$12:CX$155,Outputs!$C$12:$C$155,$F$3),"Within Zone",SUMIFS(Outputs!CX$12:CX$155,Outputs!$B$12:$B$155,$F$3,Outputs!$C$12:$C$155,$F$3))/10^6 -> 19.33895481 | F11: =_xlfn.SWITCH($H$3,"As Origin",SUMIFS(Outputs!CY$12:CY$155,Outputs!$B$12:$B$155,$F$3),"As Destination",SUMIFS(Outputs!CY$12:CY$155,Outputs!$C$12:$C$155,$F$3),"Within Zone",SUMIFS(Outputs!CY$12:CY$155,Outputs!$B$12:$B$155,$F$3,Outputs!$C$12:$C$155,$F$3))/10^6 -> 25.39491898 | G11: =_xlfn.SWITCH($H$3,"As Origin",SUMIFS(Outputs!CZ$12:CZ$155,Outputs!$B$12:$B$155,$F$3),"As Destination",SUMIFS(Outputs!CZ$12:CZ$155,Outputs!$C$12:$C$155,$F$3),"Within Zone",SUMIFS(Outputs!CZ$12:CZ$155,Outputs!$B$12:$B$155,$F$3,Outputs!$C$12:$C$155,$F$3))/10^6 -> 30.82284043 | H11: =_xlfn.SWITCH($H$3,"As Origin",SUMIFS(Outputs!DA$12:DA$155,Outputs!$B$12:$B$155,$F$3),"As Destination",SUMIFS(Outputs!DA$12:DA$155,Outputs!$C$12:$C$155,$F$3),"Within Zone",SUMIFS(Outputs!DA$12:DA$155,Outputs!$B$12:$B$155,$F$3,Outputs!$C$12:$C$155,$F$3))/10^6 -> 35.4314624 | I11: =_xlfn.SWITCH($H$3,"As Origin",SUMIFS(Outputs!DB$12:DB$155,Outputs!$B$12:$B$155,$F$3),"As Destination",SUMIFS(Outputs!DB$12:DB$155,Outputs!$C$12:$C$155,$F$3),"Within Zone",SUMIFS(Outputs!DB$12:DB$155,Outputs!$B$12:$B$155,$F$3,Outputs!$C$12:$C$155,$F$3))/10^6 -> 39.38355691 | J11: =_xlfn.SWITCH($H$3,"As Origin",SUMIFS(Outputs!DC$12:DC$155,Outputs!$B$12:$B$155,$F$3),"As Destination",SUMIFS(Outputs!DC$12:DC$155,Outputs!$C$12:$C$155,$F$3),"Within Zone",SUMIFS(Outputs!DC$12:DC$155,Outputs!$B$12:$B$155,$F$3,Outputs!$C$12:$C$155,$F$3))/10^6 -> 43.31436747 | K11: =_xlfn.SWITCH($H$3,"As Origin",SUMIFS(Outputs!DD$12:DD$155,Outputs!$B$12:$B$155,$F$3),"As Destination",SUMIFS(Outputs!DD$12:DD$155,Outputs!$C$12:$C$155,$F$3),"Within Zone",SUMIFS(Outputs!DD$12:DD$155,Outputs!$B$12:$B$155,$F$3,Outputs!$C$12:$C$155,$F$3))/10^6 -> 46.65121457
C12: Alternative | D12: =_xlfn.SWITCH($H$3,"As Origin",SUMIFS(Outputs!DE$12:DE$155,Outputs!$B$12:$B$155,$F$3),"As Destination",SUMIFS(Outputs!DE$12:DE$155,Outputs!$C$12:$C$155,$F$3),"Within Zone",SUMIFS(Outputs!DE$12:DE$155,Outputs!$B$12:$B$155,$F$3,Outputs!$C$12:$C$155,$F$3))/10^6 -> 19.97146907 | E12: =_xlfn.SWITCH($H$3,"As Origin",SUMIFS(Outputs!DF$12:DF$155,Outputs!$B$12:$B$155,$F$3),"As Destination",SUMIFS(Outputs!DF$12:DF$155,Outputs!$C$12:$C$155,$F$3),"Within Zone",SUMIFS(Outputs!DF$12:DF$155,Outputs!$B$12:$B$155,$F$3,Outputs!$C$12:$C$155,$F$3))/10^6 -> 19.33895481 | F12: =_xlfn.SWITCH($H$3,"As Origin",SUMIFS(Outputs!DG$12:DG$155,Outputs!$B$12:$B$155,$F$3),"As Destination",SUMIFS(Outputs!DG$12:DG$155,Outputs!$C$12:$C$155,$F$3),"Within Zone",SUMIFS(Outputs!DG$12:DG$155,Outputs!$B$12:$B$155,$F$3,Outputs!$C$12:$C$155,$F$3))/10^6 -> 25.39491898 | G12: =_xlfn.SWITCH($H$3,"As Origin",SUMIFS(Outputs!DH$12:DH$155,Outputs!$B$12:$B$155,$F$3),"As Destination",SUMIFS(Outputs!DH$12:DH$155,Outputs!$C$12:$C$155,$F$3),"Within Zone",SUMIFS(Outputs!DH$12:DH$155,Outputs!$B$12:$B$155,$F$3,Outputs!$C$12:$C$155,$F$3))/10^6 -> 28.86359954 | H12: =_xlfn.SWITCH($H$3,"As Origin",SUMIFS(Outputs!DI$12:DI$155,Outputs!$B$12:$B$155,$F$3),"As Destination",SUMIFS(Outputs!DI$12:DI$155,Outputs!$C$12:$C$155,$F$3),"Within Zone",SUMIFS(Outputs!DI$12:DI$155,Outputs!$B$12:$B$155,$F$3,Outputs!$C$12:$C$155,$F$3))/10^6 -> 29.84372614 | I12: =_xlfn.SWITCH($H$3,"As Origin",SUMIFS(Outputs!DJ$12:DJ$155,Outputs!$B$12:$B$155,$F$3),"As Destination",SUMIFS(Outputs!DJ$12:DJ$155,Outputs!$C$12:$C$155,$F$3),"Within Zone",SUMIFS(Outputs!DJ$12:DJ$155,Outputs!$B$12:$B$155,$F$3,Outputs!$C$12:$C$155,$F$3))/10^6 -> 30.74200412 | J12: =_xlfn.SWITCH($H$3,"As Origin",SUMIFS(Outputs!DK$12:DK$155,Outputs!$B$12:$B$155,$F$3),"As Destination",SUMIFS(Outputs!DK$12:DK$155,Outputs!$C$12:$C$155,$F$3),"Within Zone",SUMIFS(Outputs!DK$12:DK$155,Outputs!$B$12:$B$155,$F$3,Outputs!$C$12:$C$155,$F$3))/10^6 -> 30.02059995 | K12: =_xlfn.SWITCH($H$3,"As Origin",SUMIFS(Outputs!DL$12:DL$155,Outputs!$B$12:$B$155,$F$3),"As Destination",SUMIFS(Outputs!DL$12:DL$155,Outputs!$C$12:$C$155,$F$3),"Within Zone",SUMIFS(Outputs!DL$12:DL$155,Outputs!$B$12:$B$155,$F$3,Outputs!$C$12:$C$155,$F$3))/10^6 -> 28.01211738
C13: Rail
C14: Baseline | D14: =_xlfn.SWITCH($H$3,"As Origin",SUMIFS(Outputs!DM$12:DM$155,Outputs!$B$12:$B$155,$F$3),"As Destination",SUMIFS(Outputs!DM$12:DM$155,Outputs!$C$12:$C$155,$F$3),"Within Zone",SUMIFS(Outputs!DM$12:DM$155,Outputs!$B$12:$B$155,$F$3,Outputs!$C$12:$C$155,$F$3))/10^6 -> 3.454279192 | E14: =_xlfn.SWITCH($H$3,"As Origin",SUMIFS(Outputs!DN$12:DN$155,Outputs!$B$12:$B$155,$F$3),"As Destination",SUMIFS(Outputs!DN$12:DN$155,Outputs!$C$12:$C$155,$F$3),"Within Zone",SUMIFS(Outputs!DN$12:DN$155,Outputs!$B$12:$B$155,$F$3,Outputs!$C$12:$C$155,$F$3))/10^6 -> 3.333431887 | F14: =_xlfn.SWITCH($H$3,"As Origin",SUMIFS(Outputs!DO$12:DO$155,Outputs!$B$12:$B$155,$F$3),"As Destination",SUMIFS(Outputs!DO$12:DO$155,Outputs!$C$12:$C$155,$F$3),"Within Zone",SUMIFS(Outputs!DO$12:DO$155,Outputs!$B$12:$B$155,$F$3,Outputs!$C$12:$C$155,$F$3))/10^6 -> 4.450539933 | G14: =_xlfn.SWITCH($H$3,"As Origin",SUMIFS(Outputs!DP$12:DP$155,Outputs!$B$12:$B$155,$F$3),"As Destination",SUMIFS(Outputs!DP$12:DP$155,Outputs!$C$12:$C$155,$F$3),"Within Zone",SUMIFS(Outputs!DP$12:DP$155,Outputs!$B$12:$B$155,$F$3,Outputs!$C$12:$C$155,$F$3))/10^6 -> 5.432484021 | H14: =_xlfn.SWITCH($H$3,"As Origin",SUMIFS(Outputs!DQ$12:DQ$155,Outputs!$B$12:$B$155,$F$3),"As Destination",SUMIFS(Outputs!DQ$12:DQ$155,Outputs!$C$12:$C$155,$F$3),"Within Zone",SUMIFS(Outputs!DQ$12:DQ$155,Outputs!$B$12:$B$155,$F$3,Outputs!$C$12:$C$155,$F$3))/10^6 -> 6.243354282 | I14: =_xlfn.SWITCH($H$3,"As Origin",SUMIFS(Outputs!DR$12:DR$155,Outputs!$B$12:$B$155,$F$3),"As Destination",SUMIFS(Outputs!DR$12:DR$155,Outputs!$C$12:$C$155,$F$3),"Within Zone",SUMIFS(Outputs!DR$12:DR$155,Outputs!$B$12:$B$155,$F$3,Outputs!$C$12:$C$155,$F$3))/10^6 -> 6.913914779 | J14: =_xlfn.SWITCH($H$3,"As Origin",SUMIFS(Outputs!DS$12:DS$155,Outputs!$B$12:$B$155,$F$3),"As Destination",SUMIFS(Outputs!DS$12:DS$155,Outputs!$C$12:$C$155,$F$3),"Within Zone",SUMIFS(Outputs!DS$12:DS$155,Outputs!$B$12:$B$155,$F$3,Outputs!$C$12:$C$155,$F$3))/10^6 -> 7.819997361 | K14: =_xlfn.SWITCH($H$3,"As Origin",SUMIFS(Outputs!DT$12:DT$155,Outputs!$B$12:$B$155,$F$3),"As Destination",SUMIFS(Outputs!DT$12:DT$155,Outputs!$C$12:$C$155,$F$3),"Within Zone",SUMIFS(Outputs!DT$12:DT$155,Outputs!$B$12:$B$155,$F$3,Outputs!$C$12:$C$155,$F$3))/10^6 -> 8.403370072
C15: Alternative | D15: =_xlfn.SWITCH($H$3,"As Origin",SUMIFS(Outputs!DU$12:DU$155,Outputs!$B$12:$B$155,$F$3),"As Destination",SUMIFS(Outputs!DU$12:DU$155,Outputs!$C$12:$C$155,$F$3),"Within Zone",SUMIFS(Outputs!DU$12:DU$155,Outputs!$B$12:$B$155,$F$3,Outputs!$C$12:$C$155,$F$3))/10^6 -> 3.454279192 | E15: =_xlfn.SWITCH($H$3,"As Origin",SUMIFS(Outputs!DV$12:DV$155,Outputs!$B$12:$B$155,$F$3),"As Destination",SUMIFS(Outputs!DV$12:DV$155,Outputs!$C$12:$C$155,$F$3),"Within Zone",SUMIFS(Outputs!DV$12:DV$155,Outputs!$B$12:$B$155,$F$3,Outputs!$C$12:$C$155,$F$3))/10^6 -> 3.333431887 | F15: =_xlfn.SWITCH($H$3,"As Origin",SUMIFS(Outputs!DW$12:DW$155,Outputs!$B$12:$B$155,$F$3),"As Destination",SUMIFS(Outputs!DW$12:DW$155,Outputs!$C$12:$C$155,$F$3),"Within Zone",SUMIFS(Outputs!DW$12:DW$155,Outputs!$B$12:$B$155,$F$3,Outputs!$C$12:$C$155,$F$3))/10^6 -> 4.450539933 | G15: =_xlfn.SWITCH($H$3,"As Origin",SUMIFS(Outputs!DX$12:DX$155,Outputs!$B$12:$B$155,$F$3),"As Destination",SUMIFS(Outputs!DX$12:DX$155,Outputs!$C$12:$C$155,$F$3),"Within Zone",SUMIFS(Outputs!DX$12:DX$155,Outputs!$B$12:$B$155,$F$3,Outputs!$C$12:$C$155,$F$3))/10^6 -> 6.163766489 | H15: =_xlfn.SWITCH($H$3,"As Origin",SUMIFS(Outputs!DY$12:DY$155,Outputs!$B$12:$B$155,$F$3),"As Destination",SUMIFS(Outputs!DY$12:DY$155,Outputs!$C$12:$C$155,$F$3),"Within Zone",SUMIFS(Outputs!DY$12:DY$155,Outputs!$B$12:$B$155,$F$3,Outputs!$C$12:$C$155,$F$3))/10^6 -> 7.787408465 | I15: =_xlfn.SWITCH($H$3,"As Origin",SUMIFS(Outputs!DZ$12:DZ$155,Outputs!$B$12:$B$155,$F$3),"As Destination",SUMIFS(Outputs!DZ$12:DZ$155,Outputs!$C$12:$C$155,$F$3),"Within Zone",SUMIFS(Outputs!DZ$12:DZ$155,Outputs!$B$12:$B$155,$F$3,Outputs!$C$12:$C$155,$F$3))/10^6 -> 9.691813817 | J15: =_xlfn.SWITCH($H$3,"As Origin",SUMIFS(Outputs!EA$12:EA$155,Outputs!$B$12:$B$155,$F$3),"As Destination",SUMIFS(Outputs!EA$12:EA$155,Outputs!$C$12:$C$155,$F$3),"Within Zone",SUMIFS(Outputs!EA$12:EA$155,Outputs!$B$12:$B$155,$F$3,Outputs!$C$12:$C$155,$F$3))/10^6 -> 12.97376819 | K15: =_xlfn.SWITCH($H$3,"As Origin",SUMIFS(Outputs!EB$12:EB$155,Outputs!$B$12:$B$155,$F$3),"As Destination",SUMIFS(Outputs!EB$12:EB$155,Outputs!$C$12:$C$155,$F$3),"Within Zone",SUMIFS(Outputs!EB$12:EB$155,Outputs!$B$12:$B$155,$F$3,Outputs!$C$12:$C$155,$F$3))/10^6 -> 16.173074
C16: Bus
C17: Baseline | D17: =_xlfn.SWITCH($H$3,"As Origin",SUMIFS(Outputs!EC$12:EC$155,Outputs!$B$12:$B$155,$F$3),"As Destination",SUMIFS(Outputs!EC$12:EC$155,Outputs!$C$12:$C$155,$F$3),"Within Zone",SUMIFS(Outputs!EC$12:EC$155,Outputs!$B$12:$B$155,$F$3,Outputs!$C$12:$C$155,$F$3))/10^6 -> 5.487434205 | E17: =_xlfn.SWITCH($H$3,"As Origin",SUMIFS(Outputs!ED$12:ED$155,Outputs!$B$12:$B$155,$F$3),"As Destination",SUMIFS(Outputs!ED$12:ED$155,Outputs!$C$12:$C$155,$F$3),"Within Zone",SUMIFS(Outputs!ED$12:ED$155,Outputs!$B$12:$B$155,$F$3,Outputs!$C$12:$C$155,$F$3))/10^6 -> 5.315549586 | F17: =_xlfn.SWITCH($H$3,"As Origin",SUMIFS(Outputs!EE$12:EE$155,Outputs!$B$12:$B$155,$F$3),"As Destination",SUMIFS(Outputs!EE$12:EE$155,Outputs!$C$12:$C$155,$F$3),"Within Zone",SUMIFS(Outputs!EE$12:EE$155,Outputs!$B$12:$B$155,$F$3,Outputs!$C$12:$C$155,$F$3))/10^6 -> 6.96913806 | G17: =_xlfn.SWITCH($H$3,"As Origin",SUMIFS(Outputs!EF$12:EF$155,Outputs!$B$12:$B$155,$F$3),"As Destination",SUMIFS(Outputs!EF$12:EF$155,Outputs!$C$12:$C$155,$F$3),"Within Zone",SUMIFS(Outputs!EF$12:EF$155,Outputs!$B$12:$B$155,$F$3,Outputs!$C$12:$C$155,$F$3))/10^6 -> 8.424179282 | H17: =_xlfn.SWITCH($H$3,"As Origin",SUMIFS(Outputs!EG$12:EG$155,Outputs!$B$12:$B$155,$F$3),"As Destination",SUMIFS(Outputs!EG$12:EG$155,Outputs!$C$12:$C$155,$F$3),"Within Zone",SUMIFS(Outputs!EG$12:EG$155,Outputs!$B$12:$B$155,$F$3,Outputs!$C$12:$C$155,$F$3))/10^6 -> 9.639141294 | I17: =_xlfn.SWITCH($H$3,"As Origin",SUMIFS(Outputs!EH$12:EH$155,Outputs!$B$12:$B$155,$F$3),"As Destination",SUMIFS(Outputs!EH$12:EH$155,Outputs!$C$12:$C$155,$F$3),"Within Zone",SUMIFS(Outputs!EH$12:EH$155,Outputs!$B$12:$B$155,$F$3,Outputs!$C$12:$C$155,$F$3))/10^6 -> 11.11747384 | J17: =_xlfn.SWITCH($H$3,"As Origin",SUMIFS(Outputs!EI$12:EI$155,Outputs!$B$12:$B$155,$F$3),"As Destination",SUMIFS(Outputs!EI$12:EI$155,Outputs!$C$12:$C$155,$F$3),"Within Zone",SUMIFS(Outputs!EI$12:EI$155,Outputs!$B$12:$B$155,$F$3,Outputs!$C$12:$C$155,$F$3))/10^6 -> 12.16854242 | K17: =_xlfn.SWITCH($H$3,"As Origin",SUMIFS(Outputs!EJ$12:EJ$155,Outputs!$B$12:$B$155,$F$3),"As Destination",SUMIFS(Outputs!EJ$12:EJ$155,Outputs!$C$12:$C$155,$F$3),"Within Zone",SUMIFS(Outputs!EJ$12:EJ$155,Outputs!$B$12:$B$155,$F$3,Outputs!$C$12:$C$155,$F$3))/10^6 -> 13.0682066
C18: Alternative | D18: =_xlfn.SWITCH($H$3,"As Origin",SUMIFS(Outputs!EK$12:EK$155,Outputs!$B$12:$B$155,$F$3),"As Destination",SUMIFS(Outputs!EK$12:EK$155,Outputs!$C$12:$C$155,$F$3),"Within Zone",SUMIFS(Outputs!EK$12:EK$155,Outputs!$B$12:$B$155,$F$3,Outputs!$C$12:$C$155,$F$3))/10^6 -> 5.487434205 | E18: =_xlfn.SWITCH($H$3,"As Origin",SUMIFS(Outputs!EL$12:EL$155,Outputs!$B$12:$B$155,$F$3),"As Destination",SUMIFS(Outputs!EL$12:EL$155,Outputs!$C$12:$C$155,$F$3),"Within Zone",SUMIFS(Outputs!EL$12:EL$155,Outputs!$B$12:$B$155,$F$3,Outputs!$C$12:$C$155,$F$3))/10^6 -> 5.315549586 | F18: =_xlfn.SWITCH($H$3,"As Origin",SUMIFS(Outputs!EM$12:EM$155,Outputs!$B$12:$B$155,$F$3),"As Destination",SUMIFS(Outputs!EM$12:EM$155,Outputs!$C$12:$C$155,$F$3),"Within Zone",SUMIFS(Outputs!EM$12:EM$155,Outputs!$B$12:$B$155,$F$3,Outputs!$C$12:$C$155,$F$3))/10^6 -> 6.96913806 | G18: =_xlfn.SWITCH($H$3,"As Origin",SUMIFS(Outputs!EN$12:EN$155,Outputs!$B$12:$B$155,$F$3),"As Destination",SUMIFS(Outputs!EN$12:EN$155,Outputs!$C$12:$C$155,$F$3),"Within Zone",SUMIFS(Outputs!EN$12:EN$155,Outputs!$B$12:$B$155,$F$3,Outputs!$C$12:$C$155,$F$3))/10^6 -> 9.615211332 | H18: =_xlfn.SWITCH($H$3,"As Origin",SUMIFS(Outputs!EO$12:EO$155,Outputs!$B$12:$B$155,$F$3),"As Destination",SUMIFS(Outputs!EO$12:EO$155,Outputs!$C$12:$C$155,$F$3),"Within Zone",SUMIFS(Outputs!EO$12:EO$155,Outputs!$B$12:$B$155,$F$3,Outputs!$C$12:$C$155,$F$3))/10^6 -> 13.54874743 | I18: =_xlfn.SWITCH($H$3,"As Origin",SUMIFS(Outputs!EP$12:EP$155,Outputs!$B$12:$B$155,$F$3),"As Destination",SUMIFS(Outputs!EP$12:EP$155,Outputs!$C$12:$C$155,$F$3),"Within Zone",SUMIFS(Outputs!EP$12:EP$155,Outputs!$B$12:$B$155,$F$3,Outputs!$C$12:$C$155,$F$3))/10^6 -> 16.75086432 | J18: =_xlfn.SWITCH($H$3,"As Origin",SUMIFS(Outputs!EQ$12:EQ$155,Outputs!$B$12:$B$155,$F$3),"As Destination",SUMIFS(Outputs!EQ$12:EQ$155,Outputs!$C$12:$C$155,$F$3),"Within Zone",SUMIFS(Outputs!EQ$12:EQ$155,Outputs!$B$12:$B$155,$F$3,Outputs!$C$12:$C$155,$F$3))/10^6 -> 21.17600083 | K18: =_xlfn.SWITCH($H$3,"As Origin",SUMIFS(Outputs!ER$12:ER$155,Outputs!$B$12:$B$155,$F$3),"As Destination",SUMIFS(Outputs!ER$12:ER$155,Outputs!$C$12:$C$155,$F$3),"Within Zone",SUMIFS(Outputs!ER$12:ER$155,Outputs!$B$12:$B$155,$F$3,Outputs!$C$12:$C$155,$F$3))/10^6 -> 25.69042508
C19: Air
C20: Baseline | D20: =_xlfn.SWITCH($H$3,"As Origin",SUMIFS(Outputs!ES$12:ES$155,Outputs!$B$12:$B$155,$F$3),"As Destination",SUMIFS(Outputs!ES$12:ES$155,Outputs!$C$12:$C$155,$F$3),"Within Zone",SUMIFS(Outputs!ES$12:ES$155,Outputs!$B$12:$B$155,$F$3,Outputs!$C$12:$C$155,$F$3))/10^6 -> 1.938085209e-25 | E20: =_xlfn.SWITCH($H$3,"As Origin",SUMIFS(Outputs!ET$12:ET$155,Outputs!$B$12:$B$155,$F$3),"As Destination",SUMIFS(Outputs!ET$12:ET$155,Outputs!$C$12:$C$155,$F$3),"Within Zone",SUMIFS(Outputs!ET$12:ET$155,Outputs!$B$12:$B$155,$F$3,Outputs!$C$12:$C$155,$F$3))/10^6 -> 2.132441099e-25 | F20: =_xlfn.SWITCH($H$3,"As Origin",SUMIFS(Outputs!EU$12:EU$155,Outputs!$B$12:$B$155,$F$3),"As Destination",SUMIFS(Outputs!EU$12:EU$155,Outputs!$C$12:$C$155,$F$3),"Within Zone",SUMIFS(Outputs!EU$12:EU$155,Outputs!$B$12:$B$155,$F$3,Outputs!$C$12:$C$155,$F$3))/10^6 -> 1.238107772e-25 | G20: =_xlfn.SWITCH($H$3,"As Origin",SUMIFS(Outputs!EV$12:EV$155,Outputs!$B$12:$B$155,$F$3),"As Destination",SUMIFS(Outputs!EV$12:EV$155,Outputs!$C$12:$C$155,$F$3),"Within Zone",SUMIFS(Outputs!EV$12:EV$155,Outputs!$B$12:$B$155,$F$3,Outputs!$C$12:$C$155,$F$3))/10^6 -> 8.585930673e-26 | H20: =_xlfn.SWITCH($H$3,"As Origin",SUMIFS(Outputs!EW$12:EW$155,Outputs!$B$12:$B$155,$F$3),"As Destination",SUMIFS(Outputs!EW$12:EW$155,Outputs!$C$12:$C$155,$F$3),"Within Zone",SUMIFS(Outputs!EW$12:EW$155,Outputs!$B$12:$B$155,$F$3,Outputs!$C$12:$C$155,$F$3))/10^6 -> 6.771025158e-26 | I20: =_xlfn.SWITCH($H$3,"As Origin",SUMIFS(Outputs!EX$12:EX$155,Outputs!$B$12:$B$155,$F$3),"As Destination",SUMIFS(Outputs!EX$12:EX$155,Outputs!$C$12:$C$155,$F$3),"Within Zone",SUMIFS(Outputs!EX$12:EX$155,Outputs!$B$12:$B$155,$F$3,Outputs!$C$12:$C$155,$F$3))/10^6 -> 5.782974124e-26 | J20: =_xlfn.SWITCH($H$3,"As Origin",SUMIFS(Outputs!EY$12:EY$155,Outputs!$B$12:$B$155,$F$3),"As Destination",SUMIFS(Outputs!EY$12:EY$155,Outputs!$C$12:$C$155,$F$3),"Within Zone",SUMIFS(Outputs!EY$12:EY$155,Outputs!$B$12:$B$155,$F$3,Outputs!$C$12:$C$155,$F$3))/10^6 -> 5.22520006e-26 | K20: =_xlfn.SWITCH($H$3,"As Origin",SUMIFS(Outputs!EZ$12:EZ$155,Outputs!$B$12:$B$155,$F$3),"As Destination",SUMIFS(Outputs!EZ$12:EZ$155,Outputs!$C$12:$C$155,$F$3),"Within Zone",SUMIFS(Outputs!EZ$12:EZ$155,Outputs!$B$12:$B$155,$F$3,Outputs!$C$12:$C$155,$F$3))/10^6 -> 4.86465286e-26
C21: Alternative | D21: =_xlfn.SWITCH($H$3,"As Origin",SUMIFS(Outputs!FA$12:FA$155,Outputs!$B$12:$B$155,$F$3),"As Destination",SUMIFS(Outputs!FA$12:FA$155,Outputs!$C$12:$C$155,$F$3),"Within Zone",SUMIFS(Outputs!FA$12:FA$155,Outputs!$B$12:$B$155,$F$3,Outputs!$C$12:$C$155,$F$3))/10^6 -> 1.938085209e-25 | E21: =_xlfn.SWITCH($H$3,"As Origin",SUMIFS(Outputs!FB$12:FB$155,Outputs!$B$12:$B$155,$F$3),"As Destination",SUMIFS(Outputs!FB$12:FB$155,Outputs!$C$12:$C$155,$F$3),"Within Zone",SUMIFS(Outputs!FB$12:FB$155,Outputs!$B$12:$B$155,$F$3,Outputs!$C$12:$C$155,$F$3))/10^6 -> 2.132441099e-25 | F21: =_xlfn.SWITCH($H$3,"As Origin",SUMIFS(Outputs!FC$12:FC$155,Outputs!$B$12:$B$155,$F$3),"As Destination",SUMIFS(Outputs!FC$12:FC$155,Outputs!$C$12:$C$155,$F$3),"Within Zone",SUMIFS(Outputs!FC$12:FC$155,Outputs!$B$12:$B$155,$F$3,Outputs!$C$12:$C$155,$F$3))/10^6 -> 1.238107772e-25 | G21: =_xlfn.SWITCH($H$3,"As Origin",SUMIFS(Outputs!FD$12:FD$155,Outputs!$B$12:$B$155,$F$3),"As Destination",SUMIFS(Outputs!FD$12:FD$155,Outputs!$C$12:$C$155,$F$3),"Within Zone",SUMIFS(Outputs!FD$12:FD$155,Outputs!$B$12:$B$155,$F$3,Outputs!$C$12:$C$155,$F$3))/10^6 -> 5.507900818e-25 | H21: =_xlfn.SWITCH($H$3,"As Origin",SUMIFS(Outputs!FE$12:FE$155,Outputs!$B$12:$B$155,$F$3),"As Destination",SUMIFS(Outputs!FE$12:FE$155,Outputs!$C$12:$C$155,$F$3),"Within Zone",SUMIFS(Outputs!FE$12:FE$155,Outputs!$B$12:$B$155,$F$3,Outputs!$C$12:$C$155,$F$3))/10^6 -> 3.341911111e-22 | I21: =_xlfn.SWITCH($H$3,"As Origin",SUMIFS(Outputs!FF$12:FF$155,Outputs!$B$12:$B$155,$F$3),"As Destination",SUMIFS(Outputs!FF$12:FF$155,Outputs!$C$12:$C$155,$F$3),"Within Zone",SUMIFS(Outputs!FF$12:FF$155,Outputs!$B$12:$B$155,$F$3,Outputs!$C$12:$C$155,$F$3))/10^6 -> 1.600647677e-21 | J21: =_xlfn.SWITCH($H$3,"As Origin",SUMIFS(Outputs!FG$12:FG$155,Outputs!$B$12:$B$155,$F$3),"As Destination",SUMIFS(Outputs!FG$12:FG$155,Outputs!$C$12:$C$155,$F$3),"Within Zone",SUMIFS(Outputs!FG$12:FG$155,Outputs!$B$12:$B$155,$F$3,Outputs!$C$12:$C$155,$F$3))/10^6 -> 1.211120096e-20 | K21: =_xlfn.SWITCH($H$3,"As Origin",SUMIFS(Outputs!FH$12:FH$155,Outputs!$B$12:$B$155,$F$3),"As Destination",SUMIFS(Outputs!FH$12:FH$155,Outputs!$C$12:$C$155,$F$3),"Within Zone",SUMIFS(Outputs!FH$12:FH$155,Outputs!$B$12:$B$155,$F$3,Outputs!$C$12:$C$155,$F$3))/10^6 -> 1.201189148e-27
C22: Grand taxi
C23: Baseline | D23: =_xlfn.SWITCH($H$3,"As Origin",SUMIFS(Outputs!FI$12:FI$155,Outputs!$B$12:$B$155,$F$3),"As Destination",SUMIFS(Outputs!FI$12:FI$155,Outputs!$C$12:$C$155,$F$3),"Within Zone",SUMIFS(Outputs!FI$12:FI$155,Outputs!$B$12:$B$155,$F$3,Outputs!$C$12:$C$155,$F$3))/10^6 -> 1.116423004 | E23: =_xlfn.SWITCH($H$3,"As Origin",SUMIFS(Outputs!FJ$12:FJ$155,Outputs!$B$12:$B$155,$F$3),"As Destination",SUMIFS(Outputs!FJ$12:FJ$155,Outputs!$C$12:$C$155,$F$3),"Within Zone",SUMIFS(Outputs!FJ$12:FJ$155,Outputs!$B$12:$B$155,$F$3,Outputs!$C$12:$C$155,$F$3))/10^6 -> 1.077401421 | F23: =_xlfn.SWITCH($H$3,"As Origin",SUMIFS(Outputs!FK$12:FK$155,Outputs!$B$12:$B$155,$F$3),"As Destination",SUMIFS(Outputs!FK$12:FK$155,Outputs!$C$12:$C$155,$F$3),"Within Zone",SUMIFS(Outputs!FK$12:FK$155,Outputs!$B$12:$B$155,$F$3,Outputs!$C$12:$C$155,$F$3))/10^6 -> 1.43522057 | G23: =_xlfn.SWITCH($H$3,"As Origin",SUMIFS(Outputs!FL$12:FL$155,Outputs!$B$12:$B$155,$F$3),"As Destination",SUMIFS(Outputs!FL$12:FL$155,Outputs!$C$12:$C$155,$F$3),"Within Zone",SUMIFS(Outputs!FL$12:FL$155,Outputs!$B$12:$B$155,$F$3,Outputs!$C$12:$C$155,$F$3))/10^6 -> 1.748916684 | H23: =_xlfn.SWITCH($H$3,"As Origin",SUMIFS(Outputs!FM$12:FM$155,Outputs!$B$12:$B$155,$F$3),"As Destination",SUMIFS(Outputs!FM$12:FM$155,Outputs!$C$12:$C$155,$F$3),"Within Zone",SUMIFS(Outputs!FM$12:FM$155,Outputs!$B$12:$B$155,$F$3,Outputs!$C$12:$C$155,$F$3))/10^6 -> 2.010305735 | I23: =_xlfn.SWITCH($H$3,"As Origin",SUMIFS(Outputs!FN$12:FN$155,Outputs!$B$12:$B$155,$F$3),"As Destination",SUMIFS(Outputs!FN$12:FN$155,Outputs!$C$12:$C$155,$F$3),"Within Zone",SUMIFS(Outputs!FN$12:FN$155,Outputs!$B$12:$B$155,$F$3,Outputs!$C$12:$C$155,$F$3))/10^6 -> 2.195284134 | J23: =_xlfn.SWITCH($H$3,"As Origin",SUMIFS(Outputs!FO$12:FO$155,Outputs!$B$12:$B$155,$F$3),"As Destination",SUMIFS(Outputs!FO$12:FO$155,Outputs!$C$12:$C$155,$F$3),"Within Zone",SUMIFS(Outputs!FO$12:FO$155,Outputs!$B$12:$B$155,$F$3,Outputs!$C$12:$C$155,$F$3))/10^6 -> 2.416250804 | K23: =_xlfn.SWITCH($H$3,"As Origin",SUMIFS(Outputs!FP$12:FP$155,Outputs!$B$12:$B$155,$F$3),"As Destination",SUMIFS(Outputs!FP$12:FP$155,Outputs!$C$12:$C$155,$F$3),"Within Zone",SUMIFS(Outputs!FP$12:FP$155,Outputs!$B$12:$B$155,$F$3,Outputs!$C$12:$C$155,$F$3))/10^6 -> 2.601380079
C24: Alternative | D24: =_xlfn.SWITCH($H$3,"As Origin",SUMIFS(Outputs!FQ$12:FQ$155,Outputs!$B$12:$B$155,$F$3),"As Destination",SUMIFS(Outputs!FQ$12:FQ$155,Outputs!$C$12:$C$155,$F$3),"Within Zone",SUMIFS(Outputs!FQ$12:FQ$155,Outputs!$B$12:$B$155,$F$3,Outputs!$C$12:$C$155,$F$3))/10^6 -> 1.116423004 | E24: =_xlfn.SWITCH($H$3,"As Origin",SUMIFS(Outputs!FR$12:FR$155,Outputs!$B$12:$B$155,$F$3),"As Destination",SUMIFS(Outputs!FR$12:FR$155,Outputs!$C$12:$C$155,$F$3),"Within Zone",SUMIFS(Outputs!FR$12:FR$155,Outputs!$B$12:$B$155,$F$3,Outputs!$C$12:$C$155,$F$3))/10^6 -> 1.077401421 | F24: =_xlfn.SWITCH($H$3,"As Origin",SUMIFS(Outputs!FS$12:FS$155,Outputs!$B$12:$B$155,$F$3),"As Destination",SUMIFS(Outputs!FS$12:FS$155,Outputs!$C$12:$C$155,$F$3),"Within Zone",SUMIFS(Outputs!FS$12:FS$155,Outputs!$B$12:$B$155,$F$3,Outputs!$C$12:$C$155,$F$3))/10^6 -> 1.43522057 | G24: =_xlfn.SWITCH($H$3,"As Origin",SUMIFS(Outputs!FT$12:FT$155,Outputs!$B$12:$B$155,$F$3),"As Destination",SUMIFS(Outputs!FT$12:FT$155,Outputs!$C$12:$C$155,$F$3),"Within Zone",SUMIFS(Outputs!FT$12:FT$155,Outputs!$B$12:$B$155,$F$3,Outputs!$C$12:$C$155,$F$3))/10^6 -> 1.763531258 | H24: =_xlfn.SWITCH($H$3,"As Origin",SUMIFS(Outputs!FU$12:FU$155,Outputs!$B$12:$B$155,$F$3),"As Destination",SUMIFS(Outputs!FU$12:FU$155,Outputs!$C$12:$C$155,$F$3),"Within Zone",SUMIFS(Outputs!FU$12:FU$155,Outputs!$B$12:$B$155,$F$3,Outputs!$C$12:$C$155,$F$3))/10^6 -> 2.121739832 | I24: =_xlfn.SWITCH($H$3,"As Origin",SUMIFS(Outputs!FV$12:FV$155,Outputs!$B$12:$B$155,$F$3),"As Destination",SUMIFS(Outputs!FV$12:FV$155,Outputs!$C$12:$C$155,$F$3),"Within Zone",SUMIFS(Outputs!FV$12:FV$155,Outputs!$B$12:$B$155,$F$3,Outputs!$C$12:$C$155,$F$3))/10^6 -> 2.416791755 | J24: =_xlfn.SWITCH($H$3,"As Origin",SUMIFS(Outputs!FW$12:FW$155,Outputs!$B$12:$B$155,$F$3),"As Destination",SUMIFS(Outputs!FW$12:FW$155,Outputs!$C$12:$C$155,$F$3),"Within Zone",SUMIFS(Outputs!FW$12:FW$155,Outputs!$B$12:$B$155,$F$3,Outputs!$C$12:$C$155,$F$3))/10^6 -> 1.556812957 | K24: =_xlfn.SWITCH($H$3,"As Origin",SUMIFS(Outputs!FX$12:FX$155,Outputs!$B$12:$B$155,$F$3),"As Destination",SUMIFS(Outputs!FX$12:FX$155,Outputs!$C$12:$C$155,$F$3),"Within Zone",SUMIFS(Outputs!FX$12:FX$155,Outputs!$B$12:$B$155,$F$3,Outputs!$C$12:$C$155,$F$3))/10^6 -> 0.8778885398
C25: Total
C26: Baseline | D26: =SUM(D11,D14,D17,D20,D23) -> 30.02960547 | E26: =SUM(E11,E14,E17,E20,E23) -> 29.0653377 | F26: 38.24981754 | G26: 46.42842041 | H26: 53.32426371 | I26: 59.61022966 | J26: 65.71915805 | K26: 70.72417132
C27: Alternative | D27: =SUM(D12,D15,D18,D21,D24) -> 30.02960547 | E27: =SUM(E12,E15,E18,E21,E24) -> 29.0653377 | F27: 38.24981754 | G27: 46.40610861 | H27: 53.30162187 | I27: 59.601474 | J27: 65.72718193 | K27: 70.753505
B29: Mode share by trips
B30: (%) | D30: 2019 | E30: 2020 | F30: 2025 | G30: 2030 | H30: 2035 | I30: 2040 | J30: 2045 | K30: 2050
C31: Car
C32: Baseline | D32: =D11/D$26 -> 0.6650593225 | E32: 0.6653614352 | F32: 0.6639226175 | G32: 0.6638787224 | H32: 0.6644529138 | I32: 0.6606845357 | J32: 0.6590828117 | K32: 0.6596219326
C33: Alternative | D33: =D12/D$27 -> 0.6650593225 | E33: 0.6653614352 | F33: 0.6639226175 | G33: 0.6219784506 | H33: 0.5599027777 | I33: 0.5157926818 | J33: 0.4567455818 | K33: 0.395911374
C34: Rail
C35: Baseline | D35: =D14/D$26 -> 0.1150291234 | E35: 0.1146875333 | F35: 0.1163545402 | G35: 0.1170077287 | H35: 0.1170828034 | I35: 0.115985374 | J35: 0.1189911373 | K35: 0.1188189259
C36: Alternative | D36: =D15/D$27 -> 0.1150291234 | E36: 0.1146875333 | F36: 0.1163545402 | G36: 0.1328223088 | H36: 0.1461007788 | I36: 0.1626103042 | J36: 0.1973881705 | K36: 0.2285833613
C37: Bus
C38: Baseline | D38: =D17/D$26 -> 0.1827341425 | E38: 0.182882774 | F38: 0.182200557 | G38: 0.1814444516 | H38: 0.1807646393 | I38: 0.1865027849 | J38: 0.185159743 | K38: 0.1847770904
C39: Alternative | D39: =D18/D$27 -> 0.1827341425 | E39: 0.182882774 | F39: 0.182200557 | G39: 0.2071971044 | H39: 0.2541901532 | I39: 0.2810478196 | J39: 0.3221802641 | K39: 0.3630975608
C40: Air
C41: Baseline | D41: =D20/D$26 -> 6.453914991e-27 | E41: 7.33671537e-27 | F41: 3.236898504e-27 | G41: 1.849283391e-27 | H41: 1.269783151e-27 | I41: 9.7013116e-28 | J41: 7.950801889e-28 | K41: 6.878345506e-28
C42: Alternative | D42: =D21/D$27 -> 6.453914991e-27 | E42: 7.33671537e-27 | F42: 3.236898504e-27 | G42: 1.186891334e-26 | H42: 6.269811301e-24 | I42: 2.685584046e-23 | J42: 1.842647228e-22 | K42: 1.697709743e-29
C43: Grand taxi
C44: Baseline | D44: =D23/D$26 -> 0.03717741162 | E44: 0.03706825744 | F44: 0.03752228538 | G44: 0.03766909726 | H44: 0.03769964357 | I44: 0.03682730542 | J44: 0.03676630797 | K44: 0.03678205103
C45: Alternative | D45: =D24/D$27 -> 0.03717741162 | E45: 0.03706825744 | F45: 0.03752228538 | G45: 0.03800213616 | H45: 0.03980629028 | I45: 0.04054919438 | J45: 0.02368598365 | K45: 0.0124077039
B47: PKM
B48: (in billion) | D48: 2019 | E48: 2020 | F48: 2025 | G48: 2030 | H48: 2035 | I48: 2040 | J48: 2045 | K48: 2050
C49: Car
C50: Baseline | D50: =_xlfn.SWITCH($H$3,"As Origin",SUMIFS(Outputs!FZ$12:FZ$155,Outputs!$B$12:$B$155,$F$3),"As Destination",SUMIFS(Outputs!FZ$12:FZ$155,Outputs!$C$12:$C$155,$F$3),"Within Zone",SUMIFS(Outputs!FZ$12:FZ$155,Outputs!$B$12:$B$155,$F$3,Outputs!$C$12:$C$155,$F$3))/10^9 -> 3.136256917 | E50: =_xlfn.SWITCH($H$3,"As Origin",SUMIFS(Outputs!GA$12:GA$155,Outputs!$B$12:$B$155,$F$3),"As Destination",SUMIFS(Outputs!GA$12:GA$155,Outputs!$C$12:$C$155,$F$3),"Within Zone",SUMIFS(Outputs!GA$12:GA$155,Outputs!$B$12:$B$155,$F$3,Outputs!$C$12:$C$155,$F$3))/10^9 -> 3.184789299 | F50: =_xlfn.SWITCH($H$3,"As Origin",SUMIFS(Outputs!GB$12:GB$155,Outputs!$B$12:$B$155,$F$3),"As Destination",SUMIFS(Outputs!GB$12:GB$155,Outputs!$C$12:$C$155,$F$3),"Within Zone",SUMIFS(Outputs!GB$12:GB$155,Outputs!$B$12:$B$155,$F$3,Outputs!$C$12:$C$155,$F$3))/10^9 -> 3.225651237 | G50: =_xlfn.SWITCH($H$3,"As Origin",SUMIFS(Outputs!GC$12:GC$155,Outputs!$B$12:$B$155,$F$3),"As Destination",SUMIFS(Outputs!GC$12:GC$155,Outputs!$C$12:$C$155,$F$3),"Within Zone",SUMIFS(Outputs!GC$12:GC$155,Outputs!$B$12:$B$155,$F$3,Outputs!$C$12:$C$155,$F$3))/10^9 -> 3.393494243 | H50: =_xlfn.SWITCH($H$3,"As Origin",SUMIFS(Outputs!GD$12:GD$155,Outputs!$B$12:$B$155,$F$3),"As Destination",SUMIFS(Outputs!GD$12:GD$155,Outputs!$C$12:$C$155,$F$3),"Within Zone",SUMIFS(Outputs!GD$12:GD$155,Outputs!$B$12:$B$155,$F$3,Outputs!$C$12:$C$155,$F$3))/10^9 -> 3.629980753 | I50: =_xlfn.SWITCH($H$3,"As Origin",SUMIFS(Outputs!GE$12:GE$155,Outputs!$B$12:$B$155,$F$3),"As Destination",SUMIFS(Outputs!GE$12:GE$155,Outputs!$C$12:$C$155,$F$3),"Within Zone",SUMIFS(Outputs!GE$12:GE$155,Outputs!$B$12:$B$155,$F$3,Outputs!$C$12:$C$155,$F$3))/10^9 -> 3.845561468 | J50: =_xlfn.SWITCH($H$3,"As Origin",SUMIFS(Outputs!GF$12:GF$155,Outputs!$B$12:$B$155,$F$3),"As Destination",SUMIFS(Outputs!GF$12:GF$155,Outputs!$C$12:$C$155,$F$3),"Within Zone",SUMIFS(Outputs!GF$12:GF$155,Outputs!$B$12:$B$155,$F$3,Outputs!$C$12:$C$155,$F$3))/10^9 -> 4.065951571 | K50: =_xlfn.SWITCH($H$3,"As Origin",SUMIFS(Outputs!GG$12:GG$155,Outputs!$B$12:$B$155,$F$3),"As Destination",SUMIFS(Outputs!GG$12:GG$155,Outputs!$C$12:$C$155,$F$3),"Within Zone",SUMIFS(Outputs!GG$12:GG$155,Outputs!$B$12:$B$155,$F$3,Outputs!$C$12:$C$155,$F$3))/10^9 -> 4.313635936
C51: Alternative | D51: =_xlfn.SWITCH($H$3,"As Origin",SUMIFS(Outputs!GH$12:GH$155,Outputs!$B$12:$B$155,$F$3),"As Destination",SUMIFS(Outputs!GH$12:GH$155,Outputs!$C$12:$C$155,$F$3),"Within Zone",SUMIFS(Outputs!GH$12:GH$155,Outputs!$B$12:$B$155,$F$3,Outputs!$C$12:$C$155,$F$3))/10^9 -> 3.136256917 | E51: =_xlfn.SWITCH($H$3,"As Origin",SUMIFS(Outputs!GI$12:GI$155,Outputs!$B$12:$B$155,$F$3),"As Destination",SUMIFS(Outputs!GI$12:GI$155,Outputs!$C$12:$C$155,$F$3),"Within Zone",SUMIFS(Outputs!GI$12:GI$155,Outputs!$B$12:$B$155,$F$3,Outputs!$C$12:$C$155,$F$3))/10^9 -> 3.184789299 | F51: =_xlfn.SWITCH($H$3,"As Origin",SUMIFS(Outputs!GJ$12:GJ$155,Outputs!$B$12:$B$155,$F$3),"As Destination",SUMIFS(Outputs!GJ$12:GJ$155,Outputs!$C$12:$C$155,$F$3),"Within Zone",SUMIFS(Outputs!GJ$12:GJ$155,Outputs!$B$12:$B$155,$F$3,Outputs!$C$12:$C$155,$F$3))/10^9 -> 3.225651237 | G51: =_xlfn.SWITCH($H$3,"As Origin",SUMIFS(Outputs!GK$12:GK$155,Outputs!$B$12:$B$155,$F$3),"As Destination",SUMIFS(Outputs!GK$12:GK$155,Outputs!$C$12:$C$155,$F$3),"Within Zone",SUMIFS(Outputs!GK$12:GK$155,Outputs!$B$12:$B$155,$F$3,Outputs!$C$12:$C$155,$F$3))/10^9 -> 3.170635468 | H51: =_xlfn.SWITCH($H$3,"As Origin",SUMIFS(Outputs!GL$12:GL$155,Outputs!$B$12:$B$155,$F$3),"As Destination",SUMIFS(Outputs!GL$12:GL$155,Outputs!$C$12:$C$155,$F$3),"Within Zone",SUMIFS(Outputs!GL$12:GL$155,Outputs!$B$12:$B$155,$F$3,Outputs!$C$12:$C$155,$F$3))/10^9 -> 2.800873457 | I51: =_xlfn.SWITCH($H$3,"As Origin",SUMIFS(Outputs!GM$12:GM$155,Outputs!$B$12:$B$155,$F$3),"As Destination",SUMIFS(Outputs!GM$12:GM$155,Outputs!$C$12:$C$155,$F$3),"Within Zone",SUMIFS(Outputs!GM$12:GM$155,Outputs!$B$12:$B$155,$F$3,Outputs!$C$12:$C$155,$F$3))/10^9 -> 2.582667884 | J51: =_xlfn.SWITCH($H$3,"As Origin",SUMIFS(Outputs!GN$12:GN$155,Outputs!$B$12:$B$155,$F$3),"As Destination",SUMIFS(Outputs!GN$12:GN$155,Outputs!$C$12:$C$155,$F$3),"Within Zone",SUMIFS(Outputs!GN$12:GN$155,Outputs!$B$12:$B$155,$F$3,Outputs!$C$12:$C$155,$F$3))/10^9 -> 2.516912928 | K51: =_xlfn.SWITCH($H$3,"As Origin",SUMIFS(Outputs!GO$12:GO$155,Outputs!$B$12:$B$155,$F$3),"As Destination",SUMIFS(Outputs!GO$12:GO$155,Outputs!$C$12:$C$155,$F$3),"Within Zone",SUMIFS(Outputs!GO$12:GO$155,Outputs!$B$12:$B$155,$F$3,Outputs!$C$12:$C$155,$F$3))/10^9 -> 2.348258295
C52: Rail
C53: Baseline | D53: =_xlfn.SWITCH($H$3,"As Origin",SUMIFS(Outputs!GP$12:GP$155,Outputs!$B$12:$B$155,$F$3),"As Destination",SUMIFS(Outputs!GP$12:GP$155,Outputs!$C$12:$C$155,$F$3),"Within Zone",SUMIFS(Outputs!GP$12:GP$155,Outputs!$B$12:$B$155,$F$3,Outputs!$C$12:$C$155,$F$3))/10^9 -> 0.4276585575 | E53: =_xlfn.SWITCH($H$3,"As Origin",SUMIFS(Outputs!GQ$12:GQ$155,Outputs!$B$12:$B$155,$F$3),"As Destination",SUMIFS(Outputs!GQ$12:GQ$155,Outputs!$C$12:$C$155,$F$3),"Within Zone",SUMIFS(Outputs!GQ$12:GQ$155,Outputs!$B$12:$B$155,$F$3,Outputs!$C$12:$C$155,$F$3))/10^9 -> 0.4141986354 | F53: =_xlfn.SWITCH($H$3,"As Origin",SUMIFS(Outputs!GR$12:GR$155,Outputs!$B$12:$B$155,$F$3),"As Destination",SUMIFS(Outputs!GR$12:GR$155,Outputs!$C$12:$C$155,$F$3),"Within Zone",SUMIFS(Outputs!GR$12:GR$155,Outputs!$B$12:$B$155,$F$3,Outputs!$C$12:$C$155,$F$3))/10^9 -> 0.5426707188 | G53: =_xlfn.SWITCH($H$3,"As Origin",SUMIFS(Outputs!GS$12:GS$155,Outputs!$B$12:$B$155,$F$3),"As Destination",SUMIFS(Outputs!GS$12:GS$155,Outputs!$C$12:$C$155,$F$3),"Within Zone",SUMIFS(Outputs!GS$12:GS$155,Outputs!$B$12:$B$155,$F$3,Outputs!$C$12:$C$155,$F$3))/10^9 -> 0.6538327096 | H53: =_xlfn.SWITCH($H$3,"As Origin",SUMIFS(Outputs!GT$12:GT$155,Outputs!$B$12:$B$155,$F$3),"As Destination",SUMIFS(Outputs!GT$12:GT$155,Outputs!$C$12:$C$155,$F$3),"Within Zone",SUMIFS(Outputs!GT$12:GT$155,Outputs!$B$12:$B$155,$F$3,Outputs!$C$12:$C$155,$F$3))/10^9 -> 0.7429749835 | I53: =_xlfn.SWITCH($H$3,"As Origin",SUMIFS(Outputs!GU$12:GU$155,Outputs!$B$12:$B$155,$F$3),"As Destination",SUMIFS(Outputs!GU$12:GU$155,Outputs!$C$12:$C$155,$F$3),"Within Zone",SUMIFS(Outputs!GU$12:GU$155,Outputs!$B$12:$B$155,$F$3,Outputs!$C$12:$C$155,$F$3))/10^9 -> 0.8096630687 | J53: =_xlfn.SWITCH($H$3,"As Origin",SUMIFS(Outputs!GV$12:GV$155,Outputs!$B$12:$B$155,$F$3),"As Destination",SUMIFS(Outputs!GV$12:GV$155,Outputs!$C$12:$C$155,$F$3),"Within Zone",SUMIFS(Outputs!GV$12:GV$155,Outputs!$B$12:$B$155,$F$3,Outputs!$C$12:$C$155,$F$3))/10^9 -> 1.046959209 | K53: =_xlfn.SWITCH($H$3,"As Origin",SUMIFS(Outputs!GW$12:GW$155,Outputs!$B$12:$B$155,$F$3),"As Destination",SUMIFS(Outputs!GW$12:GW$155,Outputs!$C$12:$C$155,$F$3),"Within Zone",SUMIFS(Outputs!GW$12:GW$155,Outputs!$B$12:$B$155,$F$3,Outputs!$C$12:$C$155,$F$3))/10^9 -> 1.11743464
C54: Alternative | D54: =_xlfn.SWITCH($H$3,"As Origin",SUMIFS(Outputs!GX$12:GX$155,Outputs!$B$12:$B$155,$F$3),"As Destination",SUMIFS(Outputs!GX$12:GX$155,Outputs!$C$12:$C$155,$F$3),"Within Zone",SUMIFS(Outputs!GX$12:GX$155,Outputs!$B$12:$B$155,$F$3,Outputs!$C$12:$C$155,$F$3))/10^9 -> 0.4276585575 | E54: =_xlfn.SWITCH($H$3,"As Origin",SUMIFS(Outputs!GY$12:GY$155,Outputs!$B$12:$B$155,$F$3),"As Destination",SUMIFS(Outputs!GY$12:GY$155,Outputs!$C$12:$C$155,$F$3),"Within Zone",SUMIFS(Outputs!GY$12:GY$155,Outputs!$B$12:$B$155,$F$3,Outputs!$C$12:$C$155,$F$3))/10^9 -> 0.4141986354 | F54: =_xlfn.SWITCH($H$3,"As Origin",SUMIFS(Outputs!GZ$12:GZ$155,Outputs!$B$12:$B$155,$F$3),"As Destination",SUMIFS(Outputs!GZ$12:GZ$155,Outputs!$C$12:$C$155,$F$3),"Within Zone",SUMIFS(Outputs!GZ$12:GZ$155,Outputs!$B$12:$B$155,$F$3,Outputs!$C$12:$C$155,$F$3))/10^9 -> 0.5426707188 | G54: =_xlfn.SWITCH($H$3,"As Origin",SUMIFS(Outputs!HA$12:HA$155,Outputs!$B$12:$B$155,$F$3),"As Destination",SUMIFS(Outputs!HA$12:HA$155,Outputs!$C$12:$C$155,$F$3),"Within Zone",SUMIFS(Outputs!HA$12:HA$155,Outputs!$B$12:$B$155,$F$3,Outputs!$C$12:$C$155,$F$3))/10^9 -> 0.7172645714 | H54: =_xlfn.SWITCH($H$3,"As Origin",SUMIFS(Outputs!HB$12:HB$155,Outputs!$B$12:$B$155,$F$3),"As Destination",SUMIFS(Outputs!HB$12:HB$155,Outputs!$C$12:$C$155,$F$3),"Within Zone",SUMIFS(Outputs!HB$12:HB$155,Outputs!$B$12:$B$155,$F$3,Outputs!$C$12:$C$155,$F$3))/10^9 -> 0.8731130975 | I54: =_xlfn.SWITCH($H$3,"As Origin",SUMIFS(Outputs!HC$12:HC$155,Outputs!$B$12:$B$155,$F$3),"As Destination",SUMIFS(Outputs!HC$12:HC$155,Outputs!$C$12:$C$155,$F$3),"Within Zone",SUMIFS(Outputs!HC$12:HC$155,Outputs!$B$12:$B$155,$F$3,Outputs!$C$12:$C$155,$F$3))/10^9 -> 1.041966622 | J54: =_xlfn.SWITCH($H$3,"As Origin",SUMIFS(Outputs!HD$12:HD$155,Outputs!$B$12:$B$155,$F$3),"As Destination",SUMIFS(Outputs!HD$12:HD$155,Outputs!$C$12:$C$155,$F$3),"Within Zone",SUMIFS(Outputs!HD$12:HD$155,Outputs!$B$12:$B$155,$F$3,Outputs!$C$12:$C$155,$F$3))/10^9 -> 1.483567418 | K54: =_xlfn.SWITCH($H$3,"As Origin",SUMIFS(Outputs!HE$12:HE$155,Outputs!$B$12:$B$155,$F$3),"As Destination",SUMIFS(Outputs!HE$12:HE$155,Outputs!$C$12:$C$155,$F$3),"Within Zone",SUMIFS(Outputs!HE$12:HE$155,Outputs!$B$12:$B$155,$F$3,Outputs!$C$12:$C$155,$F$3))/10^9 -> 1.775801794
C55: Bus
C56: Baseline | D56: =_xlfn.SWITCH($H$3,"As Origin",SUMIFS(Outputs!HF$12:HF$155,Outputs!$B$12:$B$155,$F$3),"As Destination",SUMIFS(Outputs!HF$12:HF$155,Outputs!$C$12:$C$155,$F$3),"Within Zone",SUMIFS(Outputs!HF$12:HF$155,Outputs!$B$12:$B$155,$F$3,Outputs!$C$12:$C$155,$F$3))/10^9 -> 0.7619711804 | E56: =_xlfn.SWITCH($H$3,"As Origin",SUMIFS(Outputs!HG$12:HG$155,Outputs!$B$12:$B$155,$F$3),"As Destination",SUMIFS(Outputs!HG$12:HG$155,Outputs!$C$12:$C$155,$F$3),"Within Zone",SUMIFS(Outputs!HG$12:HG$155,Outputs!$B$12:$B$155,$F$3,Outputs!$C$12:$C$155,$F$3))/10^9 -> 0.745077729 | F56: =_xlfn.SWITCH($H$3,"As Origin",SUMIFS(Outputs!HH$12:HH$155,Outputs!$B$12:$B$155,$F$3),"As Destination",SUMIFS(Outputs!HH$12:HH$155,Outputs!$C$12:$C$155,$F$3),"Within Zone",SUMIFS(Outputs!HH$12:HH$155,Outputs!$B$12:$B$155,$F$3,Outputs!$C$12:$C$155,$F$3))/10^9 -> 0.9284838814 | G56: =_xlfn.SWITCH($H$3,"As Origin",SUMIFS(Outputs!HI$12:HI$155,Outputs!$B$12:$B$155,$F$3),"As Destination",SUMIFS(Outputs!HI$12:HI$155,Outputs!$C$12:$C$155,$F$3),"Within Zone",SUMIFS(Outputs!HI$12:HI$155,Outputs!$B$12:$B$155,$F$3,Outputs!$C$12:$C$155,$F$3))/10^9 -> 1.086807337 | H56: =_xlfn.SWITCH($H$3,"As Origin",SUMIFS(Outputs!HJ$12:HJ$155,Outputs!$B$12:$B$155,$F$3),"As Destination",SUMIFS(Outputs!HJ$12:HJ$155,Outputs!$C$12:$C$155,$F$3),"Within Zone",SUMIFS(Outputs!HJ$12:HJ$155,Outputs!$B$12:$B$155,$F$3,Outputs!$C$12:$C$155,$F$3))/10^9 -> 1.217365516 | I56: =_xlfn.SWITCH($H$3,"As Origin",SUMIFS(Outputs!HK$12:HK$155,Outputs!$B$12:$B$155,$F$3),"As Destination",SUMIFS(Outputs!HK$12:HK$155,Outputs!$C$12:$C$155,$F$3),"Within Zone",SUMIFS(Outputs!HK$12:HK$155,Outputs!$B$12:$B$155,$F$3,Outputs!$C$12:$C$155,$F$3))/10^9 -> 1.412257421 | J56: =_xlfn.SWITCH($H$3,"As Origin",SUMIFS(Outputs!HL$12:HL$155,Outputs!$B$12:$B$155,$F$3),"As Destination",SUMIFS(Outputs!HL$12:HL$155,Outputs!$C$12:$C$155,$F$3),"Within Zone",SUMIFS(Outputs!HL$12:HL$155,Outputs!$B$12:$B$155,$F$3,Outputs!$C$12:$C$155,$F$3))/10^9 -> 1.506043465 | K56: =_xlfn.SWITCH($H$3,"As Origin",SUMIFS(Outputs!HM$12:HM$155,Outputs!$B$12:$B$155,$F$3),"As Destination",SUMIFS(Outputs!HM$12:HM$155,Outputs!$C$12:$C$155,$F$3),"Within Zone",SUMIFS(Outputs!HM$12:HM$155,Outputs!$B$12:$B$155,$F$3,Outputs!$C$12:$C$155,$F$3))/10^9 -> 1.604850968
C57: Alternative | D57: =_xlfn.SWITCH($H$3,"As Origin",SUMIFS(Outputs!HN$12:HN$155,Outputs!$B$12:$B$155,$F$3),"As Destination",SUMIFS(Outputs!HN$12:HN$155,Outputs!$C$12:$C$155,$F$3),"Within Zone",SUMIFS(Outputs!HN$12:HN$155,Outputs!$B$12:$B$155,$F$3,Outputs!$C$12:$C$155,$F$3))/10^9 -> 0.7619711804 | E57: =_xlfn.SWITCH($H$3,"As Origin",SUMIFS(Outputs!HO$12:HO$155,Outputs!$B$12:$B$155,$F$3),"As Destination",SUMIFS(Outputs!HO$12:HO$155,Outputs!$C$12:$C$155,$F$3),"Within Zone",SUMIFS(Outputs!HO$12:HO$155,Outputs!$B$12:$B$155,$F$3,Outputs!$C$12:$C$155,$F$3))/10^9 -> 0.745077729 | F57: =_xlfn.SWITCH($H$3,"As Origin",SUMIFS(Outputs!HP$12:HP$155,Outputs!$B$12:$B$155,$F$3),"As Destination",SUMIFS(Outputs!HP$12:HP$155,Outputs!$C$12:$C$155,$F$3),"Within Zone",SUMIFS(Outputs!HP$12:HP$155,Outputs!$B$12:$B$155,$F$3,Outputs!$C$12:$C$155,$F$3))/10^9 -> 0.9284838814 | G57: =_xlfn.SWITCH($H$3,"As Origin",SUMIFS(Outputs!HQ$12:HQ$155,Outputs!$B$12:$B$155,$F$3),"As Destination",SUMIFS(Outputs!HQ$12:HQ$155,Outputs!$C$12:$C$155,$F$3),"Within Zone",SUMIFS(Outputs!HQ$12:HQ$155,Outputs!$B$12:$B$155,$F$3,Outputs!$C$12:$C$155,$F$3))/10^9 -> 1.306706997 | H57: =_xlfn.SWITCH($H$3,"As Origin",SUMIFS(Outputs!HR$12:HR$155,Outputs!$B$12:$B$155,$F$3),"As Destination",SUMIFS(Outputs!HR$12:HR$155,Outputs!$C$12:$C$155,$F$3),"Within Zone",SUMIFS(Outputs!HR$12:HR$155,Outputs!$B$12:$B$155,$F$3,Outputs!$C$12:$C$155,$F$3))/10^9 -> 1.702291912 | I57: =_xlfn.SWITCH($H$3,"As Origin",SUMIFS(Outputs!HS$12:HS$155,Outputs!$B$12:$B$155,$F$3),"As Destination",SUMIFS(Outputs!HS$12:HS$155,Outputs!$C$12:$C$155,$F$3),"Within Zone",SUMIFS(Outputs!HS$12:HS$155,Outputs!$B$12:$B$155,$F$3,Outputs!$C$12:$C$155,$F$3))/10^9 -> 2.046814907 | J57: =_xlfn.SWITCH($H$3,"As Origin",SUMIFS(Outputs!HT$12:HT$155,Outputs!$B$12:$B$155,$F$3),"As Destination",SUMIFS(Outputs!HT$12:HT$155,Outputs!$C$12:$C$155,$F$3),"Within Zone",SUMIFS(Outputs!HT$12:HT$155,Outputs!$B$12:$B$155,$F$3,Outputs!$C$12:$C$155,$F$3))/10^9 -> 2.548409981 | K57: =_xlfn.SWITCH($H$3,"As Origin",SUMIFS(Outputs!HU$12:HU$155,Outputs!$B$12:$B$155,$F$3),"As Destination",SUMIFS(Outputs!HU$12:HU$155,Outputs!$C$12:$C$155,$F$3),"Within Zone",SUMIFS(Outputs!HU$12:HU$155,Outputs!$B$12:$B$155,$F$3,Outputs!$C$12:$C$155,$F$3))/10^9 -> 3.158350657
C58: Air
C59: Baseline | D59: =_xlfn.SWITCH($H$3,"As Origin",SUMIFS(Outputs!HV$12:HV$155,Outputs!$B$12:$B$155,$F$3),"As Destination",SUMIFS(Outputs!HV$12:HV$155,Outputs!$C$12:$C$155,$F$3),"Within Zone",SUMIFS(Outputs!HV$12:HV$155,Outputs!$B$12:$B$155,$F$3,Outputs!$C$12:$C$155,$F$3))/10^9 -> 3.691710919e-25 | E59: =_xlfn.SWITCH($H$3,"As Origin",SUMIFS(Outputs!HW$12:HW$155,Outputs!$B$12:$B$155,$F$3),"As Destination",SUMIFS(Outputs!HW$12:HW$155,Outputs!$C$12:$C$155,$F$3),"Within Zone",SUMIFS(Outputs!HW$12:HW$155,Outputs!$B$12:$B$155,$F$3,Outputs!$C$12:$C$155,$F$3))/10^9 -> 4.061924684e-25 | F59: =_xlfn.SWITCH($H$3,"As Origin",SUMIFS(Outputs!HX$12:HX$155,Outputs!$B$12:$B$155,$F$3),"As Destination",SUMIFS(Outputs!HX$12:HX$155,Outputs!$C$12:$C$155,$F$3),"Within Zone",SUMIFS(Outputs!HX$12:HX$155,Outputs!$B$12:$B$155,$F$3,Outputs!$C$12:$C$155,$F$3))/10^9 -> 2.358377044e-25 | G59: =_xlfn.SWITCH($H$3,"As Origin",SUMIFS(Outputs!HY$12:HY$155,Outputs!$B$12:$B$155,$F$3),"As Destination",SUMIFS(Outputs!HY$12:HY$155,Outputs!$C$12:$C$155,$F$3),"Within Zone",SUMIFS(Outputs!HY$12:HY$155,Outputs!$B$12:$B$155,$F$3,Outputs!$C$12:$C$155,$F$3))/10^9 -> 1.635468278e-25 | H59: =_xlfn.SWITCH($H$3,"As Origin",SUMIFS(Outputs!HZ$12:HZ$155,Outputs!$B$12:$B$155,$F$3),"As Destination",SUMIFS(Outputs!HZ$12:HZ$155,Outputs!$C$12:$C$155,$F$3),"Within Zone",SUMIFS(Outputs!HZ$12:HZ$155,Outputs!$B$12:$B$155,$F$3,Outputs!$C$12:$C$155,$F$3))/10^9 -> 1.289760679e-25 | I59: =_xlfn.SWITCH($H$3,"As Origin",SUMIFS(Outputs!IA$12:IA$155,Outputs!$B$12:$B$155,$F$3),"As Destination",SUMIFS(Outputs!IA$12:IA$155,Outputs!$C$12:$C$155,$F$3),"Within Zone",SUMIFS(Outputs!IA$12:IA$155,Outputs!$B$12:$B$155,$F$3,Outputs!$C$12:$C$155,$F$3))/10^9 -> 1.101554315e-25 | J59: =_xlfn.SWITCH($H$3,"As Origin",SUMIFS(Outputs!IB$12:IB$155,Outputs!$B$12:$B$155,$F$3),"As Destination",SUMIFS(Outputs!IB$12:IB$155,Outputs!$C$12:$C$155,$F$3),"Within Zone",SUMIFS(Outputs!IB$12:IB$155,Outputs!$B$12:$B$155,$F$3,Outputs!$C$12:$C$155,$F$3))/10^9 -> 9.953081382e-26 | K59: =_xlfn.SWITCH($H$3,"As Origin",SUMIFS(Outputs!IC$12:IC$155,Outputs!$B$12:$B$155,$F$3),"As Destination",SUMIFS(Outputs!IC$12:IC$155,Outputs!$C$12:$C$155,$F$3),"Within Zone",SUMIFS(Outputs!IC$12:IC$155,Outputs!$B$12:$B$155,$F$3,Outputs!$C$12:$C$155,$F$3))/10^9 -> 9.266302125e-26
C60: Alternative | D60: =_xlfn.SWITCH($H$3,"As Origin",SUMIFS(Outputs!ID$12:ID$155,Outputs!$B$12:$B$155,$F$3),"As Destination",SUMIFS(Outputs!ID$12:ID$155,Outputs!$C$12:$C$155,$F$3),"Within Zone",SUMIFS(Outputs!ID$12:ID$155,Outputs!$B$12:$B$155,$F$3,Outputs!$C$12:$C$155,$F$3))/10^9 -> 3.691710919e-25 | E60: =_xlfn.SWITCH($H$3,"As Origin",SUMIFS(Outputs!IE$12:IE$155,Outputs!$B$12:$B$155,$F$3),"As Destination",SUMIFS(Outputs!IE$12:IE$155,Outputs!$C$12:$C$155,$F$3),"Within Zone",SUMIFS(Outputs!IE$12:IE$155,Outputs!$B$12:$B$155,$F$3,Outputs!$C$12:$C$155,$F$3))/10^9 -> 4.061924684e-25 | F60: =_xlfn.SWITCH($H$3,"As Origin",SUMIFS(Outputs!IF$12:IF$155,Outputs!$B$12:$B$155,$F$3),"As Destination",SUMIFS(Outputs!IF$12:IF$155,Outputs!$C$12:$C$155,$F$3),"Within Zone",SUMIFS(Outputs!IF$12:IF$155,Outputs!$B$12:$B$155,$F$3,Outputs!$C$12:$C$155,$F$3))/10^9 -> 2.358377044e-25 | G60: =_xlfn.SWITCH($H$3,"As Origin",SUMIFS(Outputs!IG$12:IG$155,Outputs!$B$12:$B$155,$F$3),"As Destination",SUMIFS(Outputs!IG$12:IG$155,Outputs!$C$12:$C$155,$F$3),"Within Zone",SUMIFS(Outputs!IG$12:IG$155,Outputs!$B$12:$B$155,$F$3,Outputs!$C$12:$C$155,$F$3))/10^9 -> 1.049158164e-24 | H60: =_xlfn.SWITCH($H$3,"As Origin",SUMIFS(Outputs!IH$12:IH$155,Outputs!$B$12:$B$155,$F$3),"As Destination",SUMIFS(Outputs!IH$12:IH$155,Outputs!$C$12:$C$155,$F$3),"Within Zone",SUMIFS(Outputs!IH$12:IH$155,Outputs!$B$12:$B$155,$F$3,Outputs!$C$12:$C$155,$F$3))/10^9 -> 6.365752491e-22 | I60: =_xlfn.SWITCH($H$3,"As Origin",SUMIFS(Outputs!II$12:II$155,Outputs!$B$12:$B$155,$F$3),"As Destination",SUMIFS(Outputs!II$12:II$155,Outputs!$C$12:$C$155,$F$3),"Within Zone",SUMIFS(Outputs!II$12:II$155,Outputs!$B$12:$B$155,$F$3,Outputs!$C$12:$C$155,$F$3))/10^9 -> 3.04895211e-21 | J60: =_xlfn.SWITCH($H$3,"As Origin",SUMIFS(Outputs!IJ$12:IJ$155,Outputs!$B$12:$B$155,$F$3),"As Destination",SUMIFS(Outputs!IJ$12:IJ$155,Outputs!$C$12:$C$155,$F$3),"Within Zone",SUMIFS(Outputs!IJ$12:IJ$155,Outputs!$B$12:$B$155,$F$3,Outputs!$C$12:$C$155,$F$3))/10^9 -> 2.306970625e-20 | K60: =_xlfn.SWITCH($H$3,"As Origin",SUMIFS(Outputs!IK$12:IK$155,Outputs!$B$12:$B$155,$F$3),"As Destination",SUMIFS(Outputs!IK$12:IK$155,Outputs!$C$12:$C$155,$F$3),"Within Zone",SUMIFS(Outputs!IK$12:IK$155,Outputs!$B$12:$B$155,$F$3,Outputs!$C$12:$C$155,$F$3))/10^9 -> 2.288053915e-27
C61: Grand taxi
C62: Baseline | D62: =_xlfn.SWITCH($H$3,"As Origin",SUMIFS(Outputs!IL$12:IL$155,Outputs!$B$12:$B$155,$F$3),"As Destination",SUMIFS(Outputs!IL$12:IL$155,Outputs!$C$12:$C$155,$F$3),"Within Zone",SUMIFS(Outputs!IL$12:IL$155,Outputs!$B$12:$B$155,$F$3,Outputs!$C$12:$C$155,$F$3))/10^9 -> 0.1195161952 | E62: =_xlfn.SWITCH($H$3,"As Origin",SUMIFS(Outputs!IM$12:IM$155,Outputs!$B$12:$B$155,$F$3),"As Destination",SUMIFS(Outputs!IM$12:IM$155,Outputs!$C$12:$C$155,$F$3),"Within Zone",SUMIFS(Outputs!IM$12:IM$155,Outputs!$B$12:$B$155,$F$3,Outputs!$C$12:$C$155,$F$3))/10^9 -> 0.1157834562 | F62: =_xlfn.SWITCH($H$3,"As Origin",SUMIFS(Outputs!IN$12:IN$155,Outputs!$B$12:$B$155,$F$3),"As Destination",SUMIFS(Outputs!IN$12:IN$155,Outputs!$C$12:$C$155,$F$3),"Within Zone",SUMIFS(Outputs!IN$12:IN$155,Outputs!$B$12:$B$155,$F$3,Outputs!$C$12:$C$155,$F$3))/10^9 -> 0.1504576645 | G62: =_xlfn.SWITCH($H$3,"As Origin",SUMIFS(Outputs!IO$12:IO$155,Outputs!$B$12:$B$155,$F$3),"As Destination",SUMIFS(Outputs!IO$12:IO$155,Outputs!$C$12:$C$155,$F$3),"Within Zone",SUMIFS(Outputs!IO$12:IO$155,Outputs!$B$12:$B$155,$F$3,Outputs!$C$12:$C$155,$F$3))/10^9 -> 0.1800742893 | H62: =_xlfn.SWITCH($H$3,"As Origin",SUMIFS(Outputs!IP$12:IP$155,Outputs!$B$12:$B$155,$F$3),"As Destination",SUMIFS(Outputs!IP$12:IP$155,Outputs!$C$12:$C$155,$F$3),"Within Zone",SUMIFS(Outputs!IP$12:IP$155,Outputs!$B$12:$B$155,$F$3,Outputs!$C$12:$C$155,$F$3))/10^9 -> 0.2043671332 | I62: =_xlfn.SWITCH($H$3,"As Origin",SUMIFS(Outputs!IQ$12:IQ$155,Outputs!$B$12:$B$155,$F$3),"As Destination",SUMIFS(Outputs!IQ$12:IQ$155,Outputs!$C$12:$C$155,$F$3),"Within Zone",SUMIFS(Outputs!IQ$12:IQ$155,Outputs!$B$12:$B$155,$F$3,Outputs!$C$12:$C$155,$F$3))/10^9 -> 0.2154648763 | J62: =_xlfn.SWITCH($H$3,"As Origin",SUMIFS(Outputs!IR$12:IR$155,Outputs!$B$12:$B$155,$F$3),"As Destination",SUMIFS(Outputs!IR$12:IR$155,Outputs!$C$12:$C$155,$F$3),"Within Zone",SUMIFS(Outputs!IR$12:IR$155,Outputs!$B$12:$B$155,$F$3,Outputs!$C$12:$C$155,$F$3))/10^9 -> 0.2352915377 | K62: =_xlfn.SWITCH($H$3,"As Origin",SUMIFS(Outputs!IS$12:IS$155,Outputs!$B$12:$B$155,$F$3),"As Destination",SUMIFS(Outputs!IS$12:IS$155,Outputs!$C$12:$C$155,$F$3),"Within Zone",SUMIFS(Outputs!IS$12:IS$155,Outputs!$B$12:$B$155,$F$3,Outputs!$C$12:$C$155,$F$3))/10^9 -> 0.2524228454
C63: Alternative | D63: =_xlfn.SWITCH($H$3,"As Origin",SUMIFS(Outputs!IT$12:IT$155,Outputs!$B$12:$B$155,$F$3),"As Destination",SUMIFS(Outputs!IT$12:IT$155,Outputs!$C$12:$C$155,$F$3),"Within Zone",SUMIFS(Outputs!IT$12:IT$155,Outputs!$B$12:$B$155,$F$3,Outputs!$C$12:$C$155,$F$3))/10^9 -> 0.1195161952 | E63: =_xlfn.SWITCH($H$3,"As Origin",SUMIFS(Outputs!IU$12:IU$155,Outputs!$B$12:$B$155,$F$3),"As Destination",SUMIFS(Outputs!IU$12:IU$155,Outputs!$C$12:$C$155,$F$3),"Within Zone",SUMIFS(Outputs!IU$12:IU$155,Outputs!$B$12:$B$155,$F$3,Outputs!$C$12:$C$155,$F$3))/10^9 -> 0.1157834562 | F63: =_xlfn.SWITCH($H$3,"As Origin",SUMIFS(Outputs!IV$12:IV$155,Outputs!$B$12:$B$155,$F$3),"As Destination",SUMIFS(Outputs!IV$12:IV$155,Outputs!$C$12:$C$155,$F$3),"Within Zone",SUMIFS(Outputs!IV$12:IV$155,Outputs!$B$12:$B$155,$F$3,Outputs!$C$12:$C$155,$F$3))/10^9 -> 0.1504576645 | G63: =_xlfn.SWITCH($H$3,"As Origin",SUMIFS(Outputs!IW$12:IW$155,Outputs!$B$12:$B$155,$F$3),"As Destination",SUMIFS(Outputs!IW$12:IW$155,Outputs!$C$12:$C$155,$F$3),"Within Zone",SUMIFS(Outputs!IW$12:IW$155,Outputs!$B$12:$B$155,$F$3,Outputs!$C$12:$C$155,$F$3))/10^9 -> 0.1841909848 | H63: =_xlfn.SWITCH($H$3,"As Origin",SUMIFS(Outputs!IX$12:IX$155,Outputs!$B$12:$B$155,$F$3),"As Destination",SUMIFS(Outputs!IX$12:IX$155,Outputs!$C$12:$C$155,$F$3),"Within Zone",SUMIFS(Outputs!IX$12:IX$155,Outputs!$B$12:$B$155,$F$3,Outputs!$C$12:$C$155,$F$3))/10^9 -> 0.4852680853 | I63: =_xlfn.SWITCH($H$3,"As Origin",SUMIFS(Outputs!IY$12:IY$155,Outputs!$B$12:$B$155,$F$3),"As Destination",SUMIFS(Outputs!IY$12:IY$155,Outputs!$C$12:$C$155,$F$3),"Within Zone",SUMIFS(Outputs!IY$12:IY$155,Outputs!$B$12:$B$155,$F$3,Outputs!$C$12:$C$155,$F$3))/10^9 -> 0.6841180995 | J63: =_xlfn.SWITCH($H$3,"As Origin",SUMIFS(Outputs!IZ$12:IZ$155,Outputs!$B$12:$B$155,$F$3),"As Destination",SUMIFS(Outputs!IZ$12:IZ$155,Outputs!$C$12:$C$155,$F$3),"Within Zone",SUMIFS(Outputs!IZ$12:IZ$155,Outputs!$B$12:$B$155,$F$3,Outputs!$C$12:$C$155,$F$3))/10^9 -> 0.3922781548 | K63: =_xlfn.SWITCH($H$3,"As Origin",SUMIFS(Outputs!JA$12:JA$155,Outputs!$B$12:$B$155,$F$3),"As Destination",SUMIFS(Outputs!JA$12:JA$155,Outputs!$C$12:$C$155,$F$3),"Within Zone",SUMIFS(Outputs!JA$12:JA$155,Outputs!$B$12:$B$155,$F$3,Outputs!$C$12:$C$155,$F$3))/10^9 -> 0.1171378483
C64: Total
C65: Baseline | D65: =SUM(D50,D53,D56,D59,D62) -> 4.44540285 | E65: =SUM(E50,E53,E56,E59,E62) -> 4.45984912 | F65: 4.847263501 | G65: 5.314208579 | H65: 5.794688386 | I65: 6.282946834 | J65: 6.854245782 | K65: 7.288344389
C66: Alternative | D66: =SUM(D51,D54,D57,D60,D63) -> 4.44540285 | E66: =SUM(E51,E54,E57,E60,E63) -> 4.45984912 | F66: 4.847263501 | G66: 5.378798021 | H66: 5.861546551 | I66: 6.355567512 | J66: 6.941168482 | K66: 7.399548594
B68: Mode share by PKM
B69: (%) | D69: 2019 | E69: 2020 | F69: 2025 | G69: 2030 | H69: 2035 | I69: 2040 | J69: 2045 | K69: 2050
C70: Car
C71: Baseline | D71: =D50/D$65 -> 0.7055056702 | E71: =E50/E$65 -> 0.714102476 | F71: 0.6654581984 | G71: 0.6385700133 | H71: 0.6264324346 | I71: 0.612063347 | J71: 0.5932018927 | K71: 0.5918540213
C72: Alternative | D72: =D51/D$66 -> 0.7055056702 | E72: =E51/E$66 -> 0.714102476 | F72: 0.6654581984 | G72: 0.5894691444 | H72: 0.4778386442 | I72: 0.4063630634 | J72: 0.3626065171 | K72: 0.3173515607
C73: Rail
C74: Baseline | D74: =D53/D$65 -> 0.09620243023 | E74: =E53/E$65 -> 0.09287279104 | F74: 0.1119540373 | G74: 0.1230348226 | H74: 0.1282165552 | I74: 0.1288667707 | J74: 0.152746085 | K74: 0.153318035
C75: Alternative | D75: =D54/D$66 -> 0.09620243023 | E75: =E54/E$66 -> 0.09287279104 | F75: 0.1119540373 | G75: 0.1333503449 | H75: 0.1489560971 | I75: 0.1639454887 | J75: 0.2137345351 | K75: 0.2399878549
C76: Bus
C77: Baseline | D77: =D56/D$65 -> 0.1714065533 | E77: =E56/E$65 -> 0.1670634385 | F77: 0.191548052 | G77: 0.2045097254 | H77: 0.2100829992 | I77: 0.2247762807 | J77: 0.2197241699 | K77: 0.2201941734
C78: Alternative | D78: =D57/D$66 -> 0.1714065533 | E78: =E57/E$66 -> 0.1670634385 | F78: 0.191548052 | G78: 0.2429366175 | H78: 0.2904168544 | I78: 0.3220506907 | J78: 0.3671442334 | K78: 0.4268301798
C79: Air
C80: Baseline | D80: =D59/D$65 -> 8.304558763e-26 | E80: =E59/E$65 -> 9.10776256e-26 | F80: 4.865378257e-26 | G80: 3.077538741e-26 | H80: 2.225763653e-26 | I80: 1.753244686e-26 | J80: 1.452104535e-26 | K80: 1.271386426e-26
C81: Alternative | D81: =D60/D$66 -> 8.304558763e-26 | E81: =E60/E$66 -> 9.10776256e-26 | F81: 4.865378257e-26 | G81: 1.950543894e-25 | H81: 1.086019267e-22 | I81: 4.797293247e-22 | J81: 3.323605574e-21 | K81: 3.092153374e-28
C82: Grand taxi
C83: Baseline | D83: =D62/D$65 -> 0.02688534633 | E83: =E62/E$65 -> 0.02596129446 | F83: 0.0310397123 | G83: 0.03388543876 | H83: 0.03526801091 | I83: 0.03429360171 | J83: 0.03432785243 | K83: 0.03463377029
C84: Alternative | D84: =D63/D$66 -> 0.02688534633 | E84: =E63/E$66 -> 0.02596129446 | F84: 0.0310397123 | G84: 0.03424389317 | H84: 0.08278840424 | I84: 0.1076407572 | J84: 0.05651471446 | K84: 0.01583040462
B86: VKM
B87: (in million) | D87: 2019 | E87: 2020 | F87: 2025 | G87: 2030 | H87: 2035 | I87: 2040 | J87: 2045 | K87: 2050
C88: Car
C89: Baseline | D89: =_xlfn.SWITCH($H$3,"As Origin",SUMIFS(Outputs!JB$12:JB$155,Outputs!$B$12:$B$155,$F$3),"As Destination",SUMIFS(Outputs!JB$12:JB$155,Outputs!$C$12:$C$155,$F$3),"Within Zone",SUMIFS(Outputs!JB$12:JB$155,Outputs!$B$12:$B$155,$F$3,Outputs!$C$12:$C$155,$F$3))/10^6 -> 1960.160573 | E89: =_xlfn.SWITCH($H$3,"As Origin",SUMIFS(Outputs!JC$12:JC$155,Outputs!$B$12:$B$155,$F$3),"As Destination",SUMIFS(Outputs!JC$12:JC$155,Outputs!$C$12:$C$155,$F$3),"Within Zone",SUMIFS(Outputs!JC$12:JC$155,Outputs!$B$12:$B$155,$F$3,Outputs!$C$12:$C$155,$F$3))/10^6 -> 1990.493312 | F89: =_xlfn.SWITCH($H$3,"As Origin",SUMIFS(Outputs!JD$12:JD$155,Outputs!$B$12:$B$155,$F$3),"As Destination",SUMIFS(Outputs!JD$12:JD$155,Outputs!$C$12:$C$155,$F$3),"Within Zone",SUMIFS(Outputs!JD$12:JD$155,Outputs!$B$12:$B$155,$F$3,Outputs!$C$12:$C$155,$F$3))/10^6 -> 2016.032023 | G89: =_xlfn.SWITCH($H$3,"As Origin",SUMIFS(Outputs!JE$12:JE$155,Outputs!$B$12:$B$155,$F$3),"As Destination",SUMIFS(Outputs!JE$12:JE$155,Outputs!$C$12:$C$155,$F$3),"Within Zone",SUMIFS(Outputs!JE$12:JE$155,Outputs!$B$12:$B$155,$F$3,Outputs!$C$12:$C$155,$F$3))/10^6 -> 2120.933902 | H89: =_xlfn.SWITCH($H$3,"As Origin",SUMIFS(Outputs!JF$12:JF$155,Outputs!$B$12:$B$155,$F$3),"As Destination",SUMIFS(Outputs!JF$12:JF$155,Outputs!$C$12:$C$155,$F$3),"Within Zone",SUMIFS(Outputs!JF$12:JF$155,Outputs!$B$12:$B$155,$F$3,Outputs!$C$12:$C$155,$F$3))/10^6 -> 2268.737971 | I89: =_xlfn.SWITCH($H$3,"As Origin",SUMIFS(Outputs!JG$12:JG$155,Outputs!$B$12:$B$155,$F$3),"As Destination",SUMIFS(Outputs!JG$12:JG$155,Outputs!$C$12:$C$155,$F$3),"Within Zone",SUMIFS(Outputs!JG$12:JG$155,Outputs!$B$12:$B$155,$F$3,Outputs!$C$12:$C$155,$F$3))/10^6 -> 2403.475918 | J89: =_xlfn.SWITCH($H$3,"As Origin",SUMIFS(Outputs!JH$12:JH$155,Outputs!$B$12:$B$155,$F$3),"As Destination",SUMIFS(Outputs!JH$12:JH$155,Outputs!$C$12:$C$155,$F$3),"Within Zone",SUMIFS(Outputs!JH$12:JH$155,Outputs!$B$12:$B$155,$F$3,Outputs!$C$12:$C$155,$F$3))/10^6 -> 2541.219732 | K89: =_xlfn.SWITCH($H$3,"As Origin",SUMIFS(Outputs!JI$12:JI$155,Outputs!$B$12:$B$155,$F$3),"As Destination",SUMIFS(Outputs!JI$12:JI$155,Outputs!$C$12:$C$155,$F$3),"Within Zone",SUMIFS(Outputs!JI$12:JI$155,Outputs!$B$12:$B$155,$F$3,Outputs!$C$12:$C$155,$F$3))/10^6 -> 2696.02246
C90: Alternative | D90: =_xlfn.SWITCH($H$3,"As Origin",SUMIFS(Outputs!JJ$12:JJ$155,Outputs!$B$12:$B$155,$F$3),"As Destination",SUMIFS(Outputs!JJ$12:JJ$155,Outputs!$C$12:$C$155,$F$3),"Within Zone",SUMIFS(Outputs!JJ$12:JJ$155,Outputs!$B$12:$B$155,$F$3,Outputs!$C$12:$C$155,$F$3))/10^6 -> 1960.160573 | E90: =_xlfn.SWITCH($H$3,"As Origin",SUMIFS(Outputs!JK$12:JK$155,Outputs!$B$12:$B$155,$F$3),"As Destination",SUMIFS(Outputs!JK$12:JK$155,Outputs!$C$12:$C$155,$F$3),"Within Zone",SUMIFS(Outputs!JK$12:JK$155,Outputs!$B$12:$B$155,$F$3,Outputs!$C$12:$C$155,$F$3))/10^6 -> 1990.493312 | F90: =_xlfn.SWITCH($H$3,"As Origin",SUMIFS(Outputs!JL$12:JL$155,Outputs!$B$12:$B$155,$F$3),"As Destination",SUMIFS(Outputs!JL$12:JL$155,Outputs!$C$12:$C$155,$F$3),"Within Zone",SUMIFS(Outputs!JL$12:JL$155,Outputs!$B$12:$B$155,$F$3,Outputs!$C$12:$C$155,$F$3))/10^6 -> 2016.032023 | G90: =_xlfn.SWITCH($H$3,"As Origin",SUMIFS(Outputs!JM$12:JM$155,Outputs!$B$12:$B$155,$F$3),"As Destination",SUMIFS(Outputs!JM$12:JM$155,Outputs!$C$12:$C$155,$F$3),"Within Zone",SUMIFS(Outputs!JM$12:JM$155,Outputs!$B$12:$B$155,$F$3,Outputs!$C$12:$C$155,$F$3))/10^6 -> 1743.066319 | H90: =_xlfn.SWITCH($H$3,"As Origin",SUMIFS(Outputs!JN$12:JN$155,Outputs!$B$12:$B$155,$F$3),"As Destination",SUMIFS(Outputs!JN$12:JN$155,Outputs!$C$12:$C$155,$F$3),"Within Zone",SUMIFS(Outputs!JN$12:JN$155,Outputs!$B$12:$B$155,$F$3,Outputs!$C$12:$C$155,$F$3))/10^6 -> 1530.150775 | I90: =_xlfn.SWITCH($H$3,"As Origin",SUMIFS(Outputs!JO$12:JO$155,Outputs!$B$12:$B$155,$F$3),"As Destination",SUMIFS(Outputs!JO$12:JO$155,Outputs!$C$12:$C$155,$F$3),"Within Zone",SUMIFS(Outputs!JO$12:JO$155,Outputs!$B$12:$B$155,$F$3,Outputs!$C$12:$C$155,$F$3))/10^6 -> 1403.779734 | J90: =_xlfn.SWITCH($H$3,"As Origin",SUMIFS(Outputs!JP$12:JP$155,Outputs!$B$12:$B$155,$F$3),"As Destination",SUMIFS(Outputs!JP$12:JP$155,Outputs!$C$12:$C$155,$F$3),"Within Zone",SUMIFS(Outputs!JP$12:JP$155,Outputs!$B$12:$B$155,$F$3,Outputs!$C$12:$C$155,$F$3))/10^6 -> 1367.897886 | K90: =_xlfn.SWITCH($H$3,"As Origin",SUMIFS(Outputs!JQ$12:JQ$155,Outputs!$B$12:$B$155,$F$3),"As Destination",SUMIFS(Outputs!JQ$12:JQ$155,Outputs!$C$12:$C$155,$F$3),"Within Zone",SUMIFS(Outputs!JQ$12:JQ$155,Outputs!$B$12:$B$155,$F$3,Outputs!$C$12:$C$155,$F$3))/10^6 -> 1276.228754
C91: Rail
C92: Baseline | D92: =_xlfn.SWITCH($H$3,"As Origin",SUMIFS(Outputs!JR$12:JR$155,Outputs!$B$12:$B$155,$F$3),"As Destination",SUMIFS(Outputs!JR$12:JR$155,Outputs!$C$12:$C$155,$F$3),"Within Zone",SUMIFS(Outputs!JR$12:JR$155,Outputs!$B$12:$B$155,$F$3,Outputs!$C$12:$C$155,$F$3))/10^6 -> 1.709428739 | E92: =_xlfn.SWITCH($H$3,"As Origin",SUMIFS(Outputs!JS$12:JS$155,Outputs!$B$12:$B$155,$F$3),"As Destination",SUMIFS(Outputs!JS$12:JS$155,Outputs!$C$12:$C$155,$F$3),"Within Zone",SUMIFS(Outputs!JS$12:JS$155,Outputs!$B$12:$B$155,$F$3,Outputs!$C$12:$C$155,$F$3))/10^6 -> 1.655626991 | F92: =_xlfn.SWITCH($H$3,"As Origin",SUMIFS(Outputs!JT$12:JT$155,Outputs!$B$12:$B$155,$F$3),"As Destination",SUMIFS(Outputs!JT$12:JT$155,Outputs!$C$12:$C$155,$F$3),"Within Zone",SUMIFS(Outputs!JT$12:JT$155,Outputs!$B$12:$B$155,$F$3,Outputs!$C$12:$C$155,$F$3))/10^6 -> 2.169153186 | G92: =_xlfn.SWITCH($H$3,"As Origin",SUMIFS(Outputs!JU$12:JU$155,Outputs!$B$12:$B$155,$F$3),"As Destination",SUMIFS(Outputs!JU$12:JU$155,Outputs!$C$12:$C$155,$F$3),"Within Zone",SUMIFS(Outputs!JU$12:JU$155,Outputs!$B$12:$B$155,$F$3,Outputs!$C$12:$C$155,$F$3))/10^6 -> 2.613487804 | H92: =_xlfn.SWITCH($H$3,"As Origin",SUMIFS(Outputs!JV$12:JV$155,Outputs!$B$12:$B$155,$F$3),"As Destination",SUMIFS(Outputs!JV$12:JV$155,Outputs!$C$12:$C$155,$F$3),"Within Zone",SUMIFS(Outputs!JV$12:JV$155,Outputs!$B$12:$B$155,$F$3,Outputs!$C$12:$C$155,$F$3))/10^6 -> 2.969805624 | I92: =_xlfn.SWITCH($H$3,"As Origin",SUMIFS(Outputs!JW$12:JW$155,Outputs!$B$12:$B$155,$F$3),"As Destination",SUMIFS(Outputs!JW$12:JW$155,Outputs!$C$12:$C$155,$F$3),"Within Zone",SUMIFS(Outputs!JW$12:JW$155,Outputs!$B$12:$B$155,$F$3,Outputs!$C$12:$C$155,$F$3))/10^6 -> 3.236369983 | J92: =_xlfn.SWITCH($H$3,"As Origin",SUMIFS(Outputs!JX$12:JX$155,Outputs!$B$12:$B$155,$F$3),"As Destination",SUMIFS(Outputs!JX$12:JX$155,Outputs!$C$12:$C$155,$F$3),"Within Zone",SUMIFS(Outputs!JX$12:JX$155,Outputs!$B$12:$B$155,$F$3,Outputs!$C$12:$C$155,$F$3))/10^6 -> 4.184885648 | K92: =_xlfn.SWITCH($H$3,"As Origin",SUMIFS(Outputs!JY$12:JY$155,Outputs!$B$12:$B$155,$F$3),"As Destination",SUMIFS(Outputs!JY$12:JY$155,Outputs!$C$12:$C$155,$F$3),"Within Zone",SUMIFS(Outputs!JY$12:JY$155,Outputs!$B$12:$B$155,$F$3,Outputs!$C$12:$C$155,$F$3))/10^6 -> 4.466588717
C93: Alternative | D93: =_xlfn.SWITCH($H$3,"As Origin",SUMIFS(Outputs!JZ$12:JZ$155,Outputs!$B$12:$B$155,$F$3),"As Destination",SUMIFS(Outputs!JZ$12:JZ$155,Outputs!$C$12:$C$155,$F$3),"Within Zone",SUMIFS(Outputs!JZ$12:JZ$155,Outputs!$B$12:$B$155,$F$3,Outputs!$C$12:$C$155,$F$3))/10^6 -> 1.709428739 | E93: =_xlfn.SWITCH($H$3,"As Origin",SUMIFS(Outputs!KA$12:KA$155,Outputs!$B$12:$B$155,$F$3),"As Destination",SUMIFS(Outputs!KA$12:KA$155,Outputs!$C$12:$C$155,$F$3),"Within Zone",SUMIFS(Outputs!KA$12:KA$155,Outputs!$B$12:$B$155,$F$3,Outputs!$C$12:$C$155,$F$3))/10^6 -> 1.655626991 | F93: =_xlfn.SWITCH($H$3,"As Origin",SUMIFS(Outputs!KB$12:KB$155,Outputs!$B$12:$B$155,$F$3),"As Destination",SUMIFS(Outputs!KB$12:KB$155,Outputs!$C$12:$C$155,$F$3),"Within Zone",SUMIFS(Outputs!KB$12:KB$155,Outputs!$B$12:$B$155,$F$3,Outputs!$C$12:$C$155,$F$3))/10^6 -> 2.169153186 | G93: =_xlfn.SWITCH($H$3,"As Origin",SUMIFS(Outputs!KC$12:KC$155,Outputs!$B$12:$B$155,$F$3),"As Destination",SUMIFS(Outputs!KC$12:KC$155,Outputs!$C$12:$C$155,$F$3),"Within Zone",SUMIFS(Outputs!KC$12:KC$155,Outputs!$B$12:$B$155,$F$3,Outputs!$C$12:$C$155,$F$3))/10^6 -> 2.867036448 | H93: =_xlfn.SWITCH($H$3,"As Origin",SUMIFS(Outputs!KD$12:KD$155,Outputs!$B$12:$B$155,$F$3),"As Destination",SUMIFS(Outputs!KD$12:KD$155,Outputs!$C$12:$C$155,$F$3),"Within Zone",SUMIFS(Outputs!KD$12:KD$155,Outputs!$B$12:$B$155,$F$3,Outputs!$C$12:$C$155,$F$3))/10^6 -> 3.489991244 | I93: =_xlfn.SWITCH($H$3,"As Origin",SUMIFS(Outputs!KE$12:KE$155,Outputs!$B$12:$B$155,$F$3),"As Destination",SUMIFS(Outputs!KE$12:KE$155,Outputs!$C$12:$C$155,$F$3),"Within Zone",SUMIFS(Outputs!KE$12:KE$155,Outputs!$B$12:$B$155,$F$3,Outputs!$C$12:$C$155,$F$3))/10^6 -> 4.164929373 | J93: =_xlfn.SWITCH($H$3,"As Origin",SUMIFS(Outputs!KF$12:KF$155,Outputs!$B$12:$B$155,$F$3),"As Destination",SUMIFS(Outputs!KF$12:KF$155,Outputs!$C$12:$C$155,$F$3),"Within Zone",SUMIFS(Outputs!KF$12:KF$155,Outputs!$B$12:$B$155,$F$3,Outputs!$C$12:$C$155,$F$3))/10^6 -> 5.930087768 | K93: =_xlfn.SWITCH($H$3,"As Origin",SUMIFS(Outputs!KG$12:KG$155,Outputs!$B$12:$B$155,$F$3),"As Destination",SUMIFS(Outputs!KG$12:KG$155,Outputs!$C$12:$C$155,$F$3),"Within Zone",SUMIFS(Outputs!KG$12:KG$155,Outputs!$B$12:$B$155,$F$3,Outputs!$C$12:$C$155,$F$3))/10^6 -> 7.098201517
C94: Bus
C95: Baseline | D95: =_xlfn.SWITCH($H$3,"As Origin",SUMIFS(Outputs!KH$12:KH$155,Outputs!$B$12:$B$155,$F$3),"As Destination",SUMIFS(Outputs!KH$12:KH$155,Outputs!$C$12:$C$155,$F$3),"Within Zone",SUMIFS(Outputs!KH$12:KH$155,Outputs!$B$12:$B$155,$F$3,Outputs!$C$12:$C$155,$F$3))/10^6 -> 47.62319878 | E95: =_xlfn.SWITCH($H$3,"As Origin",SUMIFS(Outputs!KI$12:KI$155,Outputs!$B$12:$B$155,$F$3),"As Destination",SUMIFS(Outputs!KI$12:KI$155,Outputs!$C$12:$C$155,$F$3),"Within Zone",SUMIFS(Outputs!KI$12:KI$155,Outputs!$B$12:$B$155,$F$3,Outputs!$C$12:$C$155,$F$3))/10^6 -> 46.56735806 | F95: =_xlfn.SWITCH($H$3,"As Origin",SUMIFS(Outputs!KJ$12:KJ$155,Outputs!$B$12:$B$155,$F$3),"As Destination",SUMIFS(Outputs!KJ$12:KJ$155,Outputs!$C$12:$C$155,$F$3),"Within Zone",SUMIFS(Outputs!KJ$12:KJ$155,Outputs!$B$12:$B$155,$F$3,Outputs!$C$12:$C$155,$F$3))/10^6 -> 58.03024259 | G95: =_xlfn.SWITCH($H$3,"As Origin",SUMIFS(Outputs!KK$12:KK$155,Outputs!$B$12:$B$155,$F$3),"As Destination",SUMIFS(Outputs!KK$12:KK$155,Outputs!$C$12:$C$155,$F$3),"Within Zone",SUMIFS(Outputs!KK$12:KK$155,Outputs!$B$12:$B$155,$F$3,Outputs!$C$12:$C$155,$F$3))/10^6 -> 67.92545857 | H95: =_xlfn.SWITCH($H$3,"As Origin",SUMIFS(Outputs!KL$12:KL$155,Outputs!$B$12:$B$155,$F$3),"As Destination",SUMIFS(Outputs!KL$12:KL$155,Outputs!$C$12:$C$155,$F$3),"Within Zone",SUMIFS(Outputs!KL$12:KL$155,Outputs!$B$12:$B$155,$F$3,Outputs!$C$12:$C$155,$F$3))/10^6 -> 76.08534473 | I95: =_xlfn.SWITCH($H$3,"As Origin",SUMIFS(Outputs!KM$12:KM$155,Outputs!$B$12:$B$155,$F$3),"As Destination",SUMIFS(Outputs!KM$12:KM$155,Outputs!$C$12:$C$155,$F$3),"Within Zone",SUMIFS(Outputs!KM$12:KM$155,Outputs!$B$12:$B$155,$F$3,Outputs!$C$12:$C$155,$F$3))/10^6 -> 88.26608881 | J95: =_xlfn.SWITCH($H$3,"As Origin",SUMIFS(Outputs!KN$12:KN$155,Outputs!$B$12:$B$155,$F$3),"As Destination",SUMIFS(Outputs!KN$12:KN$155,Outputs!$C$12:$C$155,$F$3),"Within Zone",SUMIFS(Outputs!KN$12:KN$155,Outputs!$B$12:$B$155,$F$3,Outputs!$C$12:$C$155,$F$3))/10^6 -> 94.12771655 | K95: =_xlfn.SWITCH($H$3,"As Origin",SUMIFS(Outputs!KO$12:KO$155,Outputs!$B$12:$B$155,$F$3),"As Destination",SUMIFS(Outputs!KO$12:KO$155,Outputs!$C$12:$C$155,$F$3),"Within Zone",SUMIFS(Outputs!KO$12:KO$155,Outputs!$B$12:$B$155,$F$3,Outputs!$C$12:$C$155,$F$3))/10^6 -> 100.3031855
C96: Alternative | D96: =_xlfn.SWITCH($H$3,"As Origin",SUMIFS(Outputs!KP$12:KP$155,Outputs!$B$12:$B$155,$F$3),"As Destination",SUMIFS(Outputs!KP$12:KP$155,Outputs!$C$12:$C$155,$F$3),"Within Zone",SUMIFS(Outputs!KP$12:KP$155,Outputs!$B$12:$B$155,$F$3,Outputs!$C$12:$C$155,$F$3))/10^6 -> 47.62319878 | E96: =_xlfn.SWITCH($H$3,"As Origin",SUMIFS(Outputs!KQ$12:KQ$155,Outputs!$B$12:$B$155,$F$3),"As Destination",SUMIFS(Outputs!KQ$12:KQ$155,Outputs!$C$12:$C$155,$F$3),"Within Zone",SUMIFS(Outputs!KQ$12:KQ$155,Outputs!$B$12:$B$155,$F$3,Outputs!$C$12:$C$155,$F$3))/10^6 -> 46.56735806 | F96: =_xlfn.SWITCH($H$3,"As Origin",SUMIFS(Outputs!KR$12:KR$155,Outputs!$B$12:$B$155,$F$3),"As Destination",SUMIFS(Outputs!KR$12:KR$155,Outputs!$C$12:$C$155,$F$3),"Within Zone",SUMIFS(Outputs!KR$12:KR$155,Outputs!$B$12:$B$155,$F$3,Outputs!$C$12:$C$155,$F$3))/10^6 -> 58.03024259 | G96: =_xlfn.SWITCH($H$3,"As Origin",SUMIFS(Outputs!KS$12:KS$155,Outputs!$B$12:$B$155,$F$3),"As Destination",SUMIFS(Outputs!KS$12:KS$155,Outputs!$C$12:$C$155,$F$3),"Within Zone",SUMIFS(Outputs!KS$12:KS$155,Outputs!$B$12:$B$155,$F$3,Outputs!$C$12:$C$155,$F$3))/10^6 -> 81.66918734 | H96: =_xlfn.SWITCH($H$3,"As Origin",SUMIFS(Outputs!KT$12:KT$155,Outputs!$B$12:$B$155,$F$3),"As Destination",SUMIFS(Outputs!KT$12:KT$155,Outputs!$C$12:$C$155,$F$3),"Within Zone",SUMIFS(Outputs!KT$12:KT$155,Outputs!$B$12:$B$155,$F$3,Outputs!$C$12:$C$155,$F$3))/10^6 -> 106.3932445 | I96: =_xlfn.SWITCH($H$3,"As Origin",SUMIFS(Outputs!KU$12:KU$155,Outputs!$B$12:$B$155,$F$3),"As Destination",SUMIFS(Outputs!KU$12:KU$155,Outputs!$C$12:$C$155,$F$3),"Within Zone",SUMIFS(Outputs!KU$12:KU$155,Outputs!$B$12:$B$155,$F$3,Outputs!$C$12:$C$155,$F$3))/10^6 -> 127.9259317 | J96: =_xlfn.SWITCH($H$3,"As Origin",SUMIFS(Outputs!KV$12:KV$155,Outputs!$B$12:$B$155,$F$3),"As Destination",SUMIFS(Outputs!KV$12:KV$155,Outputs!$C$12:$C$155,$F$3),"Within Zone",SUMIFS(Outputs!KV$12:KV$155,Outputs!$B$12:$B$155,$F$3,Outputs!$C$12:$C$155,$F$3))/10^6 -> 159.2756238 | K96: =_xlfn.SWITCH($H$3,"As Origin",SUMIFS(Outputs!KW$12:KW$155,Outputs!$B$12:$B$155,$F$3),"As Destination",SUMIFS(Outputs!KW$12:KW$155,Outputs!$C$12:$C$155,$F$3),"Within Zone",SUMIFS(Outputs!KW$12:KW$155,Outputs!$B$12:$B$155,$F$3,Outputs!$C$12:$C$155,$F$3))/10^6 -> 197.3969161
C97: Air
C98: Baseline | D98: =_xlfn.SWITCH($H$3,"As Origin",SUMIFS(Outputs!KX$12:KX$155,Outputs!$B$12:$B$155,$F$3),"As Destination",SUMIFS(Outputs!KX$12:KX$155,Outputs!$C$12:$C$155,$F$3),"Within Zone",SUMIFS(Outputs!KX$12:KX$155,Outputs!$B$12:$B$155,$F$3,Outputs!$C$12:$C$155,$F$3))/10^6 -> 6.152851532e-24 | E98: =_xlfn.SWITCH($H$3,"As Origin",SUMIFS(Outputs!KY$12:KY$155,Outputs!$B$12:$B$155,$F$3),"As Destination",SUMIFS(Outputs!KY$12:KY$155,Outputs!$C$12:$C$155,$F$3),"Within Zone",SUMIFS(Outputs!KY$12:KY$155,Outputs!$B$12:$B$155,$F$3,Outputs!$C$12:$C$155,$F$3))/10^6 -> 6.769874473e-24 | F98: =_xlfn.SWITCH($H$3,"As Origin",SUMIFS(Outputs!KZ$12:KZ$155,Outputs!$B$12:$B$155,$F$3),"As Destination",SUMIFS(Outputs!KZ$12:KZ$155,Outputs!$C$12:$C$155,$F$3),"Within Zone",SUMIFS(Outputs!KZ$12:KZ$155,Outputs!$B$12:$B$155,$F$3,Outputs!$C$12:$C$155,$F$3))/10^6 -> 3.930628407e-24 | G98: =_xlfn.SWITCH($H$3,"As Origin",SUMIFS(Outputs!LA$12:LA$155,Outputs!$B$12:$B$155,$F$3),"As Destination",SUMIFS(Outputs!LA$12:LA$155,Outputs!$C$12:$C$155,$F$3),"Within Zone",SUMIFS(Outputs!LA$12:LA$155,Outputs!$B$12:$B$155,$F$3,Outputs!$C$12:$C$155,$F$3))/10^6 -> 2.725780463e-24 | H98: =_xlfn.SWITCH($H$3,"As Origin",SUMIFS(Outputs!LB$12:LB$155,Outputs!$B$12:$B$155,$F$3),"As Destination",SUMIFS(Outputs!LB$12:LB$155,Outputs!$C$12:$C$155,$F$3),"Within Zone",SUMIFS(Outputs!LB$12:LB$155,Outputs!$B$12:$B$155,$F$3,Outputs!$C$12:$C$155,$F$3))/10^6 -> 2.149601132e-24 | I98: =_xlfn.SWITCH($H$3,"As Origin",SUMIFS(Outputs!LC$12:LC$155,Outputs!$B$12:$B$155,$F$3),"As Destination",SUMIFS(Outputs!LC$12:LC$155,Outputs!$C$12:$C$155,$F$3),"Within Zone",SUMIFS(Outputs!LC$12:LC$155,Outputs!$B$12:$B$155,$F$3,Outputs!$C$12:$C$155,$F$3))/10^6 -> 1.835923858e-24 | J98: =_xlfn.SWITCH($H$3,"As Origin",SUMIFS(Outputs!LD$12:LD$155,Outputs!$B$12:$B$155,$F$3),"As Destination",SUMIFS(Outputs!LD$12:LD$155,Outputs!$C$12:$C$155,$F$3),"Within Zone",SUMIFS(Outputs!LD$12:LD$155,Outputs!$B$12:$B$155,$F$3,Outputs!$C$12:$C$155,$F$3))/10^6 -> 1.658846897e-24 | K98: =_xlfn.SWITCH($H$3,"As Origin",SUMIFS(Outputs!LE$12:LE$155,Outputs!$B$12:$B$155,$F$3),"As Destination",SUMIFS(Outputs!LE$12:LE$155,Outputs!$C$12:$C$155,$F$3),"Within Zone",SUMIFS(Outputs!LE$12:LE$155,Outputs!$B$12:$B$155,$F$3,Outputs!$C$12:$C$155,$F$3))/10^6 -> 1.544383688e-24
C99: Alternative | D99: =_xlfn.SWITCH($H$3,"As Origin",SUMIFS(Outputs!LF$12:LF$155,Outputs!$B$12:$B$155,$F$3),"As Destination",SUMIFS(Outputs!LF$12:LF$155,Outputs!$C$12:$C$155,$F$3),"Within Zone",SUMIFS(Outputs!LF$12:LF$155,Outputs!$B$12:$B$155,$F$3,Outputs!$C$12:$C$155,$F$3))/10^6 -> 6.152851532e-24 | E99: =_xlfn.SWITCH($H$3,"As Origin",SUMIFS(Outputs!LG$12:LG$155,Outputs!$B$12:$B$155,$F$3),"As Destination",SUMIFS(Outputs!LG$12:LG$155,Outputs!$C$12:$C$155,$F$3),"Within Zone",SUMIFS(Outputs!LG$12:LG$155,Outputs!$B$12:$B$155,$F$3,Outputs!$C$12:$C$155,$F$3))/10^6 -> 6.769874473e-24 | F99: =_xlfn.SWITCH($H$3,"As Origin",SUMIFS(Outputs!LH$12:LH$155,Outputs!$B$12:$B$155,$F$3),"As Destination",SUMIFS(Outputs!LH$12:LH$155,Outputs!$C$12:$C$155,$F$3),"Within Zone",SUMIFS(Outputs!LH$12:LH$155,Outputs!$B$12:$B$155,$F$3,Outputs!$C$12:$C$155,$F$3))/10^6 -> 3.930628407e-24 | G99: =_xlfn.SWITCH($H$3,"As Origin",SUMIFS(Outputs!LI$12:LI$155,Outputs!$B$12:$B$155,$F$3),"As Destination",SUMIFS(Outputs!LI$12:LI$155,Outputs!$C$12:$C$155,$F$3),"Within Zone",SUMIFS(Outputs!LI$12:LI$155,Outputs!$B$12:$B$155,$F$3,Outputs!$C$12:$C$155,$F$3))/10^6 -> 1.74859694e-23 | H99: =_xlfn.SWITCH($H$3,"As Origin",SUMIFS(Outputs!LJ$12:LJ$155,Outputs!$B$12:$B$155,$F$3),"As Destination",SUMIFS(Outputs!LJ$12:LJ$155,Outputs!$C$12:$C$155,$F$3),"Within Zone",SUMIFS(Outputs!LJ$12:LJ$155,Outputs!$B$12:$B$155,$F$3,Outputs!$C$12:$C$155,$F$3))/10^6 -> 1.060958749e-20 | I99: =_xlfn.SWITCH($H$3,"As Origin",SUMIFS(Outputs!LK$12:LK$155,Outputs!$B$12:$B$155,$F$3),"As Destination",SUMIFS(Outputs!LK$12:LK$155,Outputs!$C$12:$C$155,$F$3),"Within Zone",SUMIFS(Outputs!LK$12:LK$155,Outputs!$B$12:$B$155,$F$3,Outputs!$C$12:$C$155,$F$3))/10^6 -> 5.081586851e-20 | J99: =_xlfn.SWITCH($H$3,"As Origin",SUMIFS(Outputs!LL$12:LL$155,Outputs!$B$12:$B$155,$F$3),"As Destination",SUMIFS(Outputs!LL$12:LL$155,Outputs!$C$12:$C$155,$F$3),"Within Zone",SUMIFS(Outputs!LL$12:LL$155,Outputs!$B$12:$B$155,$F$3,Outputs!$C$12:$C$155,$F$3))/10^6 -> 3.844951042e-19 | K99: =_xlfn.SWITCH($H$3,"As Origin",SUMIFS(Outputs!LM$12:LM$155,Outputs!$B$12:$B$155,$F$3),"As Destination",SUMIFS(Outputs!LM$12:LM$155,Outputs!$C$12:$C$155,$F$3),"Within Zone",SUMIFS(Outputs!LM$12:LM$155,Outputs!$B$12:$B$155,$F$3,Outputs!$C$12:$C$155,$F$3))/10^6 -> 3.813423192e-26
C100: Grand taxi
C101: Baseline | D101: =_xlfn.SWITCH($H$3,"As Origin",SUMIFS(Outputs!LN$12:LN$155,Outputs!$B$12:$B$155,$F$3),"As Destination",SUMIFS(Outputs!LN$12:LN$155,Outputs!$C$12:$C$155,$F$3),"Within Zone",SUMIFS(Outputs!LN$12:LN$155,Outputs!$B$12:$B$155,$F$3,Outputs!$C$12:$C$155,$F$3))/10^6 -> 36.3680379 | E101: =_xlfn.SWITCH($H$3,"As Origin",SUMIFS(Outputs!LO$12:LO$155,Outputs!$B$12:$B$155,$F$3),"As Destination",SUMIFS(Outputs!LO$12:LO$155,Outputs!$C$12:$C$155,$F$3),"Within Zone",SUMIFS(Outputs!LO$12:LO$155,Outputs!$B$12:$B$155,$F$3,Outputs!$C$12:$C$155,$F$3))/10^6 -> 35.45338893 | F101: =_xlfn.SWITCH($H$3,"As Origin",SUMIFS(Outputs!LP$12:LP$155,Outputs!$B$12:$B$155,$F$3),"As Destination",SUMIFS(Outputs!LP$12:LP$155,Outputs!$C$12:$C$155,$F$3),"Within Zone",SUMIFS(Outputs!LP$12:LP$155,Outputs!$B$12:$B$155,$F$3,Outputs!$C$12:$C$155,$F$3))/10^6 -> 44.22696178 | G101: =_xlfn.SWITCH($H$3,"As Origin",SUMIFS(Outputs!LQ$12:LQ$155,Outputs!$B$12:$B$155,$F$3),"As Destination",SUMIFS(Outputs!LQ$12:LQ$155,Outputs!$C$12:$C$155,$F$3),"Within Zone",SUMIFS(Outputs!LQ$12:LQ$155,Outputs!$B$12:$B$155,$F$3,Outputs!$C$12:$C$155,$F$3))/10^6 -> 51.31085933 | H101: =_xlfn.SWITCH($H$3,"As Origin",SUMIFS(Outputs!LR$12:LR$155,Outputs!$B$12:$B$155,$F$3),"As Destination",SUMIFS(Outputs!LR$12:LR$155,Outputs!$C$12:$C$155,$F$3),"Within Zone",SUMIFS(Outputs!LR$12:LR$155,Outputs!$B$12:$B$155,$F$3,Outputs!$C$12:$C$155,$F$3))/10^6 -> 56.91733842 | I101: =_xlfn.SWITCH($H$3,"As Origin",SUMIFS(Outputs!LS$12:LS$155,Outputs!$B$12:$B$155,$F$3),"As Destination",SUMIFS(Outputs!LS$12:LS$155,Outputs!$C$12:$C$155,$F$3),"Within Zone",SUMIFS(Outputs!LS$12:LS$155,Outputs!$B$12:$B$155,$F$3,Outputs!$C$12:$C$155,$F$3))/10^6 -> 55.16339952 | J101: =_xlfn.SWITCH($H$3,"As Origin",SUMIFS(Outputs!LT$12:LT$155,Outputs!$B$12:$B$155,$F$3),"As Destination",SUMIFS(Outputs!LT$12:LT$155,Outputs!$C$12:$C$155,$F$3),"Within Zone",SUMIFS(Outputs!LT$12:LT$155,Outputs!$B$12:$B$155,$F$3,Outputs!$C$12:$C$155,$F$3))/10^6 -> 59.27219161 | K101: =_xlfn.SWITCH($H$3,"As Origin",SUMIFS(Outputs!LU$12:LU$155,Outputs!$B$12:$B$155,$F$3),"As Destination",SUMIFS(Outputs!LU$12:LU$155,Outputs!$C$12:$C$155,$F$3),"Within Zone",SUMIFS(Outputs!LU$12:LU$155,Outputs!$B$12:$B$155,$F$3,Outputs!$C$12:$C$155,$F$3))/10^6 -> 63.11752976
C102: Alternative | D102: =_xlfn.SWITCH($H$3,"As Origin",SUMIFS(Outputs!LV$12:LV$155,Outputs!$B$12:$B$155,$F$3),"As Destination",SUMIFS(Outputs!LV$12:LV$155,Outputs!$C$12:$C$155,$F$3),"Within Zone",SUMIFS(Outputs!LV$12:LV$155,Outputs!$B$12:$B$155,$F$3,Outputs!$C$12:$C$155,$F$3))/10^6 -> 36.3680379 | E102: =_xlfn.SWITCH($H$3,"As Origin",SUMIFS(Outputs!LW$12:LW$155,Outputs!$B$12:$B$155,$F$3),"As Destination",SUMIFS(Outputs!LW$12:LW$155,Outputs!$C$12:$C$155,$F$3),"Within Zone",SUMIFS(Outputs!LW$12:LW$155,Outputs!$B$12:$B$155,$F$3,Outputs!$C$12:$C$155,$F$3))/10^6 -> 35.45338893 | F102: =_xlfn.SWITCH($H$3,"As Origin",SUMIFS(Outputs!LX$12:LX$155,Outputs!$B$12:$B$155,$F$3),"As Destination",SUMIFS(Outputs!LX$12:LX$155,Outputs!$C$12:$C$155,$F$3),"Within Zone",SUMIFS(Outputs!LX$12:LX$155,Outputs!$B$12:$B$155,$F$3,Outputs!$C$12:$C$155,$F$3))/10^6 -> 44.22696178 | G102: =_xlfn.SWITCH($H$3,"As Origin",SUMIFS(Outputs!LY$12:LY$155,Outputs!$B$12:$B$155,$F$3),"As Destination",SUMIFS(Outputs!LY$12:LY$155,Outputs!$C$12:$C$155,$F$3),"Within Zone",SUMIFS(Outputs!LY$12:LY$155,Outputs!$B$12:$B$155,$F$3,Outputs!$C$12:$C$155,$F$3))/10^6 -> 50.63627271 | H102: =_xlfn.SWITCH($H$3,"As Origin",SUMIFS(Outputs!LZ$12:LZ$155,Outputs!$B$12:$B$155,$F$3),"As Destination",SUMIFS(Outputs!LZ$12:LZ$155,Outputs!$C$12:$C$155,$F$3),"Within Zone",SUMIFS(Outputs!LZ$12:LZ$155,Outputs!$B$12:$B$155,$F$3,Outputs!$C$12:$C$155,$F$3))/10^6 -> 215.1866249 | I102: =_xlfn.SWITCH($H$3,"As Origin",SUMIFS(Outputs!MA$12:MA$155,Outputs!$B$12:$B$155,$F$3),"As Destination",SUMIFS(Outputs!MA$12:MA$155,Outputs!$C$12:$C$155,$F$3),"Within Zone",SUMIFS(Outputs!MA$12:MA$155,Outputs!$B$12:$B$155,$F$3,Outputs!$C$12:$C$155,$F$3))/10^6 -> 321.494509 | J102: =_xlfn.SWITCH($H$3,"As Origin",SUMIFS(Outputs!MB$12:MB$155,Outputs!$B$12:$B$155,$F$3),"As Destination",SUMIFS(Outputs!MB$12:MB$155,Outputs!$C$12:$C$155,$F$3),"Within Zone",SUMIFS(Outputs!MB$12:MB$155,Outputs!$B$12:$B$155,$F$3,Outputs!$C$12:$C$155,$F$3))/10^6 -> 179.3722903 | K102: =_xlfn.SWITCH($H$3,"As Origin",SUMIFS(Outputs!MC$12:MC$155,Outputs!$B$12:$B$155,$F$3),"As Destination",SUMIFS(Outputs!MC$12:MC$155,Outputs!$C$12:$C$155,$F$3),"Within Zone",SUMIFS(Outputs!MC$12:MC$155,Outputs!$B$12:$B$155,$F$3,Outputs!$C$12:$C$155,$F$3))/10^6 -> 39.23680696
C103: Total
C104: Baseline | D104: =SUM(D89,D92,D95,D98,D101) -> 2045.861238 | E104: =SUM(E89,E92,E95,E98,E101) -> 2074.169686 | F104: 2120.45838 | G104: 2242.783707 | H104: 2404.71046 | I104: 2550.141776 | J104: 2698.804525 | K104: 2863.909764
C105: Alternative | D105: =SUM(D90,D93,D96,D99,D102) -> 2045.861238 | E105: =SUM(E90,E93,E96,E99,E102) -> 2074.169686 | F105: 2120.45838 | G105: 1878.238815 | H105: 1855.220636 | I105: 1857.365104 | J105: 1712.475887 | K105: 1519.960679
B107: CO2
B108: (in million Tonnes) | D108: 2019 | E108: 2020 | F108: 2025 | G108: 2030 | H108: 2035 | I108: 2040 | J108: 2045 | K108: 2050
C109: Car
C110: Baseline | D110: =_xlfn.SWITCH($H$3,"As Origin",SUMIFS(Outputs!MD$12:MD$155,Outputs!$B$12:$B$155,$F$3),"As Destination",SUMIFS(Outputs!MD$12:MD$155,Outputs!$C$12:$C$155,$F$3),"Within Zone",SUMIFS(Outputs!MD$12:MD$155,Outputs!$B$12:$B$155,$F$3,Outputs!$C$12:$C$155,$F$3))/(1000*1*10^6) -> 355.0667791 | E110: =_xlfn.SWITCH($H$3,"As Origin",SUMIFS(Outputs!ME$12:ME$155,Outputs!$B$12:$B$155,$F$3),"As Destination",SUMIFS(Outputs!ME$12:ME$155,Outputs!$C$12:$C$155,$F$3),"Within Zone",SUMIFS(Outputs!ME$12:ME$155,Outputs!$B$12:$B$155,$F$3,Outputs!$C$12:$C$155,$F$3))/(1000*1*10^6) -> 355.8567024 | F110: =_xlfn.SWITCH($H$3,"As Origin",SUMIFS(Outputs!MF$12:MF$155,Outputs!$B$12:$B$155,$F$3),"As Destination",SUMIFS(Outputs!MF$12:MF$155,Outputs!$C$12:$C$155,$F$3),"Within Zone",SUMIFS(Outputs!MF$12:MF$155,Outputs!$B$12:$B$155,$F$3,Outputs!$C$12:$C$155,$F$3))/(1000*1*10^6) -> 337.2592849 | G110: =_xlfn.SWITCH($H$3,"As Origin",SUMIFS(Outputs!MG$12:MG$155,Outputs!$B$12:$B$155,$F$3),"As Destination",SUMIFS(Outputs!MG$12:MG$155,Outputs!$C$12:$C$155,$F$3),"Within Zone",SUMIFS(Outputs!MG$12:MG$155,Outputs!$B$12:$B$155,$F$3,Outputs!$C$12:$C$155,$F$3))/(1000*1*10^6) -> 331.5953884 | H110: =_xlfn.SWITCH($H$3,"As Origin",SUMIFS(Outputs!MH$12:MH$155,Outputs!$B$12:$B$155,$F$3),"As Destination",SUMIFS(Outputs!MH$12:MH$155,Outputs!$C$12:$C$155,$F$3),"Within Zone",SUMIFS(Outputs!MH$12:MH$155,Outputs!$B$12:$B$155,$F$3,Outputs!$C$12:$C$155,$F$3))/(1000*1*10^6) -> 327.9497251 | I110: =_xlfn.SWITCH($H$3,"As Origin",SUMIFS(Outputs!MI$12:MI$155,Outputs!$B$12:$B$155,$F$3),"As Destination",SUMIFS(Outputs!MI$12:MI$155,Outputs!$C$12:$C$155,$F$3),"Within Zone",SUMIFS(Outputs!MI$12:MI$155,Outputs!$B$12:$B$155,$F$3,Outputs!$C$12:$C$155,$F$3))/(1000*1*10^6) -> 323.3912024 | J110: =_xlfn.SWITCH($H$3,"As Origin",SUMIFS(Outputs!MJ$12:MJ$155,Outputs!$B$12:$B$155,$F$3),"As Destination",SUMIFS(Outputs!MJ$12:MJ$155,Outputs!$C$12:$C$155,$F$3),"Within Zone",SUMIFS(Outputs!MJ$12:MJ$155,Outputs!$B$12:$B$155,$F$3,Outputs!$C$12:$C$155,$F$3))/(1000*1*10^6) -> 316.1279992 | K110: =_xlfn.SWITCH($H$3,"As Origin",SUMIFS(Outputs!MK$12:MK$155,Outputs!$B$12:$B$155,$F$3),"As Destination",SUMIFS(Outputs!MK$12:MK$155,Outputs!$C$12:$C$155,$F$3),"Within Zone",SUMIFS(Outputs!MK$12:MK$155,Outputs!$B$12:$B$155,$F$3,Outputs!$C$12:$C$155,$F$3))/(1000*1*10^6) -> 311.9672072
C111: Alternative | D111: =_xlfn.SWITCH($H$3,"As Origin",SUMIFS(Outputs!ML$12:ML$155,Outputs!$B$12:$B$155,$F$3),"As Destination",SUMIFS(Outputs!ML$12:ML$155,Outputs!$C$12:$C$155,$F$3),"Within Zone",SUMIFS(Outputs!ML$12:ML$155,Outputs!$B$12:$B$155,$F$3,Outputs!$C$12:$C$155,$F$3))/(1000*1*10^6) -> 355.0667792 | E111: =_xlfn.SWITCH($H$3,"As Origin",SUMIFS(Outputs!MM$12:MM$155,Outputs!$B$12:$B$155,$F$3),"As Destination",SUMIFS(Outputs!MM$12:MM$155,Outputs!$C$12:$C$155,$F$3),"Within Zone",SUMIFS(Outputs!MM$12:MM$155,Outputs!$B$12:$B$155,$F$3,Outputs!$C$12:$C$155,$F$3))/(1000*1*10^6) -> 355.860758 | F111: =_xlfn.SWITCH($H$3,"As Origin",SUMIFS(Outputs!MN$12:MN$155,Outputs!$B$12:$B$155,$F$3),"As Destination",SUMIFS(Outputs!MN$12:MN$155,Outputs!$C$12:$C$155,$F$3),"Within Zone",SUMIFS(Outputs!MN$12:MN$155,Outputs!$B$12:$B$155,$F$3,Outputs!$C$12:$C$155,$F$3))/(1000*1*10^6) -> 335.8169695 | G111: =_xlfn.SWITCH($H$3,"As Origin",SUMIFS(Outputs!MO$12:MO$155,Outputs!$B$12:$B$155,$F$3),"As Destination",SUMIFS(Outputs!MO$12:MO$155,Outputs!$C$12:$C$155,$F$3),"Within Zone",SUMIFS(Outputs!MO$12:MO$155,Outputs!$B$12:$B$155,$F$3,Outputs!$C$12:$C$155,$F$3))/(1000*1*10^6) -> 269.9906974 | H111: =_xlfn.SWITCH($H$3,"As Origin",SUMIFS(Outputs!MP$12:MP$155,Outputs!$B$12:$B$155,$F$3),"As Destination",SUMIFS(Outputs!MP$12:MP$155,Outputs!$C$12:$C$155,$F$3),"Within Zone",SUMIFS(Outputs!MP$12:MP$155,Outputs!$B$12:$B$155,$F$3,Outputs!$C$12:$C$155,$F$3))/(1000*1*10^6) -> 206.69601 | I111: =_xlfn.SWITCH($H$3,"As Origin",SUMIFS(Outputs!MQ$12:MQ$155,Outputs!$B$12:$B$155,$F$3),"As Destination",SUMIFS(Outputs!MQ$12:MQ$155,Outputs!$C$12:$C$155,$F$3),"Within Zone",SUMIFS(Outputs!MQ$12:MQ$155,Outputs!$B$12:$B$155,$F$3,Outputs!$C$12:$C$155,$F$3))/(1000*1*10^6) -> 163.5366489 | J111: =_xlfn.SWITCH($H$3,"As Origin",SUMIFS(Outputs!MR$12:MR$155,Outputs!$B$12:$B$155,$F$3),"As Destination",SUMIFS(Outputs!MR$12:MR$155,Outputs!$C$12:$C$155,$F$3),"Within Zone",SUMIFS(Outputs!MR$12:MR$155,Outputs!$B$12:$B$155,$F$3,Outputs!$C$12:$C$155,$F$3))/(1000*1*10^6) -> 135.1179057 | K111: =_xlfn.SWITCH($H$3,"As Origin",SUMIFS(Outputs!MS$12:MS$155,Outputs!$B$12:$B$155,$F$3),"As Destination",SUMIFS(Outputs!MS$12:MS$155,Outputs!$C$12:$C$155,$F$3),"Within Zone",SUMIFS(Outputs!MS$12:MS$155,Outputs!$B$12:$B$155,$F$3,Outputs!$C$12:$C$155,$F$3))/(1000*1*10^6) -> 106.9434273
C112: Rail
C113: Baseline | D113: =_xlfn.SWITCH($H$3,"As Origin",SUMIFS(Outputs!MT$12:MT$155,Outputs!$B$12:$B$155,$F$3),"As Destination",SUMIFS(Outputs!MT$12:MT$155,Outputs!$C$12:$C$155,$F$3),"Within Zone",SUMIFS(Outputs!MT$12:MT$155,Outputs!$B$12:$B$155,$F$3,Outputs!$C$12:$C$155,$F$3))/(1000*1*10^6) -> 4.498941431 | E113: =_xlfn.SWITCH($H$3,"As Origin",SUMIFS(Outputs!MU$12:MU$155,Outputs!$B$12:$B$155,$F$3),"As Destination",SUMIFS(Outputs!MU$12:MU$155,Outputs!$C$12:$C$155,$F$3),"Within Zone",SUMIFS(Outputs!MU$12:MU$155,Outputs!$B$12:$B$155,$F$3,Outputs!$C$12:$C$155,$F$3))/(1000*1*10^6) -> 4.342641984 | F113: =_xlfn.SWITCH($H$3,"As Origin",SUMIFS(Outputs!MV$12:MV$155,Outputs!$B$12:$B$155,$F$3),"As Destination",SUMIFS(Outputs!MV$12:MV$155,Outputs!$C$12:$C$155,$F$3),"Within Zone",SUMIFS(Outputs!MV$12:MV$155,Outputs!$B$12:$B$155,$F$3,Outputs!$C$12:$C$155,$F$3))/(1000*1*10^6) -> 4.7748519 | G113: =_xlfn.SWITCH($H$3,"As Origin",SUMIFS(Outputs!MW$12:MW$155,Outputs!$B$12:$B$155,$F$3),"As Destination",SUMIFS(Outputs!MW$12:MW$155,Outputs!$C$12:$C$155,$F$3),"Within Zone",SUMIFS(Outputs!MW$12:MW$155,Outputs!$B$12:$B$155,$F$3,Outputs!$C$12:$C$155,$F$3))/(1000*1*10^6) -> 4.860878962 | H113: =_xlfn.SWITCH($H$3,"As Origin",SUMIFS(Outputs!MX$12:MX$155,Outputs!$B$12:$B$155,$F$3),"As Destination",SUMIFS(Outputs!MX$12:MX$155,Outputs!$C$12:$C$155,$F$3),"Within Zone",SUMIFS(Outputs!MX$12:MX$155,Outputs!$B$12:$B$155,$F$3,Outputs!$C$12:$C$155,$F$3))/(1000*1*10^6) -> 4.630443462 | I113: =_xlfn.SWITCH($H$3,"As Origin",SUMIFS(Outputs!MY$12:MY$155,Outputs!$B$12:$B$155,$F$3),"As Destination",SUMIFS(Outputs!MY$12:MY$155,Outputs!$C$12:$C$155,$F$3),"Within Zone",SUMIFS(Outputs!MY$12:MY$155,Outputs!$B$12:$B$155,$F$3,Outputs!$C$12:$C$155,$F$3))/(1000*1*10^6) -> 4.299945876 | J113: =_xlfn.SWITCH($H$3,"As Origin",SUMIFS(Outputs!MZ$12:MZ$155,Outputs!$B$12:$B$155,$F$3),"As Destination",SUMIFS(Outputs!MZ$12:MZ$155,Outputs!$C$12:$C$155,$F$3),"Within Zone",SUMIFS(Outputs!MZ$12:MZ$155,Outputs!$B$12:$B$155,$F$3,Outputs!$C$12:$C$155,$F$3))/(1000*1*10^6) -> 3.951231801 | K113: =_xlfn.SWITCH($H$3,"As Origin",SUMIFS(Outputs!NA$12:NA$155,Outputs!$B$12:$B$155,$F$3),"As Destination",SUMIFS(Outputs!NA$12:NA$155,Outputs!$C$12:$C$155,$F$3),"Within Zone",SUMIFS(Outputs!NA$12:NA$155,Outputs!$B$12:$B$155,$F$3,Outputs!$C$12:$C$155,$F$3))/(1000*1*10^6) -> 4.541243493
C114: Alternative | D114: =_xlfn.SWITCH($H$3,"As Origin",SUMIFS(Outputs!NB$12:NB$155,Outputs!$B$12:$B$155,$F$3),"As Destination",SUMIFS(Outputs!NB$12:NB$155,Outputs!$C$12:$C$155,$F$3),"Within Zone",SUMIFS(Outputs!NB$12:NB$155,Outputs!$B$12:$B$155,$F$3,Outputs!$C$12:$C$155,$F$3))/(1000*1*10^6) -> 4.498941431 | E114: =_xlfn.SWITCH($H$3,"As Origin",SUMIFS(Outputs!NC$12:NC$155,Outputs!$B$12:$B$155,$F$3),"As Destination",SUMIFS(Outputs!NC$12:NC$155,Outputs!$C$12:$C$155,$F$3),"Within Zone",SUMIFS(Outputs!NC$12:NC$155,Outputs!$B$12:$B$155,$F$3,Outputs!$C$12:$C$155,$F$3))/(1000*1*10^6) -> 4.342641984 | F114: =_xlfn.SWITCH($H$3,"As Origin",SUMIFS(Outputs!ND$12:ND$155,Outputs!$B$12:$B$155,$F$3),"As Destination",SUMIFS(Outputs!ND$12:ND$155,Outputs!$C$12:$C$155,$F$3),"Within Zone",SUMIFS(Outputs!ND$12:ND$155,Outputs!$B$12:$B$155,$F$3,Outputs!$C$12:$C$155,$F$3))/(1000*1*10^6) -> 4.7748519 | G114: =_xlfn.SWITCH($H$3,"As Origin",SUMIFS(Outputs!NE$12:NE$155,Outputs!$B$12:$B$155,$F$3),"As Destination",SUMIFS(Outputs!NE$12:NE$155,Outputs!$C$12:$C$155,$F$3),"Within Zone",SUMIFS(Outputs!NE$12:NE$155,Outputs!$B$12:$B$155,$F$3,Outputs!$C$12:$C$155,$F$3))/(1000*1*10^6) -> 4.872136931 | H114: =_xlfn.SWITCH($H$3,"As Origin",SUMIFS(Outputs!NF$12:NF$155,Outputs!$B$12:$B$155,$F$3),"As Destination",SUMIFS(Outputs!NF$12:NF$155,Outputs!$C$12:$C$155,$F$3),"Within Zone",SUMIFS(Outputs!NF$12:NF$155,Outputs!$B$12:$B$155,$F$3,Outputs!$C$12:$C$155,$F$3))/(1000*1*10^6) -> 4.612575953 | I114: =_xlfn.SWITCH($H$3,"As Origin",SUMIFS(Outputs!NG$12:NG$155,Outputs!$B$12:$B$155,$F$3),"As Destination",SUMIFS(Outputs!NG$12:NG$155,Outputs!$C$12:$C$155,$F$3),"Within Zone",SUMIFS(Outputs!NG$12:NG$155,Outputs!$B$12:$B$155,$F$3,Outputs!$C$12:$C$155,$F$3))/(1000*1*10^6) -> 4.280548126 | J114: =_xlfn.SWITCH($H$3,"As Origin",SUMIFS(Outputs!NH$12:NH$155,Outputs!$B$12:$B$155,$F$3),"As Destination",SUMIFS(Outputs!NH$12:NH$155,Outputs!$C$12:$C$155,$F$3),"Within Zone",SUMIFS(Outputs!NH$12:NH$155,Outputs!$B$12:$B$155,$F$3,Outputs!$C$12:$C$155,$F$3))/(1000*1*10^6) -> 3.934645058 | K114: =_xlfn.SWITCH($H$3,"As Origin",SUMIFS(Outputs!NI$12:NI$155,Outputs!$B$12:$B$155,$F$3),"As Destination",SUMIFS(Outputs!NI$12:NI$155,Outputs!$C$12:$C$155,$F$3),"Within Zone",SUMIFS(Outputs!NI$12:NI$155,Outputs!$B$12:$B$155,$F$3,Outputs!$C$12:$C$155,$F$3))/(1000*1*10^6) -> 4.528368822
C115: Bus
C116: Baseline | D116: =_xlfn.SWITCH($H$3,"As Origin",SUMIFS(Outputs!NJ$12:NJ$155,Outputs!$B$12:$B$155,$F$3),"As Destination",SUMIFS(Outputs!NJ$12:NJ$155,Outputs!$C$12:$C$155,$F$3),"Within Zone",SUMIFS(Outputs!NJ$12:NJ$155,Outputs!$B$12:$B$155,$F$3,Outputs!$C$12:$C$155,$F$3))/(1000*1*10^6) -> 21.31588082 | E116: =_xlfn.SWITCH($H$3,"As Origin",SUMIFS(Outputs!NK$12:NK$155,Outputs!$B$12:$B$155,$F$3),"As Destination",SUMIFS(Outputs!NK$12:NK$155,Outputs!$C$12:$C$155,$F$3),"Within Zone",SUMIFS(Outputs!NK$12:NK$155,Outputs!$B$12:$B$155,$F$3,Outputs!$C$12:$C$155,$F$3))/(1000*1*10^6) -> 20.86451824 | F116: =_xlfn.SWITCH($H$3,"As Origin",SUMIFS(Outputs!NL$12:NL$155,Outputs!$B$12:$B$155,$F$3),"As Destination",SUMIFS(Outputs!NL$12:NL$155,Outputs!$C$12:$C$155,$F$3),"Within Zone",SUMIFS(Outputs!NL$12:NL$155,Outputs!$B$12:$B$155,$F$3,Outputs!$C$12:$C$155,$F$3))/(1000*1*10^6) -> 24.05043195 | G116: =_xlfn.SWITCH($H$3,"As Origin",SUMIFS(Outputs!NM$12:NM$155,Outputs!$B$12:$B$155,$F$3),"As Destination",SUMIFS(Outputs!NM$12:NM$155,Outputs!$C$12:$C$155,$F$3),"Within Zone",SUMIFS(Outputs!NM$12:NM$155,Outputs!$B$12:$B$155,$F$3,Outputs!$C$12:$C$155,$F$3))/(1000*1*10^6) -> 27.34915286 | H116: =_xlfn.SWITCH($H$3,"As Origin",SUMIFS(Outputs!NN$12:NN$155,Outputs!$B$12:$B$155,$F$3),"As Destination",SUMIFS(Outputs!NN$12:NN$155,Outputs!$C$12:$C$155,$F$3),"Within Zone",SUMIFS(Outputs!NN$12:NN$155,Outputs!$B$12:$B$155,$F$3,Outputs!$C$12:$C$155,$F$3))/(1000*1*10^6) -> 29.76152063 | I116: =_xlfn.SWITCH($H$3,"As Origin",SUMIFS(Outputs!NO$12:NO$155,Outputs!$B$12:$B$155,$F$3),"As Destination",SUMIFS(Outputs!NO$12:NO$155,Outputs!$C$12:$C$155,$F$3),"Within Zone",SUMIFS(Outputs!NO$12:NO$155,Outputs!$B$12:$B$155,$F$3,Outputs!$C$12:$C$155,$F$3))/(1000*1*10^6) -> 33.54214193 | J116: =_xlfn.SWITCH($H$3,"As Origin",SUMIFS(Outputs!NP$12:NP$155,Outputs!$B$12:$B$155,$F$3),"As Destination",SUMIFS(Outputs!NP$12:NP$155,Outputs!$C$12:$C$155,$F$3),"Within Zone",SUMIFS(Outputs!NP$12:NP$155,Outputs!$B$12:$B$155,$F$3,Outputs!$C$12:$C$155,$F$3))/(1000*1*10^6) -> 34.75019433 | K116: =_xlfn.SWITCH($H$3,"As Origin",SUMIFS(Outputs!NQ$12:NQ$155,Outputs!$B$12:$B$155,$F$3),"As Destination",SUMIFS(Outputs!NQ$12:NQ$155,Outputs!$C$12:$C$155,$F$3),"Within Zone",SUMIFS(Outputs!NQ$12:NQ$155,Outputs!$B$12:$B$155,$F$3,Outputs!$C$12:$C$155,$F$3))/(1000*1*10^6) -> 35.97470533
C117: Alternative | D117: =_xlfn.SWITCH($H$3,"As Origin",SUMIFS(Outputs!NR$12:NR$155,Outputs!$B$12:$B$155,$F$3),"As Destination",SUMIFS(Outputs!NR$12:NR$155,Outputs!$C$12:$C$155,$F$3),"Within Zone",SUMIFS(Outputs!NR$12:NR$155,Outputs!$B$12:$B$155,$F$3,Outputs!$C$12:$C$155,$F$3))/(1000*1*10^6) -> 21.31588082 | E117: =_xlfn.SWITCH($H$3,"As Origin",SUMIFS(Outputs!NS$12:NS$155,Outputs!$B$12:$B$155,$F$3),"As Destination",SUMIFS(Outputs!NS$12:NS$155,Outputs!$C$12:$C$155,$F$3),"Within Zone",SUMIFS(Outputs!NS$12:NS$155,Outputs!$B$12:$B$155,$F$3,Outputs!$C$12:$C$155,$F$3))/(1000*1*10^6) -> 20.86451824 | F117: =_xlfn.SWITCH($H$3,"As Origin",SUMIFS(Outputs!NT$12:NT$155,Outputs!$B$12:$B$155,$F$3),"As Destination",SUMIFS(Outputs!NT$12:NT$155,Outputs!$C$12:$C$155,$F$3),"Within Zone",SUMIFS(Outputs!NT$12:NT$155,Outputs!$B$12:$B$155,$F$3,Outputs!$C$12:$C$155,$F$3))/(1000*1*10^6) -> 23.80992763 | G117: =_xlfn.SWITCH($H$3,"As Origin",SUMIFS(Outputs!NU$12:NU$155,Outputs!$B$12:$B$155,$F$3),"As Destination",SUMIFS(Outputs!NU$12:NU$155,Outputs!$C$12:$C$155,$F$3),"Within Zone",SUMIFS(Outputs!NU$12:NU$155,Outputs!$B$12:$B$155,$F$3,Outputs!$C$12:$C$155,$F$3))/(1000*1*10^6) -> 31.73582738 | H117: =_xlfn.SWITCH($H$3,"As Origin",SUMIFS(Outputs!NV$12:NV$155,Outputs!$B$12:$B$155,$F$3),"As Destination",SUMIFS(Outputs!NV$12:NV$155,Outputs!$C$12:$C$155,$F$3),"Within Zone",SUMIFS(Outputs!NV$12:NV$155,Outputs!$B$12:$B$155,$F$3,Outputs!$C$12:$C$155,$F$3))/(1000*1*10^6) -> 39.77505353 | I117: =_xlfn.SWITCH($H$3,"As Origin",SUMIFS(Outputs!NW$12:NW$155,Outputs!$B$12:$B$155,$F$3),"As Destination",SUMIFS(Outputs!NW$12:NW$155,Outputs!$C$12:$C$155,$F$3),"Within Zone",SUMIFS(Outputs!NW$12:NW$155,Outputs!$B$12:$B$155,$F$3,Outputs!$C$12:$C$155,$F$3))/(1000*1*10^6) -> 46.06546701 | J117: =_xlfn.SWITCH($H$3,"As Origin",SUMIFS(Outputs!NX$12:NX$155,Outputs!$B$12:$B$155,$F$3),"As Destination",SUMIFS(Outputs!NX$12:NX$155,Outputs!$C$12:$C$155,$F$3),"Within Zone",SUMIFS(Outputs!NX$12:NX$155,Outputs!$B$12:$B$155,$F$3,Outputs!$C$12:$C$155,$F$3))/(1000*1*10^6) -> 55.23584736 | K117: =_xlfn.SWITCH($H$3,"As Origin",SUMIFS(Outputs!NY$12:NY$155,Outputs!$B$12:$B$155,$F$3),"As Destination",SUMIFS(Outputs!NY$12:NY$155,Outputs!$C$12:$C$155,$F$3),"Within Zone",SUMIFS(Outputs!NY$12:NY$155,Outputs!$B$12:$B$155,$F$3,Outputs!$C$12:$C$155,$F$3))/(1000*1*10^6) -> 65.14872043
C118: Air
C119: Baseline | D119: =_xlfn.SWITCH($H$3,"As Origin",SUMIFS(Outputs!NZ$12:NZ$155,Outputs!$B$12:$B$155,$F$3),"As Destination",SUMIFS(Outputs!NZ$12:NZ$155,Outputs!$C$12:$C$155,$F$3),"Within Zone",SUMIFS(Outputs!NZ$12:NZ$155,Outputs!$B$12:$B$155,$F$3,Outputs!$C$12:$C$155,$F$3))/(1000*1*10^6) -> 4.57019045e-23 | E119: =_xlfn.SWITCH($H$3,"As Origin",SUMIFS(Outputs!OA$12:OA$155,Outputs!$B$12:$B$155,$F$3),"As Destination",SUMIFS(Outputs!OA$12:OA$155,Outputs!$C$12:$C$155,$F$3),"Within Zone",SUMIFS(Outputs!OA$12:OA$155,Outputs!$B$12:$B$155,$F$3,Outputs!$C$12:$C$155,$F$3))/(1000*1*10^6) -> 4.541674546e-23 | F119: =_xlfn.SWITCH($H$3,"As Origin",SUMIFS(Outputs!OB$12:OB$155,Outputs!$B$12:$B$155,$F$3),"As Destination",SUMIFS(Outputs!OB$12:OB$155,Outputs!$C$12:$C$155,$F$3),"Within Zone",SUMIFS(Outputs!OB$12:OB$155,Outputs!$B$12:$B$155,$F$3,Outputs!$C$12:$C$155,$F$3))/(1000*1*10^6) -> 2.184223871e-23 | G119: =_xlfn.SWITCH($H$3,"As Origin",SUMIFS(Outputs!OC$12:OC$155,Outputs!$B$12:$B$155,$F$3),"As Destination",SUMIFS(Outputs!OC$12:OC$155,Outputs!$C$12:$C$155,$F$3),"Within Zone",SUMIFS(Outputs!OC$12:OC$155,Outputs!$B$12:$B$155,$F$3,Outputs!$C$12:$C$155,$F$3))/(1000*1*10^6) -> 1.364568004e-23 | H119: =_xlfn.SWITCH($H$3,"As Origin",SUMIFS(Outputs!OD$12:OD$155,Outputs!$B$12:$B$155,$F$3),"As Destination",SUMIFS(Outputs!OD$12:OD$155,Outputs!$C$12:$C$155,$F$3),"Within Zone",SUMIFS(Outputs!OD$12:OD$155,Outputs!$B$12:$B$155,$F$3,Outputs!$C$12:$C$155,$F$3))/(1000*1*10^6) -> 1.017455055e-23 | I119: =_xlfn.SWITCH($H$3,"As Origin",SUMIFS(Outputs!OE$12:OE$155,Outputs!$B$12:$B$155,$F$3),"As Destination",SUMIFS(Outputs!OE$12:OE$155,Outputs!$C$12:$C$155,$F$3),"Within Zone",SUMIFS(Outputs!OE$12:OE$155,Outputs!$B$12:$B$155,$F$3,Outputs!$C$12:$C$155,$F$3))/(1000*1*10^6) -> 8.092653595e-24 | J119: =_xlfn.SWITCH($H$3,"As Origin",SUMIFS(Outputs!OF$12:OF$155,Outputs!$B$12:$B$155,$F$3),"As Destination",SUMIFS(Outputs!OF$12:OF$155,Outputs!$C$12:$C$155,$F$3),"Within Zone",SUMIFS(Outputs!OF$12:OF$155,Outputs!$B$12:$B$155,$F$3,Outputs!$C$12:$C$155,$F$3))/(1000*1*10^6) -> 6.925076334e-24 | K119: =_xlfn.SWITCH($H$3,"As Origin",SUMIFS(Outputs!OG$12:OG$155,Outputs!$B$12:$B$155,$F$3),"As Destination",SUMIFS(Outputs!OG$12:OG$155,Outputs!$C$12:$C$155,$F$3),"Within Zone",SUMIFS(Outputs!OG$12:OG$155,Outputs!$B$12:$B$155,$F$3,Outputs!$C$12:$C$155,$F$3))/(1000*1*10^6) -> 6.132189483e-24
C120: Alternative | D120: =_xlfn.SWITCH($H$3,"As Origin",SUMIFS(Outputs!OH$12:OH$155,Outputs!$B$12:$B$155,$F$3),"As Destination",SUMIFS(Outputs!OH$12:OH$155,Outputs!$C$12:$C$155,$F$3),"Within Zone",SUMIFS(Outputs!OH$12:OH$155,Outputs!$B$12:$B$155,$F$3,Outputs!$C$12:$C$155,$F$3))/(1000*1*10^6) -> 4.57019045e-23 | E120: =_xlfn.SWITCH($H$3,"As Origin",SUMIFS(Outputs!OI$12:OI$155,Outputs!$B$12:$B$155,$F$3),"As Destination",SUMIFS(Outputs!OI$12:OI$155,Outputs!$C$12:$C$155,$F$3),"Within Zone",SUMIFS(Outputs!OI$12:OI$155,Outputs!$B$12:$B$155,$F$3,Outputs!$C$12:$C$155,$F$3))/(1000*1*10^6) -> 4.541674546e-23 | F120: =_xlfn.SWITCH($H$3,"As Origin",SUMIFS(Outputs!OJ$12:OJ$155,Outputs!$B$12:$B$155,$F$3),"As Destination",SUMIFS(Outputs!OJ$12:OJ$155,Outputs!$C$12:$C$155,$F$3),"Within Zone",SUMIFS(Outputs!OJ$12:OJ$155,Outputs!$B$12:$B$155,$F$3,Outputs!$C$12:$C$155,$F$3))/(1000*1*10^6) -> 2.184223871e-23 | G120: =_xlfn.SWITCH($H$3,"As Origin",SUMIFS(Outputs!OK$12:OK$155,Outputs!$B$12:$B$155,$F$3),"As Destination",SUMIFS(Outputs!OK$12:OK$155,Outputs!$C$12:$C$155,$F$3),"Within Zone",SUMIFS(Outputs!OK$12:OK$155,Outputs!$B$12:$B$155,$F$3,Outputs!$C$12:$C$155,$F$3))/(1000*1*10^6) -> 8.753747663e-23 | H120: =_xlfn.SWITCH($H$3,"As Origin",SUMIFS(Outputs!OL$12:OL$155,Outputs!$B$12:$B$155,$F$3),"As Destination",SUMIFS(Outputs!OL$12:OL$155,Outputs!$C$12:$C$155,$F$3),"Within Zone",SUMIFS(Outputs!OL$12:OL$155,Outputs!$B$12:$B$155,$F$3,Outputs!$C$12:$C$155,$F$3))/(1000*1*10^6) -> 5.021758806e-20 | I120: =_xlfn.SWITCH($H$3,"As Origin",SUMIFS(Outputs!OM$12:OM$155,Outputs!$B$12:$B$155,$F$3),"As Destination",SUMIFS(Outputs!OM$12:OM$155,Outputs!$C$12:$C$155,$F$3),"Within Zone",SUMIFS(Outputs!OM$12:OM$155,Outputs!$B$12:$B$155,$F$3,Outputs!$C$12:$C$155,$F$3))/(1000*1*10^6) -> 2.239936145e-19 | J120: =_xlfn.SWITCH($H$3,"As Origin",SUMIFS(Outputs!ON$12:ON$155,Outputs!$B$12:$B$155,$F$3),"As Destination",SUMIFS(Outputs!ON$12:ON$155,Outputs!$C$12:$C$155,$F$3),"Within Zone",SUMIFS(Outputs!ON$12:ON$155,Outputs!$B$12:$B$155,$F$3,Outputs!$C$12:$C$155,$F$3))/(1000*1*10^6) -> 1.605125797e-18 | K120: =_xlfn.SWITCH($H$3,"As Origin",SUMIFS(Outputs!OO$12:OO$155,Outputs!$B$12:$B$155,$F$3),"As Destination",SUMIFS(Outputs!OO$12:OO$155,Outputs!$C$12:$C$155,$F$3),"Within Zone",SUMIFS(Outputs!OO$12:OO$155,Outputs!$B$12:$B$155,$F$3,Outputs!$C$12:$C$155,$F$3))/(1000*1*10^6) -> 1.514172533e-25
C121: Grand taxi
C122: Baseline | D122: =_xlfn.SWITCH($H$3,"As Origin",SUMIFS(Outputs!OP$12:OP$155,Outputs!$B$12:$B$155,$F$3),"As Destination",SUMIFS(Outputs!OP$12:OP$155,Outputs!$C$12:$C$155,$F$3),"Within Zone",SUMIFS(Outputs!OP$12:OP$155,Outputs!$B$12:$B$155,$F$3,Outputs!$C$12:$C$155,$F$3))/(1000*1*10^6) -> 7.246544232 | E122: =_xlfn.SWITCH($H$3,"As Origin",SUMIFS(Outputs!OQ$12:OQ$155,Outputs!$B$12:$B$155,$F$3),"As Destination",SUMIFS(Outputs!OQ$12:OQ$155,Outputs!$C$12:$C$155,$F$3),"Within Zone",SUMIFS(Outputs!OQ$12:OQ$155,Outputs!$B$12:$B$155,$F$3,Outputs!$C$12:$C$155,$F$3))/(1000*1*10^6) -> 6.972120229 | F122: =_xlfn.SWITCH($H$3,"As Origin",SUMIFS(Outputs!OR$12:OR$155,Outputs!$B$12:$B$155,$F$3),"As Destination",SUMIFS(Outputs!OR$12:OR$155,Outputs!$C$12:$C$155,$F$3),"Within Zone",SUMIFS(Outputs!OR$12:OR$155,Outputs!$B$12:$B$155,$F$3,Outputs!$C$12:$C$155,$F$3))/(1000*1*10^6) -> 8.138535836 | G122: =_xlfn.SWITCH($H$3,"As Origin",SUMIFS(Outputs!OS$12:OS$155,Outputs!$B$12:$B$155,$F$3),"As Destination",SUMIFS(Outputs!OS$12:OS$155,Outputs!$C$12:$C$155,$F$3),"Within Zone",SUMIFS(Outputs!OS$12:OS$155,Outputs!$B$12:$B$155,$F$3,Outputs!$C$12:$C$155,$F$3))/(1000*1*10^6) -> 8.824362115 | H122: =_xlfn.SWITCH($H$3,"As Origin",SUMIFS(Outputs!OT$12:OT$155,Outputs!$B$12:$B$155,$F$3),"As Destination",SUMIFS(Outputs!OT$12:OT$155,Outputs!$C$12:$C$155,$F$3),"Within Zone",SUMIFS(Outputs!OT$12:OT$155,Outputs!$B$12:$B$155,$F$3,Outputs!$C$12:$C$155,$F$3))/(1000*1*10^6) -> 9.050242166 | I122: =_xlfn.SWITCH($H$3,"As Origin",SUMIFS(Outputs!OU$12:OU$155,Outputs!$B$12:$B$155,$F$3),"As Destination",SUMIFS(Outputs!OU$12:OU$155,Outputs!$C$12:$C$155,$F$3),"Within Zone",SUMIFS(Outputs!OU$12:OU$155,Outputs!$B$12:$B$155,$F$3,Outputs!$C$12:$C$155,$F$3))/(1000*1*10^6) -> 8.164547958 | J122: =_xlfn.SWITCH($H$3,"As Origin",SUMIFS(Outputs!OV$12:OV$155,Outputs!$B$12:$B$155,$F$3),"As Destination",SUMIFS(Outputs!OV$12:OV$155,Outputs!$C$12:$C$155,$F$3),"Within Zone",SUMIFS(Outputs!OV$12:OV$155,Outputs!$B$12:$B$155,$F$3,Outputs!$C$12:$C$155,$F$3))/(1000*1*10^6) -> 8.110813697 | K122: =_xlfn.SWITCH($H$3,"As Origin",SUMIFS(Outputs!OW$12:OW$155,Outputs!$B$12:$B$155,$F$3),"As Destination",SUMIFS(Outputs!OW$12:OW$155,Outputs!$C$12:$C$155,$F$3),"Within Zone",SUMIFS(Outputs!OW$12:OW$155,Outputs!$B$12:$B$155,$F$3,Outputs!$C$12:$C$155,$F$3))/(1000*1*10^6) -> 8.033931585
C123: Alternative | D123: =_xlfn.SWITCH($H$3,"As Origin",SUMIFS(Outputs!OX$12:OX$155,Outputs!$B$12:$B$155,$F$3),"As Destination",SUMIFS(Outputs!OX$12:OX$155,Outputs!$C$12:$C$155,$F$3),"Within Zone",SUMIFS(Outputs!OX$12:OX$155,Outputs!$B$12:$B$155,$F$3,Outputs!$C$12:$C$155,$F$3))/(1000*1*10^6) -> 7.246544232 | E123: =_xlfn.SWITCH($H$3,"As Origin",SUMIFS(Outputs!OY$12:OY$155,Outputs!$B$12:$B$155,$F$3),"As Destination",SUMIFS(Outputs!OY$12:OY$155,Outputs!$C$12:$C$155,$F$3),"Within Zone",SUMIFS(Outputs!OY$12:OY$155,Outputs!$B$12:$B$155,$F$3,Outputs!$C$12:$C$155,$F$3))/(1000*1*10^6) -> 6.972199684 | F123: =_xlfn.SWITCH($H$3,"As Origin",SUMIFS(Outputs!OZ$12:OZ$155,Outputs!$B$12:$B$155,$F$3),"As Destination",SUMIFS(Outputs!OZ$12:OZ$155,Outputs!$C$12:$C$155,$F$3),"Within Zone",SUMIFS(Outputs!OZ$12:OZ$155,Outputs!$B$12:$B$155,$F$3,Outputs!$C$12:$C$155,$F$3))/(1000*1*10^6) -> 8.103730753 | G123: =_xlfn.SWITCH($H$3,"As Origin",SUMIFS(Outputs!PA$12:PA$155,Outputs!$B$12:$B$155,$F$3),"As Destination",SUMIFS(Outputs!PA$12:PA$155,Outputs!$C$12:$C$155,$F$3),"Within Zone",SUMIFS(Outputs!PA$12:PA$155,Outputs!$B$12:$B$155,$F$3,Outputs!$C$12:$C$155,$F$3))/(1000*1*10^6) -> 8.627586157 | H123: =_xlfn.SWITCH($H$3,"As Origin",SUMIFS(Outputs!PB$12:PB$155,Outputs!$B$12:$B$155,$F$3),"As Destination",SUMIFS(Outputs!PB$12:PB$155,Outputs!$C$12:$C$155,$F$3),"Within Zone",SUMIFS(Outputs!PB$12:PB$155,Outputs!$B$12:$B$155,$F$3,Outputs!$C$12:$C$155,$F$3))/(1000*1*10^6) -> 31.97465193 | I123: =_xlfn.SWITCH($H$3,"As Origin",SUMIFS(Outputs!PC$12:PC$155,Outputs!$B$12:$B$155,$F$3),"As Destination",SUMIFS(Outputs!PC$12:PC$155,Outputs!$C$12:$C$155,$F$3),"Within Zone",SUMIFS(Outputs!PC$12:PC$155,Outputs!$B$12:$B$155,$F$3,Outputs!$C$12:$C$155,$F$3))/(1000*1*10^6) -> 41.19859171 | J123: =_xlfn.SWITCH($H$3,"As Origin",SUMIFS(Outputs!PD$12:PD$155,Outputs!$B$12:$B$155,$F$3),"As Destination",SUMIFS(Outputs!PD$12:PD$155,Outputs!$C$12:$C$155,$F$3),"Within Zone",SUMIFS(Outputs!PD$12:PD$155,Outputs!$B$12:$B$155,$F$3,Outputs!$C$12:$C$155,$F$3))/(1000*1*10^6) -> 19.48979475 | K123: =_xlfn.SWITCH($H$3,"As Origin",SUMIFS(Outputs!PE$12:PE$155,Outputs!$B$12:$B$155,$F$3),"As Destination",SUMIFS(Outputs!PE$12:PE$155,Outputs!$C$12:$C$155,$F$3),"Within Zone",SUMIFS(Outputs!PE$12:PE$155,Outputs!$B$12:$B$155,$F$3,Outputs!$C$12:$C$155,$F$3))/(1000*1*10^6) -> 3.616695252
C124: Total
C125: Baseline | D125: =SUM(D110,D113,D116,D119,D122) -> 388.1281456 | E125: =SUM(E110,E113,E116,E119,E122) -> 388.0359829 | F125: 374.2231046 | G125: 372.6297823 | H125: 371.3919314 | I125: 369.3978381 | J125: 362.940239 | K125: 360.5170876
C126: Alternative | D126: =SUM(D111,D114,D117,D120,D123) -> 388.1281457 | E126: =SUM(E111,E114,E117,E120,E123) -> 388.0401179 | F126: 372.5054798 | G126: 315.2262479 | H126: 283.0582914 | I126: 255.0812558 | J126: 213.7781929 | K126: 180.2372118

Sheet Control_2 (hidden)
K1: start col | L1: end col | V1: Reference | AD1: ScA | AL1: Reference | AT1: ScA | BB1: Reference | BJ1: ScA | BR1: Reference | BZ1: ScA | CH1: Reference | CP1: ScA | CX1: Reference | DF1: ScA | DN1: Reference | DV1: ScA | ED1: Reference | EL1: ScA
K2: 12 | L2: =50+K2 -> 62 | V2: 2019 | W2: 2020 | X2: 2025 | Y2: 2030 | Z2: 2035 | AA2: 2040 | AB2: 2045 | AC2: 2050 | AD2: 2019 | AE2: 2020 | AF2: 2025 | AG2: 2030 | AH2: 2035 | AI2: 2040 | AJ2: 2045 | AK2: 2050 | AL2: 2019 | AM2: 2020 | AN2: 2025 | AO2: 2030 | AP2: 2035 | AQ2: 2040 | AR2: 2045 | AS2: 2050 | AT2: 2019 | AU2: 2020 | AV2: 2025 | AW2: 2030 | AX2: 2035 | AY2: 2040 | AZ2: 2045 | BA2: 2050 | BB2: 2019 | BC2: 2020 | BD2: 2025 | BE2: 2030 | BF2: 2035 | BG2: 2040 | BH2: 2045 | BI2: 2050 | BJ2: 2019 | BK2: 2020 | BL2: 2025 | BM2: 2030 | BN2: 2035 | BO2: 2040 | BP2: 2045 | BQ2: 2050 | BR2: 2019 | BS2: 2020 | BT2: 2025 | BU2: 2030 | BV2: 2035 | BW2: 2040 | BX2: 2045 | BY2: 2050 | BZ2: 2019 | CA2: 2020 | CB2: 2025 | CC2: 2030 | CD2: 2035 | CE2: 2040 | CF2: 2045 | CG2: 2050 | CH2: 2019 | CI2: 2020 | CJ2: 2025 | CK2: 2030 | CL2: 2035 | CM2: 2040 | CN2: 2045 | CO2: 2050 | CP2: 2019 | CQ2: 2020 | CR2: 2025 | CS2: 2030 | CT2: 2035 | CU2: 2040 | CV2: 2045 | CW2: 2050 | CX2: 2019 | CY2: 2020 | CZ2: 2025 | DA2: 2030 | DB2: 2035 | DC2: 2040 | DD2: 2045 | DE2: 2050 | DF2: 2019 | DG2: 2020 | DH2: 2025 | DI2: 2030 | DJ2: 2035 | DK2: 2040 | DL2: 2045 | DM2: 2050 | DN2: 2019 | DO2: 2020 | DP2: 2025 | DQ2: 2030 | DR2: 2035 | DS2: 2040 | DT2: 2045 | DU2: 2050 | DV2: 2019 | DW2: 2020 | DX2: 2025 | DY2: 2030 | DZ2: 2035 | EA2: 2040 | EB2: 2045 | EC2: 2050 | ED2: 2019 | EE2: 2020 | EF2: 2025 | EG2: 2030 | EH2: 2035 | EI2: 2040 | EJ2: 2045 | EK2: 2050 | EL2: 2019 | EM2: 2020 | EN2: 2025 | EO2: 2030 | EP2: 2035 | EQ2: 2040 | ER2: 2045 | ES2: 2050
A3: 12 | B3: =A3*A3 -> 144
R4: CAR
R5: ID_OD | S5: Ori_idz | T5: Dest_idz | U5: O_D | V5: cost | AD5: ScA | AL5: time | AT5: ScA | BB5: Consts | BJ5: ScA
R6: 1 | S6: =IF(R6="","",INT((R6-1)/$A$3)+1) -> 1 | T6: =IF(R6="","",MOD(R6-1,$A$3)+1) -> 1 | U6: =S6&"_"&T6 -> 1_1 | V6: 0 | W6: =0+IF(B$100<>0,(B$100)*B$101*zonal_GC!E15,0) -> 0 | X6: =0+IF(C$100<>0,(C$100)*C$101*zonal_GC!F15,0) -> 0 | Y6: =0+IF(D$100<>0,(D$100)*D$101*zonal_GC!G15,0) -> 0 | Z6: =0+IF(E$100<>0,(E$100)*E$101*zonal_GC!H15,0) -> 0 | AA6: =0+IF(F$100<>0,(F$100)*F$101*zonal_GC!I15,0) -> 0 | AB6: =0+IF(G$100<>0,(G$100)*G$101*zonal_GC!J15,0) -> 0 | AC6: =0+IF(H$100<>0,(H$100)*H$101*zonal_GC!K15,0) -> 0 | AD6: =0 -> 0 | AE6: =0+IF(I$100<>0,(I$100)*I$101*zonal_GC!M15,0) -> 0 | AF6: =0+IF(J$100<>0,(J$100)*J$101*zonal_GC!N15,0) -> 0 | AG6: =0+IF(K$100<>0,(K$100)*K$101*zonal_GC!O15,0) -> 0.2970288074 | AH6: =0+IF(L$100<>0,(L$100)*L$101*zonal_GC!P15,0) -> 0.3045722508 | AI6: =0+IF(M$100<>0,(M$100)*M$101*zonal_GC!Q15,0) -> 0.3028251884 | AJ6: =0+IF(N$100<>0,(N$100)*N$101*zonal_GC!R15,0) -> 0.4670031507 | AK6: =0+IF(O$100<>0,(O$100)*O$101*zonal_GC!S15,0) -> 0.4500082804 | AL6: 1 | AM6: =1+MIN(IF(AND($B$19=1,AM$2=$C$19,ISNUMBER(MATCH($U6,INDIRECT(CONCATENATE(ADDRESS(VLOOKUP($F$19,OD_zone_measures!$K$2:$M$122,2,0),$K$2,1,1,"OD_zone_measures"),":",ADDRESS(VLOOKUP($F$19,OD_zone_measures!$K$2:$M$122,2,0),$L$2,1,1))),0))),$G$19,0),IF(AND($B$20=1,AM$2=$C$20,ISNUMBER(MATCH($U6,INDIRECT(CONCATENATE(ADDRESS(VLOOKUP($F$20,OD_zone_measures!$K$2:$M$122,2,0),$K$2,1,1,"OD_zone_measures"),":",ADDRESS(VLOOKUP($F$20,OD_zone_measures!$K$2:$M$122,2,0),$L$2,1,1))),0))),$G$20,0),IF(AND($B$21=1,AM$2=$C$21,ISNUMBER(MATCH($U6,INDIRECT(CONCATENATE(ADDRESS(VLOOKUP($F$21,OD_zone_measures!$K$2:$M$122,2,0),$K$2,1,1,"OD_zone_measures"),":",ADDRESS(VLOOKUP($F$21,OD_zone_measures!$K$2:$M$122,2,0),$L$2,1,1))),0))),$G$21,0),IF(AND($B$22=1,AM$2=$C$22,ISNUMBER(MATCH($U6,INDIRECT(CONCATENATE(ADDRESS(VLOOKUP($F$22,OD_zone_measures!$K$2:$M$122,2,0),$K$2,1,1,"OD_zone_measures"),":",ADDRESS(VLOOKUP($F$22,OD_zone_measures!$K$2:$M$122,2,0),$L$2,1,1))),0))),$G$22,0),IF(AND($B$23=1,AM$2=$C$23,ISNUMBER(MATCH($U6,INDIRECT(CONCATENATE(ADDRESS(VLOOKUP($F$23,OD_zone_measures!$K$2:$M$122,2,0),$K$2,1,1,"OD_zone_measures"),":",ADDRESS(VLOOKUP($F$23,OD_zone_measures!$K$2:$M$122,2,0),$L$2,1,1))),0))),$G$23,0),IF(AND($B$24=1,AM$2=$C$24,ISNUMBER(MATCH($U6,INDIRECT(CONCATENATE(ADDRESS(VLOOKUP($F$24,OD_zone_measures!$K$2:$M$122,2,0),$K$2,1,1,"OD_zone_measures"),":",ADDRESS(VLOOKUP($F$24,OD_zone_measures!$K$2:$M$122,2,0),$L$2,1,1))),0))),$G$24,0),IF(AND($B$25=1,AM$2=$C$25,ISNUMBER(MATCH($U6,INDIRECT(CONCATENATE(ADDRESS(VLOOKUP($F$25,OD_zone_measures!$K$2:$M$122,2,0),$K$2,1,1,"OD_zone_measures"),":",ADDRESS(VLOOKUP($F$25,OD_zone_measures!$K$2:$M$122,2,0),$L$2,1,1))),0))),$G$25,0),IF(AND($B$26=1,AM$2=$C$26,ISNUMBER(MATCH($U6,INDIRECT(CONCATENATE(ADDRESS(VLOOKUP($F$26,OD_zone_measures!$K$2:$M$122,2,0),$K$2,1,1,"OD_zone_measures"),":",ADDRESS(VLOOKUP($F$26,OD_zone_measures!$K$2:$M$122,2,0),$L$2,1,1))),0))),$G$26,0),IF(AND($B$27=1,AM$2=$C$27,ISNUMBER(MATCH($U6,INDIRECT(CONCATENATE(ADDRESS(VLOOKUP($F$27,OD_zone_measures!$K$2:$M$122,2,0),$K$2,1,1,"OD_zone_measures"),":",ADDRESS(VLOOKUP($F$27,OD_zone_measures!$K$2:$M$122,2,0),$L$2,1,1))),0))),$G$27,0),IF(AND($B$28=1,AM$2=$C$28,ISNUMBER(MATCH($U6,INDIRECT(CONCATENATE(ADDRESS(VLOOKUP($F$28,OD_zone_measures!$K$2:$M$122,2,0),$K$2,1,1,"OD_zone_measures"),":",ADDRESS(VLOOKUP($F$28,OD_zone_measures!$K$2:$M$122,2,0),$L$2,1,1))),0))),$G$28,0),IF(AND($B$29=1,AM$2=$C$29,ISNUMBER(MATCH($U6,INDIRECT(CONCATENATE(ADDRESS(VLOOKUP($F$29,OD_zone_measures!$K$2:$M$122,2,0),$K$2,1,1,"OD_zone_measures"),":",ADDRESS(VLOOKUP($F$29,OD_zone_measures!$K$2:$M$122,2,0),$L$2,1,1))),0))),$G$29,0),IF(AND($B$30=1,AM$2=$C$30,ISNUMBER(MATCH($U6,INDIRECT(CONCATENATE(ADDRESS(VLOOKUP($F$30,OD_zone_measures!$K$2:$M$122,2,0),$K$2,1,1,"OD_zone_measures"),":",ADDRESS(VLOOKUP($F$30,OD_zone_measures!$K$2:$M$122,2,0),$L$2,1,1))),0))),$G$30,0),IF(AND($B$31=1,AM$2=$C$31,ISNUMBER(MATCH($U6,INDIRECT(CONCATENATE(ADDRESS(VLOOKUP($F$31,OD_zone_measures!$K$2:$M$122,2,0),$K$2,1,1,"OD_zone_measures"),":",ADDRESS(VLOOKUP($F$31,OD_zone_measures!$K$2:$M$122,2,0),$L$2,1,1))),0))),$G$31,0),IF(AND($B$32=1,AM$2=$C$32,ISNUMBER(MATCH($U6,INDIRECT(CONCATENATE(ADDRESS(VLOOKUP($F$32,OD_zone_measures!$K$2:$M$122,2,0),$K$2,1,1,"OD_zone_measures"),":",ADDRESS(VLOOKUP($F$32,OD_zone_measures!$K$2:$M$122,2,0),$L$2,1,1))),0))),$G$32,0),IF(AND($B$33=1,AM$2=$C$33,ISNUMBER(MATCH($U6,INDIRECT(CONCATENATE(ADDRESS(VLOOKUP($F$33,OD_zone_measures!$K$2:$M$122,2,0),$K$2,1,1,"OD_zone_measures"),":",ADDRESS(VLOOKUP($F$33,OD_zone_measures!$K$2:$M$122,2,0),$L$2,1,1))),0))),$G$33,0)) -> 1 | AN6: =1+MIN(IF(AND($B$19=1,AN$2=$C$19,ISNUMBER(MATCH($U6,INDIRECT(CONCATENATE(ADDRESS(VLOOKUP($F$19,OD_zone_measures!$K$2:$M$122,2,0),$K$2,1,1,"OD_zone_measures"),":",ADDRESS(VLOOKUP($F$19,OD_zone_measures!$K$2:$M$122,2,0),$L$2,1,1))),0))),$G$19,0),IF(AND($B$20=1,AN$2=$C$20,ISNUMBER(MATCH($U6,INDIRECT(CONCATENATE(ADDRESS(VLOOKUP($F$20,OD_zone_measures!$K$2:$M$122,2,0),$K$2,1,1,"OD_zone_measures"),":",ADDRESS(VLOOKUP($F$20,OD_zone_measures!$K$2:$M$122,2,0),$L$2,1,1))),0))),$G$20,0),IF(AND($B$21=1,AN$2=$C$21,ISNUMBER(MATCH($U6,INDIRECT(CONCATENATE(ADDRESS(VLOOKUP($F$21,OD_zone_measures!$K$2:$M$122,2,0),$K$2,1,1,"OD_zone_measures"),":",ADDRESS(VLOOKUP($F$21,OD_zone_measures!$K$2:$M$122,2,0),$L$2,1,1))),0))),$G$21,0),IF(AND($B$22=1,AN$2=$C$22,ISNUMBER(MATCH($U6,INDIRECT(CONCATENATE(ADDRESS(VLOOKUP($F$22,OD_zone_measures!$K$2:$M$122,2,0),$K$2,1,1,"OD_zone_measures"),":",ADDRESS(VLOOKUP($F$22,OD_zone_measures!$K$2:$M$122,2,0),$L$2,1,1))),0))),$G$22,0),IF(AND($B$23=1,AN$2=$C$23,ISNUMBER(MATCH($U6,INDIRECT(CONCATENATE(ADDRESS(VLOOKUP($F$23,OD_zone_measures!$K$2:$M$122,2,0),$K$2,1,1,"OD_zone_measures"),":",ADDRESS(VLOOKUP($F$23,OD_zone_measures!$K$2:$M$122,2,0),$L$2,1,1))),0))),$G$23,0),IF(AND($B$24=1,AN$2=$C$24,ISNUMBER(MATCH($U6,INDIRECT(CONCATENATE(ADDRESS(VLOOKUP($F$24,OD_zone_measures!$K$2:$M$122,2,0),$K$2,1,1,"OD_zone_measures"),":",ADDRESS(VLOOKUP($F$24,OD_zone_measures!$K$2:$M$122,2,0),$L$2,1,1))),0))),$G$24,0),IF(AND($B$25=1,AN$2=$C$25,ISNUMBER(MATCH($U6,INDIRECT(CONCATENATE(ADDRESS(VLOOKUP($F$25,OD_zone_measures!$K$2:$M$122,2,0),$K$2,1,1,"OD_zone_measures"),":",ADDRESS(VLOOKUP($F$25,OD_zone_measures!$K$2:$M$122,2,0),$L$2,1,1))),0))),$G$25,0),IF(AND($B$26=1,AN$2=$C$26,ISNUMBER(MATCH($U6,INDIRECT(CONCATENATE(ADDRESS(VLOOKUP($F$26,OD_zone_measures!$K$2:$M$122,2,0),$K$2,1,1,"OD_zone_measures"),":",ADDRESS(VLOOKUP($F$26,OD_zone_measures!$K$2:$M$122,2,0),$L$2,1,1))),0))),$G$26,0),IF(AND($B$27=1,AN$2=$C$27,ISNUMBER(MATCH($U6,INDIRECT(CONCATENATE(ADDRESS(VLOOKUP($F$27,OD_zone_measures!$K$2:$M$122,2,0),$K$2,1,1,"OD_zone_measures"),":",ADDRESS(VLOOKUP($F$27,OD_zone_measures!$K$2:$M$122,2,0),$L$2,1,1))),0))),$G$27,0),IF(AND($B$28=1,AN$2=$C$28,ISNUMBER(MATCH($U6,INDIRECT(CONCATENATE(ADDRESS(VLOOKUP($F$28,OD_zone_measures!$K$2:$M$122,2,0),$K$2,1,1,"OD_zone_measures"),":",ADDRESS(VLOOKUP($F$28,OD_zone_measures!$K$2:$M$122,2,0),$L$2,1,1))),0))),$G$28,0),IF(AND($B$29=1,AN$2=$C$29,ISNUMBER(MATCH($U6,INDIRECT(CONCATENATE(ADDRESS(VLOOKUP($F$29,OD_zone_measures!$K$2:$M$122,2,0),$K$2,1,1,"OD_zone_measures"),":",ADDRESS(VLOOKUP($F$29,OD_zone_measures!$K$2:$M$122,2,0),$L$2,1,1))),0))),$G$29,0),IF(AND($B$30=1,AN$2=$C$30,ISNUMBER(MATCH($U6,INDIRECT(CONCATENATE(ADDRESS(VLOOKUP($F$30,OD_zone_measures!$K$2:$M$122,2,0),$K$2,1,1,"OD_zone_measures"),":",ADDRESS(VLOOKUP($F$30,OD_zone_measures!$K$2:$M$122,2,0),$L$2,1,1))),0))),$G$30,0),IF(AND($B$31=1,AN$2=$C$31,ISNUMBER(MATCH($U6,INDIRECT(CONCATENATE(ADDRESS(VLOOKUP($F$31,OD_zone_measures!$K$2:$M$122,2,0),$K$2,1,1,"OD_zone_measures"),":",ADDRESS(VLOOKUP($F$31,OD_zone_measures!$K$2:$M$122,2,0),$L$2,1,1))),0))),$G$31,0),IF(AND($B$32=1,AN$2=$C$32,ISNUMBER(MATCH($U6,INDIRECT(CONCATENATE(ADDRESS(VLOOKUP($F$32,OD_zone_measures!$K$2:$M$122,2,0),$K$2,1,1,"OD_zone_measures"),":",ADDRESS(VLOOKUP($F$32,OD_zone_measures!$K$2:$M$122,2,0),$L$2,1,1))),0))),$G$32,0),IF(AND($B$33=1,AN$2=$C$33,ISNUMBER(MATCH($U6,INDIRECT(CONCATENATE(ADDRESS(VLOOKUP($F$33,OD_zone_measures!$K$2:$M$122,2,0),$K$2,1,1,"OD_zone_measures"),":",ADDRESS(VLOOKUP($F$33,OD_zone_measures!$K$2:$M$122,2,0),$L$2,1,1))),0))),$G$33,0)) -> 1 | AO6: =1+MIN(IF(AND($B$19=1,AO$2=$C$19,ISNUMBER(MATCH($U6,INDIRECT(CONCATENATE(ADDRESS(VLOOKUP($F$19,OD_zone_measures!$K$2:$M$122,2,0),$K$2,1,1,"OD_zone_measures"),":",ADDRESS(VLOOKUP($F$19,OD_zone_measures!$K$2:$M$122,2,0),$L$2,1,1))),0))),$G$19,0),IF(AND($B$20=1,AO$2=$C$20,ISNUMBER(MATCH($U6,INDIRECT(CONCATENATE(ADDRESS(VLOOKUP($F$20,OD_zone_measures!$K$2:$M$122,2,0),$K$2,1,1,"OD_zone_measures"),":",ADDRESS(VLOOKUP($F$20,OD_zone_measures!$K$2:$M$122,2,0),$L$2,1,1))),0))),$G$20,0),IF(AND($B$21=1,AO$2=$C$21,ISNUMBER(MATCH($U6,INDIRECT(CONCATENATE(ADDRESS(VLOOKUP($F$21,OD_zone_measures!$K$2:$M$122,2,0),$K$2,1,1,"OD_zone_measures"),":",ADDRESS(VLOOKUP($F$21,OD_zone_measures!$K$2:$M$122,2,0),$L$2,1,1))),0))),$G$21,0),IF(AND($B$22=1,AO$2=$C$22,ISNUMBER(MATCH($U6,INDIRECT(CONCATENATE(ADDRESS(VLOOKUP($F$22,OD_zone_measures!$K$2:$M$122,2,0),$K$2,1,1,"OD_zone_measures"),":",ADDRESS(VLOOKUP($F$22,OD_zone_measures!$K$2:$M$122,2,0),$L$2,1,1))),0))),$G$22,0),IF(AND($B$23=1,AO$2=$C$23,ISNUMBER(MATCH($U6,INDIRECT(CONCATENATE(ADDRESS(VLOOKUP($F$23,OD_zone_measures!$K$2:$M$122,2,0),$K$2,1,1,"OD_zone_measures"),":",ADDRESS(VLOOKUP($F$23,OD_zone_measures!$K$2:$M$122,2,0),$L$2,1,1))),0))),$G$23,0),IF(AND($B$24=1,AO$2=$C$24,ISNUMBER(MATCH($U6,INDIRECT(CONCATENATE(ADDRESS(VLOOKUP($F$24,OD_zone_measures!$K$2:$M$122,2,0),$K$2,1,1,"OD_zone_measures"),":",ADDRESS(VLOOKUP($F$24,OD_zone_measures!$K$2:$M$122,2,0),$L$2,1,1))),0))),$G$24,0),IF(AND($B$25=1,AO$2=$C$25,ISNUMBER(MATCH($U6,INDIRECT(CONCATENATE(ADDRESS(VLOOKUP($F$25,OD_zone_measures!$K$2:$M$122,2,0),$K$2,1,1,"OD_zone_measures"),":",ADDRESS(VLOOKUP($F$25,OD_zone_measures!$K$2:$M$122,2,0),$L$2,1,1))),0))),$G$25,0),IF(AND($B$26=1,AO$2=$C$26,ISNUMBER(MATCH($U6,INDIRECT(CONCATENATE(ADDRESS(VLOOKUP($F$26,OD_zone_measures!$K$2:$M$122,2,0),$K$2,1,1,"OD_zone_measures"),":",ADDRESS(VLOOKUP($F$26,OD_zone_measures!$K$2:$M$122,2,0),$L$2,1,1))),0))),$G$26,0),IF(AND($B$27=1,AO$2=$C$27,ISNUMBER(MATCH($U6,INDIRECT(CONCATENATE(ADDRESS(VLOOKUP($F$27,OD_zone_measures!$K$2:$M$122,2,0),$K$2,1,1,"OD_zone_measures"),":",ADDRESS(VLOOKUP($F$27,OD_zone_measures!$K$2:$M$122,2,0),$L$2,1,1))),0))),$G$27,0),IF(AND($B$28=1,AO$2=$C$28,ISNUMBER(MATCH($U6,INDIRECT(CONCATENATE(ADDRESS(VLOOKUP($F$28,OD_zone_measures!$K$2:$M$122,2,0),$K$2,1,1,"OD_zone_measures"),":",ADDRESS(VLOOKUP($F$28,OD_zone_measures!$K$2:$M$122,2,0),$L$2,1,1))),0))),$G$28,0),IF(AND($B$29=1,AO$2=$C$29,ISNUMBER(MATCH($U6,INDIRECT(CONCATENATE(ADDRESS(VLOOKUP($F$29,OD_zone_measures!$K$2:$M$122,2,0),$K$2,1,1,"OD_zone_measures"),":",ADDRESS(VLOOKUP($F$29,OD_zone_measures!$K$2:$M$122,2,0),$L$2,1,1))),0))),$G$29,0),IF(AND($B$30=1,AO$2=$C$30,ISNUMBER(MATCH($U6,INDIRECT(CONCATENATE(ADDRESS(VLOOKUP($F$30,OD_zone_measures!$K$2:$M$122,2,0),$K$2,1,1,"OD_zone_measures"),":",ADDRESS(VLOOKUP($F$30,OD_zone_measures!$K$2:$M$122,2,0),$L$2,1,1))),0))),$G$30,0),IF(AND($B$31=1,AO$2=$C$31,ISNUMBER(MATCH($U6,INDIRECT(CONCATENATE(ADDRESS(VLOOKUP($F$31,OD_zone_measures!$K$2:$M$122,2,0),$K$2,1,1,"OD_zone_measures"),":",ADDRESS(VLOOKUP($F$31,OD_zone_measures!$K$2:$M$122,2,0),$L$2,1,1))),0))),$G$31,0),IF(AND($B$32=1,AO$2=$C$32,ISNUMBER(MATCH($U6,INDIRECT(CONCATENATE(ADDRESS(VLOOKUP($F$32,OD_zone_measures!$K$2:$M$122,2,0),$K$2,1,1,"OD_zone_measures"),":",ADDRESS(VLOOKUP($F$32,OD_zone_measures!$K$2:$M$122,2,0),$L$2,1,1))),0))),$G$32,0),IF(AND($B$33=1,AO$2=$C$33,ISNUMBER(MATCH($U6,INDIRECT(CONCATENATE(ADDRESS(VLOOKUP($F$33,OD_zone_measures!$K$2:$M$122,2,0),$K$2,1,1,"OD_zone_measures"),":",ADDRESS(VLOOKUP($F$33,OD_zone_measures!$K$2:$M$122,2,0),$L$2,1,1))),0))),$G$33,0)) -> 1 | AP6: =1+MIN(IF(AND($B$19=1,AP$2=$C$19,ISNUMBER(MATCH($U6,INDIRECT(CONCATENATE(ADDRESS(VLOOKUP($F$19,OD_zone_measures!$K$2:$M$122,2,0),$K$2,1,1,"OD_zone_measures"),":",ADDRESS(VLOOKUP($F$19,OD_zone_measures!$K$2:$M$122,2,0),$L$2,1,1))),0))),$G$19,0),IF(AND($B$20=1,AP$2=$C$20,ISNUMBER(MATCH($U6,INDIRECT(CONCATENATE(ADDRESS(VLOOKUP($F$20,OD_zone_measures!$K$2:$M$122,2,0),$K$2,1,1,"OD_zone_measures"),":",ADDRESS(VLOOKUP($F$20,OD_zone_measures!$K$2:$M$122,2,0),$L$2,1,1))),0))),$G$20,0),IF(AND($B$21=1,AP$2=$C$21,ISNUMBER(MATCH($U6,INDIRECT(CONCATENATE(ADDRESS(VLOOKUP($F$21,OD_zone_measures!$K$2:$M$122,2,0),$K$2,1,1,"OD_zone_measures"),":",ADDRESS(VLOOKUP($F$21,OD_zone_measures!$K$2:$M$122,2,0),$L$2,1,1))),0))),$G$21,0),IF(AND($B$22=1,AP$2=$C$22,ISNUMBER(MATCH($U6,INDIRECT(CONCATENATE(ADDRESS(VLOOKUP($F$22,OD_zone_measures!$K$2:$M$122,2,0),$K$2,1,1,"OD_zone_measures"),":",ADDRESS(VLOOKUP($F$22,OD_zone_measures!$K$2:$M$122,2,0),$L$2,1,1))),0))),$G$22,0),IF(AND($B$23=1,AP$2=$C$23,ISNUMBER(MATCH($U6,INDIRECT(CONCATENATE(ADDRESS(VLOOKUP($F$23,OD_zone_measures!$K$2:$M$122,2,0),$K$2,1,1,"OD_zone_measures"),":",ADDRESS(VLOOKUP($F$23,OD_zone_measures!$K$2:$M$122,2,0),$L$2,1,1))),0))),$G$23,0),IF(AND($B$24=1,AP$2=$C$24,ISNUMBER(MATCH($U6,INDIRECT(CONCATENATE(ADDRESS(VLOOKUP($F$24,OD_zone_measures!$K$2:$M$122,2,0),$K$2,1,1,"OD_zone_measures"),":",ADDRESS(VLOOKUP($F$24,OD_zone_measures!$K$2:$M$122,2,0),$L$2,1,1))),0))),$G$24,0),IF(AND($B$25=1,AP$2=$C$25,ISNUMBER(MATCH($U6,INDIRECT(CONCATENATE(ADDRESS(VLOOKUP($F$25,OD_zone_measures!$K$2:$M$122,2,0),$K$2,1,1,"OD_zone_measures"),":",ADDRESS(VLOOKUP($F$25,OD_zone_measures!$K$2:$M$122,2,0),$L$2,1,1))),0))),$G$25,0),IF(AND($B$26=1,AP$2=$C$26,ISNUMBER(MATCH($U6,INDIRECT(CONCATENATE(ADDRESS(VLOOKUP($F$26,OD_zone_measures!$K$2:$M$122,2,0),$K$2,1,1,"OD_zone_measures"),":",ADDRESS(VLOOKUP($F$26,OD_zone_measures!$K$2:$M$122,2,0),$L$2,1,1))),0))),$G$26,0),IF(AND($B$27=1,AP$2=$C$27,ISNUMBER(MATCH($U6,INDIRECT(CONCATENATE(ADDRESS(VLOOKUP($F$27,OD_zone_measures!$K$2:$M$122,2,0),$K$2,1,1,"OD_zone_measures"),":",ADDRESS(VLOOKUP($F$27,OD_zone_measures!$K$2:$M$122,2,0),$L$2,1,1))),0))),$G$27,0),IF(AND($B$28=1,AP$2=$C$28,ISNUMBER(MATCH($U6,INDIRECT(CONCATENATE(ADDRESS(VLOOKUP($F$28,OD_zone_measures!$K$2:$M$122,2,0),$K$2,1,1,"OD_zone_measures"),":",ADDRESS(VLOOKUP($F$28,OD_zone_measures!$K$2:$M$122,2,0),$L$2,1,1))),0))),$G$28,0),IF(AND($B$29=1,AP$2=$C$29,ISNUMBER(MATCH($U6,INDIRECT(CONCATENATE(ADDRESS(VLOOKUP($F$29,OD_zone_measures!$K$2:$M$122,2,0),$K$2,1,1,"OD_zone_measures"),":",ADDRESS(VLOOKUP($F$29,OD_zone_measures!$K$2:$M$122,2,0),$L$2,1,1))),0))),$G$29,0),IF(AND($B$30=1,AP$2=$C$30,ISNUMBER(MATCH($U6,INDIRECT(CONCATENATE(ADDRESS(VLOOKUP($F$30,OD_zone_measures!$K$2:$M$122,2,0),$K$2,1,1,"OD_zone_measures"),":",ADDRESS(VLOOKUP($F$30,OD_zone_measures!$K$2:$M$122,2,0),$L$2,1,1))),0))),$G$30,0),IF(AND($B$31=1,AP$2=$C$31,ISNUMBER(MATCH($U6,INDIRECT(CONCATENATE(ADDRESS(VLOOKUP($F$31,OD_zone_measures!$K$2:$M$122,2,0),$K$2,1,1,"OD_zone_measures"),":",ADDRESS(VLOOKUP($F$31,OD_zone_measures!$K$2:$M$122,2,0),$L$2,1,1))),0))),$G$31,0),IF(AND($B$32=1,AP$2=$C$32,ISNUMBER(MATCH($U6,INDIRECT(CONCATENATE(ADDRESS(VLOOKUP($F$32,OD_zone_measures!$K$2:$M$122,2,0),$K$2,1,1,"OD_zone_measures"),":",ADDRESS(VLOOKUP($F$32,OD_zone_measures!$K$2:$M$122,2,0),$L$2,1,1))),0))),$G$32,0),IF(AND($B$33=1,AP$2=$C$33,ISNUMBER(MATCH($U6,INDIRECT(CONCATENATE(ADDRESS(VLOOKUP($F$33,OD_zone_measures!$K$2:$M$122,2,0),$K$2,1,1,"OD_zone_measures"),":",ADDRESS(VLOOKUP($F$33,OD_zone_measures!$K$2:$M$122,2,0),$L$2,1,1))),0))),$G$33,0)) -> 1 | AQ6: =1+MIN(IF(AND($B$19=1,AQ$2=$C$19,ISNUMBER(MATCH($U6,INDIRECT(CONCATENATE(ADDRESS(VLOOKUP($F$19,OD_zone_measures!$K$2:$M$122,2,0),$K$2,1,1,"OD_zone_measures"),":",ADDRESS(VLOOKUP($F$19,OD_zone_measures!$K$2:$M$122,2,0),$L$2,1,1))),0))),$G$19,0),IF(AND($B$20=1,AQ$2=$C$20,ISNUMBER(MATCH($U6,INDIRECT(CONCATENATE(ADDRESS(VLOOKUP($F$20,OD_zone_measures!$K$2:$M$122,2,0),$K$2,1,1,"OD_zone_measures"),":",ADDRESS(VLOOKUP($F$20,OD_zone_measures!$K$2:$M$122,2,0),$L$2,1,1))),0))),$G$20,0),IF(AND($B$21=1,AQ$2=$C$21,ISNUMBER(MATCH($U6,INDIRECT(CONCATENATE(ADDRESS(VLOOKUP($F$21,OD_zone_measures!$K$2:$M$122,2,0),$K$2,1,1,"OD_zone_measures"),":",ADDRESS(VLOOKUP($F$21,OD_zone_measures!$K$2:$M$122,2,0),$L$2,1,1))),0))),$G$21,0),IF(AND($B$22=1,AQ$2=$C$22,ISNUMBER(MATCH($U6,INDIRECT(CONCATENATE(ADDRESS(VLOOKUP($F$22,OD_zone_measures!$K$2:$M$122,2,0),$K$2,1,1,"OD_zone_measures"),":",ADDRESS(VLOOKUP($F$22,OD_zone_measures!$K$2:$M$122,2,0),$L$2,1,1))),0))),$G$22,0),IF(AND($B$23=1,AQ$2=$C$23,ISNUMBER(MATCH($U6,INDIRECT(CONCATENATE(ADDRESS(VLOOKUP($F$23,OD_zone_measures!$K$2:$M$122,2,0),$K$2,1,1,"OD_zone_measures"),":",ADDRESS(VLOOKUP($F$23,OD_zone_measures!$K$2:$M$122,2,0),$L$2,1,1))),0))),$G$23,0),IF(AND($B$24=1,AQ$2=$C$24,ISNUMBER(MATCH($U6,INDIRECT(CONCATENATE(ADDRESS(VLOOKUP($F$24,OD_zone_measures!$K$2:$M$122,2,0),$K$2,1,1,"OD_zone_measures"),":",ADDRESS(VLOOKUP($F$24,OD_zone_measures!$K$2:$M$122,2,0),$L$2,1,1))),0))),$G$24,0),IF(AND($B$25=1,AQ$2=$C$25,ISNUMBER(MATCH($U6,INDIRECT(CONCATENATE(ADDRESS(VLOOKUP($F$25,OD_zone_measures!$K$2:$M$122,2,0),$K$2,1,1,"OD_zone_measures"),":",ADDRESS(VLOOKUP($F$25,OD_zone_measures!$K$2:$M$122,2,0),$L$2,1,1))),0))),$G$25,0),IF(AND($B$26=1,AQ$2=$C$26,ISNUMBER(MATCH($U6,INDIRECT(CONCATENATE(ADDRESS(VLOOKUP($F$26,OD_zone_measures!$K$2:$M$122,2,0),$K$2,1,1,"OD_zone_measures"),":",ADDRESS(VLOOKUP($F$26,OD_zone_measures!$K$2:$M$122,2,0),$L$2,1,1))),0))),$G$26,0),IF(AND($B$27=1,AQ$2=$C$27,ISNUMBER(MATCH($U6,INDIRECT(CONCATENATE(ADDRESS(VLOOKUP($F$27,OD_zone_measures!$K$2:$M$122,2,0),$K$2,1,1,"OD_zone_measures"),":",ADDRESS(VLOOKUP($F$27,OD_zone_measures!$K$2:$M$122,2,0),$L$2,1,1))),0))),$G$27,0),IF(AND($B$28=1,AQ$2=$C$28,ISNUMBER(MATCH($U6,INDIRECT(CONCATENATE(ADDRESS(VLOOKUP($F$28,OD_zone_measures!$K$2:$M$122,2,0),$K$2,1,1,"OD_zone_measures"),":",ADDRESS(VLOOKUP($F$28,OD_zone_measures!$K$2:$M$122,2,0),$L$2,1,1))),0))),$G$28,0),IF(AND($B$29=1,AQ$2=$C$29,ISNUMBER(MATCH($U6,INDIRECT(CONCATENATE(ADDRESS(VLOOKUP($F$29,OD_zone_measures!$K$2:$M$122,2,0),$K$2,1,1,"OD_zone_measures"),":",ADDRESS(VLOOKUP($F$29,OD_zone_measures!$K$2:$M$122,2,0),$L$2,1,1))),0))),$G$29,0),IF(AND($B$30=1,AQ$2=$C$30,ISNUMBER(MATCH($U6,INDIRECT(CONCATENATE(ADDRESS(VLOOKUP($F$30,OD_zone_measures!$K$2:$M$122,2,0),$K$2,1,1,"OD_zone_measures"),":",ADDRESS(VLOOKUP($F$30,OD_zone_measures!$K$2:$M$122,2,0),$L$2,1,1))),0))),$G$30,0),IF(AND($B$31=1,AQ$2=$C$31,ISNUMBER(MATCH($U6,INDIRECT(CONCATENATE(ADDRESS(VLOOKUP($F$31,OD_zone_measures!$K$2:$M$122,2,0),$K$2,1,1,"OD_zone_measures"),":",ADDRESS(VLOOKUP($F$31,OD_zone_measures!$K$2:$M$122,2,0),$L$2,1,1))),0))),$G$31,0),IF(AND($B$32=1,AQ$2=$C$32,ISNUMBER(MATCH($U6,INDIRECT(CONCATENATE(ADDRESS(VLOOKUP($F$32,OD_zone_measures!$K$2:$M$122,2,0),$K$2,1,1,"OD_zone_measures"),":",ADDRESS(VLOOKUP($F$32,OD_zone_measures!$K$2:$M$122,2,0),$L$2,1,1))),0))),$G$32,0),IF(AND($B$33=1,AQ$2=$C$33,ISNUMBER(MATCH($U6,INDIRECT(CONCATENATE(ADDRESS(VLOOKUP($F$33,OD_zone_measures!$K$2:$M$122,2,0),$K$2,1,1,"OD_zone_measures"),":",ADDRESS(VLOOKUP($F$33,OD_zone_measures!$K$2:$M$122,2,0),$L$2,1,1))),0))),$G$33,0)) -> 1 | AR6: =1+MIN(IF(AND($B$19=1,AR$2=$C$19,ISNUMBER(MATCH($U6,INDIRECT(CONCATENATE(ADDRESS(VLOOKUP($F$19,OD_zone_measures!$K$2:$M$122,2,0),$K$2,1,1,"OD_zone_measures"),":",ADDRESS(VLOOKUP($F$19,OD_zone_measures!$K$2:$M$122,2,0),$L$2,1,1))),0))),$G$19,0),IF(AND($B$20=1,AR$2=$C$20,ISNUMBER(MATCH($U6,INDIRECT(CONCATENATE(ADDRESS(VLOOKUP($F$20,OD_zone_measures!$K$2:$M$122,2,0),$K$2,1,1,"OD_zone_measures"),":",ADDRESS(VLOOKUP($F$20,OD_zone_measures!$K$2:$M$122,2,0),$L$2,1,1))),0))),$G$20,0),IF(AND($B$21=1,AR$2=$C$21,ISNUMBER(MATCH($U6,INDIRECT(CONCATENATE(ADDRESS(VLOOKUP($F$21,OD_zone_measures!$K$2:$M$122,2,0),$K$2,1,1,"OD_zone_measures"),":",ADDRESS(VLOOKUP($F$21,OD_zone_measures!$K$2:$M$122,2,0),$L$2,1,1))),0))),$G$21,0),IF(AND($B$22=1,AR$2=$C$22,ISNUMBER(MATCH($U6,INDIRECT(CONCATENATE(ADDRESS(VLOOKUP($F$22,OD_zone_measures!$K$2:$M$122,2,0),$K$2,1,1,"OD_zone_measures"),":",ADDRESS(VLOOKUP($F$22,OD_zone_measures!$K$2:$M$122,2,0),$L$2,1,1))),0))),$G$22,0),IF(AND($B$23=1,AR$2=$C$23,ISNUMBER(MATCH($U6,INDIRECT(CONCATENATE(ADDRESS(VLOOKUP($F$23,OD_zone_measures!$K$2:$M$122,2,0),$K$2,1,1,"OD_zone_measures"),":",ADDRESS(VLOOKUP($F$23,OD_zone_measures!$K$2:$M$122,2,0),$L$2,1,1))),0))),$G$23,0),IF(AND($B$24=1,AR$2=$C$24,ISNUMBER(MATCH($U6,INDIRECT(CONCATENATE(ADDRESS(VLOOKUP($F$24,OD_zone_measures!$K$2:$M$122,2,0),$K$2,1,1,"OD_zone_measures"),":",ADDRESS(VLOOKUP($F$24,OD_zone_measures!$K$2:$M$122,2,0),$L$2,1,1))),0))),$G$24,0),IF(AND($B$25=1,AR$2=$C$25,ISNUMBER(MATCH($U6,INDIRECT(CONCATENATE(ADDRESS(VLOOKUP($F$25,OD_zone_measures!$K$2:$M$122,2,0),$K$2,1,1,"OD_zone_measures"),":",ADDRESS(VLOOKUP($F$25,OD_zone_measures!$K$2:$M$122,2,0),$L$2,1,1))),0))),$G$25,0),IF(AND($B$26=1,AR$2=$C$26,ISNUMBER(MATCH($U6,INDIRECT(CONCATENATE(ADDRESS(VLOOKUP($F$26,OD_zone_measures!$K$2:$M$122,2,0),$K$2,1,1,"OD_zone_measures"),":",ADDRESS(VLOOKUP($F$26,OD_zone_measures!$K$2:$M$122,2,0),$L$2,1,1))),0))),$G$26,0),IF(AND($B$27=1,AR$2=$C$27,ISNUMBER(MATCH($U6,INDIRECT(CONCATENATE(ADDRESS(VLOOKUP($F$27,OD_zone_measures!$K$2:$M$122,2,0),$K$2,1,1,"OD_zone_measures"),":",ADDRESS(VLOOKUP($F$27,OD_zone_measures!$K$2:$M$122,2,0),$L$2,1,1))),0))),$G$27,0),IF(AND($B$28=1,AR$2=$C$28,ISNUMBER(MATCH($U6,INDIRECT(CONCATENATE(ADDRESS(VLOOKUP($F$28,OD_zone_measures!$K$2:$M$122,2,0),$K$2,1,1,"OD_zone_measures"),":",ADDRESS(VLOOKUP($F$28,OD_zone_measures!$K$2:$M$122,2,0),$L$2,1,1))),0))),$G$28,0),IF(AND($B$29=1,AR$2=$C$29,ISNUMBER(MATCH($U6,INDIRECT(CONCATENATE(ADDRESS(VLOOKUP($F$29,OD_zone_measures!$K$2:$M$122,2,0),$K$2,1,1,"OD_zone_measures"),":",ADDRESS(VLOOKUP($F$29,OD_zone_measures!$K$2:$M$122,2,0),$L$2,1,1))),0))),$G$29,0),IF(AND($B$30=1,AR$2=$C$30,ISNUMBER(MATCH($U6,INDIRECT(CONCATENATE(ADDRESS(VLOOKUP($F$30,OD_zone_measures!$K$2:$M$122,2,0),$K$2,1,1,"OD_zone_measures"),":",ADDRESS(VLOOKUP($F$30,OD_zone_measures!$K$2:$M$122,2,0),$L$2,1,1))),0))),$G$30,0),IF(AND($B$31=1,AR$2=$C$31,ISNUMBER(MATCH($U6,INDIRECT(CONCATENATE(ADDRESS(VLOOKUP($F$31,OD_zone_measures!$K$2:$M$122,2,0),$K$2,1,1,"OD_zone_measures"),":",ADDRESS(VLOOKUP($F$31,OD_zone_measures!$K$2:$M$122,2,0),$L$2,1,1))),0))),$G$31,0),IF(AND($B$32=1,AR$2=$C$32,ISNUMBER(MATCH($U6,INDIRECT(CONCATENATE(ADDRESS(VLOOKUP($F$32,OD_zone_measures!$K$2:$M$122,2,0),$K$2,1,1,"OD_zone_measures"),":",ADDRESS(VLOOKUP($F$32,OD_zone_measures!$K$2:$M$122,2,0),$L$2,1,1))),0))),$G$32,0),IF(AND($B$33=1,AR$2=$C$33,ISNUMBER(MATCH($U6,INDIRECT(CONCATENATE(ADDRESS(VLOOKUP($F$33,OD_zone_measures!$K$2:$M$122,2,0),$K$2,1,1,"OD_zone_measures"),":",ADDRESS(VLOOKUP($F$33,OD_zone_measures!$K$2:$M$122,2,0),$L$2,1,1))),0))),$G$33,0)) -> 1 | AS6: =1+MIN(IF(AND($B$19=1,AS$2=$C$19,ISNUMBER(MATCH($U6,INDIRECT(CONCATENATE(ADDRESS(VLOOKUP($F$19,OD_zone_measures!$K$2:$M$122,2,0),$K$2,1,1,"OD_zone_measures"),":",ADDRESS(VLOOKUP($F$19,OD_zone_measures!$K$2:$M$122,2,0),$L$2,1,1))),0))),$G$19,0),IF(AND($B$20=1,AS$2=$C$20,ISNUMBER(MATCH($U6,INDIRECT(CONCATENATE(ADDRESS(VLOOKUP($F$20,OD_zone_measures!$K$2:$M$122,2,0),$K$2,1,1,"OD_zone_measures"),":",ADDRESS(VLOOKUP($F$20,OD_zone_measures!$K$2:$M$122,2,0),$L$2,1,1))),0))),$G$20,0),IF(AND($B$21=1,AS$2=$C$21,ISNUMBER(MATCH($U6,INDIRECT(CONCATENATE(ADDRESS(VLOOKUP($F$21,OD_zone_measures!$K$2:$M$122,2,0),$K$2,1,1,"OD_zone_measures"),":",ADDRESS(VLOOKUP($F$21,OD_zone_measures!$K$2:$M$122,2,0),$L$2,1,1))),0))),$G$21,0),IF(AND($B$22=1,AS$2=$C$22,ISNUMBER(MATCH($U6,INDIRECT(CONCATENATE(ADDRESS(VLOOKUP($F$22,OD_zone_measures!$K$2:$M$122,2,0),$K$2,1,1,"OD_zone_measures"),":",ADDRESS(VLOOKUP($F$22,OD_zone_measures!$K$2:$M$122,2,0),$L$2,1,1))),0))),$G$22,0),IF(AND($B$23=1,AS$2=$C$23,ISNUMBER(MATCH($U6,INDIRECT(CONCATENATE(ADDRESS(VLOOKUP($F$23,OD_zone_measures!$K$2:$M$122,2,0),$K$2,1,1,"OD_zone_measures"),":",ADDRESS(VLOOKUP($F$23,OD_zone_measures!$K$2:$M$122,2,0),$L$2,1,1))),0))),$G$23,0),IF(AND($B$24=1,AS$2=$C$24,ISNUMBER(MATCH($U6,INDIRECT(CONCATENATE(ADDRESS(VLOOKUP($F$24,OD_zone_measures!$K$2:$M$122,2,0),$K$2,1,1,"OD_zone_measures"),":",ADDRESS(VLOOKUP($F$24,OD_zone_measures!$K$2:$M$122,2,0),$L$2,1,1))),0))),$G$24,0),IF(AND($B$25=1,AS$2=$C$25,ISNUMBER(MATCH($U6,INDIRECT(CONCATENATE(ADDRESS(VLOOKUP($F$25,OD_zone_measures!$K$2:$M$122,2,0),$K$2,1,1,"OD_zone_measures"),":",ADDRESS(VLOOKUP($F$25,OD_zone_measures!$K$2:$M$122,2,0),$L$2,1,1))),0))),$G$25,0),IF(AND($B$26=1,AS$2=$C$26,ISNUMBER(MATCH($U6,INDIRECT(CONCATENATE(ADDRESS(VLOOKUP($F$26,OD_zone_measures!$K$2:$M$122,2,0),$K$2,1,1,"OD_zone_measures"),":",ADDRESS(VLOOKUP($F$26,OD_zone_measures!$K$2:$M$122,2,0),$L$2,1,1))),0))),$G$26,0),IF(AND($B$27=1,AS$2=$C$27,ISNUMBER(MATCH($U6,INDIRECT(CONCATENATE(ADDRESS(VLOOKUP($F$27,OD_zone_measures!$K$2:$M$122,2,0),$K$2,1,1,"OD_zone_measures"),":",ADDRESS(VLOOKUP($F$27,OD_zone_measures!$K$2:$M$122,2,0),$L$2,1,1))),0))),$G$27,0),IF(AND($B$28=1,AS$2=$C$28,ISNUMBER(MATCH($U6,INDIRECT(CONCATENATE(ADDRESS(VLOOKUP($F$28,OD_zone_measures!$K$2:$M$122,2,0),$K$2,1,1,"OD_zone_measures"),":",ADDRESS(VLOOKUP($F$28,OD_zone_measures!$K$2:$M$122,2,0),$L$2,1,1))),0))),$G$28,0),IF(AND($B$29=1,AS$2=$C$29,ISNUMBER(MATCH($U6,INDIRECT(CONCATENATE(ADDRESS(VLOOKUP($F$29,OD_zone_measures!$K$2:$M$122,2,0),$K$2,1,1,"OD_zone_measures"),":",ADDRESS(VLOOKUP($F$29,OD_zone_measures!$K$2:$M$122,2,0),$L$2,1,1))),0))),$G$29,0),IF(AND($B$30=1,AS$2=$C$30,ISNUMBER(MATCH($U6,INDIRECT(CONCATENATE(ADDRESS(VLOOKUP($F$30,OD_zone_measures!$K$2:$M$122,2,0),$K$2,1,1,"OD_zone_measures"),":",ADDRESS(VLOOKUP($F$30,OD_zone_measures!$K$2:$M$122,2,0),$L$2,1,1))),0))),$G$30,0),IF(AND($B$31=1,AS$2=$C$31,ISNUMBER(MATCH($U6,INDIRECT(CONCATENATE(ADDRESS(VLOOKUP($F$31,OD_zone_measures!$K$2:$M$122,2,0),$K$2,1,1,"OD_zone_measures"),":",ADDRESS(VLOOKUP($F$31,OD_zone_measures!$K$2:$M$122,2,0),$L$2,1,1))),0))),$G$31,0),IF(AND($B$32=1,AS$2=$C$32,ISNUMBER(MATCH($U6,INDIRECT(CONCATENATE(ADDRESS(VLOOKUP($F$32,OD_zone_measures!$K$2:$M$122,2,0),$K$2,1,1,"OD_zone_measures"),":",ADDRESS(VLOOKUP($F$32,OD_zone_measures!$K$2:$M$122,2,0),$L$2,1,1))),0))),$G$32,0),IF(AND($B$33=1,AS$2=$C$33,ISNUMBER(MATCH($U6,INDIRECT(CONCATENATE(ADDRESS(VLOOKUP($F$33,OD_zone_measures!$K$2:$M$122,2,0),$K$2,1,1,"OD_zone_measures"),":",ADDRESS(VLOOKUP($F$33,OD_zone_measures!$K$2:$M$122,2,0),$L$2,1,1))),0))),$G$33,0)) -> 1 | AT6: 1 | AU6: =1+MIN(IF(AND($J$19=1,AU$2=$K$19,ISNUMBER(MATCH($U6,INDIRECT(CONCATENATE(ADDRESS(VLOOKUP($N$19,OD_zone_measures!$K$2:$M$122,2,0),$K$2,1,1,"OD_zone_measures"),":",ADDRESS(VLOOKUP($N$19,OD_zone_measures!$K$2:$M$122,2,0),$L$2,1,1))),0))),$O$19,0),IF(AND($J$20=1,AU$2=$K$20,ISNUMBER(MATCH($U6,INDIRECT(CONCATENATE(ADDRESS(VLOOKUP($N$20,OD_zone_measures!$K$2:$M$122,2,0),$K$2,1,1,"OD_zone_measures"),":",ADDRESS(VLOOKUP($N$20,OD_zone_measures!$K$2:$M$122,2,0),$L$2,1,1))),0))),$O$20,0),IF(AND($J$21=1,AU$2=$K$21,ISNUMBER(MATCH($U6,INDIRECT(CONCATENATE(ADDRESS(VLOOKUP($N$21,OD_zone_measures!$K$2:$M$122,2,0),$K$2,1,1,"OD_zone_measures"),":",ADDRESS(VLOOKUP($N$21,OD_zone_measures!$K$2:$M$122,2,0),$L$2,1,1))),0))),$O$21,0),IF(AND($J$22=1,AU$2=$K$22,ISNUMBER(MATCH($U6,INDIRECT(CONCATENATE(ADDRESS(VLOOKUP($N$22,OD_zone_measures!$K$2:$M$122,2,0),$K$2,1,1,"OD_zone_measures"),":",ADDRESS(VLOOKUP($N$22,OD_zone_measures!$K$2:$M$122,2,0),$L$2,1,1))),0))),$O$22,0),IF(AND($J$23=1,AU$2=$K$23,ISNUMBER(MATCH($U6,INDIRECT(CONCATENATE(ADDRESS(VLOOKUP($N$23,OD_zone_measures!$K$2:$M$122,2,0),$K$2,1,1,"OD_zone_measures"),":",ADDRESS(VLOOKUP($N$23,OD_zone_measures!$K$2:$M$122,2,0),$L$2,1,1))),0))),$O$23,0),IF(AND($J$24=1,AU$2=$K$24,ISNUMBER(MATCH($U6,INDIRECT(CONCATENATE(ADDRESS(VLOOKUP($N$24,OD_zone_measures!$K$2:$M$122,2,0),$K$2,1,1,"OD_zone_measures"),":",ADDRESS(VLOOKUP($N$24,OD_zone_measures!$K$2:$M$122,2,0),$L$2,1,1))),0))),$O$24,0),IF(AND($J$25=1,AU$2=$K$25,ISNUMBER(MATCH($U6,INDIRECT(CONCATENATE(ADDRESS(VLOOKUP($N$25,OD_zone_measures!$K$2:$M$122,2,0),$K$2,1,1,"OD_zone_measures"),":",ADDRESS(VLOOKUP($N$25,OD_zone_measures!$K$2:$M$122,2,0),$L$2,1,1))),0))),$O$25,0),IF(AND($J$26=1,AU$2=$K$26,ISNUMBER(MATCH($U6,INDIRECT(CONCATENATE(ADDRESS(VLOOKUP($N$26,OD_zone_measures!$K$2:$M$122,2,0),$K$2,1,1,"OD_zone_measures"),":",ADDRESS(VLOOKUP($N$26,OD_zone_measures!$K$2:$M$122,2,0),$L$2,1,1))),0))),$O$26,0),IF(AND($J$27=1,AU$2=$K$27,ISNUMBER(MATCH($U6,INDIRECT(CONCATENATE(ADDRESS(VLOOKUP($N$27,OD_zone_measures!$K$2:$M$122,2,0),$K$2,1,1,"OD_zone_measures"),":",ADDRESS(VLOOKUP($N$27,OD_zone_measures!$K$2:$M$122,2,0),$L$2,1,1))),0))),$O$27,0),IF(AND($J$28=1,AU$2=$K$28,ISNUMBER(MATCH($U6,INDIRECT(CONCATENATE(ADDRESS(VLOOKUP($N$28,OD_zone_measures!$K$2:$M$122,2,0),$K$2,1,1,"OD_zone_measures"),":",ADDRESS(VLOOKUP($N$28,OD_zone_measures!$K$2:$M$122,2,0),$L$2,1,1))),0))),$O$28,0),IF(AND($J$29=1,AU$2=$K$29,ISNUMBER(MATCH($U6,INDIRECT(CONCATENATE(ADDRESS(VLOOKUP($N$29,OD_zone_measures!$K$2:$M$122,2,0),$K$2,1,1,"OD_zone_measures"),":",ADDRESS(VLOOKUP($N$29,OD_zone_measures!$K$2:$M$122,2,0),$L$2,1,1))),0))),$O$29,0),IF(AND($J$30=1,AU$2=$K$30,ISNUMBER(MATCH($U6,INDIRECT(CONCATENATE(ADDRESS(VLOOKUP($N$30,OD_zone_measures!$K$2:$M$122,2,0),$K$2,1,1,"OD_zone_measures"),":",ADDRESS(VLOOKUP($N$30,OD_zone_measures!$K$2:$M$122,2,0),$L$2,1,1))),0))),$O$30,0),IF(AND($J$31=1,AU$2=$K$31,ISNUMBER(MATCH($U6,INDIRECT(CONCATENATE(ADDRESS(VLOOKUP($N$31,OD_zone_measures!$K$2:$M$122,2,0),$K$2,1,1,"OD_zone_measures"),":",ADDRESS(VLOOKUP($N$31,OD_zone_measures!$K$2:$M$122,2,0),$L$2,1,1))),0))),$O$31,0),IF(AND($J$32=1,AU$2=$K$32,ISNUMBER(MATCH($U6,INDIRECT(CONCATENATE(ADDRESS(VLOOKUP($N$32,OD_zone_measures!$K$2:$M$122,2,0),$K$2,1,1,"OD_zone_measures"),":",ADDRESS(VLOOKUP($N$32,OD_zone_measures!$K$2:$M$122,2,0),$L$2,1,1))),0))),$O$32,0),IF(AND($J$33=1,AU$2=$K$33,ISNUMBER(MATCH($U6,INDIRECT(CONCATENATE(ADDRESS(VLOOKUP($N$33,OD_zone_measures!$K$2:$M$122,2,0),$K$2,1,1,"OD_zone_measures"),":",ADDRESS(VLOOKUP($N$33,OD_zone_measures!$K$2:$M$122,2,0),$L$2,1,1))),0))),$O$33,0)) -> 1 | AV6: =1+MIN(IF(AND($J$19=1,AV$2=$K$19,ISNUMBER(MATCH($U6,INDIRECT(CONCATENATE(ADDRESS(VLOOKUP($N$19,OD_zone_measures!$K$2:$M$122,2,0),$K$2,1,1,"OD_zone_measures"),":",ADDRESS(VLOOKUP($N$19,OD_zone_measures!$K$2:$M$122,2,0),$L$2,1,1))),0))),$O$19,0),IF(AND($J$20=1,AV$2=$K$20,ISNUMBER(MATCH($U6,INDIRECT(CONCATENATE(ADDRESS(VLOOKUP($N$20,OD_zone_measures!$K$2:$M$122,2,0),$K$2,1,1,"OD_zone_measures"),":",ADDRESS(VLOOKUP($N$20,OD_zone_measures!$K$2:$M$122,2,0),$L$2,1,1))),0))),$O$20,0),IF(AND($J$21=1,AV$2=$K$21,ISNUMBER(MATCH($U6,INDIRECT(CONCATENATE(ADDRESS(VLOOKUP($N$21,OD_zone_measures!$K$2:$M$122,2,0),$K$2,1,1,"OD_zone_measures"),":",ADDRESS(VLOOKUP($N$21,OD_zone_measures!$K$2:$M$122,2,0),$L$2,1,1))),0))),$O$21,0),IF(AND($J$22=1,AV$2=$K$22,ISNUMBER(MATCH($U6,INDIRECT(CONCATENATE(ADDRESS(VLOOKUP($N$22,OD_zone_measures!$K$2:$M$122,2,0),$K$2,1,1,"OD_zone_measures"),":",ADDRESS(VLOOKUP($N$22,OD_zone_measures!$K$2:$M$122,2,0),$L$2,1,1))),0))),$O$22,0),IF(AND($J$23=1,AV$2=$K$23,ISNUMBER(MATCH($U6,INDIRECT(CONCATENATE(ADDRESS(VLOOKUP($N$23,OD_zone_measures!$K$2:$M$122,2,0),$K$2,1,1,"OD_zone_measures"),":",ADDRESS(VLOOKUP($N$23,OD_zone_measures!$K$2:$M$122,2,0),$L$2,1,1))),0))),$O$23,0),IF(AND($J$24=1,AV$2=$K$24,ISNUMBER(MATCH($U6,INDIRECT(CONCATENATE(ADDRESS(VLOOKUP($N$24,OD_zone_measures!$K$2:$M$122,2,0),$K$2,1,1,"OD_zone_measures"),":",ADDRESS(VLOOKUP($N$24,OD_zone_measures!$K$2:$M$122,2,0),$L$2,1,1))),0))),$O$24,0),IF(AND($J$25=1,AV$2=$K$25,ISNUMBER(MATCH($U6,INDIRECT(CONCATENATE(ADDRESS(VLOOKUP($N$25,OD_zone_measures!$K$2:$M$122,2,0),$K$2,1,1,"OD_zone_measures"),":",ADDRESS(VLOOKUP($N$25,OD_zone_measures!$K$2:$M$122,2,0),$L$2,1,1))),0))),$O$25,0),IF(AND($J$26=1,AV$2=$K$26,ISNUMBER(MATCH($U6,INDIRECT(CONCATENATE(ADDRESS(VLOOKUP($N$26,OD_zone_measures!$K$2:$M$122,2,0),$K$2,1,1,"OD_zone_measures"),":",ADDRESS(VLOOKUP($N$26,OD_zone_measures!$K$2:$M$122,2,0),$L$2,1,1))),0))),$O$26,0),IF(AND($J$27=1,AV$2=$K$27,ISNUMBER(MATCH($U6,INDIRECT(CONCATENATE(ADDRESS(VLOOKUP($N$27,OD_zone_measures!$K$2:$M$122,2,0),$K$2,1,1,"OD_zone_measures"),":",ADDRESS(VLOOKUP($N$27,OD_zone_measures!$K$2:$M$122,2,0),$L$2,1,1))),0))),$O$27,0),IF(AND($J$28=1,AV$2=$K$28,ISNUMBER(MATCH($U6,INDIRECT(CONCATENATE(ADDRESS(VLOOKUP($N$28,OD_zone_measures!$K$2:$M$122,2,0),$K$2,1,1,"OD_zone_measures"),":",ADDRESS(VLOOKUP($N$28,OD_zone_measures!$K$2:$M$122,2,0),$L$2,1,1))),0))),$O$28,0),IF(AND($J$29=1,AV$2=$K$29,ISNUMBER(MATCH($U6,INDIRECT(CONCATENATE(ADDRESS(VLOOKUP($N$29,OD_zone_measures!$K$2:$M$122,2,0),$K$2,1,1,"OD_zone_measures"),":",ADDRESS(VLOOKUP($N$29,OD_zone_measures!$K$2:$M$122,2,0),$L$2,1,1))),0))),$O$29,0),IF(AND($J$30=1,AV$2=$K$30,ISNUMBER(MATCH($U6,INDIRECT(CONCATENATE(ADDRESS(VLOOKUP($N$30,OD_zone_measures!$K$2:$M$122,2,0),$K$2,1,1,"OD_zone_measures"),":",ADDRESS(VLOOKUP($N$30,OD_zone_measures!$K$2:$M$122,2,0),$L$2,1,1))),0))),$O$30,0),IF(AND($J$31=1,AV$2=$K$31,ISNUMBER(MATCH($U6,INDIRECT(CONCATENATE(ADDRESS(VLOOKUP($N$31,OD_zone_measures!$K$2:$M$122,2,0),$K$2,1,1,"OD_zone_measures"),":",ADDRESS(VLOOKUP($N$31,OD_zone_measures!$K$2:$M$122,2,0),$L$2,1,1))),0))),$O$31,0),IF(AND($J$32=1,AV$2=$K$32,ISNUMBER(MATCH($U6,INDIRECT(CONCATENATE(ADDRESS(VLOOKUP($N$32,OD_zone_measures!$K$2:$M$122,2,0),$K$2,1,1,"OD_zone_measures"),":",ADDRESS(VLOOKUP($N$32,OD_zone_measures!$K$2:$M$122,2,0),$L$2,1,1))),0))),$O$32,0),IF(AND($J$33=1,AV$2=$K$33,ISNUMBER(MATCH($U6,INDIRECT(CONCATENATE(ADDRESS(VLOOKUP($N$33,OD_zone_measures!$K$2:$M$122,2,0),$K$2,1,1,"OD_zone_measures"),":",ADDRESS(VLOOKUP($N$33,OD_zone_measures!$K$2:$M$122,2,0),$L$2,1,1))),0))),$O$33,0)) -> 1 | AW6: =1+MIN(IF(AND($J$19=1,AW$2=$K$19,ISNUMBER(MATCH($U6,INDIRECT(CONCATENATE(ADDRESS(VLOOKUP($N$19,OD_zone_measures!$K$2:$M$122,2,0),$K$2,1,1,"OD_zone_measures"),":",ADDRESS(VLOOKUP($N$19,OD_zone_measures!$K$2:$M$122,2,0),$L$2,1,1))),0))),$O$19,0),IF(AND($J$20=1,AW$2=$K$20,ISNUMBER(MATCH($U6,INDIRECT(CONCATENATE(ADDRESS(VLOOKUP($N$20,OD_zone_measures!$K$2:$M$122,2,0),$K$2,1,1,"OD_zone_measures"),":",ADDRESS(VLOOKUP($N$20,OD_zone_measures!$K$2:$M$122,2,0),$L$2,1,1))),0))),$O$20,0),IF(AND($J$21=1,AW$2=$K$21,ISNUMBER(MATCH($U6,INDIRECT(CONCATENATE(ADDRESS(VLOOKUP($N$21,OD_zone_measures!$K$2:$M$122,2,0),$K$2,1,1,"OD_zone_measures"),":",ADDRESS(VLOOKUP($N$21,OD_zone_measures!$K$2:$M$122,2,0),$L$2,1,1))),0))),$O$21,0),IF(AND($J$22=1,AW$2=$K$22,ISNUMBER(MATCH($U6,INDIRECT(CONCATENATE(ADDRESS(VLOOKUP($N$22,OD_zone_measures!$K$2:$M$122,2,0),$K$2,1,1,"OD_zone_measures"),":",ADDRESS(VLOOKUP($N$22,OD_zone_measures!$K$2:$M$122,2,0),$L$2,1,1))),0))),$O$22,0),IF(AND($J$23=1,AW$2=$K$23,ISNUMBER(MATCH($U6,INDIRECT(CONCATENATE(ADDRESS(VLOOKUP($N$23,OD_zone_measures!$K$2:$M$122,2,0),$K$2,1,1,"OD_zone_measures"),":",ADDRESS(VLOOKUP($N$23,OD_zone_measures!$K$2:$M$122,2,0),$L$2,1,1))),0))),$O$23,0),IF(AND($J$24=1,AW$2=$K$24,ISNUMBER(MATCH($U6,INDIRECT(CONCATENATE(ADDRESS(VLOOKUP($N$24,OD_zone_measures!$K$2:$M$122,2,0),$K$2,1,1,"OD_zone_measures"),":",ADDRESS(VLOOKUP($N$24,OD_zone_measures!$K$2:$M$122,2,0),$L$2,1,1))),0))),$O$24,0),IF(AND($J$25=1,AW$2=$K$25,ISNUMBER(MATCH($U6,INDIRECT(CONCATENATE(ADDRESS(VLOOKUP($N$25,OD_zone_measures!$K$2:$M$122,2,0),$K$2,1,1,"OD_zone_measures"),":",ADDRESS(VLOOKUP($N$25,OD_zone_measures!$K$2:$M$122,2,0),$L$2,1,1))),0))),$O$25,0),IF(AND($J$26=1,AW$2=$K$26,ISNUMBER(MATCH($U6,INDIRECT(CONCATENATE(ADDRESS(VLOOKUP($N$26,OD_zone_measures!$K$2:$M$122,2,0),$K$2,1,1,"OD_zone_measures"),":",ADDRESS(VLOOKUP($N$26,OD_zone_measures!$K$2:$M$122,2,0),$L$2,1,1))),0))),$O$26,0),IF(AND($J$27=1,AW$2=$K$27,ISNUMBER(MATCH($U6,INDIRECT(CONCATENATE(ADDRESS(VLOOKUP($N$27,OD_zone_measures!$K$2:$M$122,2,0),$K$2,1,1,"OD_zone_measures"),":",ADDRESS(VLOOKUP($N$27,OD_zone_measures!$K$2:$M$122,2,0),$L$2,1,1))),0))),$O$27,0),IF(AND($J$28=1,AW$2=$K$28,ISNUMBER(MATCH($U6,INDIRECT(CONCATENATE(ADDRESS(VLOOKUP($N$28,OD_zone_measures!$K$2:$M$122,2,0),$K$2,1,1,"OD_zone_measures"),":",ADDRESS(VLOOKUP($N$28,OD_zone_measures!$K$2:$M$122,2,0),$L$2,1,1))),0))),$O$28,0),IF(AND($J$29=1,AW$2=$K$29,ISNUMBER(MATCH($U6,INDIRECT(CONCATENATE(ADDRESS(VLOOKUP($N$29,OD_zone_measures!$K$2:$M$122,2,0),$K$2,1,1,"OD_zone_measures"),":",ADDRESS(VLOOKUP($N$29,OD_zone_measures!$K$2:$M$122,2,0),$L$2,1,1))),0))),$O$29,0),IF(AND($J$30=1,AW$2=$K$30,ISNUMBER(MATCH($U6,INDIRECT(CONCATENATE(ADDRESS(VLOOKUP($N$30,OD_zone_measures!$K$2:$M$122,2,0),$K$2,1,1,"OD_zone_measures"),":",ADDRESS(VLOOKUP($N$30,OD_zone_measures!$K$2:$M$122,2,0),$L$2,1,1))),0))),$O$30,0),IF(AND($J$31=1,AW$2=$K$31,ISNUMBER(MATCH($U6,INDIRECT(CONCATENATE(ADDRESS(VLOOKUP($N$31,OD_zone_measures!$K$2:$M$122,2,0),$K$2,1,1,"OD_zone_measures"),":",ADDRESS(VLOOKUP($N$31,OD_zone_measures!$K$2:$M$122,2,0),$L$2,1,1))),0))),$O$31,0),IF(AND($J$32=1,AW$2=$K$32,ISNUMBER(MATCH($U6,INDIRECT(CONCATENATE(ADDRESS(VLOOKUP($N$32,OD_zone_measures!$K$2:$M$122,2,0),$K$2,1,1,"OD_zone_measures"),":",ADDRESS(VLOOKUP($N$32,OD_zone_measures!$K$2:$M$122,2,0),$L$2,1,1))),0))),$O$32,0),IF(AND($J$33=1,AW$2=$K$33,ISNUMBER(MATCH($U6,INDIRECT(CONCATENATE(ADDRESS(VLOOKUP($N$33,OD_zone_measures!$K$2:$M$122,2,0),$K$2,1,1,"OD_zone_measures"),":",ADDRESS(VLOOKUP($N$33,OD_zone_measures!$K$2:$M$122,2,0),$L$2,1,1))),0))),$O$33,0)) -> 1 | AX6: =1+MIN(IF(AND($J$19=1,AX$2=$K$19,ISNUMBER(MATCH($U6,INDIRECT(CONCATENATE(ADDRESS(VLOOKUP($N$19,OD_zone_measures!$K$2:$M$122,2,0),$K$2,1,1,"OD_zone_measures"),":",ADDRESS(VLOOKUP($N$19,OD_zone_measures!$K$2:$M$122,2,0),$L$2,1,1))),0))),$O$19,0),IF(AND($J$20=1,AX$2=$K$20,ISNUMBER(MATCH($U6,INDIRECT(CONCATENATE(ADDRESS(VLOOKUP($N$20,OD_zone_measures!$K$2:$M$122,2,0),$K$2,1,1,"OD_zone_measures"),":",ADDRESS(VLOOKUP($N$20,OD_zone_measures!$K$2:$M$122,2,0),$L$2,1,1))),0))),$O$20,0),IF(AND($J$21=1,AX$2=$K$21,ISNUMBER(MATCH($U6,INDIRECT(CONCATENATE(ADDRESS(VLOOKUP($N$21,OD_zone_measures!$K$2:$M$122,2,0),$K$2,1,1,"OD_zone_measures"),":",ADDRESS(VLOOKUP($N$21,OD_zone_measures!$K$2:$M$122,2,0),$L$2,1,1))),0))),$O$21,0),IF(AND($J$22=1,AX$2=$K$22,ISNUMBER(MATCH($U6,INDIRECT(CONCATENATE(ADDRESS(VLOOKUP($N$22,OD_zone_measures!$K$2:$M$122,2,0),$K$2,1,1,"OD_zone_measures"),":",ADDRESS(VLOOKUP($N$22,OD_zone_measures!$K$2:$M$122,2,0),$L$2,1,1))),0))),$O$22,0),IF(AND($J$23=1,AX$2=$K$23,ISNUMBER(MATCH($U6,INDIRECT(CONCATENATE(ADDRESS(VLOOKUP($N$23,OD_zone_measures!$K$2:$M$122,2,0),$K$2,1,1,"OD_zone_measures"),":",ADDRESS(VLOOKUP($N$23,OD_zone_measures!$K$2:$M$122,2,0),$L$2,1,1))),0))),$O$23,0),IF(AND($J$24=1,AX$2=$K$24,ISNUMBER(MATCH($U6,INDIRECT(CONCATENATE(ADDRESS(VLOOKUP($N$24,OD_zone_measures!$K$2:$M$122,2,0),$K$2,1,1,"OD_zone_measures"),":",ADDRESS(VLOOKUP($N$24,OD_zone_measures!$K$2:$M$122,2,0),$L$2,1,1))),0))),$O$24,0),IF(AND($J$25=1,AX$2=$K$25,ISNUMBER(MATCH($U6,INDIRECT(CONCATENATE(ADDRESS(VLOOKUP($N$25,OD_zone_measures!$K$2:$M$122,2,0),$K$2,1,1,"OD_zone_measures"),":",ADDRESS(VLOOKUP($N$25,OD_zone_measures!$K$2:$M$122,2,0),$L$2,1,1))),0))),$O$25,0),IF(AND($J$26=1,AX$2=$K$26,ISNUMBER(MATCH($U6,INDIRECT(CONCATENATE(ADDRESS(VLOOKUP($N$26,OD_zone_measures!$K$2:$M$122,2,0),$K$2,1,1,"OD_zone_measures"),":",ADDRESS(VLOOKUP($N$26,OD_zone_measures!$K$2:$M$122,2,0),$L$2,1,1))),0))),$O$26,0),IF(AND($J$27=1,AX$2=$K$27,ISNUMBER(MATCH($U6,INDIRECT(CONCATENATE(ADDRESS(VLOOKUP($N$27,OD_zone_measures!$K$2:$M$122,2,0),$K$2,1,1,"OD_zone_measures"),":",ADDRESS(VLOOKUP($N$27,OD_zone_measures!$K$2:$M$122,2,0),$L$2,1,1))),0))),$O$27,0),IF(AND($J$28=1,AX$2=$K$28,ISNUMBER(MATCH($U6,INDIRECT(CONCATENATE(ADDRESS(VLOOKUP($N$28,OD_zone_measures!$K$2:$M$122,2,0),$K$2,1,1,"OD_zone_measures"),":",ADDRESS(VLOOKUP($N$28,OD_zone_measures!$K$2:$M$122,2,0),$L$2,1,1))),0))),$O$28,0),IF(AND($J$29=1,AX$2=$K$29,ISNUMBER(MATCH($U6,INDIRECT(CONCATENATE(ADDRESS(VLOOKUP($N$29,OD_zone_measures!$K$2:$M$122,2,0),$K$2,1,1,"OD_zone_measures"),":",ADDRESS(VLOOKUP($N$29,OD_zone_measures!$K$2:$M$122,2,0),$L$2,1,1))),0))),$O$29,0),IF(AND($J$30=1,AX$2=$K$30,ISNUMBER(MATCH($U6,INDIRECT(CONCATENATE(ADDRESS(VLOOKUP($N$30,OD_zone_measures!$K$2:$M$122,2,0),$K$2,1,1,"OD_zone_measures"),":",ADDRESS(VLOOKUP($N$30,OD_zone_measures!$K$2:$M$122,2,0),$L$2,1,1))),0))),$O$30,0),IF(AND($J$31=1,AX$2=$K$31,ISNUMBER(MATCH($U6,INDIRECT(CONCATENATE(ADDRESS(VLOOKUP($N$31,OD_zone_measures!$K$2:$M$122,2,0),$K$2,1,1,"OD_zone_measures"),":",ADDRESS(VLOOKUP($N$31,OD_zone_measures!$K$2:$M$122,2,0),$L$2,1,1))),0))),$O$31,0),IF(AND($J$32=1,AX$2=$K$32,ISNUMBER(MATCH($U6,INDIRECT(CONCATENATE(ADDRESS(VLOOKUP($N$32,OD_zone_measures!$K$2:$M$122,2,0),$K$2,1,1,"OD_zone_measures"),":",ADDRESS(VLOOKUP($N$32,OD_zone_measures!$K$2:$M$122,2,0),$L$2,1,1))),0))),$O$32,0),IF(AND($J$33=1,AX$2=$K$33,ISNUMBER(MATCH($U6,INDIRECT(CONCATENATE(ADDRESS(VLOOKUP($N$33,OD_zone_measures!$K$2:$M$122,2,0),$K$2,1,1,"OD_zone_measures"),":",ADDRESS(VLOOKUP($N$33,OD_zone_measures!$K$2:$M$122,2,0),$L$2,1,1))),0))),$O$33,0)) -> 1 | AY6: =1+MIN(IF(AND($J$19=1,AY$2=$K$19,ISNUMBER(MATCH($U6,INDIRECT(CONCATENATE(ADDRESS(VLOOKUP($N$19,OD_zone_measures!$K$2:$M$122,2,0),$K$2,1,1,"OD_zone_measures"),":",ADDRESS(VLOOKUP($N$19,OD_zone_measures!$K$2:$M$122,2,0),$L$2,1,1))),0))),$O$19,0),IF(AND($J$20=1,AY$2=$K$20,ISNUMBER(MATCH($U6,INDIRECT(CONCATENATE(ADDRESS(VLOOKUP($N$20,OD_zone_measures!$K$2:$M$122,2,0),$K$2,1,1,"OD_zone_measures"),":",ADDRESS(VLOOKUP($N$20,OD_zone_measures!$K$2:$M$122,2,0),$L$2,1,1))),0))),$O$20,0),IF(AND($J$21=1,AY$2=$K$21,ISNUMBER(MATCH($U6,INDIRECT(CONCATENATE(ADDRESS(VLOOKUP($N$21,OD_zone_measures!$K$2:$M$122,2,0),$K$2,1,1,"OD_zone_measures"),":",ADDRESS(VLOOKUP($N$21,OD_zone_measures!$K$2:$M$122,2,0),$L$2,1,1))),0))),$O$21,0),IF(AND($J$22=1,AY$2=$K$22,ISNUMBER(MATCH($U6,INDIRECT(CONCATENATE(ADDRESS(VLOOKUP($N$22,OD_zone_measures!$K$2:$M$122,2,0),$K$2,1,1,"OD_zone_measures"),":",ADDRESS(VLOOKUP($N$22,OD_zone_measures!$K$2:$M$122,2,0),$L$2,1,1))),0))),$O$22,0),IF(AND($J$23=1,AY$2=$K$23,ISNUMBER(MATCH($U6,INDIRECT(CONCATENATE(ADDRESS(VLOOKUP($N$23,OD_zone_measures!$K$2:$M$122,2,0),$K$2,1,1,"OD_zone_measures"),":",ADDRESS(VLOOKUP($N$23,OD_zone_measures!$K$2:$M$122,2,0),$L$2,1,1))),0))),$O$23,0),IF(AND($J$24=1,AY$2=$K$24,ISNUMBER(MATCH($U6,INDIRECT(CONCATENATE(ADDRESS(VLOOKUP($N$24,OD_zone_measures!$K$2:$M$122,2,0),$K$2,1,1,"OD_zone_measures"),":",ADDRESS(VLOOKUP($N$24,OD_zone_measures!$K$2:$M$122,2,0),$L$2,1,1))),0))),$O$24,0),IF(AND($J$25=1,AY$2=$K$25,ISNUMBER(MATCH($U6,INDIRECT(CONCATENATE(ADDRESS(VLOOKUP($N$25,OD_zone_measures!$K$2:$M$122,2,0),$K$2,1,1,"OD_zone_measures"),":",ADDRESS(VLOOKUP($N$25,OD_zone_measures!$K$2:$M$122,2,0),$L$2,1,1))),0))),$O$25,0),IF(AND($J$26=1,AY$2=$K$26,ISNUMBER(MATCH($U6,INDIRECT(CONCATENATE(ADDRESS(VLOOKUP($N$26,OD_zone_measures!$K$2:$M$122,2,0),$K$2,1,1,"OD_zone_measures"),":",ADDRESS(VLOOKUP($N$26,OD_zone_measures!$K$2:$M$122,2,0),$L$2,1,1))),0))),$O$26,0),IF(AND($J$27=1,AY$2=$K$27,ISNUMBER(MATCH($U6,INDIRECT(CONCATENATE(ADDRESS(VLOOKUP($N$27,OD_zone_measures!$K$2:$M$122,2,0),$K$2,1,1,"OD_zone_measures"),":",ADDRESS(VLOOKUP($N$27,OD_zone_measures!$K$2:$M$122,2,0),$L$2,1,1))),0))),$O$27,0),IF(AND($J$28=1,AY$2=$K$28,ISNUMBER(MATCH($U6,INDIRECT(CONCATENATE(ADDRESS(VLOOKUP($N$28,OD_zone_measures!$K$2:$M$122,2,0),$K$2,1,1,"OD_zone_measures"),":",ADDRESS(VLOOKUP($N$28,OD_zone_measures!$K$2:$M$122,2,0),$L$2,1,1))),0))),$O$28,0),IF(AND($J$29=1,AY$2=$K$29,ISNUMBER(MATCH($U6,INDIRECT(CONCATENATE(ADDRESS(VLOOKUP($N$29,OD_zone_measures!$K$2:$M$122,2,0),$K$2,1,1,"OD_zone_measures"),":",ADDRESS(VLOOKUP($N$29,OD_zone_measures!$K$2:$M$122,2,0),$L$2,1,1))),0))),$O$29,0),IF(AND($J$30=1,AY$2=$K$30,ISNUMBER(MATCH($U6,INDIRECT(CONCATENATE(ADDRESS(VLOOKUP($N$30,OD_zone_measures!$K$2:$M$122,2,0),$K$2,1,1,"OD_zone_measures"),":",ADDRESS(VLOOKUP($N$30,OD_zone_measures!$K$2:$M$122,2,0),$L$2,1,1))),0))),$O$30,0),IF(AND($J$31=1,AY$2=$K$31,ISNUMBER(MATCH($U6,INDIRECT(CONCATENATE(ADDRESS(VLOOKUP($N$31,OD_zone_measures!$K$2:$M$122,2,0),$K$2,1,1,"OD_zone_measures"),":",ADDRESS(VLOOKUP($N$31,OD_zone_measures!$K$2:$M$122,2,0),$L$2,1,1))),0))),$O$31,0),IF(AND($J$32=1,AY$2=$K$32,ISNUMBER(MATCH($U6,INDIRECT(CONCATENATE(ADDRESS(VLOOKUP($N$32,OD_zone_measures!$K$2:$M$122,2,0),$K$2,1,1,"OD_zone_measures"),":",ADDRESS(VLOOKUP($N$32,OD_zone_measures!$K$2:$M$122,2,0),$L$2,1,1))),0))),$O$32,0),IF(AND($J$33=1,AY$2=$K$33,ISNUMBER(MATCH($U6,INDIRECT(CONCATENATE(ADDRESS(VLOOKUP($N$33,OD_zone_measures!$K$2:$M$122,2,0),$K$2,1,1,"OD_zone_measures"),":",ADDRESS(VLOOKUP($N$33,OD_zone_measures!$K$2:$M$122,2,0),$L$2,1,1))),0))),$O$33,0)) -> 1 | AZ6: =1+MIN(IF(AND($J$19=1,AZ$2=$K$19,ISNUMBER(MATCH($U6,INDIRECT(CONCATENATE(ADDRESS(VLOOKUP($N$19,OD_zone_measures!$K$2:$M$122,2,0),$K$2,1,1,"OD_zone_measures"),":",ADDRESS(VLOOKUP($N$19,OD_zone_measures!$K$2:$M$122,2,0),$L$2,1,1))),0))),$O$19,0),IF(AND($J$20=1,AZ$2=$K$20,ISNUMBER(MATCH($U6,INDIRECT(CONCATENATE(ADDRESS(VLOOKUP($N$20,OD_zone_measures!$K$2:$M$122,2,0),$K$2,1,1,"OD_zone_measures"),":",ADDRESS(VLOOKUP($N$20,OD_zone_measures!$K$2:$M$122,2,0),$L$2,1,1))),0))),$O$20,0),IF(AND($J$21=1,AZ$2=$K$21,ISNUMBER(MATCH($U6,INDIRECT(CONCATENATE(ADDRESS(VLOOKUP($N$21,OD_zone_measures!$K$2:$M$122,2,0),$K$2,1,1,"OD_zone_measures"),":",ADDRESS(VLOOKUP($N$21,OD_zone_measures!$K$2:$M$122,2,0),$L$2,1,1))),0))),$O$21,0),IF(AND($J$22=1,AZ$2=$K$22,ISNUMBER(MATCH($U6,INDIRECT(CONCATENATE(ADDRESS(VLOOKUP($N$22,OD_zone_measures!$K$2:$M$122,2,0),$K$2,1,1,"OD_zone_measures"),":",ADDRESS(VLOOKUP($N$22,OD_zone_measures!$K$2:$M$122,2,0),$L$2,1,1))),0))),$O$22,0),IF(AND($J$23=1,AZ$2=$K$23,ISNUMBER(MATCH($U6,INDIRECT(CONCATENATE(ADDRESS(VLOOKUP($N$23,OD_zone_measures!$K$2:$M$122,2,0),$K$2,1,1,"OD_zone_measures"),":",ADDRESS(VLOOKUP($N$23,OD_zone_measures!$K$2:$M$122,2,0),$L$2,1,1))),0))),$O$23,0),IF(AND($J$24=1,AZ$2=$K$24,ISNUMBER(MATCH($U6,INDIRECT(CONCATENATE(ADDRESS(VLOOKUP($N$24,OD_zone_measures!$K$2:$M$122,2,0),$K$2,1,1,"OD_zone_measures"),":",ADDRESS(VLOOKUP($N$24,OD_zone_measures!$K$2:$M$122,2,0),$L$2,1,1))),0))),$O$24,0),IF(AND($J$25=1,AZ$2=$K$25,ISNUMBER(MATCH($U6,INDIRECT(CONCATENATE(ADDRESS(VLOOKUP($N$25,OD_zone_measures!$K$2:$M$122,2,0),$K$2,1,1,"OD_zone_measures"),":",ADDRESS(VLOOKUP($N$25,OD_zone_measures!$K$2:$M$122,2,0),$L$2,1,1))),0))),$O$25,0),IF(AND($J$26=1,AZ$2=$K$26,ISNUMBER(MATCH($U6,INDIRECT(CONCATENATE(ADDRESS(VLOOKUP($N$26,OD_zone_measures!$K$2:$M$122,2,0),$K$2,1,1,"OD_zone_measures"),":",ADDRESS(VLOOKUP($N$26,OD_zone_measures!$K$2:$M$122,2,0),$L$2,1,1))),0))),$O$26,0),IF(AND($J$27=1,AZ$2=$K$27,ISNUMBER(MATCH($U6,INDIRECT(CONCATENATE(ADDRESS(VLOOKUP($N$27,OD_zone_measures!$K$2:$M$122,2,0),$K$2,1,1,"OD_zone_measures"),":",ADDRESS(VLOOKUP($N$27,OD_zone_measures!$K$2:$M$122,2,0),$L$2,1,1))),0))),$O$27,0),IF(AND($J$28=1,AZ$2=$K$28,ISNUMBER(MATCH($U6,INDIRECT(CONCATENATE(ADDRESS(VLOOKUP($N$28,OD_zone_measures!$K$2:$M$122,2,0),$K$2,1,1,"OD_zone_measures"),":",ADDRESS(VLOOKUP($N$28,OD_zone_measures!$K$2:$M$122,2,0),$L$2,1,1))),0))),$O$28,0),IF(AND($J$29=1,AZ$2=$K$29,ISNUMBER(MATCH($U6,INDIRECT(CONCATENATE(ADDRESS(VLOOKUP($N$29,OD_zone_measures!$K$2:$M$122,2,0),$K$2,1,1,"OD_zone_measures"),":",ADDRESS(VLOOKUP($N$29,OD_zone_measures!$K$2:$M$122,2,0),$L$2,1,1))),0))),$O$29,0),IF(AND($J$30=1,AZ$2=$K$30,ISNUMBER(MATCH($U6,INDIRECT(CONCATENATE(ADDRESS(VLOOKUP($N$30,OD_zone_measures!$K$2:$M$122,2,0),$K$2,1,1,"OD_zone_measures"),":",ADDRESS(VLOOKUP($N$30,OD_zone_measures!$K$2:$M$122,2,0),$L$2,1,1))),0))),$O$30,0),IF(AND($J$31=1,AZ$2=$K$31,ISNUMBER(MATCH($U6,INDIRECT(CONCATENATE(ADDRESS(VLOOKUP($N$31,OD_zone_measures!$K$2:$M$122,2,0),$K$2,1,1,"OD_zone_measures"),":",ADDRESS(VLOOKUP($N$31,OD_zone_measures!$K$2:$M$122,2,0),$L$2,1,1))),0))),$O$31,0),IF(AND($J$32=1,AZ$2=$K$32,ISNUMBER(MATCH($U6,INDIRECT(CONCATENATE(ADDRESS(VLOOKUP($N$32,OD_zone_measures!$K$2:$M$122,2,0),$K$2,1,1,"OD_zone_measures"),":",ADDRESS(VLOOKUP($N$32,OD_zone_measures!$K$2:$M$122,2,0),$L$2,1,1))),0))),$O$32,0),IF(AND($J$33=1,AZ$2=$K$33,ISNUMBER(MATCH($U6,INDIRECT(CONCATENATE(ADDRESS(VLOOKUP($N$33,OD_zone_measures!$K$2:$M$122,2,0),$K$2,1,1,"OD_zone_measures"),":",ADDRESS(VLOOKUP($N$33,OD_zone_measures!$K$2:$M$122,2,0),$L$2,1,1))),0))),$O$33,0)) -> 1 | BA6: =1+MIN(IF(AND($J$19=1,BA$2=$K$19,ISNUMBER(MATCH($U6,INDIRECT(CONCATENATE(ADDRESS(VLOOKUP($N$19,OD_zone_measures!$K$2:$M$122,2,0),$K$2,1,1,"OD_zone_measures"),":",ADDRESS(VLOOKUP($N$19,OD_zone_measures!$K$2:$M$122,2,0),$L$2,1,1))),0))),$O$19,0),IF(AND($J$20=1,BA$2=$K$20,ISNUMBER(MATCH($U6,INDIRECT(CONCATENATE(ADDRESS(VLOOKUP($N$20,OD_zone_measures!$K$2:$M$122,2,0),$K$2,1,1,"OD_zone_measures"),":",ADDRESS(VLOOKUP($N$20,OD_zone_measures!$K$2:$M$122,2,0),$L$2,1,1))),0))),$O$20,0),IF(AND($J$21=1,BA$2=$K$21,ISNUMBER(MATCH($U6,INDIRECT(CONCATENATE(ADDRESS(VLOOKUP($N$21,OD_zone_measures!$K$2:$M$122,2,0),$K$2,1,1,"OD_zone_measures"),":",ADDRESS(VLOOKUP($N$21,OD_zone_measures!$K$2:$M$122,2,0),$L$2,1,1))),0))),$O$21,0),IF(AND($J$22=1,BA$2=$K$22,ISNUMBER(MATCH($U6,INDIRECT(CONCATENATE(ADDRESS(VLOOKUP($N$22,OD_zone_measures!$K$2:$M$122,2,0),$K$2,1,1,"OD_zone_measures"),":",ADDRESS(VLOOKUP($N$22,OD_zone_measures!$K$2:$M$122,2,0),$L$2,1,1))),0))),$O$22,0),IF(AND($J$23=1,BA$2=$K$23,ISNUMBER(MATCH($U6,INDIRECT(CONCATENATE(ADDRESS(VLOOKUP($N$23,OD_zone_measures!$K$2:$M$122,2,0),$K$2,1,1,"OD_zone_measures"),":",ADDRESS(VLOOKUP($N$23,OD_zone_measures!$K$2:$M$122,2,0),$L$2,1,1))),0))),$O$23,0),IF(AND($J$24=1,BA$2=$K$24,ISNUMBER(MATCH($U6,INDIRECT(CONCATENATE(ADDRESS(VLOOKUP($N$24,OD_zone_measures!$K$2:$M$122,2,0),$K$2,1,1,"OD_zone_measures"),":",ADDRESS(VLOOKUP($N$24,OD_zone_measures!$K$2:$M$122,2,0),$L$2,1,1))),0))),$O$24,0),IF(AND($J$25=1,BA$2=$K$25,ISNUMBER(MATCH($U6,INDIRECT(CONCATENATE(ADDRESS(VLOOKUP($N$25,OD_zone_measures!$K$2:$M$122,2,0),$K$2,1,1,"OD_zone_measures"),":",ADDRESS(VLOOKUP($N$25,OD_zone_measures!$K$2:$M$122,2,0),$L$2,1,1))),0))),$O$25,0),IF(AND($J$26=1,BA$2=$K$26,ISNUMBER(MATCH($U6,INDIRECT(CONCATENATE(ADDRESS(VLOOKUP($N$26,OD_zone_measures!$K$2:$M$122,2,0),$K$2,1,1,"OD_zone_measures"),":",ADDRESS(VLOOKUP($N$26,OD_zone_measures!$K$2:$M$122,2,0),$L$2,1,1))),0))),$O$26,0),IF(AND($J$27=1,BA$2=$K$27,ISNUMBER(MATCH($U6,INDIRECT(CONCATENATE(ADDRESS(VLOOKUP($N$27,OD_zone_measures!$K$2:$M$122,2,0),$K$2,1,1,"OD_zone_measures"),":",ADDRESS(VLOOKUP($N$27,OD_zone_measures!$K$2:$M$122,2,0),$L$2,1,1))),0))),$O$27,0),IF(AND($J$28=1,BA$2=$K$28,ISNUMBER(MATCH($U6,INDIRECT(CONCATENATE(ADDRESS(VLOOKUP($N$28,OD_zone_measures!$K$2:$M$122,2,0),$K$2,1,1,"OD_zone_measures"),":",ADDRESS(VLOOKUP($N$28,OD_zone_measures!$K$2:$M$122,2,0),$L$2,1,1))),0))),$O$28,0),IF(AND($J$29=1,BA$2=$K$29,ISNUMBER(MATCH($U6,INDIRECT(CONCATENATE(ADDRESS(VLOOKUP($N$29,OD_zone_measures!$K$2:$M$122,2,0),$K$2,1,1,"OD_zone_measures"),":",ADDRESS(VLOOKUP($N$29,OD_zone_measures!$K$2:$M$122,2,0),$L$2,1,1))),0))),$O$29,0),IF(AND($J$30=1,BA$2=$K$30,ISNUMBER(MATCH($U6,INDIRECT(CONCATENATE(ADDRESS(VLOOKUP($N$30,OD_zone_measures!$K$2:$M$122,2,0),$K$2,1,1,"OD_zone_measures"),":",ADDRESS(VLOOKUP($N$30,OD_zone_measures!$K$2:$M$122,2,0),$L$2,1,1))),0))),$O$30,0),IF(AND($J$31=1,BA$2=$K$31,ISNUMBER(MATCH($U6,INDIRECT(CONCATENATE(ADDRESS(VLOOKUP($N$31,OD_zone_measures!$K$2:$M$122,2,0),$K$2,1,1,"OD_zone_measures"),":",ADDRESS(VLOOKUP($N$31,OD_zone_measures!$K$2:$M$122,2,0),$L$2,1,1))),0))),$O$31,0),IF(AND($J$32=1,BA$2=$K$32,ISNUMBER(MATCH($U6,INDIRECT(CONCATENATE(ADDRESS(VLOOKUP($N$32,OD_zone_measures!$K$2:$M$122,2,0),$K$2,1,1,"OD_zone_measures"),":",ADDRESS(VLOOKUP($N$32,OD_zone_measures!$K$2:$M$122,2,0),$L$2,1,1))),0))),$O$32,0),IF(AND($J$33=1,BA$2=$K$33,ISNUMBER(MATCH($U6,INDIRECT(CONCATENATE(ADDRESS(VLOOKUP($N$33,OD_zone_measures!$K$2:$M$122,2,0),$K$2,1,1,"OD_zone_measures"),":",ADDRESS(VLOOKUP($N$33,OD_zone_measures!$K$2:$M$122,2,0),$L$2,1,1))),0))),$O$33,0)) -> 1 | BB6: =0 -> 0 | BC6: =BB6 -> 0 | BD6: =BC6 -> 0 | BE6: 0 | BF6: 0 | BG6: 0 | BH6: 0 | BI6: 0 | BJ6: =0 -> 0 | BK6: =BJ6 -> 0 | BL6: =BK6 -> 0 | BM6: 0 | BN6: 0 | BO6: 0 | BP6: 0 | BQ6: 0
R7: =IF(R6="","",IF((R6+1>$B$3),"",R6+1)) -> 2 | S7: =IF(R7="","",INT((R7-1)/$A$3)+1) -> 1 | T7: =IF(R7="","",MOD(R7-1,$A$3)+1) -> 2 | U7: =S7&"_"&T7 -> 1_2 | V7: 0 | W7: =0+IF(B$100<>0,(B$100)*B$101*zonal_GC!E16,0) -> 0 | X7: =0+IF(C$100<>0,(C$100)*C$101*zonal_GC!F16,0) -> 0 | Y7: =0+IF(D$100<>0,(D$100)*D$101*zonal_GC!G16,0) -> 0 | Z7: =0+IF(E$100<>0,(E$100)*E$101*zonal_GC!H16,0) -> 0 | AA7: =0+IF(F$100<>0,(F$100)*F$101*zonal_GC!I16,0) -> 0 | AB7: =0+IF(G$100<>0,(G$100)*G$101*zonal_GC!J16,0) -> 0 | AC7: =0+IF(H$100<>0,(H$100)*H$101*zonal_GC!K16,0) -> 0 | AD7: 0 | AE7: =0+IF(I$100<>0,(I$100)*I$101*zonal_GC!M16,0) -> 0 | AF7: =0+IF(J$100<>0,(J$100)*J$101*zonal_GC!N16,0) -> 0 | AG7: =0+IF(K$100<>0,(K$100)*K$101*zonal_GC!O16,0) -> 5.130259206 | AH7: =0+IF(L$100<>0,(L$100)*L$101*zonal_GC!P16,0) -> 5.260548992 | AI7: =0+IF(M$100<>0,(M$100)*M$101*zonal_GC!Q16,0) -> 5.230373861 | AJ7: =0+IF(N$100<>0,(N$100)*N$101*zonal_GC!R16,0) -> 8.066043271 | AK7: =0+IF(O$100<>0,(O$100)*O$101*zonal_GC!S16,0) -> 7.77250915 | AL7: 1 | AM7: =1+MIN(IF(AND($B$19=1,AM$2=$C$19,ISNUMBER(MATCH($U7,INDIRECT(CONCATENATE(ADDRESS(VLOOKUP($F$19,OD_zone_measures!$K$2:$M$122,2,0),$K$2,1,1,"OD_zone_measures"),":",ADDRESS(VLOOKUP($F$19,OD_zone_measures!$K$2:$M$122,2,0),$L$2,1,1))),0))),$G$19,0),IF(AND($B$20=1,AM$2=$C$20,ISNUMBER(MATCH($U7,INDIRECT(CONCATENATE(ADDRESS(VLOOKUP($F$20,OD_zone_measures!$K$2:$M$122,2,0),$K$2,1,1,"OD_zone_measures"),":",ADDRESS(VLOOKUP($F$20,OD_zone_measures!$K$2:$M$122,2,0),$L$2,1,1))),0))),$G$20,0),IF(AND($B$21=1,AM$2=$C$21,ISNUMBER(MATCH($U7,INDIRECT(CONCATENATE(ADDRESS(VLOOKUP($F$21,OD_zone_measures!$K$2:$M$122,2,0),$K$2,1,1,"OD_zone_measures"),":",ADDRESS(VLOOKUP($F$21,OD_zone_measures!$K$2:$M$122,2,0),$L$2,1,1))),0))),$G$21,0),IF(AND($B$22=1,AM$2=$C$22,ISNUMBER(MATCH($U7,INDIRECT(CONCATENATE(ADDRESS(VLOOKUP($F$22,OD_zone_measures!$K$2:$M$122,2,0),$K$2,1,1,"OD_zone_measures"),":",ADDRESS(VLOOKUP($F$22,OD_zone_measures!$K$2:$M$122,2,0),$L$2,1,1))),0))),$G$22,0),IF(AND($B$23=1,AM$2=$C$23,ISNUMBER(MATCH($U7,INDIRECT(CONCATENATE(ADDRESS(VLOOKUP($F$23,OD_zone_measures!$K$2:$M$122,2,0),$K$2,1,1,"OD_zone_measures"),":",ADDRESS(VLOOKUP($F$23,OD_zone_measures!$K$2:$M$122,2,0),$L$2,1,1))),0))),$G$23,0),IF(AND($B$24=1,AM$2=$C$24,ISNUMBER(MATCH($U7,INDIRECT(CONCATENATE(ADDRESS(VLOOKUP($F$24,OD_zone_measures!$K$2:$M$122,2,0),$K$2,1,1,"OD_zone_measures"),":",ADDRESS(VLOOKUP($F$24,OD_zone_measures!$K$2:$M$122,2,0),$L$2,1,1))),0))),$G$24,0),IF(AND($B$25=1,AM$2=$C$25,ISNUMBER(MATCH($U7,INDIRECT(CONCATENATE(ADDRESS(VLOOKUP($F$25,OD_zone_measures!$K$2:$M$122,2,0),$K$2,1,1,"OD_zone_measures"),":",ADDRESS(VLOOKUP($F$25,OD_zone_measures!$K$2:$M$122,2,0),$L$2,1,1))),0))),$G$25,0),IF(AND($B$26=1,AM$2=$C$26,ISNUMBER(MATCH($U7,INDIRECT(CONCATENATE(ADDRESS(VLOOKUP($F$26,OD_zone_measures!$K$2:$M$122,2,0),$K$2,1,1,"OD_zone_measures"),":",ADDRESS(VLOOKUP($F$26,OD_zone_measures!$K$2:$M$122,2,0),$L$2,1,1))),0))),$G$26,0),IF(AND($B$27=1,AM$2=$C$27,ISNUMBER(MATCH($U7,INDIRECT(CONCATENATE(ADDRESS(VLOOKUP($F$27,OD_zone_measures!$K$2:$M$122,2,0),$K$2,1,1,"OD_zone_measures"),":",ADDRESS(VLOOKUP($F$27,OD_zone_measures!$K$2:$M$122,2,0),$L$2,1,1))),0))),$G$27,0),IF(AND($B$28=1,AM$2=$C$28,ISNUMBER(MATCH($U7,INDIRECT(CONCATENATE(ADDRESS(VLOOKUP($F$28,OD_zone_measures!$K$2:$M$122,2,0),$K$2,1,1,"OD_zone_measures"),":",ADDRESS(VLOOKUP($F$28,OD_zone_measures!$K$2:$M$122,2,0),$L$2,1,1))),0))),$G$28,0),IF(AND($B$29=1,AM$2=$C$29,ISNUMBER(MATCH($U7,INDIRECT(CONCATENATE(ADDRESS(VLOOKUP($F$29,OD_zone_measures!$K$2:$M$122,2,0),$K$2,1,1,"OD_zone_measures"),":",ADDRESS(VLOOKUP($F$29,OD_zone_measures!$K$2:$M$122,2,0),$L$2,1,1))),0))),$G$29,0),IF(AND($B$30=1,AM$2=$C$30,ISNUMBER(MATCH($U7,INDIRECT(CONCATENATE(ADDRESS(VLOOKUP($F$30,OD_zone_measures!$K$2:$M$122,2,0),$K$2,1,1,"OD_zone_measures"),":",ADDRESS(VLOOKUP($F$30,OD_zone_measures!$K$2:$M$122,2,0),$L$2,1,1))),0))),$G$30,0),IF(AND($B$31=1,AM$2=$C$31,ISNUMBER(MATCH($U7,INDIRECT(CONCATENATE(ADDRESS(VLOOKUP($F$31,OD_zone_measures!$K$2:$M$122,2,0),$K$2,1,1,"OD_zone_measures"),":",ADDRESS(VLOOKUP($F$31,OD_zone_measures!$K$2:$M$122,2,0),$L$2,1,1))),0))),$G$31,0),IF(AND($B$32=1,AM$2=$C$32,ISNUMBER(MATCH($U7,INDIRECT(CONCATENATE(ADDRESS(VLOOKUP($F$32,OD_zone_measures!$K$2:$M$122,2,0),$K$2,1,1,"OD_zone_measures"),":",ADDRESS(VLOOKUP($F$32,OD_zone_measures!$K$2:$M$122,2,0),$L$2,1,1))),0))),$G$32,0),IF(AND($B$33=1,AM$2=$C$33,ISNUMBER(MATCH($U7,INDIRECT(CONCATENATE(ADDRESS(VLOOKUP($F$33,OD_zone_measures!$K$2:$M$122,2,0),$K$2,1,1,"OD_zone_measures"),":",ADDRESS(VLOOKUP($F$33,OD_zone_measures!$K$2:$M$122,2,0),$L$2,1,1))),0))),$G$33,0)) -> 1 | AN7: =1+MIN(IF(AND($B$19=1,AN$2=$C$19,ISNUMBER(MATCH($U7,INDIRECT(CONCATENATE(ADDRESS(VLOOKUP($F$19,OD_zone_measures!$K$2:$M$122,2,0),$K$2,1,1,"OD_zone_measures"),":",ADDRESS(VLOOKUP($F$19,OD_zone_measures!$K$2:$M$122,2,0),$L$2,1,1))),0))),$G$19,0),IF(AND($B$20=1,AN$2=$C$20,ISNUMBER(MATCH($U7,INDIRECT(CONCATENATE(ADDRESS(VLOOKUP($F$20,OD_zone_measures!$K$2:$M$122,2,0),$K$2,1,1,"OD_zone_measures"),":",ADDRESS(VLOOKUP($F$20,OD_zone_measures!$K$2:$M$122,2,0),$L$2,1,1))),0))),$G$20,0),IF(AND($B$21=1,AN$2=$C$21,ISNUMBER(MATCH($U7,INDIRECT(CONCATENATE(ADDRESS(VLOOKUP($F$21,OD_zone_measures!$K$2:$M$122,2,0),$K$2,1,1,"OD_zone_measures"),":",ADDRESS(VLOOKUP($F$21,OD_zone_measures!$K$2:$M$122,2,0),$L$2,1,1))),0))),$G$21,0),IF(AND($B$22=1,AN$2=$C$22,ISNUMBER(MATCH($U7,INDIRECT(CONCATENATE(ADDRESS(VLOOKUP($F$22,OD_zone_measures!$K$2:$M$122,2,0),$K$2,1,1,"OD_zone_measures"),":",ADDRESS(VLOOKUP($F$22,OD_zone_measures!$K$2:$M$122,2,0),$L$2,1,1))),0))),$G$22,0),IF(AND($B$23=1,AN$2=$C$23,ISNUMBER(MATCH($U7,INDIRECT(CONCATENATE(ADDRESS(VLOOKUP($F$23,OD_zone_measures!$K$2:$M$122,2,0),$K$2,1,1,"OD_zone_measures"),":",ADDRESS(VLOOKUP($F$23,OD_zone_measures!$K$2:$M$122,2,0),$L$2,1,1))),0))),$G$23,0),IF(AND($B$24=1,AN$2=$C$24,ISNUMBER(MATCH($U7,INDIRECT(CONCATENATE(ADDRESS(VLOOKUP($F$24,OD_zone_measures!$K$2:$M$122,2,0),$K$2,1,1,"OD_zone_measures"),":",ADDRESS(VLOOKUP($F$24,OD_zone_measures!$K$2:$M$122,2,0),$L$2,1,1))),0))),$G$24,0),IF(AND($B$25=1,AN$2=$C$25,ISNUMBER(MATCH($U7,INDIRECT(CONCATENATE(ADDRESS(VLOOKUP($F$25,OD_zone_measures!$K$2:$M$122,2,0),$K$2,1,1,"OD_zone_measures"),":",ADDRESS(VLOOKUP($F$25,OD_zone_measures!$K$2:$M$122,2,0),$L$2,1,1))),0))),$G$25,0),IF(AND($B$26=1,AN$2=$C$26,ISNUMBER(MATCH($U7,INDIRECT(CONCATENATE(ADDRESS(VLOOKUP($F$26,OD_zone_measures!$K$2:$M$122,2,0),$K$2,1,1,"OD_zone_measures"),":",ADDRESS(VLOOKUP($F$26,OD_zone_measures!$K$2:$M$122,2,0),$L$2,1,1))),0))),$G$26,0),IF(AND($B$27=1,AN$2=$C$27,ISNUMBER(MATCH($U7,INDIRECT(CONCATENATE(ADDRESS(VLOOKUP($F$27,OD_zone_measures!$K$2:$M$122,2,0),$K$2,1,1,"OD_zone_measures"),":",ADDRESS(VLOOKUP($F$27,OD_zone_measures!$K$2:$M$122,2,0),$L$2,1,1))),0))),$G$27,0),IF(AND($B$28=1,AN$2=$C$28,ISNUMBER(MATCH($U7,INDIRECT(CONCATENATE(ADDRESS(VLOOKUP($F$28,OD_zone_measures!$K$2:$M$122,2,0),$K$2,1,1,"OD_zone_measures"),":",ADDRESS(VLOOKUP($F$28,OD_zone_measures!$K$2:$M$122,2,0),$L$2,1,1))),0))),$G$28,0),IF(AND($B$29=1,AN$2=$C$29,ISNUMBER(MATCH($U7,INDIRECT(CONCATENATE(ADDRESS(VLOOKUP($F$29,OD_zone_measures!$K$2:$M$122,2,0),$K$2,1,1,"OD_zone_measures"),":",ADDRESS(VLOOKUP($F$29,OD_zone_measures!$K$2:$M$122,2,0),$L$2,1,1))),0))),$G$29,0),IF(AND($B$30=1,AN$2=$C$30,ISNUMBER(MATCH($U7,INDIRECT(CONCATENATE(ADDRESS(VLOOKUP($F$30,OD_zone_measures!$K$2:$M$122,2,0),$K$2,1,1,"OD_zone_measures"),":",ADDRESS(VLOOKUP($F$30,OD_zone_measures!$K$2:$M$122,2,0),$L$2,1,1))),0))),$G$30,0),IF(AND($B$31=1,AN$2=$C$31,ISNUMBER(MATCH($U7,INDIRECT(CONCATENATE(ADDRESS(VLOOKUP($F$31,OD_zone_measures!$K$2:$M$122,2,0),$K$2,1,1,"OD_zone_measures"),":",ADDRESS(VLOOKUP($F$31,OD_zone_measures!$K$2:$M$122,2,0),$L$2,1,1))),0))),$G$31,0),IF(AND($B$32=1,AN$2=$C$32,ISNUMBER(MATCH($U7,INDIRECT(CONCATENATE(ADDRESS(VLOOKUP($F$32,OD_zone_measures!$K$2:$M$122,2,0),$K$2,1,1,"OD_zone_measures"),":",ADDRESS(VLOOKUP($F$32,OD_zone_measures!$K$2:$M$122,2,0),$L$2,1,1))),0))),$G$32,0),IF(AND($B$33=1,AN$2=$C$33,ISNUMBER(MATCH($U7,INDIRECT(CONCATENATE(ADDRESS(VLOOKUP($F$33,OD_zone_measures!$K$2:$M$122,2,0),$K$2,1,1,"OD_zone_measures"),":",ADDRESS(VLOOKUP($F$33,OD_zone_measures!$K$2:$M$122,2,0),$L$2,1,1))),0))),$G$33,0)) -> 1 | AO7: =1+MIN(IF(AND($B$19=1,AO$2=$C$19,ISNUMBER(MATCH($U7,INDIRECT(CONCATENATE(ADDRESS(VLOOKUP($F$19,OD_zone_measures!$K$2:$M$122,2,0),$K$2,1,1,"OD_zone_measures"),":",ADDRESS(VLOOKUP($F$19,OD_zone_measures!$K$2:$M$122,2,0),$L$2,1,1))),0))),$G$19,0),IF(AND($B$20=1,AO$2=$C$20,ISNUMBER(MATCH($U7,INDIRECT(CONCATENATE(ADDRESS(VLOOKUP($F$20,OD_zone_measures!$K$2:$M$122,2,0),$K$2,1,1,"OD_zone_measures"),":",ADDRESS(VLOOKUP($F$20,OD_zone_measures!$K$2:$M$122,2,0),$L$2,1,1))),0))),$G$20,0),IF(AND($B$21=1,AO$2=$C$21,ISNUMBER(MATCH($U7,INDIRECT(CONCATENATE(ADDRESS(VLOOKUP($F$21,OD_zone_measures!$K$2:$M$122,2,0),$K$2,1,1,"OD_zone_measures"),":",ADDRESS(VLOOKUP($F$21,OD_zone_measures!$K$2:$M$122,2,0),$L$2,1,1))),0))),$G$21,0),IF(AND($B$22=1,AO$2=$C$22,ISNUMBER(MATCH($U7,INDIRECT(CONCATENATE(ADDRESS(VLOOKUP($F$22,OD_zone_measures!$K$2:$M$122,2,0),$K$2,1,1,"OD_zone_measures"),":",ADDRESS(VLOOKUP($F$22,OD_zone_measures!$K$2:$M$122,2,0),$L$2,1,1))),0))),$G$22,0),IF(AND($B$23=1,AO$2=$C$23,ISNUMBER(MATCH($U7,INDIRECT(CONCATENATE(ADDRESS(VLOOKUP($F$23,OD_zone_measures!$K$2:$M$122,2,0),$K$2,1,1,"OD_zone_measures"),":",ADDRESS(VLOOKUP($F$23,OD_zone_measures!$K$2:$M$122,2,0),$L$2,1,1))),0))),$G$23,0),IF(AND($B$24=1,AO$2=$C$24,ISNUMBER(MATCH($U7,INDIRECT(CONCATENATE(ADDRESS(VLOOKUP($F$24,OD_zone_measures!$K$2:$M$122,2,0),$K$2,1,1,"OD_zone_measures"),":",ADDRESS(VLOOKUP($F$24,OD_zone_measures!$K$2:$M$122,2,0),$L$2,1,1))),0))),$G$24,0),IF(AND($B$25=1,AO$2=$C$25,ISNUMBER(MATCH($U7,INDIRECT(CONCATENATE(ADDRESS(VLOOKUP($F$25,OD_zone_measures!$K$2:$M$122,2,0),$K$2,1,1,"OD_zone_measures"),":",ADDRESS(VLOOKUP($F$25,OD_zone_measures!$K$2:$M$122,2,0),$L$2,1,1))),0))),$G$25,0),IF(AND($B$26=1,AO$2=$C$26,ISNUMBER(MATCH($U7,INDIRECT(CONCATENATE(ADDRESS(VLOOKUP($F$26,OD_zone_measures!$K$2:$M$122,2,0),$K$2,1,1,"OD_zone_measures"),":",ADDRESS(VLOOKUP($F$26,OD_zone_measures!$K$2:$M$122,2,0),$L$2,1,1))),0))),$G$26,0),IF(AND($B$27=1,AO$2=$C$27,ISNUMBER(MATCH($U7,INDIRECT(CONCATENATE(ADDRESS(VLOOKUP($F$27,OD_zone_measures!$K$2:$M$122,2,0),$K$2,1,1,"OD_zone_measures"),":",ADDRESS(VLOOKUP($F$27,OD_zone_measures!$K$2:$M$122,2,0),$L$2,1,1))),0))),$G$27,0),IF(AND($B$28=1,AO$2=$C$28,ISNUMBER(MATCH($U7,INDIRECT(CONCATENATE(ADDRESS(VLOOKUP($F$28,OD_zone_measures!$K$2:$M$122,2,0),$K$2,1,1,"OD_zone_measures"),":",ADDRESS(VLOOKUP($F$28,OD_zone_measures!$K$2:$M$122,2,0),$L$2,1,1))),0))),$G$28,0),IF(AND($B$29=1,AO$2=$C$29,ISNUMBER(MATCH($U7,INDIRECT(CONCATENATE(ADDRESS(VLOOKUP($F$29,OD_zone_measures!$K$2:$M$122,2,0),$K$2,1,1,"OD_zone_measures"),":",ADDRESS(VLOOKUP($F$29,OD_zone_measures!$K$2:$M$122,2,0),$L$2,1,1))),0))),$G$29,0),IF(AND($B$30=1,AO$2=$C$30,ISNUMBER(MATCH($U7,INDIRECT(CONCATENATE(ADDRESS(VLOOKUP($F$30,OD_zone_measures!$K$2:$M$122,2,0),$K$2,1,1,"OD_zone_measures"),":",ADDRESS(VLOOKUP($F$30,OD_zone_measures!$K$2:$M$122,2,0),$L$2,1,1))),0))),$G$30,0),IF(AND($B$31=1,AO$2=$C$31,ISNUMBER(MATCH($U7,INDIRECT(CONCATENATE(ADDRESS(VLOOKUP($F$31,OD_zone_measures!$K$2:$M$122,2,0),$K$2,1,1,"OD_zone_measures"),":",ADDRESS(VLOOKUP($F$31,OD_zone_measures!$K$2:$M$122,2,0),$L$2,1,1))),0))),$G$31,0),IF(AND($B$32=1,AO$2=$C$32,ISNUMBER(MATCH($U7,INDIRECT(CONCATENATE(ADDRESS(VLOOKUP($F$32,OD_zone_measures!$K$2:$M$122,2,0),$K$2,1,1,"OD_zone_measures"),":",ADDRESS(VLOOKUP($F$32,OD_zone_measures!$K$2:$M$122,2,0),$L$2,1,1))),0))),$G$32,0),IF(AND($B$33=1,AO$2=$C$33,ISNUMBER(MATCH($U7,INDIRECT(CONCATENATE(ADDRESS(VLOOKUP($F$33,OD_zone_measures!$K$2:$M$122,2,0),$K$2,1,1,"OD_zone_measures"),":",ADDRESS(VLOOKUP($F$33,OD_zone_measures!$K$2:$M$122,2,0),$L$2,1,1))),0))),$G$33,0)) -> 1 | AP7: =1+MIN(IF(AND($B$19=1,AP$2=$C$19,ISNUMBER(MATCH($U7,INDIRECT(CONCATENATE(ADDRESS(VLOOKUP($F$19,OD_zone_measures!$K$2:$M$122,2,0),$K$2,1,1,"OD_zone_measures"),":",ADDRESS(VLOOKUP($F$19,OD_zone_measures!$K$2:$M$122,2,0),$L$2,1,1))),0))),$G$19,0),IF(AND($B$20=1,AP$2=$C$20,ISNUMBER(MATCH($U7,INDIRECT(CONCATENATE(ADDRESS(VLOOKUP($F$20,OD_zone_measures!$K$2:$M$122,2,0),$K$2,1,1,"OD_zone_measures"),":",ADDRESS(VLOOKUP($F$20,OD_zone_measures!$K$2:$M$122,2,0),$L$2,1,1))),0))),$G$20,0),IF(AND($B$21=1,AP$2=$C$21,ISNUMBER(MATCH($U7,INDIRECT(CONCATENATE(ADDRESS(VLOOKUP($F$21,OD_zone_measures!$K$2:$M$122,2,0),$K$2,1,1,"OD_zone_measures"),":",ADDRESS(VLOOKUP($F$21,OD_zone_measures!$K$2:$M$122,2,0),$L$2,1,1))),0))),$G$21,0),IF(AND($B$22=1,AP$2=$C$22,ISNUMBER(MATCH($U7,INDIRECT(CONCATENATE(ADDRESS(VLOOKUP($F$22,OD_zone_measures!$K$2:$M$122,2,0),$K$2,1,1,"OD_zone_measures"),":",ADDRESS(VLOOKUP($F$22,OD_zone_measures!$K$2:$M$122,2,0),$L$2,1,1))),0))),$G$22,0),IF(AND($B$23=1,AP$2=$C$23,ISNUMBER(MATCH($U7,INDIRECT(CONCATENATE(ADDRESS(VLOOKUP($F$23,OD_zone_measures!$K$2:$M$122,2,0),$K$2,1,1,"OD_zone_measures"),":",ADDRESS(VLOOKUP($F$23,OD_zone_measures!$K$2:$M$122,2,0),$L$2,1,1))),0))),$G$23,0),IF(AND($B$24=1,AP$2=$C$24,ISNUMBER(MATCH($U7,INDIRECT(CONCATENATE(ADDRESS(VLOOKUP($F$24,OD_zone_measures!$K$2:$M$122,2,0),$K$2,1,1,"OD_zone_measures"),":",ADDRESS(VLOOKUP($F$24,OD_zone_measures!$K$2:$M$122,2,0),$L$2,1,1))),0))),$G$24,0),IF(AND($B$25=1,AP$2=$C$25,ISNUMBER(MATCH($U7,INDIRECT(CONCATENATE(ADDRESS(VLOOKUP($F$25,OD_zone_measures!$K$2:$M$122,2,0),$K$2,1,1,"OD_zone_measures"),":",ADDRESS(VLOOKUP($F$25,OD_zone_measures!$K$2:$M$122,2,0),$L$2,1,1))),0))),$G$25,0),IF(AND($B$26=1,AP$2=$C$26,ISNUMBER(MATCH($U7,INDIRECT(CONCATENATE(ADDRESS(VLOOKUP($F$26,OD_zone_measures!$K$2:$M$122,2,0),$K$2,1,1,"OD_zone_measures"),":",ADDRESS(VLOOKUP($F$26,OD_zone_measures!$K$2:$M$122,2,0),$L$2,1,1))),0))),$G$26,0),IF(AND($B$27=1,AP$2=$C$27,ISNUMBER(MATCH($U7,INDIRECT(CONCATENATE(ADDRESS(VLOOKUP($F$27,OD_zone_measures!$K$2:$M$122,2,0),$K$2,1,1,"OD_zone_measures"),":",ADDRESS(VLOOKUP($F$27,OD_zone_measures!$K$2:$M$122,2,0),$L$2,1,1))),0))),$G$27,0),IF(AND($B$28=1,AP$2=$C$28,ISNUMBER(MATCH($U7,INDIRECT(CONCATENATE(ADDRESS(VLOOKUP($F$28,OD_zone_measures!$K$2:$M$122,2,0),$K$2,1,1,"OD_zone_measures"),":",ADDRESS(VLOOKUP($F$28,OD_zone_measures!$K$2:$M$122,2,0),$L$2,1,1))),0))),$G$28,0),IF(AND($B$29=1,AP$2=$C$29,ISNUMBER(MATCH($U7,INDIRECT(CONCATENATE(ADDRESS(VLOOKUP($F$29,OD_zone_measures!$K$2:$M$122,2,0),$K$2,1,1,"OD_zone_measures"),":",ADDRESS(VLOOKUP($F$29,OD_zone_measures!$K$2:$M$122,2,0),$L$2,1,1))),0))),$G$29,0),IF(AND($B$30=1,AP$2=$C$30,ISNUMBER(MATCH($U7,INDIRECT(CONCATENATE(ADDRESS(VLOOKUP($F$30,OD_zone_measures!$K$2:$M$122,2,0),$K$2,1,1,"OD_zone_measures"),":",ADDRESS(VLOOKUP($F$30,OD_zone_measures!$K$2:$M$122,2,0),$L$2,1,1))),0))),$G$30,0),IF(AND($B$31=1,AP$2=$C$31,ISNUMBER(MATCH($U7,INDIRECT(CONCATENATE(ADDRESS(VLOOKUP($F$31,OD_zone_measures!$K$2:$M$122,2,0),$K$2,1,1,"OD_zone_measures"),":",ADDRESS(VLOOKUP($F$31,OD_zone_measures!$K$2:$M$122,2,0),$L$2,1,1))),0))),$G$31,0),IF(AND($B$32=1,AP$2=$C$32,ISNUMBER(MATCH($U7,INDIRECT(CONCATENATE(ADDRESS(VLOOKUP($F$32,OD_zone_measures!$K$2:$M$122,2,0),$K$2,1,1,"OD_zone_measures"),":",ADDRESS(VLOOKUP($F$32,OD_zone_measures!$K$2:$M$122,2,0),$L$2,1,1))),0))),$G$32,0),IF(AND($B$33=1,AP$2=$C$33,ISNUMBER(MATCH($U7,INDIRECT(CONCATENATE(ADDRESS(VLOOKUP($F$33,OD_zone_measures!$K$2:$M$122,2,0),$K$2,1,1,"OD_zone_measures"),":",ADDRESS(VLOOKUP($F$33,OD_zone_measures!$K$2:$M$122,2,0),$L$2,1,1))),0))),$G$33,0)) -> 1 | AQ7: =1+MIN(IF(AND($B$19=1,AQ$2=$C$19,ISNUMBER(MATCH($U7,INDIRECT(CONCATENATE(ADDRESS(VLOOKUP($F$19,OD_zone_measures!$K$2:$M$122,2,0),$K$2,1,1,"OD_zone_measures"),":",ADDRESS(VLOOKUP($F$19,OD_zone_measures!$K$2:$M$122,2,0),$L$2,1,1))),0))),$G$19,0),IF(AND($B$20=1,AQ$2=$C$20,ISNUMBER(MATCH($U7,INDIRECT(CONCATENATE(ADDRESS(VLOOKUP($F$20,OD_zone_measures!$K$2:$M$122,2,0),$K$2,1,1,"OD_zone_measures"),":",ADDRESS(VLOOKUP($F$20,OD_zone_measures!$K$2:$M$122,2,0),$L$2,1,1))),0))),$G$20,0),IF(AND($B$21=1,AQ$2=$C$21,ISNUMBER(MATCH($U7,INDIRECT(CONCATENATE(ADDRESS(VLOOKUP($F$21,OD_zone_measures!$K$2:$M$122,2,0),$K$2,1,1,"OD_zone_measures"),":",ADDRESS(VLOOKUP($F$21,OD_zone_measures!$K$2:$M$122,2,0),$L$2,1,1))),0))),$G$21,0),IF(AND($B$22=1,AQ$2=$C$22,ISNUMBER(MATCH($U7,INDIRECT(CONCATENATE(ADDRESS(VLOOKUP($F$22,OD_zone_measures!$K$2:$M$122,2,0),$K$2,1,1,"OD_zone_measures"),":",ADDRESS(VLOOKUP($F$22,OD_zone_measures!$K$2:$M$122,2,0),$L$2,1,1))),0))),$G$22,0),IF(AND($B$23=1,AQ$2=$C$23,ISNUMBER(MATCH($U7,INDIRECT(CONCATENATE(ADDRESS(VLOOKUP($F$23,OD_zone_measures!$K$2:$M$122,2,0),$K$2,1,1,"OD_zone_measures"),":",ADDRESS(VLOOKUP($F$23,OD_zone_measures!$K$2:$M$122,2,0),$L$2,1,1))),0))),$G$23,0),IF(AND($B$24=1,AQ$2=$C$24,ISNUMBER(MATCH($U7,INDIRECT(CONCATENATE(ADDRESS(VLOOKUP($F$24,OD_zone_measures!$K$2:$M$122,2,0),$K$2,1,1,"OD_zone_measures"),":",ADDRESS(VLOOKUP($F$24,OD_zone_measures!$K$2:$M$122,2,0),$L$2,1,1))),0))),$G$24,0),IF(AND($B$25=1,AQ$2=$C$25,ISNUMBER(MATCH($U7,INDIRECT(CONCATENATE(ADDRESS(VLOOKUP($F$25,OD_zone_measures!$K$2:$M$122,2,0),$K$2,1,1,"OD_zone_measures"),":",ADDRESS(VLOOKUP($F$25,OD_zone_measures!$K$2:$M$122,2,0),$L$2,1,1))),0))),$G$25,0),IF(AND($B$26=1,AQ$2=$C$26,ISNUMBER(MATCH($U7,INDIRECT(CONCATENATE(ADDRESS(VLOOKUP($F$26,OD_zone_measures!$K$2:$M$122,2,0),$K$2,1,1,"OD_zone_measures"),":",ADDRESS(VLOOKUP($F$26,OD_zone_measures!$K$2:$M$122,2,0),$L$2,1,1))),0))),$G$26,0),IF(AND($B$27=1,AQ$2=$C$27,ISNUMBER(MATCH($U7,INDIRECT(CONCATENATE(ADDRESS(VLOOKUP($F$27,OD_zone_measures!$K$2:$M$122,2,0),$K$2,1,1,"OD_zone_measures"),":",ADDRESS(VLOOKUP($F$27,OD_zone_measures!$K$2:$M$122,2,0),$L$2,1,1))),0))),$G$27,0),IF(AND($B$28=1,AQ$2=$C$28,ISNUMBER(MATCH($U7,INDIRECT(CONCATENATE(ADDRESS(VLOOKUP($F$28,OD_zone_measures!$K$2:$M$122,2,0),$K$2,1,1,"OD_zone_measures"),":",ADDRESS(VLOOKUP($F$28,OD_zone_measures!$K$2:$M$122,2,0),$L$2,1,1))),0))),$G$28,0),IF(AND($B$29=1,AQ$2=$C$29,ISNUMBER(MATCH($U7,INDIRECT(CONCATENATE(ADDRESS(VLOOKUP($F$29,OD_zone_measures!$K$2:$M$122,2,0),$K$2,1,1,"OD_zone_measures"),":",ADDRESS(VLOOKUP($F$29,OD_zone_measures!$K$2:$M$122,2,0),$L$2,1,1))),0))),$G$29,0),IF(AND($B$30=1,AQ$2=$C$30,ISNUMBER(MATCH($U7,INDIRECT(CONCATENATE(ADDRESS(VLOOKUP($F$30,OD_zone_measures!$K$2:$M$122,2,0),$K$2,1,1,"OD_zone_measures"),":",ADDRESS(VLOOKUP($F$30,OD_zone_measures!$K$2:$M$122,2,0),$L$2,1,1))),0))),$G$30,0),IF(AND($B$31=1,AQ$2=$C$31,ISNUMBER(MATCH($U7,INDIRECT(CONCATENATE(ADDRESS(VLOOKUP($F$31,OD_zone_measures!$K$2:$M$122,2,0),$K$2,1,1,"OD_zone_measures"),":",ADDRESS(VLOOKUP($F$31,OD_zone_measures!$K$2:$M$122,2,0),$L$2,1,1))),0))),$G$31,0),IF(AND($B$32=1,AQ$2=$C$32,ISNUMBER(MATCH($U7,INDIRECT(CONCATENATE(ADDRESS(VLOOKUP($F$32,OD_zone_measures!$K$2:$M$122,2,0),$K$2,1,1,"OD_zone_measures"),":",ADDRESS(VLOOKUP($F$32,OD_zone_measures!$K$2:$M$122,2,0),$L$2,1,1))),0))),$G$32,0),IF(AND($B$33=1,AQ$2=$C$33,ISNUMBER(MATCH($U7,INDIRECT(CONCATENATE(ADDRESS(VLOOKUP($F$33,OD_zone_measures!$K$2:$M$122,2,0),$K$2,1,1,"OD_zone_measures"),":",ADDRESS(VLOOKUP($F$33,OD_zone_measures!$K$2:$M$122,2,0),$L$2,1,1))),0))),$G$33,0)) -> 1 | AR7: =1+MIN(IF(AND($B$19=1,AR$2=$C$19,ISNUMBER(MATCH($U7,INDIRECT(CONCATENATE(ADDRESS(VLOOKUP($F$19,OD_zone_measures!$K$2:$M$122,2,0),$K$2,1,1,"OD_zone_measures"),":",ADDRESS(VLOOKUP($F$19,OD_zone_measures!$K$2:$M$122,2,0),$L$2,1,1))),0))),$G$19,0),IF(AND($B$20=1,AR$2=$C$20,ISNUMBER(MATCH($U7,INDIRECT(CONCATENATE(ADDRESS(VLOOKUP($F$20,OD_zone_measures!$K$2:$M$122,2,0),$K$2,1,1,"OD_zone_measures"),":",ADDRESS(VLOOKUP($F$20,OD_zone_measures!$K$2:$M$122,2,0),$L$2,1,1))),0))),$G$20,0),IF(AND($B$21=1,AR$2=$C$21,ISNUMBER(MATCH($U7,INDIRECT(CONCATENATE(ADDRESS(VLOOKUP($F$21,OD_zone_measures!$K$2:$M$122,2,0),$K$2,1,1,"OD_zone_measures"),":",ADDRESS(VLOOKUP($F$21,OD_zone_measures!$K$2:$M$122,2,0),$L$2,1,1))),0))),$G$21,0),IF(AND($B$22=1,AR$2=$C$22,ISNUMBER(MATCH($U7,INDIRECT(CONCATENATE(ADDRESS(VLOOKUP($F$22,OD_zone_measures!$K$2:$M$122,2,0),$K$2,1,1,"OD_zone_measures"),":",ADDRESS(VLOOKUP($F$22,OD_zone_measures!$K$2:$M$122,2,0),$L$2,1,1))),0))),$G$22,0),IF(AND($B$23=1,AR$2=$C$23,ISNUMBER(MATCH($U7,INDIRECT(CONCATENATE(ADDRESS(VLOOKUP($F$23,OD_zone_measures!$K$2:$M$122,2,0),$K$2,1,1,"OD_zone_measures"),":",ADDRESS(VLOOKUP($F$23,OD_zone_measures!$K$2:$M$122,2,0),$L$2,1,1))),0))),$G$23,0),IF(AND($B$24=1,AR$2=$C$24,ISNUMBER(MATCH($U7,INDIRECT(CONCATENATE(ADDRESS(VLOOKUP($F$24,OD_zone_measures!$K$2:$M$122,2,0),$K$2,1,1,"OD_zone_measures"),":",ADDRESS(VLOOKUP($F$24,OD_zone_measures!$K$2:$M$122,2,0),$L$2,1,1))),0))),$G$24,0),IF(AND($B$25=1,AR$2=$C$25,ISNUMBER(MATCH($U7,INDIRECT(CONCATENATE(ADDRESS(VLOOKUP($F$25,OD_zone_measures!$K$2:$M$122,2,0),$K$2,1,1,"OD_zone_measures"),":",ADDRESS(VLOOKUP($F$25,OD_zone_measures!$K$2:$M$122,2,0),$L$2,1,1))),0))),$G$25,0),IF(AND($B$26=1,AR$2=$C$26,ISNUMBER(MATCH($U7,INDIRECT(CONCATENATE(ADDRESS(VLOOKUP($F$26,OD_zone_measures!$K$2:$M$122,2,0),$K$2,1,1,"OD_zone_measures"),":",ADDRESS(VLOOKUP($F$26,OD_zone_measures!$K$2:$M$122,2,0),$L$2,1,1))),0))),$G$26,0),IF(AND($B$27=1,AR$2=$C$27,ISNUMBER(MATCH($U7,INDIRECT(CONCATENATE(ADDRESS(VLOOKUP($F$27,OD_zone_measures!$K$2:$M$122,2,0),$K$2,1,1,"OD_zone_measures"),":",ADDRESS(VLOOKUP($F$27,OD_zone_measures!$K$2:$M$122,2,0),$L$2,1,1))),0))),$G$27,0),IF(AND($B$28=1,AR$2=$C$28,ISNUMBER(MATCH($U7,INDIRECT(CONCATENATE(ADDRESS(VLOOKUP($F$28,OD_zone_measures!$K$2:$M$122,2,0),$K$2,1,1,"OD_zone_measures"),":",ADDRESS(VLOOKUP($F$28,OD_zone_measures!$K$2:$M$122,2,0),$L$2,1,1))),0))),$G$28,0),IF(AND($B$29=1,AR$2=$C$29,ISNUMBER(MATCH($U7,INDIRECT(CONCATENATE(ADDRESS(VLOOKUP($F$29,OD_zone_measures!$K$2:$M$122,2,0),$K$2,1,1,"OD_zone_measures"),":",ADDRESS(VLOOKUP($F$29,OD_zone_measures!$K$2:$M$122,2,0),$L$2,1,1))),0))),$G$29,0),IF(AND($B$30=1,AR$2=$C$30,ISNUMBER(MATCH($U7,INDIRECT(CONCATENATE(ADDRESS(VLOOKUP($F$30,OD_zone_measures!$K$2:$M$122,2,0),$K$2,1,1,"OD_zone_measures"),":",ADDRESS(VLOOKUP($F$30,OD_zone_measures!$K$2:$M$122,2,0),$L$2,1,1))),0))),$G$30,0),IF(AND($B$31=1,AR$2=$C$31,ISNUMBER(MATCH($U7,INDIRECT(CONCATENATE(ADDRESS(VLOOKUP($F$31,OD_zone_measures!$K$2:$M$122,2,0),$K$2,1,1,"OD_zone_measures"),":",ADDRESS(VLOOKUP($F$31,OD_zone_measures!$K$2:$M$122,2,0),$L$2,1,1))),0))),$G$31,0),IF(AND($B$32=1,AR$2=$C$32,ISNUMBER(MATCH($U7,INDIRECT(CONCATENATE(ADDRESS(VLOOKUP($F$32,OD_zone_measures!$K$2:$M$122,2,0),$K$2,1,1,"OD_zone_measures"),":",ADDRESS(VLOOKUP($F$32,OD_zone_measures!$K$2:$M$122,2,0),$L$2,1,1))),0))),$G$32,0),IF(AND($B$33=1,AR$2=$C$33,ISNUMBER(MATCH($U7,INDIRECT(CONCATENATE(ADDRESS(VLOOKUP($F$33,OD_zone_measures!$K$2:$M$122,2,0),$K$2,1,1,"OD_zone_measures"),":",ADDRESS(VLOOKUP($F$33,OD_zone_measures!$K$2:$M$122,2,0),$L$2,1,1))),0))),$G$33,0)) -> 1 | AS7: =1+MIN(IF(AND($B$19=1,AS$2=$C$19,ISNUMBER(MATCH($U7,INDIRECT(CONCATENATE(ADDRESS(VLOOKUP($F$19,OD_zone_measures!$K$2:$M$122,2,0),$K$2,1,1,"OD_zone_measures"),":",ADDRESS(VLOOKUP($F$19,OD_zone_measures!$K$2:$M$122,2,0),$L$2,1,1))),0))),$G$19,0),IF(AND($B$20=1,AS$2=$C$20,ISNUMBER(MATCH($U7,INDIRECT(CONCATENATE(ADDRESS(VLOOKUP($F$20,OD_zone_measures!$K$2:$M$122,2,0),$K$2,1,1,"OD_zone_measures"),":",ADDRESS(VLOOKUP($F$20,OD_zone_measures!$K$2:$M$122,2,0),$L$2,1,1))),0))),$G$20,0),IF(AND($B$21=1,AS$2=$C$21,ISNUMBER(MATCH($U7,INDIRECT(CONCATENATE(ADDRESS(VLOOKUP($F$21,OD_zone_measures!$K$2:$M$122,2,0),$K$2,1,1,"OD_zone_measures"),":",ADDRESS(VLOOKUP($F$21,OD_zone_measures!$K$2:$M$122,2,0),$L$2,1,1))),0))),$G$21,0),IF(AND($B$22=1,AS$2=$C$22,ISNUMBER(MATCH($U7,INDIRECT(CONCATENATE(ADDRESS(VLOOKUP($F$22,OD_zone_measures!$K$2:$M$122,2,0),$K$2,1,1,"OD_zone_measures"),":",ADDRESS(VLOOKUP($F$22,OD_zone_measures!$K$2:$M$122,2,0),$L$2,1,1))),0))),$G$22,0),IF(AND($B$23=1,AS$2=$C$23,ISNUMBER(MATCH($U7,INDIRECT(CONCATENATE(ADDRESS(VLOOKUP($F$23,OD_zone_measures!$K$2:$M$122,2,0),$K$2,1,1,"OD_zone_measures"),":",ADDRESS(VLOOKUP($F$23,OD_zone_measures!$K$2:$M$122,2,0),$L$2,1,1))),0))),$G$23,0),IF(AND($B$24=1,AS$2=$C$24,ISNUMBER(MATCH($U7,INDIRECT(CONCATENATE(ADDRESS(VLOOKUP($F$24,OD_zone_measures!$K$2:$M$122,2,0),$K$2,1,1,"OD_zone_measures"),":",ADDRESS(VLOOKUP($F$24,OD_zone_measures!$K$2:$M$122,2,0),$L$2,1,1))),0))),$G$24,0),IF(AND($B$25=1,AS$2=$C$25,ISNUMBER(MATCH($U7,INDIRECT(CONCATENATE(ADDRESS(VLOOKUP($F$25,OD_zone_measures!$K$2:$M$122,2,0),$K$2,1,1,"OD_zone_measures"),":",ADDRESS(VLOOKUP($F$25,OD_zone_measures!$K$2:$M$122,2,0),$L$2,1,1))),0))),$G$25,0),IF(AND($B$26=1,AS$2=$C$26,ISNUMBER(MATCH($U7,INDIRECT(CONCATENATE(ADDRESS(VLOOKUP($F$26,OD_zone_measures!$K$2:$M$122,2,0),$K$2,1,1,"OD_zone_measures"),":",ADDRESS(VLOOKUP($F$26,OD_zone_measures!$K$2:$M$122,2,0),$L$2,1,1))),0))),$G$26,0),IF(AND($B$27=1,AS$2=$C$27,ISNUMBER(MATCH($U7,INDIRECT(CONCATENATE(ADDRESS(VLOOKUP($F$27,OD_zone_measures!$K$2:$M$122,2,0),$K$2,1,1,"OD_zone_measures"),":",ADDRESS(VLOOKUP($F$27,OD_zone_measures!$K$2:$M$122,2,0),$L$2,1,1))),0))),$G$27,0),IF(AND($B$28=1,AS$2=$C$28,ISNUMBER(MATCH($U7,INDIRECT(CONCATENATE(ADDRESS(VLOOKUP($F$28,OD_zone_measures!$K$2:$M$122,2,0),$K$2,1,1,"OD_zone_measures"),":",ADDRESS(VLOOKUP($F$28,OD_zone_measures!$K$2:$M$122,2,0),$L$2,1,1))),0))),$G$28,0),IF(AND($B$29=1,AS$2=$C$29,ISNUMBER(MATCH($U7,INDIRECT(CONCATENATE(ADDRESS(VLOOKUP($F$29,OD_zone_measures!$K$2:$M$122,2,0),$K$2,1,1,"OD_zone_measures"),":",ADDRESS(VLOOKUP($F$29,OD_zone_measures!$K$2:$M$122,2,0),$L$2,1,1))),0))),$G$29,0),IF(AND($B$30=1,AS$2=$C$30,ISNUMBER(MATCH($U7,INDIRECT(CONCATENATE(ADDRESS(VLOOKUP($F$30,OD_zone_measures!$K$2:$M$122,2,0),$K$2,1,1,"OD_zone_measures"),":",ADDRESS(VLOOKUP($F$30,OD_zone_measures!$K$2:$M$122,2,0),$L$2,1,1))),0))),$G$30,0),IF(AND($B$31=1,AS$2=$C$31,ISNUMBER(MATCH($U7,INDIRECT(CONCATENATE(ADDRESS(VLOOKUP($F$31,OD_zone_measures!$K$2:$M$122,2,0),$K$2,1,1,"OD_zone_measures"),":",ADDRESS(VLOOKUP($F$31,OD_zone_measures!$K$2:$M$122,2,0),$L$2,1,1))),0))),$G$31,0),IF(AND($B$32=1,AS$2=$C$32,ISNUMBER(MATCH($U7,INDIRECT(CONCATENATE(ADDRESS(VLOOKUP($F$32,OD_zone_measures!$K$2:$M$122,2,0),$K$2,1,1,"OD_zone_measures"),":",ADDRESS(VLOOKUP($F$32,OD_zone_measures!$K$2:$M$122,2,0),$L$2,1,1))),0))),$G$32,0),IF(AND($B$33=1,AS$2=$C$33,ISNUMBER(MATCH($U7,INDIRECT(CONCATENATE(ADDRESS(VLOOKUP($F$33,OD_zone_measures!$K$2:$M$122,2,0),$K$2,1,1,"OD_zone_measures"),":",ADDRESS(VLOOKUP($F$33,OD_zone_measures!$K$2:$M$122,2,0),$L$2,1,1))),0))),$G$33,0)) -> 1 | AT7: 1 | AU7: =1+MIN(IF(AND($J$19=1,AU$2=$K$19,ISNUMBER(MATCH($U7,INDIRECT(CONCATENATE(ADDRESS(VLOOKUP($N$19,OD_zone_measures!$K$2:$M$122,2,0),$K$2,1,1,"OD_zone_measures"),":",ADDRESS(VLOOKUP($N$19,OD_zone_measures!$K$2:$M$122,2,0),$L$2,1,1))),0))),$O$19,0),IF(AND($J$20=1,AU$2=$K$20,ISNUMBER(MATCH($U7,INDIRECT(CONCATENATE(ADDRESS(VLOOKUP($N$20,OD_zone_measures!$K$2:$M$122,2,0),$K$2,1,1,"OD_zone_measures"),":",ADDRESS(VLOOKUP($N$20,OD_zone_measures!$K$2:$M$122,2,0),$L$2,1,1))),0))),$O$20,0),IF(AND($J$21=1,AU$2=$K$21,ISNUMBER(MATCH($U7,INDIRECT(CONCATENATE(ADDRESS(VLOOKUP($N$21,OD_zone_measures!$K$2:$M$122,2,0),$K$2,1,1,"OD_zone_measures"),":",ADDRESS(VLOOKUP($N$21,OD_zone_measures!$K$2:$M$122,2,0),$L$2,1,1))),0))),$O$21,0),IF(AND($J$22=1,AU$2=$K$22,ISNUMBER(MATCH($U7,INDIRECT(CONCATENATE(ADDRESS(VLOOKUP($N$22,OD_zone_measures!$K$2:$M$122,2,0),$K$2,1,1,"OD_zone_measures"),":",ADDRESS(VLOOKUP($N$22,OD_zone_measures!$K$2:$M$122,2,0),$L$2,1,1))),0))),$O$22,0),IF(AND($J$23=1,AU$2=$K$23,ISNUMBER(MATCH($U7,INDIRECT(CONCATENATE(ADDRESS(VLOOKUP($N$23,OD_zone_measures!$K$2:$M$122,2,0),$K$2,1,1,"OD_zone_measures"),":",ADDRESS(VLOOKUP($N$23,OD_zone_measures!$K$2:$M$122,2,0),$L$2,1,1))),0))),$O$23,0),IF(AND($J$24=1,AU$2=$K$24,ISNUMBER(MATCH($U7,INDIRECT(CONCATENATE(ADDRESS(VLOOKUP($N$24,OD_zone_measures!$K$2:$M$122,2,0),$K$2,1,1,"OD_zone_measures"),":",ADDRESS(VLOOKUP($N$24,OD_zone_measures!$K$2:$M$122,2,0),$L$2,1,1))),0))),$O$24,0),IF(AND($J$25=1,AU$2=$K$25,ISNUMBER(MATCH($U7,INDIRECT(CONCATENATE(ADDRESS(VLOOKUP($N$25,OD_zone_measures!$K$2:$M$122,2,0),$K$2,1,1,"OD_zone_measures"),":",ADDRESS(VLOOKUP($N$25,OD_zone_measures!$K$2:$M$122,2,0),$L$2,1,1))),0))),$O$25,0),IF(AND($J$26=1,AU$2=$K$26,ISNUMBER(MATCH($U7,INDIRECT(CONCATENATE(ADDRESS(VLOOKUP($N$26,OD_zone_measures!$K$2:$M$122,2,0),$K$2,1,1,"OD_zone_measures"),":",ADDRESS(VLOOKUP($N$26,OD_zone_measures!$K$2:$M$122,2,0),$L$2,1,1))),0))),$O$26,0),IF(AND($J$27=1,AU$2=$K$27,ISNUMBER(MATCH($U7,INDIRECT(CONCATENATE(ADDRESS(VLOOKUP($N$27,OD_zone_measures!$K$2:$M$122,2,0),$K$2,1,1,"OD_zone_measures"),":",ADDRESS(VLOOKUP($N$27,OD_zone_measures!$K$2:$M$122,2,0),$L$2,1,1))),0))),$O$27,0),IF(AND($J$28=1,AU$2=$K$28,ISNUMBER(MATCH($U7,INDIRECT(CONCATENATE(ADDRESS(VLOOKUP($N$28,OD_zone_measures!$K$2:$M$122,2,0),$K$2,1,1,"OD_zone_measures"),":",ADDRESS(VLOOKUP($N$28,OD_zone_measures!$K$2:$M$122,2,0),$L$2,1,1))),0))),$O$28,0),IF(AND($J$29=1,AU$2=$K$29,ISNUMBER(MATCH($U7,INDIRECT(CONCATENATE(ADDRESS(VLOOKUP($N$29,OD_zone_measures!$K$2:$M$122,2,0),$K$2,1,1,"OD_zone_measures"),":",ADDRESS(VLOOKUP($N$29,OD_zone_measures!$K$2:$M$122,2,0),$L$2,1,1))),0))),$O$29,0),IF(AND($J$30=1,AU$2=$K$30,ISNUMBER(MATCH($U7,INDIRECT(CONCATENATE(ADDRESS(VLOOKUP($N$30,OD_zone_measures!$K$2:$M$122,2,0),$K$2,1,1,"OD_zone_measures"),":",ADDRESS(VLOOKUP($N$30,OD_zone_measures!$K$2:$M$122,2,0),$L$2,1,1))),0))),$O$30,0),IF(AND($J$31=1,AU$2=$K$31,ISNUMBER(MATCH($U7,INDIRECT(CONCATENATE(ADDRESS(VLOOKUP($N$31,OD_zone_measures!$K$2:$M$122,2,0),$K$2,1,1,"OD_zone_measures"),":",ADDRESS(VLOOKUP($N$31,OD_zone_measures!$K$2:$M$122,2,0),$L$2,1,1))),0))),$O$31,0),IF(AND($J$32=1,AU$2=$K$32,ISNUMBER(MATCH($U7,INDIRECT(CONCATENATE(ADDRESS(VLOOKUP($N$32,OD_zone_measures!$K$2:$M$122,2,0),$K$2,1,1,"OD_zone_measures"),":",ADDRESS(VLOOKUP($N$32,OD_zone_measures!$K$2:$M$122,2,0),$L$2,1,1))),0))),$O$32,0),IF(AND($J$33=1,AU$2=$K$33,ISNUMBER(MATCH($U7,INDIRECT(CONCATENATE(ADDRESS(VLOOKUP($N$33,OD_zone_measures!$K$2:$M$122,2,0),$K$2,1,1,"OD_zone_measures"),":",ADDRESS(VLOOKUP($N$33,OD_zone_measures!$K$2:$M$122,2,0),$L$2,1,1))),0))),$O$33,0)) -> 1 | AV7: =1+MIN(IF(AND($J$19=1,AV$2=$K$19,ISNUMBER(MATCH($U7,INDIRECT(CONCATENATE(ADDRESS(VLOOKUP($N$19,OD_zone_measures!$K$2:$M$122,2,0),$K$2,1,1,"OD_zone_measures"),":",ADDRESS(VLOOKUP($N$19,OD_zone_measures!$K$2:$M$122,2,0),$L$2,1,1))),0))),$O$19,0),IF(AND($J$20=1,AV$2=$K$20,ISNUMBER(MATCH($U7,INDIRECT(CONCATENATE(ADDRESS(VLOOKUP($N$20,OD_zone_measures!$K$2:$M$122,2,0),$K$2,1,1,"OD_zone_measures"),":",ADDRESS(VLOOKUP($N$20,OD_zone_measures!$K$2:$M$122,2,0),$L$2,1,1))),0))),$O$20,0),IF(AND($J$21=1,AV$2=$K$21,ISNUMBER(MATCH($U7,INDIRECT(CONCATENATE(ADDRESS(VLOOKUP($N$21,OD_zone_measures!$K$2:$M$122,2,0),$K$2,1,1,"OD_zone_measures"),":",ADDRESS(VLOOKUP($N$21,OD_zone_measures!$K$2:$M$122,2,0),$L$2,1,1))),0))),$O$21,0),IF(AND($J$22=1,AV$2=$K$22,ISNUMBER(MATCH($U7,INDIRECT(CONCATENATE(ADDRESS(VLOOKUP($N$22,OD_zone_measures!$K$2:$M$122,2,0),$K$2,1,1,"OD_zone_measures"),":",ADDRESS(VLOOKUP($N$22,OD_zone_measures!$K$2:$M$122,2,0),$L$2,1,1))),0))),$O$22,0),IF(AND($J$23=1,AV$2=$K$23,ISNUMBER(MATCH($U7,INDIRECT(CONCATENATE(ADDRESS(VLOOKUP($N$23,OD_zone_measures!$K$2:$M$122,2,0),$K$2,1,1,"OD_zone_measures"),":",ADDRESS(VLOOKUP($N$23,OD_zone_measures!$K$2:$M$122,2,0),$L$2,1,1))),0))),$O$23,0),IF(AND($J$24=1,AV$2=$K$24,ISNUMBER(MATCH($U7,INDIRECT(CONCATENATE(ADDRESS(VLOOKUP($N$24,OD_zone_measures!$K$2:$M$122,2,0),$K$2,1,1,"OD_zone_measures"),":",ADDRESS(VLOOKUP($N$24,OD_zone_measures!$K$2:$M$122,2,0),$L$2,1,1))),0))),$O$24,0),IF(AND($J$25=1,AV$2=$K$25,ISNUMBER(MATCH($U7,INDIRECT(CONCATENATE(ADDRESS(VLOOKUP($N$25,OD_zone_measures!$K$2:$M$122,2,0),$K$2,1,1,"OD_zone_measures"),":",ADDRESS(VLOOKUP($N$25,OD_zone_measures!$K$2:$M$122,2,0),$L$2,1,1))),0))),$O$25,0),IF(AND($J$26=1,AV$2=$K$26,ISNUMBER(MATCH($U7,INDIRECT(CONCATENATE(ADDRESS(VLOOKUP($N$26,OD_zone_measures!$K$2:$M$122,2,0),$K$2,1,1,"OD_zone_measures"),":",ADDRESS(VLOOKUP($N$26,OD_zone_measures!$K$2:$M$122,2,0),$L$2,1,1))),0))),$O$26,0),IF(AND($J$27=1,AV$2=$K$27,ISNUMBER(MATCH($U7,INDIRECT(CONCATENATE(ADDRESS(VLOOKUP($N$27,OD_zone_measures!$K$2:$M$122,2,0),$K$2,1,1,"OD_zone_measures"),":",ADDRESS(VLOOKUP($N$27,OD_zone_measures!$K$2:$M$122,2,0),$L$2,1,1))),0))),$O$27,0),IF(AND($J$28=1,AV$2=$K$28,ISNUMBER(MATCH($U7,INDIRECT(CONCATENATE(ADDRESS(VLOOKUP($N$28,OD_zone_measures!$K$2:$M$122,2,0),$K$2,1,1,"OD_zone_measures"),":",ADDRESS(VLOOKUP($N$28,OD_zone_measures!$K$2:$M$122,2,0),$L$2,1,1))),0))),$O$28,0),IF(AND($J$29=1,AV$2=$K$29,ISNUMBER(MATCH($U7,INDIRECT(CONCATENATE(ADDRESS(VLOOKUP($N$29,OD_zone_measures!$K$2:$M$122,2,0),$K$2,1,1,"OD_zone_measures"),":",ADDRESS(VLOOKUP($N$29,OD_zone_measures!$K$2:$M$122,2,0),$L$2,1,1))),0))),$O$29,0),IF(AND($J$30=1,AV$2=$K$30,ISNUMBER(MATCH($U7,INDIRECT(CONCATENATE(ADDRESS(VLOOKUP($N$30,OD_zone_measures!$K$2:$M$122,2,0),$K$2,1,1,"OD_zone_measures"),":",ADDRESS(VLOOKUP($N$30,OD_zone_measures!$K$2:$M$122,2,0),$L$2,1,1))),0))),$O$30,0),IF(AND($J$31=1,AV$2=$K$31,ISNUMBER(MATCH($U7,INDIRECT(CONCATENATE(ADDRESS(VLOOKUP($N$31,OD_zone_measures!$K$2:$M$122,2,0),$K$2,1,1,"OD_zone_measures"),":",ADDRESS(VLOOKUP($N$31,OD_zone_measures!$K$2:$M$122,2,0),$L$2,1,1))),0))),$O$31,0),IF(AND($J$32=1,AV$2=$K$32,ISNUMBER(MATCH($U7,INDIRECT(CONCATENATE(ADDRESS(VLOOKUP($N$32,OD_zone_measures!$K$2:$M$122,2,0),$K$2,1,1,"OD_zone_measures"),":",ADDRESS(VLOOKUP($N$32,OD_zone_measures!$K$2:$M$122,2,0),$L$2,1,1))),0))),$O$32,0),IF(AND($J$33=1,AV$2=$K$33,ISNUMBER(MATCH($U7,INDIRECT(CONCATENATE(ADDRESS(VLOOKUP($N$33,OD_zone_measures!$K$2:$M$122,2,0),$K$2,1,1,"OD_zone_measures"),":",ADDRESS(VLOOKUP($N$33,OD_zone_measures!$K$2:$M$122,2,0),$L$2,1,1))),0))),$O$33,0)) -> 1 | AW7: =1+MIN(IF(AND($J$19=1,AW$2=$K$19,ISNUMBER(MATCH($U7,INDIRECT(CONCATENATE(ADDRESS(VLOOKUP($N$19,OD_zone_measures!$K$2:$M$122,2,0),$K$2,1,1,"OD_zone_measures"),":",ADDRESS(VLOOKUP($N$19,OD_zone_measures!$K$2:$M$122,2,0),$L$2,1,1))),0))),$O$19,0),IF(AND($J$20=1,AW$2=$K$20,ISNUMBER(MATCH($U7,INDIRECT(CONCATENATE(ADDRESS(VLOOKUP($N$20,OD_zone_measures!$K$2:$M$122,2,0),$K$2,1,1,"OD_zone_measures"),":",ADDRESS(VLOOKUP($N$20,OD_zone_measures!$K$2:$M$122,2,0),$L$2,1,1))),0))),$O$20,0),IF(AND($J$21=1,AW$2=$K$21,ISNUMBER(MATCH($U7,INDIRECT(CONCATENATE(ADDRESS(VLOOKUP($N$21,OD_zone_measures!$K$2:$M$122,2,0),$K$2,1,1,"OD_zone_measures"),":",ADDRESS(VLOOKUP($N$21,OD_zone_measures!$K$2:$M$122,2,0),$L$2,1,1))),0))),$O$21,0),IF(AND($J$22=1,AW$2=$K$22,ISNUMBER(MATCH($U7,INDIRECT(CONCATENATE(ADDRESS(VLOOKUP($N$22,OD_zone_measures!$K$2:$M$122,2,0),$K$2,1,1,"OD_zone_measures"),":",ADDRESS(VLOOKUP($N$22,OD_zone_measures!$K$2:$M$122,2,0),$L$2,1,1))),0))),$O$22,0),IF(AND($J$23=1,AW$2=$K$23,ISNUMBER(MATCH($U7,INDIRECT(CONCATENATE(ADDRESS(VLOOKUP($N$23,OD_zone_measures!$K$2:$M$122,2,0),$K$2,1,1,"OD_zone_measures"),":",ADDRESS(VLOOKUP($N$23,OD_zone_measures!$K$2:$M$122,2,0),$L$2,1,1))),0))),$O$23,0),IF(AND($J$24=1,AW$2=$K$24,ISNUMBER(MATCH($U7,INDIRECT(CONCATENATE(ADDRESS(VLOOKUP($N$24,OD_zone_measures!$K$2:$M$122,2,0),$K$2,1,1,"OD_zone_measures"),":",ADDRESS(VLOOKUP($N$24,OD_zone_measures!$K$2:$M$122,2,0),$L$2,1,1))),0))),$O$24,0),IF(AND($J$25=1,AW$2=$K$25,ISNUMBER(MATCH($U7,INDIRECT(CONCATENATE(ADDRESS(VLOOKUP($N$25,OD_zone_measures!$K$2:$M$122,2,0),$K$2,1,1,"OD_zone_measures"),":",ADDRESS(VLOOKUP($N$25,OD_zone_measures!$K$2:$M$122,2,0),$L$2,1,1))),0))),$O$25,0),IF(AND($J$26=1,AW$2=$K$26,ISNUMBER(MATCH($U7,INDIRECT(CONCATENATE(ADDRESS(VLOOKUP($N$26,OD_zone_measures!$K$2:$M$122,2,0),$K$2,1,1,"OD_zone_measures"),":",ADDRESS(VLOOKUP($N$26,OD_zone_measures!$K$2:$M$122,2,0),$L$2,1,1))),0))),$O$26,0),IF(AND($J$27=1,AW$2=$K$27,ISNUMBER(MATCH($U7,INDIRECT(CONCATENATE(ADDRESS(VLOOKUP($N$27,OD_zone_measures!$K$2:$M$122,2,0),$K$2,1,1,"OD_zone_measures"),":",ADDRESS(VLOOKUP($N$27,OD_zone_measures!$K$2:$M$122,2,0),$L$2,1,1))),0))),$O$27,0),IF(AND($J$28=1,AW$2=$K$28,ISNUMBER(MATCH($U7,INDIRECT(CONCATENATE(ADDRESS(VLOOKUP($N$28,OD_zone_measures!$K$2:$M$122,2,0),$K$2,1,1,"OD_zone_measures"),":",ADDRESS(VLOOKUP($N$28,OD_zone_measures!$K$2:$M$122,2,0),$L$2,1,1))),0))),$O$28,0),IF(AND($J$29=1,AW$2=$K$29,ISNUMBER(MATCH($U7,INDIRECT(CONCATENATE(ADDRESS(VLOOKUP($N$29,OD_zone_measures!$K$2:$M$122,2,0),$K$2,1,1,"OD_zone_measures"),":",ADDRESS(VLOOKUP($N$29,OD_zone_measures!$K$2:$M$122,2,0),$L$2,1,1))),0))),$O$29,0),IF(AND($J$30=1,AW$2=$K$30,ISNUMBER(MATCH($U7,INDIRECT(CONCATENATE(ADDRESS(VLOOKUP($N$30,OD_zone_measures!$K$2:$M$122,2,0),$K$2,1,1,"OD_zone_measures"),":",ADDRESS(VLOOKUP($N$30,OD_zone_measures!$K$2:$M$122,2,0),$L$2,1,1))),0))),$O$30,0),IF(AND($J$31=1,AW$2=$K$31,ISNUMBER(MATCH($U7,INDIRECT(CONCATENATE(ADDRESS(VLOOKUP($N$31,OD_zone_measures!$K$2:$M$122,2,0),$K$2,1,1,"OD_zone_measures"),":",ADDRESS(VLOOKUP($N$31,OD_zone_measures!$K$2:$M$122,2,0),$L$2,1,1))),0))),$O$31,0),IF(AND($J$32=1,AW$2=$K$32,ISNUMBER(MATCH($U7,INDIRECT(CONCATENATE(ADDRESS(VLOOKUP($N$32,OD_zone_measures!$K$2:$M$122,2,0),$K$2,1,1,"OD_zone_measures"),":",ADDRESS(VLOOKUP($N$32,OD_zone_measures!$K$2:$M$122,2,0),$L$2,1,1))),0))),$O$32,0),IF(AND($J$33=1,AW$2=$K$33,ISNUMBER(MATCH($U7,INDIRECT(CONCATENATE(ADDRESS(VLOOKUP($N$33,OD_zone_measures!$K$2:$M$122,2,0),$K$2,1,1,"OD_zone_measures"),":",ADDRESS(VLOOKUP($N$33,OD_zone_measures!$K$2:$M$122,2,0),$L$2,1,1))),0))),$O$33,0)) -> 1 | AX7: =1+MIN(IF(AND($J$19=1,AX$2=$K$19,ISNUMBER(MATCH($U7,INDIRECT(CONCATENATE(ADDRESS(VLOOKUP($N$19,OD_zone_measures!$K$2:$M$122,2,0),$K$2,1,1,"OD_zone_measures"),":",ADDRESS(VLOOKUP($N$19,OD_zone_measures!$K$2:$M$122,2,0),$L$2,1,1))),0))),$O$19,0),IF(AND($J$20=1,AX$2=$K$20,ISNUMBER(MATCH($U7,INDIRECT(CONCATENATE(ADDRESS(VLOOKUP($N$20,OD_zone_measures!$K$2:$M$122,2,0),$K$2,1,1,"OD_zone_measures"),":",ADDRESS(VLOOKUP($N$20,OD_zone_measures!$K$2:$M$122,2,0),$L$2,1,1))),0))),$O$20,0),IF(AND($J$21=1,AX$2=$K$21,ISNUMBER(MATCH($U7,INDIRECT(CONCATENATE(ADDRESS(VLOOKUP($N$21,OD_zone_measures!$K$2:$M$122,2,0),$K$2,1,1,"OD_zone_measures"),":",ADDRESS(VLOOKUP($N$21,OD_zone_measures!$K$2:$M$122,2,0),$L$2,1,1))),0))),$O$21,0),IF(AND($J$22=1,AX$2=$K$22,ISNUMBER(MATCH($U7,INDIRECT(CONCATENATE(ADDRESS(VLOOKUP($N$22,OD_zone_measures!$K$2:$M$122,2,0),$K$2,1,1,"OD_zone_measures"),":",ADDRESS(VLOOKUP($N$22,OD_zone_measures!$K$2:$M$122,2,0),$L$2,1,1))),0))),$O$22,0),IF(AND($J$23=1,AX$2=$K$23,ISNUMBER(MATCH($U7,INDIRECT(CONCATENATE(ADDRESS(VLOOKUP($N$23,OD_zone_measures!$K$2:$M$122,2,0),$K$2,1,1,"OD_zone_measures"),":",ADDRESS(VLOOKUP($N$23,OD_zone_measures!$K$2:$M$122,2,0),$L$2,1,1))),0))),$O$23,0),IF(AND($J$24=1,AX$2=$K$24,ISNUMBER(MATCH($U7,INDIRECT(CONCATENATE(ADDRESS(VLOOKUP($N$24,OD_zone_measures!$K$2:$M$122,2,0),$K$2,1,1,"OD_zone_measures"),":",ADDRESS(VLOOKUP($N$24,OD_zone_measures!$K$2:$M$122,2,0),$L$2,1,1))),0))),$O$24,0),IF(AND($J$25=1,AX$2=$K$25,ISNUMBER(MATCH($U7,INDIRECT(CONCATENATE(ADDRESS(VLOOKUP($N$25,OD_zone_measures!$K$2:$M$122,2,0),$K$2,1,1,"OD_zone_measures"),":",ADDRESS(VLOOKUP($N$25,OD_zone_measures!$K$2:$M$122,2,0),$L$2,1,1))),0))),$O$25,0),IF(AND($J$26=1,AX$2=$K$26,ISNUMBER(MATCH($U7,INDIRECT(CONCATENATE(ADDRESS(VLOOKUP($N$26,OD_zone_measures!$K$2:$M$122,2,0),$K$2,1,1,"OD_zone_measures"),":",ADDRESS(VLOOKUP($N$26,OD_zone_measures!$K$2:$M$122,2,0),$L$2,1,1))),0))),$O$26,0),IF(AND($J$27=1,AX$2=$K$27,ISNUMBER(MATCH($U7,INDIRECT(CONCATENATE(ADDRESS(VLOOKUP($N$27,OD_zone_measures!$K$2:$M$122,2,0),$K$2,1,1,"OD_zone_measures"),":",ADDRESS(VLOOKUP($N$27,OD_zone_measures!$K$2:$M$122,2,0),$L$2,1,1))),0))),$O$27,0),IF(AND($J$28=1,AX$2=$K$28,ISNUMBER(MATCH($U7,INDIRECT(CONCATENATE(ADDRESS(VLOOKUP($N$28,OD_zone_measures!$K$2:$M$122,2,0),$K$2,1,1,"OD_zone_measures"),":",ADDRESS(VLOOKUP($N$28,OD_zone_measures!$K$2:$M$122,2,0),$L$2,1,1))),0))),$O$28,0),IF(AND($J$29=1,AX$2=$K$29,ISNUMBER(MATCH($U7,INDIRECT(CONCATENATE(ADDRESS(VLOOKUP($N$29,OD_zone_measures!$K$2:$M$122,2,0),$K$2,1,1,"OD_zone_measures"),":",ADDRESS(VLOOKUP($N$29,OD_zone_measures!$K$2:$M$122,2,0),$L$2,1,1))),0))),$O$29,0),IF(AND($J$30=1,AX$2=$K$30,ISNUMBER(MATCH($U7,INDIRECT(CONCATENATE(ADDRESS(VLOOKUP($N$30,OD_zone_measures!$K$2:$M$122,2,0),$K$2,1,1,"OD_zone_measures"),":",ADDRESS(VLOOKUP($N$30,OD_zone_measures!$K$2:$M$122,2,0),$L$2,1,1))),0))),$O$30,0),IF(AND($J$31=1,AX$2=$K$31,ISNUMBER(MATCH($U7,INDIRECT(CONCATENATE(ADDRESS(VLOOKUP($N$31,OD_zone_measures!$K$2:$M$122,2,0),$K$2,1,1,"OD_zone_measures"),":",ADDRESS(VLOOKUP($N$31,OD_zone_measures!$K$2:$M$122,2,0),$L$2,1,1))),0))),$O$31,0),IF(AND($J$32=1,AX$2=$K$32,ISNUMBER(MATCH($U7,INDIRECT(CONCATENATE(ADDRESS(VLOOKUP($N$32,OD_zone_measures!$K$2:$M$122,2,0),$K$2,1,1,"OD_zone_measures"),":",ADDRESS(VLOOKUP($N$32,OD_zone_measures!$K$2:$M$122,2,0),$L$2,1,1))),0))),$O$32,0),IF(AND($J$33=1,AX$2=$K$33,ISNUMBER(MATCH($U7,INDIRECT(CONCATENATE(ADDRESS(VLOOKUP($N$33,OD_zone_measures!$K$2:$M$122,2,0),$K$2,1,1,"OD_zone_measures"),":",ADDRESS(VLOOKUP($N$33,OD_zone_measures!$K$2:$M$122,2,0),$L$2,1,1))),0))),$O$33,0)) -> 1 | AY7: =1+MIN(IF(AND($J$19=1,AY$2=$K$19,ISNUMBER(MATCH($U7,INDIRECT(CONCATENATE(ADDRESS(VLOOKUP($N$19,OD_zone_measures!$K$2:$M$122,2,0),$K$2,1,1,"OD_zone_measures"),":",ADDRESS(VLOOKUP($N$19,OD_zone_measures!$K$2:$M$122,2,0),$L$2,1,1))),0))),$O$19,0),IF(AND($J$20=1,AY$2=$K$20,ISNUMBER(MATCH($U7,INDIRECT(CONCATENATE(ADDRESS(VLOOKUP($N$20,OD_zone_measures!$K$2:$M$122,2,0),$K$2,1,1,"OD_zone_measures"),":",ADDRESS(VLOOKUP($N$20,OD_zone_measures!$K$2:$M$122,2,0),$L$2,1,1))),0))),$O$20,0),IF(AND($J$21=1,AY$2=$K$21,ISNUMBER(MATCH($U7,INDIRECT(CONCATENATE(ADDRESS(VLOOKUP($N$21,OD_zone_measures!$K$2:$M$122,2,0),$K$2,1,1,"OD_zone_measures"),":",ADDRESS(VLOOKUP($N$21,OD_zone_measures!$K$2:$M$122,2,0),$L$2,1,1))),0))),$O$21,0),IF(AND($J$22=1,AY$2=$K$22,ISNUMBER(MATCH($U7,INDIRECT(CONCATENATE(ADDRESS(VLOOKUP($N$22,OD_zone_measures!$K$2:$M$122,2,0),$K$2,1,1,"OD_zone_measures"),":",ADDRESS(VLOOKUP($N$22,OD_zone_measures!$K$2:$M$122,2,0),$L$2,1,1))),0))),$O$22,0),IF(AND($J$23=1,AY$2=$K$23,ISNUMBER(MATCH($U7,INDIRECT(CONCATENATE(ADDRESS(VLOOKUP($N$23,OD_zone_measures!$K$2:$M$122,2,0),$K$2,1,1,"OD_zone_measures"),":",ADDRESS(VLOOKUP($N$23,OD_zone_measures!$K$2:$M$122,2,0),$L$2,1,1))),0))),$O$23,0),IF(AND($J$24=1,AY$2=$K$24,ISNUMBER(MATCH($U7,INDIRECT(CONCATENATE(ADDRESS(VLOOKUP($N$24,OD_zone_measures!$K$2:$M$122,2,0),$K$2,1,1,"OD_zone_measures"),":",ADDRESS(VLOOKUP($N$24,OD_zone_measures!$K$2:$M$122,2,0),$L$2,1,1))),0))),$O$24,0),IF(AND($J$25=1,AY$2=$K$25,ISNUMBER(MATCH($U7,INDIRECT(CONCATENATE(ADDRESS(VLOOKUP($N$25,OD_zone_measures!$K$2:$M$122,2,0),$K$2,1,1,"OD_zone_measures"),":",ADDRESS(VLOOKUP($N$25,OD_zone_measures!$K$2:$M$122,2,0),$L$2,1,1))),0))),$O$25,0),IF(AND($J$26=1,AY$2=$K$26,ISNUMBER(MATCH($U7,INDIRECT(CONCATENATE(ADDRESS(VLOOKUP($N$26,OD_zone_measures!$K$2:$M$122,2,0),$K$2,1,1,"OD_zone_measures"),":",ADDRESS(VLOOKUP($N$26,OD_zone_measures!$K$2:$M$122,2,0),$L$2,1,1))),0))),$O$26,0),IF(AND($J$27=1,AY$2=$K$27,ISNUMBER(MATCH($U7,INDIRECT(CONCATENATE(ADDRESS(VLOOKUP($N$27,OD_zone_measures!$K$2:$M$122,2,0),$K$2,1,1,"OD_zone_measures"),":",ADDRESS(VLOOKUP($N$27,OD_zone_measures!$K$2:$M$122,2,0),$L$2,1,1))),0))),$O$27,0),IF(AND($J$28=1,AY$2=$K$28,ISNUMBER(MATCH($U7,INDIRECT(CONCATENATE(ADDRESS(VLOOKUP($N$28,OD_zone_measures!$K$2:$M$122,2,0),$K$2,1,1,"OD_zone_measures"),":",ADDRESS(VLOOKUP($N$28,OD_zone_measures!$K$2:$M$122,2,0),$L$2,1,1))),0))),$O$28,0),IF(AND($J$29=1,AY$2=$K$29,ISNUMBER(MATCH($U7,INDIRECT(CONCATENATE(ADDRESS(VLOOKUP($N$29,OD_zone_measures!$K$2:$M$122,2,0),$K$2,1,1,"OD_zone_measures"),":",ADDRESS(VLOOKUP($N$29,OD_zone_measures!$K$2:$M$122,2,0),$L$2,1,1))),0))),$O$29,0),IF(AND($J$30=1,AY$2=$K$30,ISNUMBER(MATCH($U7,INDIRECT(CONCATENATE(ADDRESS(VLOOKUP($N$30,OD_zone_measures!$K$2:$M$122,2,0),$K$2,1,1,"OD_zone_measures"),":",ADDRESS(VLOOKUP($N$30,OD_zone_measures!$K$2:$M$122,2,0),$L$2,1,1))),0))),$O$30,0),IF(AND($J$31=1,AY$2=$K$31,ISNUMBER(MATCH($U7,INDIRECT(CONCATENATE(ADDRESS(VLOOKUP($N$31,OD_zone_measures!$K$2:$M$122,2,0),$K$2,1,1,"OD_zone_measures"),":",ADDRESS(VLOOKUP($N$31,OD_zone_measures!$K$2:$M$122,2,0),$L$2,1,1))),0))),$O$31,0),IF(AND($J$32=1,AY$2=$K$32,ISNUMBER(MATCH($U7,INDIRECT(CONCATENATE(ADDRESS(VLOOKUP($N$32,OD_zone_measures!$K$2:$M$122,2,0),$K$2,1,1,"OD_zone_measures"),":",ADDRESS(VLOOKUP($N$32,OD_zone_measures!$K$2:$M$122,2,0),$L$2,1,1))),0))),$O$32,0),IF(AND($J$33=1,AY$2=$K$33,ISNUMBER(MATCH($U7,INDIRECT(CONCATENATE(ADDRESS(VLOOKUP($N$33,OD_zone_measures!$K$2:$M$122,2,0),$K$2,1,1,"OD_zone_measures"),":",ADDRESS(VLOOKUP($N$33,OD_zone_measures!$K$2:$M$122,2,0),$L$2,1,1))),0))),$O$33,0)) -> 1 | AZ7: =1+MIN(IF(AND($J$19=1,AZ$2=$K$19,ISNUMBER(MATCH($U7,INDIRECT(CONCATENATE(ADDRESS(VLOOKUP($N$19,OD_zone_measures!$K$2:$M$122,2,0),$K$2,1,1,"OD_zone_measures"),":",ADDRESS(VLOOKUP($N$19,OD_zone_measures!$K$2:$M$122,2,0),$L$2,1,1))),0))),$O$19,0),IF(AND($J$20=1,AZ$2=$K$20,ISNUMBER(MATCH($U7,INDIRECT(CONCATENATE(ADDRESS(VLOOKUP($N$20,OD_zone_measures!$K$2:$M$122,2,0),$K$2,1,1,"OD_zone_measures"),":",ADDRESS(VLOOKUP($N$20,OD_zone_measures!$K$2:$M$122,2,0),$L$2,1,1))),0))),$O$20,0),IF(AND($J$21=1,AZ$2=$K$21,ISNUMBER(MATCH($U7,INDIRECT(CONCATENATE(ADDRESS(VLOOKUP($N$21,OD_zone_measures!$K$2:$M$122,2,0),$K$2,1,1,"OD_zone_measures"),":",ADDRESS(VLOOKUP($N$21,OD_zone_measures!$K$2:$M$122,2,0),$L$2,1,1))),0))),$O$21,0),IF(AND($J$22=1,AZ$2=$K$22,ISNUMBER(MATCH($U7,INDIRECT(CONCATENATE(ADDRESS(VLOOKUP($N$22,OD_zone_measures!$K$2:$M$122,2,0),$K$2,1,1,"OD_zone_measures"),":",ADDRESS(VLOOKUP($N$22,OD_zone_measures!$K$2:$M$122,2,0),$L$2,1,1))),0))),$O$22,0),IF(AND($J$23=1,AZ$2=$K$23,ISNUMBER(MATCH($U7,INDIRECT(CONCATENATE(ADDRESS(VLOOKUP($N$23,OD_zone_measures!$K$2:$M$122,2,0),$K$2,1,1,"OD_zone_measures"),":",ADDRESS(VLOOKUP($N$23,OD_zone_measures!$K$2:$M$122,2,0),$L$2,1,1))),0))),$O$23,0),IF(AND($J$24=1,AZ$2=$K$24,ISNUMBER(MATCH($U7,INDIRECT(CONCATENATE(ADDRESS(VLOOKUP($N$24,OD_zone_measures!$K$2:$M$122,2,0),$K$2,1,1,"OD_zone_measures"),":",ADDRESS(VLOOKUP($N$24,OD_zone_measures!$K$2:$M$122,2,0),$L$2,1,1))),0))),$O$24,0),IF(AND($J$25=1,AZ$2=$K$25,ISNUMBER(MATCH($U7,INDIRECT(CONCATENATE(ADDRESS(VLOOKUP($N$25,OD_zone_measures!$K$2:$M$122,2,0),$K$2,1,1,"OD_zone_measures"),":",ADDRESS(VLOOKUP($N$25,OD_zone_measures!$K$2:$M$122,2,0),$L$2,1,1))),0))),$O$25,0),IF(AND($J$26=1,AZ$2=$K$26,ISNUMBER(MATCH($U7,INDIRECT(CONCATENATE(ADDRESS(VLOOKUP($N$26,OD_zone_measures!$K$2:$M$122,2,0),$K$2,1,1,"OD_zone_measures"),":",ADDRESS(VLOOKUP($N$26,OD_zone_measures!$K$2:$M$122,2,0),$L$2,1,1))),0))),$O$26,0),IF(AND($J$27=1,AZ$2=$K$27,ISNUMBER(MATCH($U7,INDIRECT(CONCATENATE(ADDRESS(VLOOKUP($N$27,OD_zone_measures!$K$2:$M$122,2,0),$K$2,1,1,"OD_zone_measures"),":",ADDRESS(VLOOKUP($N$27,OD_zone_measures!$K$2:$M$122,2,0),$L$2,1,1))),0))),$O$27,0),IF(AND($J$28=1,AZ$2=$K$28,ISNUMBER(MATCH($U7,INDIRECT(CONCATENATE(ADDRESS(VLOOKUP($N$28,OD_zone_measures!$K$2:$M$122,2,0),$K$2,1,1,"OD_zone_measures"),":",ADDRESS(VLOOKUP($N$28,OD_zone_measures!$K$2:$M$122,2,0),$L$2,1,1))),0))),$O$28,0),IF(AND($J$29=1,AZ$2=$K$29,ISNUMBER(MATCH($U7,INDIRECT(CONCATENATE(ADDRESS(VLOOKUP($N$29,OD_zone_measures!$K$2:$M$122,2,0),$K$2,1,1,"OD_zone_measures"),":",ADDRESS(VLOOKUP($N$29,OD_zone_measures!$K$2:$M$122,2,0),$L$2,1,1))),0))),$O$29,0),IF(AND($J$30=1,AZ$2=$K$30,ISNUMBER(MATCH($U7,INDIRECT(CONCATENATE(ADDRESS(VLOOKUP($N$30,OD_zone_measures!$K$2:$M$122,2,0),$K$2,1,1,"OD_zone_measures"),":",ADDRESS(VLOOKUP($N$30,OD_zone_measures!$K$2:$M$122,2,0),$L$2,1,1))),0))),$O$30,0),IF(AND($J$31=1,AZ$2=$K$31,ISNUMBER(MATCH($U7,INDIRECT(CONCATENATE(ADDRESS(VLOOKUP($N$31,OD_zone_measures!$K$2:$M$122,2,0),$K$2,1,1,"OD_zone_measures"),":",ADDRESS(VLOOKUP($N$31,OD_zone_measures!$K$2:$M$122,2,0),$L$2,1,1))),0))),$O$31,0),IF(AND($J$32=1,AZ$2=$K$32,ISNUMBER(MATCH($U7,INDIRECT(CONCATENATE(ADDRESS(VLOOKUP($N$32,OD_zone_measures!$K$2:$M$122,2,0),$K$2,1,1,"OD_zone_measures"),":",ADDRESS(VLOOKUP($N$32,OD_zone_measures!$K$2:$M$122,2,0),$L$2,1,1))),0))),$O$32,0),IF(AND($J$33=1,AZ$2=$K$33,ISNUMBER(MATCH($U7,INDIRECT(CONCATENATE(ADDRESS(VLOOKUP($N$33,OD_zone_measures!$K$2:$M$122,2,0),$K$2,1,1,"OD_zone_measures"),":",ADDRESS(VLOOKUP($N$33,OD_zone_measures!$K$2:$M$122,2,0),$L$2,1,1))),0))),$O$33,0)) -> 1 | BA7: =1+MIN(IF(AND($J$19=1,BA$2=$K$19,ISNUMBER(MATCH($U7,INDIRECT(CONCATENATE(ADDRESS(VLOOKUP($N$19,OD_zone_measures!$K$2:$M$122,2,0),$K$2,1,1,"OD_zone_measures"),":",ADDRESS(VLOOKUP($N$19,OD_zone_measures!$K$2:$M$122,2,0),$L$2,1,1))),0))),$O$19,0),IF(AND($J$20=1,BA$2=$K$20,ISNUMBER(MATCH($U7,INDIRECT(CONCATENATE(ADDRESS(VLOOKUP($N$20,OD_zone_measures!$K$2:$M$122,2,0),$K$2,1,1,"OD_zone_measures"),":",ADDRESS(VLOOKUP($N$20,OD_zone_measures!$K$2:$M$122,2,0),$L$2,1,1))),0))),$O$20,0),IF(AND($J$21=1,BA$2=$K$21,ISNUMBER(MATCH($U7,INDIRECT(CONCATENATE(ADDRESS(VLOOKUP($N$21,OD_zone_measures!$K$2:$M$122,2,0),$K$2,1,1,"OD_zone_measures"),":",ADDRESS(VLOOKUP($N$21,OD_zone_measures!$K$2:$M$122,2,0),$L$2,1,1))),0))),$O$21,0),IF(AND($J$22=1,BA$2=$K$22,ISNUMBER(MATCH($U7,INDIRECT(CONCATENATE(ADDRESS(VLOOKUP($N$22,OD_zone_measures!$K$2:$M$122,2,0),$K$2,1,1,"OD_zone_measures"),":",ADDRESS(VLOOKUP($N$22,OD_zone_measures!$K$2:$M$122,2,0),$L$2,1,1))),0))),$O$22,0),IF(AND($J$23=1,BA$2=$K$23,ISNUMBER(MATCH($U7,INDIRECT(CONCATENATE(ADDRESS(VLOOKUP($N$23,OD_zone_measures!$K$2:$M$122,2,0),$K$2,1,1,"OD_zone_measures"),":",ADDRESS(VLOOKUP($N$23,OD_zone_measures!$K$2:$M$122,2,0),$L$2,1,1))),0))),$O$23,0),IF(AND($J$24=1,BA$2=$K$24,ISNUMBER(MATCH($U7,INDIRECT(CONCATENATE(ADDRESS(VLOOKUP($N$24,OD_zone_measures!$K$2:$M$122,2,0),$K$2,1,1,"OD_zone_measures"),":",ADDRESS(VLOOKUP($N$24,OD_zone_measures!$K$2:$M$122,2,0),$L$2,1,1))),0))),$O$24,0),IF(AND($J$25=1,BA$2=$K$25,ISNUMBER(MATCH($U7,INDIRECT(CONCATENATE(ADDRESS(VLOOKUP($N$25,OD_zone_measures!$K$2:$M$122,2,0),$K$2,1,1,"OD_zone_measures"),":",ADDRESS(VLOOKUP($N$25,OD_zone_measures!$K$2:$M$122,2,0),$L$2,1,1))),0))),$O$25,0),IF(AND($J$26=1,BA$2=$K$26,ISNUMBER(MATCH($U7,INDIRECT(CONCATENATE(ADDRESS(VLOOKUP($N$26,OD_zone_measures!$K$2:$M$122,2,0),$K$2,1,1,"OD_zone_measures"),":",ADDRESS(VLOOKUP($N$26,OD_zone_measures!$K$2:$M$122,2,0),$L$2,1,1))),0))),$O$26,0),IF(AND($J$27=1,BA$2=$K$27,ISNUMBER(MATCH($U7,INDIRECT(CONCATENATE(ADDRESS(VLOOKUP($N$27,OD_zone_measures!$K$2:$M$122,2,0),$K$2,1,1,"OD_zone_measures"),":",ADDRESS(VLOOKUP($N$27,OD_zone_measures!$K$2:$M$122,2,0),$L$2,1,1))),0))),$O$27,0),IF(AND($J$28=1,BA$2=$K$28,ISNUMBER(MATCH($U7,INDIRECT(CONCATENATE(ADDRESS(VLOOKUP($N$28,OD_zone_measures!$K$2:$M$122,2,0),$K$2,1,1,"OD_zone_measures"),":",ADDRESS(VLOOKUP($N$28,OD_zone_measures!$K$2:$M$122,2,0),$L$2,1,1))),0))),$O$28,0),IF(AND($J$29=1,BA$2=$K$29,ISNUMBER(MATCH($U7,INDIRECT(CONCATENATE(ADDRESS(VLOOKUP($N$29,OD_zone_measures!$K$2:$M$122,2,0),$K$2,1,1,"OD_zone_measures"),":",ADDRESS(VLOOKUP($N$29,OD_zone_measures!$K$2:$M$122,2,0),$L$2,1,1))),0))),$O$29,0),IF(AND($J$30=1,BA$2=$K$30,ISNUMBER(MATCH($U7,INDIRECT(CONCATENATE(ADDRESS(VLOOKUP($N$30,OD_zone_measures!$K$2:$M$122,2,0),$K$2,1,1,"OD_zone_measures"),":",ADDRESS(VLOOKUP($N$30,OD_zone_measures!$K$2:$M$122,2,0),$L$2,1,1))),0))),$O$30,0),IF(AND($J$31=1,BA$2=$K$31,ISNUMBER(MATCH($U7,INDIRECT(CONCATENATE(ADDRESS(VLOOKUP($N$31,OD_zone_measures!$K$2:$M$122,2,0),$K$2,1,1,"OD_zone_measures"),":",ADDRESS(VLOOKUP($N$31,OD_zone_measures!$K$2:$M$122,2,0),$L$2,1,1))),0))),$O$31,0),IF(AND($J$32=1,BA$2=$K$32,ISNUMBER(MATCH($U7,INDIRECT(CONCATENATE(ADDRESS(VLOOKUP($N$32,OD_zone_measures!$K$2:$M$122,2,0),$K$2,1,1,"OD_zone_measures"),":",ADDRESS(VLOOKUP($N$32,OD_zone_measures!$K$2:$M$122,2,0),$L$2,1,1))),0))),$O$32,0),IF(AND($J$33=1,BA$2=$K$33,ISNUMBER(MATCH($U7,INDIRECT(CONCATENATE(ADDRESS(VLOOKUP($N$33,OD_zone_measures!$K$2:$M$122,2,0),$K$2,1,1,"OD_zone_measures"),":",ADDRESS(VLOOKUP($N$33,OD_zone_measures!$K$2:$M$122,2,0),$L$2,1,1))),0))),$O$33,0)) -> 1 | BB7: 0 | BC7: =BB7 -> 0 | BD7: 0 | BE7: 0 | BF7: 0 | BG7: 0 | BH7: 0 | BI7: 0 | BJ7: 0 | BK7: =BJ7 -> 0 | BL7: 0 | BM7: 0 | BN7: 0 | BO7: 0 | BP7: 0 | BQ7: 0
R8: =IF(R7="","",IF((R7+1>$B$3),"",R7+1)) -> 3 | S8: 1 | T8: 3 | U8: 1_3 | V8: 0 | W8: =0+IF(B$100<>0,(B$100)*B$101*zonal_GC!E17,0) -> 0 | X8: =0+IF(C$100<>0,(C$100)*C$101*zonal_GC!F17,0) -> 0 | Y8: =0+IF(D$100<>0,(D$100)*D$101*zonal_GC!G17,0) -> 0 | Z8: =0+IF(E$100<>0,(E$100)*E$101*zonal_GC!H17,0) -> 0 | AA8: =0+IF(F$100<>0,(F$100)*F$101*zonal_GC!I17,0) -> 0 | AB8: =0+IF(G$100<>0,(G$100)*G$101*zonal_GC!J17,0) -> 0 | AC8: =0+IF(H$100<>0,(H$100)*H$101*zonal_GC!K17,0) -> 0 | AD8: 0 | AE8: =0+IF(I$100<>0,(I$100)*I$101*zonal_GC!M17,0) -> 0 | AF8: =0+IF(J$100<>0,(J$100)*J$101*zonal_GC!N17,0) -> 0 | AG8: =0+IF(K$100<>0,(K$100)*K$101*zonal_GC!O17,0) -> 2.846700972 | AH8: =0+IF(L$100<>0,(L$100)*L$101*zonal_GC!P17,0) -> 2.918996746 | AI8: =0+IF(M$100<>0,(M$100)*M$101*zonal_GC!Q17,0) -> 2.902253036 | AJ8: =0+IF(N$100<>0,(N$100)*N$101*zonal_GC!R17,0) -> 4.475721849 | AK8: =0+IF(O$100<>0,(O$100)*O$101*zonal_GC!S17,0) -> 4.312844335 | AL8: 1 | AM8: =1+MIN(IF(AND($B$19=1,AM$2=$C$19,ISNUMBER(MATCH($U8,INDIRECT(CONCATENATE(ADDRESS(VLOOKUP($F$19,OD_zone_measures!$K$2:$M$122,2,0),$K$2,1,1,"OD_zone_measures"),":",ADDRESS(VLOOKUP($F$19,OD_zone_measures!$K$2:$M$122,2,0),$L$2,1,1))),0))),$G$19,0),IF(AND($B$20=1,AM$2=$C$20,ISNUMBER(MATCH($U8,INDIRECT(CONCATENATE(ADDRESS(VLOOKUP($F$20,OD_zone_measures!$K$2:$M$122,2,0),$K$2,1,1,"OD_zone_measures"),":",ADDRESS(VLOOKUP($F$20,OD_zone_measures!$K$2:$M$122,2,0),$L$2,1,1))),0))),$G$20,0),IF(AND($B$21=1,AM$2=$C$21,ISNUMBER(MATCH($U8,INDIRECT(CONCATENATE(ADDRESS(VLOOKUP($F$21,OD_zone_measures!$K$2:$M$122,2,0),$K$2,1,1,"OD_zone_measures"),":",ADDRESS(VLOOKUP($F$21,OD_zone_measures!$K$2:$M$122,2,0),$L$2,1,1))),0))),$G$21,0),IF(AND($B$22=1,AM$2=$C$22,ISNUMBER(MATCH($U8,INDIRECT(CONCATENATE(ADDRESS(VLOOKUP($F$22,OD_zone_measures!$K$2:$M$122,2,0),$K$2,1,1,"OD_zone_measures"),":",ADDRESS(VLOOKUP($F$22,OD_zone_measures!$K$2:$M$122,2,0),$L$2,1,1))),0))),$G$22,0),IF(AND($B$23=1,AM$2=$C$23,ISNUMBER(MATCH($U8,INDIRECT(CONCATENATE(ADDRESS(VLOOKUP($F$23,OD_zone_measures!$K$2:$M$122,2,0),$K$2,1,1,"OD_zone_measures"),":",ADDRESS(VLOOKUP($F$23,OD_zone_measures!$K$2:$M$122,2,0),$L$2,1,1))),0))),$G$23,0),IF(AND($B$24=1,AM$2=$C$24,ISNUMBER(MATCH($U8,INDIRECT(CONCATENATE(ADDRESS(VLOOKUP($F$24,OD_zone_measures!$K$2:$M$122,2,0),$K$2,1,1,"OD_zone_measures"),":",ADDRESS(VLOOKUP($F$24,OD_zone_measures!$K$2:$M$122,2,0),$L$2,1,1))),0))),$G$24,0),IF(AND($B$25=1,AM$2=$C$25,ISNUMBER(MATCH($U8,INDIRECT(CONCATENATE(ADDRESS(VLOOKUP($F$25,OD_zone_measures!$K$2:$M$122,2,0),$K$2,1,1,"OD_zone_measures"),":",ADDRESS(VLOOKUP($F$25,OD_zone_measures!$K$2:$M$122,2,0),$L$2,1,1))),0))),$G$25,0),IF(AND($B$26=1,AM$2=$C$26,ISNUMBER(MATCH($U8,INDIRECT(CONCATENATE(ADDRESS(VLOOKUP($F$26,OD_zone_measures!$K$2:$M$122,2,0),$K$2,1,1,"OD_zone_measures"),":",ADDRESS(VLOOKUP($F$26,OD_zone_measures!$K$2:$M$122,2,0),$L$2,1,1))),0))),$G$26,0),IF(AND($B$27=1,AM$2=$C$27,ISNUMBER(MATCH($U8,INDIRECT(CONCATENATE(ADDRESS(VLOOKUP($F$27,OD_zone_measures!$K$2:$M$122,2,0),$K$2,1,1,"OD_zone_measures"),":",ADDRESS(VLOOKUP($F$27,OD_zone_measures!$K$2:$M$122,2,0),$L$2,1,1))),0))),$G$27,0),IF(AND($B$28=1,AM$2=$C$28,ISNUMBER(MATCH($U8,INDIRECT(CONCATENATE(ADDRESS(VLOOKUP($F$28,OD_zone_measures!$K$2:$M$122,2,0),$K$2,1,1,"OD_zone_measures"),":",ADDRESS(VLOOKUP($F$28,OD_zone_measures!$K$2:$M$122,2,0),$L$2,1,1))),0))),$G$28,0),IF(AND($B$29=1,AM$2=$C$29,ISNUMBER(MATCH($U8,INDIRECT(CONCATENATE(ADDRESS(VLOOKUP($F$29,OD_zone_measures!$K$2:$M$122,2,0),$K$2,1,1,"OD_zone_measures"),":",ADDRESS(VLOOKUP($F$29,OD_zone_measures!$K$2:$M$122,2,0),$L$2,1,1))),0))),$G$29,0),IF(AND($B$30=1,AM$2=$C$30,ISNUMBER(MATCH($U8,INDIRECT(CONCATENATE(ADDRESS(VLOOKUP($F$30,OD_zone_measures!$K$2:$M$122,2,0),$K$2,1,1,"OD_zone_measures"),":",ADDRESS(VLOOKUP($F$30,OD_zone_measures!$K$2:$M$122,2,0),$L$2,1,1))),0))),$G$30,0),IF(AND($B$31=1,AM$2=$C$31,ISNUMBER(MATCH($U8,INDIRECT(CONCATENATE(ADDRESS(VLOOKUP($F$31,OD_zone_measures!$K$2:$M$122,2,0),$K$2,1,1,"OD_zone_measures"),":",ADDRESS(VLOOKUP($F$31,OD_zone_measures!$K$2:$M$122,2,0),$L$2,1,1))),0))),$G$31,0),IF(AND($B$32=1,AM$2=$C$32,ISNUMBER(MATCH($U8,INDIRECT(CONCATENATE(ADDRESS(VLOOKUP($F$32,OD_zone_measures!$K$2:$M$122,2,0),$K$2,1,1,"OD_zone_measures"),":",ADDRESS(VLOOKUP($F$32,OD_zone_measures!$K$2:$M$122,2,0),$L$2,1,1))),0))),$G$32,0),IF(AND($B$33=1,AM$2=$C$33,ISNUMBER(MATCH($U8,INDIRECT(CONCATENATE(ADDRESS(VLOOKUP($F$33,OD_zone_measures!$K$2:$M$122,2,0),$K$2,1,1,"OD_zone_measures"),":",ADDRESS(VLOOKUP($F$33,OD_zone_measures!$K$2:$M$122,2,0),$L$2,1,1))),0))),$G$33,0)) -> 1 | AN8: =1+MIN(IF(AND($B$19=1,AN$2=$C$19,ISNUMBER(MATCH($U8,INDIRECT(CONCATENATE(ADDRESS(VLOOKUP($F$19,OD_zone_measures!$K$2:$M$122,2,0),$K$2,1,1,"OD_zone_measures"),":",ADDRESS(VLOOKUP($F$19,OD_zone_measures!$K$2:$M$122,2,0),$L$2,1,1))),0))),$G$19,0),IF(AND($B$20=1,AN$2=$C$20,ISNUMBER(MATCH($U8,INDIRECT(CONCATENATE(ADDRESS(VLOOKUP($F$20,OD_zone_measures!$K$2:$M$122,2,0),$K$2,1,1,"OD_zone_measures"),":",ADDRESS(VLOOKUP($F$20,OD_zone_measures!$K$2:$M$122,2,0),$L$2,1,1))),0))),$G$20,0),IF(AND($B$21=1,AN$2=$C$21,ISNUMBER(MATCH($U8,INDIRECT(CONCATENATE(ADDRESS(VLOOKUP($F$21,OD_zone_measures!$K$2:$M$122,2,0),$K$2,1,1,"OD_zone_measures"),":",ADDRESS(VLOOKUP($F$21,OD_zone_measures!$K$2:$M$122,2,0),$L$2,1,1))),0))),$G$21,0),IF(AND($B$22=1,AN$2=$C$22,ISNUMBER(MATCH($U8,INDIRECT(CONCATENATE(ADDRESS(VLOOKUP($F$22,OD_zone_measures!$K$2:$M$122,2,0),$K$2,1,1,"OD_zone_measures"),":",ADDRESS(VLOOKUP($F$22,OD_zone_measures!$K$2:$M$122,2,0),$L$2,1,1))),0))),$G$22,0),IF(AND($B$23=1,AN$2=$C$23,ISNUMBER(MATCH($U8,INDIRECT(CONCATENATE(ADDRESS(VLOOKUP($F$23,OD_zone_measures!$K$2:$M$122,2,0),$K$2,1,1,"OD_zone_measures"),":",ADDRESS(VLOOKUP($F$23,OD_zone_measures!$K$2:$M$122,2,0),$L$2,1,1))),0))),$G$23,0),IF(AND($B$24=1,AN$2=$C$24,ISNUMBER(MATCH($U8,INDIRECT(CONCATENATE(ADDRESS(VLOOKUP($F$24,OD_zone_measures!$K$2:$M$122,2,0),$K$2,1,1,"OD_zone_measures"),":",ADDRESS(VLOOKUP($F$24,OD_zone_measures!$K$2:$M$122,2,0),$L$2,1,1))),0))),$G$24,0),IF(AND($B$25=1,AN$2=$C$25,ISNUMBER(MATCH($U8,INDIRECT(CONCATENATE(ADDRESS(VLOOKUP($F$25,OD_zone_measures!$K$2:$M$122,2,0),$K$2,1,1,"OD_zone_measures"),":",ADDRESS(VLOOKUP($F$25,OD_zone_measures!$K$2:$M$122,2,0),$L$2,1,1))),0))),$G$25,0),IF(AND($B$26=1,AN$2=$C$26,ISNUMBER(MATCH($U8,INDIRECT(CONCATENATE(ADDRESS(VLOOKUP($F$26,OD_zone_measures!$K$2:$M$122,2,0),$K$2,1,1,"OD_zone_measures"),":",ADDRESS(VLOOKUP($F$26,OD_zone_measures!$K$2:$M$122,2,0),$L$2,1,1))),0))),$G$26,0),IF(AND($B$27=1,AN$2=$C$27,ISNUMBER(MATCH($U8,INDIRECT(CONCATENATE(ADDRESS(VLOOKUP($F$27,OD_zone_measures!$K$2:$M$122,2,0),$K$2,1,1,"OD_zone_measures"),":",ADDRESS(VLOOKUP($F$27,OD_zone_measures!$K$2:$M$122,2,0),$L$2,1,1))),0))),$G$27,0),IF(AND($B$28=1,AN$2=$C$28,ISNUMBER(MATCH($U8,INDIRECT(CONCATENATE(ADDRESS(VLOOKUP($F$28,OD_zone_measures!$K$2:$M$122,2,0),$K$2,1,1,"OD_zone_measures"),":",ADDRESS(VLOOKUP($F$28,OD_zone_measures!$K$2:$M$122,2,0),$L$2,1,1))),0))),$G$28,0),IF(AND($B$29=1,AN$2=$C$29,ISNUMBER(MATCH($U8,INDIRECT(CONCATENATE(ADDRESS(VLOOKUP($F$29,OD_zone_measures!$K$2:$M$122,2,0),$K$2,1,1,"OD_zone_measures"),":",ADDRESS(VLOOKUP($F$29,OD_zone_measures!$K$2:$M$122,2,0),$L$2,1,1))),0))),$G$29,0),IF(AND($B$30=1,AN$2=$C$30,ISNUMBER(MATCH($U8,INDIRECT(CONCATENATE(ADDRESS(VLOOKUP($F$30,OD_zone_measures!$K$2:$M$122,2,0),$K$2,1,1,"OD_zone_measures"),":",ADDRESS(VLOOKUP($F$30,OD_zone_measures!$K$2:$M$122,2,0),$L$2,1,1))),0))),$G$30,0),IF(AND($B$31=1,AN$2=$C$31,ISNUMBER(MATCH($U8,INDIRECT(CONCATENATE(ADDRESS(VLOOKUP($F$31,OD_zone_measures!$K$2:$M$122,2,0),$K$2,1,1,"OD_zone_measures"),":",ADDRESS(VLOOKUP($F$31,OD_zone_measures!$K$2:$M$122,2,0),$L$2,1,1))),0))),$G$31,0),IF(AND($B$32=1,AN$2=$C$32,ISNUMBER(MATCH($U8,INDIRECT(CONCATENATE(ADDRESS(VLOOKUP($F$32,OD_zone_measures!$K$2:$M$122,2,0),$K$2,1,1,"OD_zone_measures"),":",ADDRESS(VLOOKUP($F$32,OD_zone_measures!$K$2:$M$122,2,0),$L$2,1,1))),0))),$G$32,0),IF(AND($B$33=1,AN$2=$C$33,ISNUMBER(MATCH($U8,INDIRECT(CONCATENATE(ADDRESS(VLOOKUP($F$33,OD_zone_measures!$K$2:$M$122,2,0),$K$2,1,1,"OD_zone_measures"),":",ADDRESS(VLOOKUP($F$33,OD_zone_measures!$K$2:$M$122,2,0),$L$2,1,1))),0))),$G$33,0)) -> 1 | AO8: =1+MIN(IF(AND($B$19=1,AO$2=$C$19,ISNUMBER(MATCH($U8,INDIRECT(CONCATENATE(ADDRESS(VLOOKUP($F$19,OD_zone_measures!$K$2:$M$122,2,0),$K$2,1,1,"OD_zone_measures"),":",ADDRESS(VLOOKUP($F$19,OD_zone_measures!$K$2:$M$122,2,0),$L$2,1,1))),0))),$G$19,0),IF(AND($B$20=1,AO$2=$C$20,ISNUMBER(MATCH($U8,INDIRECT(CONCATENATE(ADDRESS(VLOOKUP($F$20,OD_zone_measures!$K$2:$M$122,2,0),$K$2,1,1,"OD_zone_measures"),":",ADDRESS(VLOOKUP($F$20,OD_zone_measures!$K$2:$M$122,2,0),$L$2,1,1))),0))),$G$20,0),IF(AND($B$21=1,AO$2=$C$21,ISNUMBER(MATCH($U8,INDIRECT(CONCATENATE(ADDRESS(VLOOKUP($F$21,OD_zone_measures!$K$2:$M$122,2,0),$K$2,1,1,"OD_zone_measures"),":",ADDRESS(VLOOKUP($F$21,OD_zone_measures!$K$2:$M$122,2,0),$L$2,1,1))),0))),$G$21,0),IF(AND($B$22=1,AO$2=$C$22,ISNUMBER(MATCH($U8,INDIRECT(CONCATENATE(ADDRESS(VLOOKUP($F$22,OD_zone_measures!$K$2:$M$122,2,0),$K$2,1,1,"OD_zone_measures"),":",ADDRESS(VLOOKUP($F$22,OD_zone_measures!$K$2:$M$122,2,0),$L$2,1,1))),0))),$G$22,0),IF(AND($B$23=1,AO$2=$C$23,ISNUMBER(MATCH($U8,INDIRECT(CONCATENATE(ADDRESS(VLOOKUP($F$23,OD_zone_measures!$K$2:$M$122,2,0),$K$2,1,1,"OD_zone_measures"),":",ADDRESS(VLOOKUP($F$23,OD_zone_measures!$K$2:$M$122,2,0),$L$2,1,1))),0))),$G$23,0),IF(AND($B$24=1,AO$2=$C$24,ISNUMBER(MATCH($U8,INDIRECT(CONCATENATE(ADDRESS(VLOOKUP($F$24,OD_zone_measures!$K$2:$M$122,2,0),$K$2,1,1,"OD_zone_measures"),":",ADDRESS(VLOOKUP($F$24,OD_zone_measures!$K$2:$M$122,2,0),$L$2,1,1))),0))),$G$24,0),IF(AND($B$25=1,AO$2=$C$25,ISNUMBER(MATCH($U8,INDIRECT(CONCATENATE(ADDRESS(VLOOKUP($F$25,OD_zone_measures!$K$2:$M$122,2,0),$K$2,1,1,"OD_zone_measures"),":",ADDRESS(VLOOKUP($F$25,OD_zone_measures!$K$2:$M$122,2,0),$L$2,1,1))),0))),$G$25,0),IF(AND($B$26=1,AO$2=$C$26,ISNUMBER(MATCH($U8,INDIRECT(CONCATENATE(ADDRESS(VLOOKUP($F$26,OD_zone_measures!$K$2:$M$122,2,0),$K$2,1,1,"OD_zone_measures"),":",ADDRESS(VLOOKUP($F$26,OD_zone_measures!$K$2:$M$122,2,0),$L$2,1,1))),0))),$G$26,0),IF(AND($B$27=1,AO$2=$C$27,ISNUMBER(MATCH($U8,INDIRECT(CONCATENATE(ADDRESS(VLOOKUP($F$27,OD_zone_measures!$K$2:$M$122,2,0),$K$2,1,1,"OD_zone_measures"),":",ADDRESS(VLOOKUP($F$27,OD_zone_measures!$K$2:$M$122,2,0),$L$2,1,1))),0))),$G$27,0),IF(AND($B$28=1,AO$2=$C$28,ISNUMBER(MATCH($U8,INDIRECT(CONCATENATE(ADDRESS(VLOOKUP($F$28,OD_zone_measures!$K$2:$M$122,2,0),$K$2,1,1,"OD_zone_measures"),":",ADDRESS(VLOOKUP($F$28,OD_zone_measures!$K$2:$M$122,2,0),$L$2,1,1))),0))),$G$28,0),IF(AND($B$29=1,AO$2=$C$29,ISNUMBER(MATCH($U8,INDIRECT(CONCATENATE(ADDRESS(VLOOKUP($F$29,OD_zone_measures!$K$2:$M$122,2,0),$K$2,1,1,"OD_zone_measures"),":",ADDRESS(VLOOKUP($F$29,OD_zone_measures!$K$2:$M$122,2,0),$L$2,1,1))),0))),$G$29,0),IF(AND($B$30=1,AO$2=$C$30,ISNUMBER(MATCH($U8,INDIRECT(CONCATENATE(ADDRESS(VLOOKUP($F$30,OD_zone_measures!$K$2:$M$122,2,0),$K$2,1,1,"OD_zone_measures"),":",ADDRESS(VLOOKUP($F$30,OD_zone_measures!$K$2:$M$122,2,0),$L$2,1,1))),0))),$G$30,0),IF(AND($B$31=1,AO$2=$C$31,ISNUMBER(MATCH($U8,INDIRECT(CONCATENATE(ADDRESS(VLOOKUP($F$31,OD_zone_measures!$K$2:$M$122,2,0),$K$2,1,1,"OD_zone_measures"),":",ADDRESS(VLOOKUP($F$31,OD_zone_measures!$K$2:$M$122,2,0),$L$2,1,1))),0))),$G$31,0),IF(AND($B$32=1,AO$2=$C$32,ISNUMBER(MATCH($U8,INDIRECT(CONCATENATE(ADDRESS(VLOOKUP($F$32,OD_zone_measures!$K$2:$M$122,2,0),$K$2,1,1,"OD_zone_measures"),":",ADDRESS(VLOOKUP($F$32,OD_zone_measures!$K$2:$M$122,2,0),$L$2,1,1))),0))),$G$32,0),IF(AND($B$33=1,AO$2=$C$33,ISNUMBER(MATCH($U8,INDIRECT(CONCATENATE(ADDRESS(VLOOKUP($F$33,OD_zone_measures!$K$2:$M$122,2,0),$K$2,1,1,"OD_zone_measures"),":",ADDRESS(VLOOKUP($F$33,OD_zone_measures!$K$2:$M$122,2,0),$L$2,1,1))),0))),$G$33,0)) -> 1 | AP8: =1+MIN(IF(AND($B$19=1,AP$2=$C$19,ISNUMBER(MATCH($U8,INDIRECT(CONCATENATE(ADDRESS(VLOOKUP($F$19,OD_zone_measures!$K$2:$M$122,2,0),$K$2,1,1,"OD_zone_measures"),":",ADDRESS(VLOOKUP($F$19,OD_zone_measures!$K$2:$M$122,2,0),$L$2,1,1))),0))),$G$19,0),IF(AND($B$20=1,AP$2=$C$20,ISNUMBER(MATCH($U8,INDIRECT(CONCATENATE(ADDRESS(VLOOKUP($F$20,OD_zone_measures!$K$2:$M$122,2,0),$K$2,1,1,"OD_zone_measures"),":",ADDRESS(VLOOKUP($F$20,OD_zone_measures!$K$2:$M$122,2,0),$L$2,1,1))),0))),$G$20,0),IF(AND($B$21=1,AP$2=$C$21,ISNUMBER(MATCH($U8,INDIRECT(CONCATENATE(ADDRESS(VLOOKUP($F$21,OD_zone_measures!$K$2:$M$122,2,0),$K$2,1,1,"OD_zone_measures"),":",ADDRESS(VLOOKUP($F$21,OD_zone_measures!$K$2:$M$122,2,0),$L$2,1,1))),0))),$G$21,0),IF(AND($B$22=1,AP$2=$C$22,ISNUMBER(MATCH($U8,INDIRECT(CONCATENATE(ADDRESS(VLOOKUP($F$22,OD_zone_measures!$K$2:$M$122,2,0),$K$2,1,1,"OD_zone_measures"),":",ADDRESS(VLOOKUP($F$22,OD_zone_measures!$K$2:$M$122,2,0),$L$2,1,1))),0))),$G$22,0),IF(AND($B$23=1,AP$2=$C$23,ISNUMBER(MATCH($U8,INDIRECT(CONCATENATE(ADDRESS(VLOOKUP($F$23,OD_zone_measures!$K$2:$M$122,2,0),$K$2,1,1,"OD_zone_measures"),":",ADDRESS(VLOOKUP($F$23,OD_zone_measures!$K$2:$M$122,2,0),$L$2,1,1))),0))),$G$23,0),IF(AND($B$24=1,AP$2=$C$24,ISNUMBER(MATCH($U8,INDIRECT(CONCATENATE(ADDRESS(VLOOKUP($F$24,OD_zone_measures!$K$2:$M$122,2,0),$K$2,1,1,"OD_zone_measures"),":",ADDRESS(VLOOKUP($F$24,OD_zone_measures!$K$2:$M$122,2,0),$L$2,1,1))),0))),$G$24,0),IF(AND($B$25=1,AP$2=$C$25,ISNUMBER(MATCH($U8,INDIRECT(CONCATENATE(ADDRESS(VLOOKUP($F$25,OD_zone_measures!$K$2:$M$122,2,0),$K$2,1,1,"OD_zone_measures"),":",ADDRESS(VLOOKUP($F$25,OD_zone_measures!$K$2:$M$122,2,0),$L$2,1,1))),0))),$G$25,0),IF(AND($B$26=1,AP$2=$C$26,ISNUMBER(MATCH($U8,INDIRECT(CONCATENATE(ADDRESS(VLOOKUP($F$26,OD_zone_measures!$K$2:$M$122,2,0),$K$2,1,1,"OD_zone_measures"),":",ADDRESS(VLOOKUP($F$26,OD_zone_measures!$K$2:$M$122,2,0),$L$2,1,1))),0))),$G$26,0),IF(AND($B$27=1,AP$2=$C$27,ISNUMBER(MATCH($U8,INDIRECT(CONCATENATE(ADDRESS(VLOOKUP($F$27,OD_zone_measures!$K$2:$M$122,2,0),$K$2,1,1,"OD_zone_measures"),":",ADDRESS(VLOOKUP($F$27,OD_zone_measures!$K$2:$M$122,2,0),$L$2,1,1))),0))),$G$27,0),IF(AND($B$28=1,AP$2=$C$28,ISNUMBER(MATCH($U8,INDIRECT(CONCATENATE(ADDRESS(VLOOKUP($F$28,OD_zone_measures!$K$2:$M$122,2,0),$K$2,1,1,"OD_zone_measures"),":",ADDRESS(VLOOKUP($F$28,OD_zone_measures!$K$2:$M$122,2,0),$L$2,1,1))),0))),$G$28,0),IF(AND($B$29=1,AP$2=$C$29,ISNUMBER(MATCH($U8,INDIRECT(CONCATENATE(ADDRESS(VLOOKUP($F$29,OD_zone_measures!$K$2:$M$122,2,0),$K$2,1,1,"OD_zone_measures"),":",ADDRESS(VLOOKUP($F$29,OD_zone_measures!$K$2:$M$122,2,0),$L$2,1,1))),0))),$G$29,0),IF(AND($B$30=1,AP$2=$C$30,ISNUMBER(MATCH($U8,INDIRECT(CONCATENATE(ADDRESS(VLOOKUP($F$30,OD_zone_measures!$K$2:$M$122,2,0),$K$2,1,1,"OD_zone_measures"),":",ADDRESS(VLOOKUP($F$30,OD_zone_measures!$K$2:$M$122,2,0),$L$2,1,1))),0))),$G$30,0),IF(AND($B$31=1,AP$2=$C$31,ISNUMBER(MATCH($U8,INDIRECT(CONCATENATE(ADDRESS(VLOOKUP($F$31,OD_zone_measures!$K$2:$M$122,2,0),$K$2,1,1,"OD_zone_measures"),":",ADDRESS(VLOOKUP($F$31,OD_zone_measures!$K$2:$M$122,2,0),$L$2,1,1))),0))),$G$31,0),IF(AND($B$32=1,AP$2=$C$32,ISNUMBER(MATCH($U8,INDIRECT(CONCATENATE(ADDRESS(VLOOKUP($F$32,OD_zone_measures!$K$2:$M$122,2,0),$K$2,1,1,"OD_zone_measures"),":",ADDRESS(VLOOKUP($F$32,OD_zone_measures!$K$2:$M$122,2,0),$L$2,1,1))),0))),$G$32,0),IF(AND($B$33=1,AP$2=$C$33,ISNUMBER(MATCH($U8,INDIRECT(CONCATENATE(ADDRESS(VLOOKUP($F$33,OD_zone_measures!$K$2:$M$122,2,0),$K$2,1,1,"OD_zone_measures"),":",ADDRESS(VLOOKUP($F$33,OD_zone_measures!$K$2:$M$122,2,0),$L$2,1,1))),0))),$G$33,0)) -> 1 | AQ8: =1+MIN(IF(AND($B$19=1,AQ$2=$C$19,ISNUMBER(MATCH($U8,INDIRECT(CONCATENATE(ADDRESS(VLOOKUP($F$19,OD_zone_measures!$K$2:$M$122,2,0),$K$2,1,1,"OD_zone_measures"),":",ADDRESS(VLOOKUP($F$19,OD_zone_measures!$K$2:$M$122,2,0),$L$2,1,1))),0))),$G$19,0),IF(AND($B$20=1,AQ$2=$C$20,ISNUMBER(MATCH($U8,INDIRECT(CONCATENATE(ADDRESS(VLOOKUP($F$20,OD_zone_measures!$K$2:$M$122,2,0),$K$2,1,1,"OD_zone_measures"),":",ADDRESS(VLOOKUP($F$20,OD_zone_measures!$K$2:$M$122,2,0),$L$2,1,1))),0))),$G$20,0),IF(AND($B$21=1,AQ$2=$C$21,ISNUMBER(MATCH($U8,INDIRECT(CONCATENATE(ADDRESS(VLOOKUP($F$21,OD_zone_measures!$K$2:$M$122,2,0),$K$2,1,1,"OD_zone_measures"),":",ADDRESS(VLOOKUP($F$21,OD_zone_measures!$K$2:$M$122,2,0),$L$2,1,1))),0))),$G$21,0),IF(AND($B$22=1,AQ$2=$C$22,ISNUMBER(MATCH($U8,INDIRECT(CONCATENATE(ADDRESS(VLOOKUP($F$22,OD_zone_measures!$K$2:$M$122,2,0),$K$2,1,1,"OD_zone_measures"),":",ADDRESS(VLOOKUP($F$22,OD_zone_measures!$K$2:$M$122,2,0),$L$2,1,1))),0))),$G$22,0),IF(AND($B$23=1,AQ$2=$C$23,ISNUMBER(MATCH($U8,INDIRECT(CONCATENATE(ADDRESS(VLOOKUP($F$23,OD_zone_measures!$K$2:$M$122,2,0),$K$2,1,1,"OD_zone_measures"),":",ADDRESS(VLOOKUP($F$23,OD_zone_measures!$K$2:$M$122,2,0),$L$2,1,1))),0))),$G$23,0),IF(AND($B$24=1,AQ$2=$C$24,ISNUMBER(MATCH($U8,INDIRECT(CONCATENATE(ADDRESS(VLOOKUP($F$24,OD_zone_measures!$K$2:$M$122,2,0),$K$2,1,1,"OD_zone_measures"),":",ADDRESS(VLOOKUP($F$24,OD_zone_measures!$K$2:$M$122,2,0),$L$2,1,1))),0))),$G$24,0),IF(AND($B$25=1,AQ$2=$C$25,ISNUMBER(MATCH($U8,INDIRECT(CONCATENATE(ADDRESS(VLOOKUP($F$25,OD_zone_measures!$K$2:$M$122,2,0),$K$2,1,1,"OD_zone_measures"),":",ADDRESS(VLOOKUP($F$25,OD_zone_measures!$K$2:$M$122,2,0),$L$2,1,1))),0))),$G$25,0),IF(AND($B$26=1,AQ$2=$C$26,ISNUMBER(MATCH($U8,INDIRECT(CONCATENATE(ADDRESS(VLOOKUP($F$26,OD_zone_measures!$K$2:$M$122,2,0),$K$2,1,1,"OD_zone_measures"),":",ADDRESS(VLOOKUP($F$26,OD_zone_measures!$K$2:$M$122,2,0),$L$2,1,1))),0))),$G$26,0),IF(AND($B$27=1,AQ$2=$C$27,ISNUMBER(MATCH($U8,INDIRECT(CONCATENATE(ADDRESS(VLOOKUP($F$27,OD_zone_measures!$K$2:$M$122,2,0),$K$2,1,1,"OD_zone_measures"),":",ADDRESS(VLOOKUP($F$27,OD_zone_measures!$K$2:$M$122,2,0),$L$2,1,1))),0))),$G$27,0),IF(AND($B$28=1,AQ$2=$C$28,ISNUMBER(MATCH($U8,INDIRECT(CONCATENATE(ADDRESS(VLOOKUP($F$28,OD_zone_measures!$K$2:$M$122,2,0),$K$2,1,1,"OD_zone_measures"),":",ADDRESS(VLOOKUP($F$28,OD_zone_measures!$K$2:$M$122,2,0),$L$2,1,1))),0))),$G$28,0),IF(AND($B$29=1,AQ$2=$C$29,ISNUMBER(MATCH($U8,INDIRECT(CONCATENATE(ADDRESS(VLOOKUP($F$29,OD_zone_measures!$K$2:$M$122,2,0),$K$2,1,1,"OD_zone_measures"),":",ADDRESS(VLOOKUP($F$29,OD_zone_measures!$K$2:$M$122,2,0),$L$2,1,1))),0))),$G$29,0),IF(AND($B$30=1,AQ$2=$C$30,ISNUMBER(MATCH($U8,INDIRECT(CONCATENATE(ADDRESS(VLOOKUP($F$30,OD_zone_measures!$K$2:$M$122,2,0),$K$2,1,1,"OD_zone_measures"),":",ADDRESS(VLOOKUP($F$30,OD_zone_measures!$K$2:$M$122,2,0),$L$2,1,1))),0))),$G$30,0),IF(AND($B$31=1,AQ$2=$C$31,ISNUMBER(MATCH($U8,INDIRECT(CONCATENATE(ADDRESS(VLOOKUP($F$31,OD_zone_measures!$K$2:$M$122,2,0),$K$2,1,1,"OD_zone_measures"),":",ADDRESS(VLOOKUP($F$31,OD_zone_measures!$K$2:$M$122,2,0),$L$2,1,1))),0))),$G$31,0),IF(AND($B$32=1,AQ$2=$C$32,ISNUMBER(MATCH($U8,INDIRECT(CONCATENATE(ADDRESS(VLOOKUP($F$32,OD_zone_measures!$K$2:$M$122,2,0),$K$2,1,1,"OD_zone_measures"),":",ADDRESS(VLOOKUP($F$32,OD_zone_measures!$K$2:$M$122,2,0),$L$2,1,1))),0))),$G$32,0),IF(AND($B$33=1,AQ$2=$C$33,ISNUMBER(MATCH($U8,INDIRECT(CONCATENATE(ADDRESS(VLOOKUP($F$33,OD_zone_measures!$K$2:$M$122,2,0),$K$2,1,1,"OD_zone_measures"),":",ADDRESS(VLOOKUP($F$33,OD_zone_measures!$K$2:$M$122,2,0),$L$2,1,1))),0))),$G$33,0)) -> 0.85 | AR8: =1+MIN(IF(AND($B$19=1,AR$2=$C$19,ISNUMBER(MATCH($U8,INDIRECT(CONCATENATE(ADDRESS(VLOOKUP($F$19,OD_zone_measures!$K$2:$M$122,2,0),$K$2,1,1,"OD_zone_measures"),":",ADDRESS(VLOOKUP($F$19,OD_zone_measures!$K$2:$M$122,2,0),$L$2,1,1))),0))),$G$19,0),IF(AND($B$20=1,AR$2=$C$20,ISNUMBER(MATCH($U8,INDIRECT(CONCATENATE(ADDRESS(VLOOKUP($F$20,OD_zone_measures!$K$2:$M$122,2,0),$K$2,1,1,"OD_zone_measures"),":",ADDRESS(VLOOKUP($F$20,OD_zone_measures!$K$2:$M$122,2,0),$L$2,1,1))),0))),$G$20,0),IF(AND($B$21=1,AR$2=$C$21,ISNUMBER(MATCH($U8,INDIRECT(CONCATENATE(ADDRESS(VLOOKUP($F$21,OD_zone_measures!$K$2:$M$122,2,0),$K$2,1,1,"OD_zone_measures"),":",ADDRESS(VLOOKUP($F$21,OD_zone_measures!$K$2:$M$122,2,0),$L$2,1,1))),0))),$G$21,0),IF(AND($B$22=1,AR$2=$C$22,ISNUMBER(MATCH($U8,INDIRECT(CONCATENATE(ADDRESS(VLOOKUP($F$22,OD_zone_measures!$K$2:$M$122,2,0),$K$2,1,1,"OD_zone_measures"),":",ADDRESS(VLOOKUP($F$22,OD_zone_measures!$K$2:$M$122,2,0),$L$2,1,1))),0))),$G$22,0),IF(AND($B$23=1,AR$2=$C$23,ISNUMBER(MATCH($U8,INDIRECT(CONCATENATE(ADDRESS(VLOOKUP($F$23,OD_zone_measures!$K$2:$M$122,2,0),$K$2,1,1,"OD_zone_measures"),":",ADDRESS(VLOOKUP($F$23,OD_zone_measures!$K$2:$M$122,2,0),$L$2,1,1))),0))),$G$23,0),IF(AND($B$24=1,AR$2=$C$24,ISNUMBER(MATCH($U8,INDIRECT(CONCATENATE(ADDRESS(VLOOKUP($F$24,OD_zone_measures!$K$2:$M$122,2,0),$K$2,1,1,"OD_zone_measures"),":",ADDRESS(VLOOKUP($F$24,OD_zone_measures!$K$2:$M$122,2,0),$L$2,1,1))),0))),$G$24,0),IF(AND($B$25=1,AR$2=$C$25,ISNUMBER(MATCH($U8,INDIRECT(CONCATENATE(ADDRESS(VLOOKUP($F$25,OD_zone_measures!$K$2:$M$122,2,0),$K$2,1,1,"OD_zone_measures"),":",ADDRESS(VLOOKUP($F$25,OD_zone_measures!$K$2:$M$122,2,0),$L$2,1,1))),0))),$G$25,0),IF(AND($B$26=1,AR$2=$C$26,ISNUMBER(MATCH($U8,INDIRECT(CONCATENATE(ADDRESS(VLOOKUP($F$26,OD_zone_measures!$K$2:$M$122,2,0),$K$2,1,1,"OD_zone_measures"),":",ADDRESS(VLOOKUP($F$26,OD_zone_measures!$K$2:$M$122,2,0),$L$2,1,1))),0))),$G$26,0),IF(AND($B$27=1,AR$2=$C$27,ISNUMBER(MATCH($U8,INDIRECT(CONCATENATE(ADDRESS(VLOOKUP($F$27,OD_zone_measures!$K$2:$M$122,2,0),$K$2,1,1,"OD_zone_measures"),":",ADDRESS(VLOOKUP($F$27,OD_zone_measures!$K$2:$M$122,2,0),$L$2,1,1))),0))),$G$27,0),IF(AND($B$28=1,AR$2=$C$28,ISNUMBER(MATCH($U8,INDIRECT(CONCATENATE(ADDRESS(VLOOKUP($F$28,OD_zone_measures!$K$2:$M$122,2,0),$K$2,1,1,"OD_zone_measures"),":",ADDRESS(VLOOKUP($F$28,OD_zone_measures!$K$2:$M$122,2,0),$L$2,1,1))),0))),$G$28,0),IF(AND($B$29=1,AR$2=$C$29,ISNUMBER(MATCH($U8,INDIRECT(CONCATENATE(ADDRESS(VLOOKUP($F$29,OD_zone_measures!$K$2:$M$122,2,0),$K$2,1,1,"OD_zone_measures"),":",ADDRESS(VLOOKUP($F$29,OD_zone_measures!$K$2:$M$122,2,0),$L$2,1,1))),0))),$G$29,0),IF(AND($B$30=1,AR$2=$C$30,ISNUMBER(MATCH($U8,INDIRECT(CONCATENATE(ADDRESS(VLOOKUP($F$30,OD_zone_measures!$K$2:$M$122,2,0),$K$2,1,1,"OD_zone_measures"),":",ADDRESS(VLOOKUP($F$30,OD_zone_measures!$K$2:$M$122,2,0),$L$2,1,1))),0))),$G$30,0),IF(AND($B$31=1,AR$2=$C$31,ISNUMBER(MATCH($U8,INDIRECT(CONCATENATE(ADDRESS(VLOOKUP($F$31,OD_zone_measures!$K$2:$M$122,2,0),$K$2,1,1,"OD_zone_measures"),":",ADDRESS(VLOOKUP($F$31,OD_zone_measures!$K$2:$M$122,2,0),$L$2,1,1))),0))),$G$31,0),IF(AND($B$32=1,AR$2=$C$32,ISNUMBER(MATCH($U8,INDIRECT(CONCATENATE(ADDRESS(VLOOKUP($F$32,OD_zone_measures!$K$2:$M$122,2,0),$K$2,1,1,"OD_zone_measures"),":",ADDRESS(VLOOKUP($F$32,OD_zone_measures!$K$2:$M$122,2,0),$L$2,1,1))),0))),$G$32,0),IF(AND($B$33=1,AR$2=$C$33,ISNUMBER(MATCH($U8,INDIRECT(CONCATENATE(ADDRESS(VLOOKUP($F$33,OD_zone_measures!$K$2:$M$122,2,0),$K$2,1,1,"OD_zone_measures"),":",ADDRESS(VLOOKUP($F$33,OD_zone_measures!$K$2:$M$122,2,0),$L$2,1,1))),0))),$G$33,0)) -> 1 | AS8: =1+MIN(IF(AND($B$19=1,AS$2=$C$19,ISNUMBER(MATCH($U8,INDIRECT(CONCATENATE(ADDRESS(VLOOKUP($F$19,OD_zone_measures!$K$2:$M$122,2,0),$K$2,1,1,"OD_zone_measures"),":",ADDRESS(VLOOKUP($F$19,OD_zone_measures!$K$2:$M$122,2,0),$L$2,1,1))),0))),$G$19,0),IF(AND($B$20=1,AS$2=$C$20,ISNUMBER(MATCH($U8,INDIRECT(CONCATENATE(ADDRESS(VLOOKUP($F$20,OD_zone_measures!$K$2:$M$122,2,0),$K$2,1,1,"OD_zone_measures"),":",ADDRESS(VLOOKUP($F$20,OD_zone_measures!$K$2:$M$122,2,0),$L$2,1,1))),0))),$G$20,0),IF(AND($B$21=1,AS$2=$C$21,ISNUMBER(MATCH($U8,INDIRECT(CONCATENATE(ADDRESS(VLOOKUP($F$21,OD_zone_measures!$K$2:$M$122,2,0),$K$2,1,1,"OD_zone_measures"),":",ADDRESS(VLOOKUP($F$21,OD_zone_measures!$K$2:$M$122,2,0),$L$2,1,1))),0))),$G$21,0),IF(AND($B$22=1,AS$2=$C$22,ISNUMBER(MATCH($U8,INDIRECT(CONCATENATE(ADDRESS(VLOOKUP($F$22,OD_zone_measures!$K$2:$M$122,2,0),$K$2,1,1,"OD_zone_measures"),":",ADDRESS(VLOOKUP($F$22,OD_zone_measures!$K$2:$M$122,2,0),$L$2,1,1))),0))),$G$22,0),IF(AND($B$23=1,AS$2=$C$23,ISNUMBER(MATCH($U8,INDIRECT(CONCATENATE(ADDRESS(VLOOKUP($F$23,OD_zone_measures!$K$2:$M$122,2,0),$K$2,1,1,"OD_zone_measures"),":",ADDRESS(VLOOKUP($F$23,OD_zone_measures!$K$2:$M$122,2,0),$L$2,1,1))),0))),$G$23,0),IF(AND($B$24=1,AS$2=$C$24,ISNUMBER(MATCH($U8,INDIRECT(CONCATENATE(ADDRESS(VLOOKUP($F$24,OD_zone_measures!$K$2:$M$122,2,0),$K$2,1,1,"OD_zone_measures"),":",ADDRESS(VLOOKUP($F$24,OD_zone_measures!$K$2:$M$122,2,0),$L$2,1,1))),0))),$G$24,0),IF(AND($B$25=1,AS$2=$C$25,ISNUMBER(MATCH($U8,INDIRECT(CONCATENATE(ADDRESS(VLOOKUP($F$25,OD_zone_measures!$K$2:$M$122,2,0),$K$2,1,1,"OD_zone_measures"),":",ADDRESS(VLOOKUP($F$25,OD_zone_measures!$K$2:$M$122,2,0),$L$2,1,1))),0))),$G$25,0),IF(AND($B$26=1,AS$2=$C$26,ISNUMBER(MATCH($U8,INDIRECT(CONCATENATE(ADDRESS(VLOOKUP($F$26,OD_zone_measures!$K$2:$M$122,2,0),$K$2,1,1,"OD_zone_measures"),":",ADDRESS(VLOOKUP($F$26,OD_zone_measures!$K$2:$M$122,2,0),$L$2,1,1))),0))),$G$26,0),IF(AND($B$27=1,AS$2=$C$27,ISNUMBER(MATCH($U8,INDIRECT(CONCATENATE(ADDRESS(VLOOKUP($F$27,OD_zone_measures!$K$2:$M$122,2,0),$K$2,1,1,"OD_zone_measures"),":",ADDRESS(VLOOKUP($F$27,OD_zone_measures!$K$2:$M$122,2,0),$L$2,1,1))),0))),$G$27,0),IF(AND($B$28=1,AS$2=$C$28,ISNUMBER(MATCH($U8,INDIRECT(CONCATENATE(ADDRESS(VLOOKUP($F$28,OD_zone_measures!$K$2:$M$122,2,0),$K$2,1,1,"OD_zone_measures"),":",ADDRESS(VLOOKUP($F$28,OD_zone_measures!$K$2:$M$122,2,0),$L$2,1,1))),0))),$G$28,0),IF(AND($B$29=1,AS$2=$C$29,ISNUMBER(MATCH($U8,INDIRECT(CONCATENATE(ADDRESS(VLOOKUP($F$29,OD_zone_measures!$K$2:$M$122,2,0),$K$2,1,1,"OD_zone_measures"),":",ADDRESS(VLOOKUP($F$29,OD_zone_measures!$K$2:$M$122,2,0),$L$2,1,1))),0))),$G$29,0),IF(AND($B$30=1,AS$2=$C$30,ISNUMBER(MATCH($U8,INDIRECT(CONCATENATE(ADDRESS(VLOOKUP($F$30,OD_zone_measures!$K$2:$M$122,2,0),$K$2,1,1,"OD_zone_measures"),":",ADDRESS(VLOOKUP($F$30,OD_zone_measures!$K$2:$M$122,2,0),$L$2,1,1))),0))),$G$30,0),IF(AND($B$31=1,AS$2=$C$31,ISNUMBER(MATCH($U8,INDIRECT(CONCATENATE(ADDRESS(VLOOKUP($F$31,OD_zone_measures!$K$2:$M$122,2,0),$K$2,1,1,"OD_zone_measures"),":",ADDRESS(VLOOKUP($F$31,OD_zone_measures!$K$2:$M$122,2,0),$L$2,1,1))),0))),$G$31,0),IF(AND($B$32=1,AS$2=$C$32,ISNUMBER(MATCH($U8,INDIRECT(CONCATENATE(ADDRESS(VLOOKUP($F$32,OD_zone_measures!$K$2:$M$122,2,0),$K$2,1,1,"OD_zone_measures"),":",ADDRESS(VLOOKUP($F$32,OD_zone_measures!$K$2:$M$122,2,0),$L$2,1,1))),0))),$G$32,0),IF(AND($B$33=1,AS$2=$C$33,ISNUMBER(MATCH($U8,INDIRECT(CONCATENATE(ADDRESS(VLOOKUP($F$33,OD_zone_measures!$K$2:$M$122,2,0),$K$2,1,1,"OD_zone_measures"),":",ADDRESS(VLOOKUP($F$33,OD_zone_measures!$K$2:$M$122,2,0),$L$2,1,1))),0))),$G$33,0)) -> 1 | AT8: 1 | AU8: =1+MIN(IF(AND($J$19=1,AU$2=$K$19,ISNUMBER(MATCH($U8,INDIRECT(CONCATENATE(ADDRESS(VLOOKUP($N$19,OD_zone_measures!$K$2:$M$122,2,0),$K$2,1,1,"OD_zone_measures"),":",ADDRESS(VLOOKUP($N$19,OD_zone_measures!$K$2:$M$122,2,0),$L$2,1,1))),0))),$O$19,0),IF(AND($J$20=1,AU$2=$K$20,ISNUMBER(MATCH($U8,INDIRECT(CONCATENATE(ADDRESS(VLOOKUP($N$20,OD_zone_measures!$K$2:$M$122,2,0),$K$2,1,1,"OD_zone_measures"),":",ADDRESS(VLOOKUP($N$20,OD_zone_measures!$K$2:$M$122,2,0),$L$2,1,1))),0))),$O$20,0),IF(AND($J$21=1,AU$2=$K$21,ISNUMBER(MATCH($U8,INDIRECT(CONCATENATE(ADDRESS(VLOOKUP($N$21,OD_zone_measures!$K$2:$M$122,2,0),$K$2,1,1,"OD_zone_measures"),":",ADDRESS(VLOOKUP($N$21,OD_zone_measures!$K$2:$M$122,2,0),$L$2,1,1))),0))),$O$21,0),IF(AND($J$22=1,AU$2=$K$22,ISNUMBER(MATCH($U8,INDIRECT(CONCATENATE(ADDRESS(VLOOKUP($N$22,OD_zone_measures!$K$2:$M$122,2,0),$K$2,1,1,"OD_zone_measures"),":",ADDRESS(VLOOKUP($N$22,OD_zone_measures!$K$2:$M$122,2,0),$L$2,1,1))),0))),$O$22,0),IF(AND($J$23=1,AU$2=$K$23,ISNUMBER(MATCH($U8,INDIRECT(CONCATENATE(ADDRESS(VLOOKUP($N$23,OD_zone_measures!$K$2:$M$122,2,0),$K$2,1,1,"OD_zone_measures"),":",ADDRESS(VLOOKUP($N$23,OD_zone_measures!$K$2:$M$122,2,0),$L$2,1,1))),0))),$O$23,0),IF(AND($J$24=1,AU$2=$K$24,ISNUMBER(MATCH($U8,INDIRECT(CONCATENATE(ADDRESS(VLOOKUP($N$24,OD_zone_measures!$K$2:$M$122,2,0),$K$2,1,1,"OD_zone_measures"),":",ADDRESS(VLOOKUP($N$24,OD_zone_measures!$K$2:$M$122,2,0),$L$2,1,1))),0))),$O$24,0),IF(AND($J$25=1,AU$2=$K$25,ISNUMBER(MATCH($U8,INDIRECT(CONCATENATE(ADDRESS(VLOOKUP($N$25,OD_zone_measures!$K$2:$M$122,2,0),$K$2,1,1,"OD_zone_measures"),":",ADDRESS(VLOOKUP($N$25,OD_zone_measures!$K$2:$M$122,2,0),$L$2,1,1))),0))),$O$25,0),IF(AND($J$26=1,AU$2=$K$26,ISNUMBER(MATCH($U8,INDIRECT(CONCATENATE(ADDRESS(VLOOKUP($N$26,OD_zone_measures!$K$2:$M$122,2,0),$K$2,1,1,"OD_zone_measures"),":",ADDRESS(VLOOKUP($N$26,OD_zone_measures!$K$2:$M$122,2,0),$L$2,1,1))),0))),$O$26,0),IF(AND($J$27=1,AU$2=$K$27,ISNUMBER(MATCH($U8,INDIRECT(CONCATENATE(ADDRESS(VLOOKUP($N$27,OD_zone_measures!$K$2:$M$122,2,0),$K$2,1,1,"OD_zone_measures"),":",ADDRESS(VLOOKUP($N$27,OD_zone_measures!$K$2:$M$122,2,0),$L$2,1,1))),0))),$O$27,0),IF(AND($J$28=1,AU$2=$K$28,ISNUMBER(MATCH($U8,INDIRECT(CONCATENATE(ADDRESS(VLOOKUP($N$28,OD_zone_measures!$K$2:$M$122,2,0),$K$2,1,1,"OD_zone_measures"),":",ADDRESS(VLOOKUP($N$28,OD_zone_measures!$K$2:$M$122,2,0),$L$2,1,1))),0))),$O$28,0),IF(AND($J$29=1,AU$2=$K$29,ISNUMBER(MATCH($U8,INDIRECT(CONCATENATE(ADDRESS(VLOOKUP($N$29,OD_zone_measures!$K$2:$M$122,2,0),$K$2,1,1,"OD_zone_measures"),":",ADDRESS(VLOOKUP($N$29,OD_zone_measures!$K$2:$M$122,2,0),$L$2,1,1))),0))),$O$29,0),IF(AND($J$30=1,AU$2=$K$30,ISNUMBER(MATCH($U8,INDIRECT(CONCATENATE(ADDRESS(VLOOKUP($N$30,OD_zone_measures!$K$2:$M$122,2,0),$K$2,1,1,"OD_zone_measures"),":",ADDRESS(VLOOKUP($N$30,OD_zone_measures!$K$2:$M$122,2,0),$L$2,1,1))),0))),$O$30,0),IF(AND($J$31=1,AU$2=$K$31,ISNUMBER(MATCH($U8,INDIRECT(CONCATENATE(ADDRESS(VLOOKUP($N$31,OD_zone_measures!$K$2:$M$122,2,0),$K$2,1,1,"OD_zone_measures"),":",ADDRESS(VLOOKUP($N$31,OD_zone_measures!$K$2:$M$122,2,0),$L$2,1,1))),0))),$O$31,0),IF(AND($J$32=1,AU$2=$K$32,ISNUMBER(MATCH($U8,INDIRECT(CONCATENATE(ADDRESS(VLOOKUP($N$32,OD_zone_measures!$K$2:$M$122,2,0),$K$2,1,1,"OD_zone_measures"),":",ADDRESS(VLOOKUP($N$32,OD_zone_measures!$K$2:$M$122,2,0),$L$2,1,1))),0))),$O$32,0),IF(AND($J$33=1,AU$2=$K$33,ISNUMBER(MATCH($U8,INDIRECT(CONCATENATE(ADDRESS(VLOOKUP($N$33,OD_zone_measures!$K$2:$M$122,2,0),$K$2,1,1,"OD_zone_measures"),":",ADDRESS(VLOOKUP($N$33,OD_zone_measures!$K$2:$M$122,2,0),$L$2,1,1))),0))),$O$33,0)) -> 1 | AV8: =1+MIN(IF(AND($J$19=1,AV$2=$K$19,ISNUMBER(MATCH($U8,INDIRECT(CONCATENATE(ADDRESS(VLOOKUP($N$19,OD_zone_measures!$K$2:$M$122,2,0),$K$2,1,1,"OD_zone_measures"),":",ADDRESS(VLOOKUP($N$19,OD_zone_measures!$K$2:$M$122,2,0),$L$2,1,1))),0))),$O$19,0),IF(AND($J$20=1,AV$2=$K$20,ISNUMBER(MATCH($U8,INDIRECT(CONCATENATE(ADDRESS(VLOOKUP($N$20,OD_zone_measures!$K$2:$M$122,2,0),$K$2,1,1,"OD_zone_measures"),":",ADDRESS(VLOOKUP($N$20,OD_zone_measures!$K$2:$M$122,2,0),$L$2,1,1))),0))),$O$20,0),IF(AND($J$21=1,AV$2=$K$21,ISNUMBER(MATCH($U8,INDIRECT(CONCATENATE(ADDRESS(VLOOKUP($N$21,OD_zone_measures!$K$2:$M$122,2,0),$K$2,1,1,"OD_zone_measures"),":",ADDRESS(VLOOKUP($N$21,OD_zone_measures!$K$2:$M$122,2,0),$L$2,1,1))),0))),$O$21,0),IF(AND($J$22=1,AV$2=$K$22,ISNUMBER(MATCH($U8,INDIRECT(CONCATENATE(ADDRESS(VLOOKUP($N$22,OD_zone_measures!$K$2:$M$122,2,0),$K$2,1,1,"OD_zone_measures"),":",ADDRESS(VLOOKUP($N$22,OD_zone_measures!$K$2:$M$122,2,0),$L$2,1,1))),0))),$O$22,0),IF(AND($J$23=1,AV$2=$K$23,ISNUMBER(MATCH($U8,INDIRECT(CONCATENATE(ADDRESS(VLOOKUP($N$23,OD_zone_measures!$K$2:$M$122,2,0),$K$2,1,1,"OD_zone_measures"),":",ADDRESS(VLOOKUP($N$23,OD_zone_measures!$K$2:$M$122,2,0),$L$2,1,1))),0))),$O$23,0),IF(AND($J$24=1,AV$2=$K$24,ISNUMBER(MATCH($U8,INDIRECT(CONCATENATE(ADDRESS(VLOOKUP($N$24,OD_zone_measures!$K$2:$M$122,2,0),$K$2,1,1,"OD_zone_measures"),":",ADDRESS(VLOOKUP($N$24,OD_zone_measures!$K$2:$M$122,2,0),$L$2,1,1))),0))),$O$24,0),IF(AND($J$25=1,AV$2=$K$25,ISNUMBER(MATCH($U8,INDIRECT(CONCATENATE(ADDRESS(VLOOKUP($N$25,OD_zone_measures!$K$2:$M$122,2,0),$K$2,1,1,"OD_zone_measures"),":",ADDRESS(VLOOKUP($N$25,OD_zone_measures!$K$2:$M$122,2,0),$L$2,1,1))),0))),$O$25,0),IF(AND($J$26=1,AV$2=$K$26,ISNUMBER(MATCH($U8,INDIRECT(CONCATENATE(ADDRESS(VLOOKUP($N$26,OD_zone_measures!$K$2:$M$122,2,0),$K$2,1,1,"OD_zone_measures"),":",ADDRESS(VLOOKUP($N$26,OD_zone_measures!$K$2:$M$122,2,0),$L$2,1,1))),0))),$O$26,0),IF(AND($J$27=1,AV$2=$K$27,ISNUMBER(MATCH($U8,INDIRECT(CONCATENATE(ADDRESS(VLOOKUP($N$27,OD_zone_measures!$K$2:$M$122,2,0),$K$2,1,1,"OD_zone_measures"),":",ADDRESS(VLOOKUP($N$27,OD_zone_measures!$K$2:$M$122,2,0),$L$2,1,1))),0))),$O$27,0),IF(AND($J$28=1,AV$2=$K$28,ISNUMBER(MATCH($U8,INDIRECT(CONCATENATE(ADDRESS(VLOOKUP($N$28,OD_zone_measures!$K$2:$M$122,2,0),$K$2,1,1,"OD_zone_measures"),":",ADDRESS(VLOOKUP($N$28,OD_zone_measures!$K$2:$M$122,2,0),$L$2,1,1))),0))),$O$28,0),IF(AND($J$29=1,AV$2=$K$29,ISNUMBER(MATCH($U8,INDIRECT(CONCATENATE(ADDRESS(VLOOKUP($N$29,OD_zone_measures!$K$2:$M$122,2,0),$K$2,1,1,"OD_zone_measures"),":",ADDRESS(VLOOKUP($N$29,OD_zone_measures!$K$2:$M$122,2,0),$L$2,1,1))),0))),$O$29,0),IF(AND($J$30=1,AV$2=$K$30,ISNUMBER(MATCH($U8,INDIRECT(CONCATENATE(ADDRESS(VLOOKUP($N$30,OD_zone_measures!$K$2:$M$122,2,0),$K$2,1,1,"OD_zone_measures"),":",ADDRESS(VLOOKUP($N$30,OD_zone_measures!$K$2:$M$122,2,0),$L$2,1,1))),0))),$O$30,0),IF(AND($J$31=1,AV$2=$K$31,ISNUMBER(MATCH($U8,INDIRECT(CONCATENATE(ADDRESS(VLOOKUP($N$31,OD_zone_measures!$K$2:$M$122,2,0),$K$2,1,1,"OD_zone_measures"),":",ADDRESS(VLOOKUP($N$31,OD_zone_measures!$K$2:$M$122,2,0),$L$2,1,1))),0))),$O$31,0),IF(AND($J$32=1,AV$2=$K$32,ISNUMBER(MATCH($U8,INDIRECT(CONCATENATE(ADDRESS(VLOOKUP($N$32,OD_zone_measures!$K$2:$M$122,2,0),$K$2,1,1,"OD_zone_measures"),":",ADDRESS(VLOOKUP($N$32,OD_zone_measures!$K$2:$M$122,2,0),$L$2,1,1))),0))),$O$32,0),IF(AND($J$33=1,AV$2=$K$33,ISNUMBER(MATCH($U8,INDIRECT(CONCATENATE(ADDRESS(VLOOKUP($N$33,OD_zone_measures!$K$2:$M$122,2,0),$K$2,1,1,"OD_zone_measures"),":",ADDRESS(VLOOKUP($N$33,OD_zone_measures!$K$2:$M$122,2,0),$L$2,1,1))),0))),$O$33,0)) -> 1 | AW8: =1+MIN(IF(AND($J$19=1,AW$2=$K$19,ISNUMBER(MATCH($U8,INDIRECT(CONCATENATE(ADDRESS(VLOOKUP($N$19,OD_zone_measures!$K$2:$M$122,2,0),$K$2,1,1,"OD_zone_measures"),":",ADDRESS(VLOOKUP($N$19,OD_zone_measures!$K$2:$M$122,2,0),$L$2,1,1))),0))),$O$19,0),IF(AND($J$20=1,AW$2=$K$20,ISNUMBER(MATCH($U8,INDIRECT(CONCATENATE(ADDRESS(VLOOKUP($N$20,OD_zone_measures!$K$2:$M$122,2,0),$K$2,1,1,"OD_zone_measures"),":",ADDRESS(VLOOKUP($N$20,OD_zone_measures!$K$2:$M$122,2,0),$L$2,1,1))),0))),$O$20,0),IF(AND($J$21=1,AW$2=$K$21,ISNUMBER(MATCH($U8,INDIRECT(CONCATENATE(ADDRESS(VLOOKUP($N$21,OD_zone_measures!$K$2:$M$122,2,0),$K$2,1,1,"OD_zone_measures"),":",ADDRESS(VLOOKUP($N$21,OD_zone_measures!$K$2:$M$122,2,0),$L$2,1,1))),0))),$O$21,0),IF(AND($J$22=1,AW$2=$K$22,ISNUMBER(MATCH($U8,INDIRECT(CONCATENATE(ADDRESS(VLOOKUP($N$22,OD_zone_measures!$K$2:$M$122,2,0),$K$2,1,1,"OD_zone_measures"),":",ADDRESS(VLOOKUP($N$22,OD_zone_measures!$K$2:$M$122,2,0),$L$2,1,1))),0))),$O$22,0),IF(AND($J$23=1,AW$2=$K$23,ISNUMBER(MATCH($U8,INDIRECT(CONCATENATE(ADDRESS(VLOOKUP($N$23,OD_zone_measures!$K$2:$M$122,2,0),$K$2,1,1,"OD_zone_measures"),":",ADDRESS(VLOOKUP($N$23,OD_zone_measures!$K$2:$M$122,2,0),$L$2,1,1))),0))),$O$23,0),IF(AND($J$24=1,AW$2=$K$24,ISNUMBER(MATCH($U8,INDIRECT(CONCATENATE(ADDRESS(VLOOKUP($N$24,OD_zone_measures!$K$2:$M$122,2,0),$K$2,1,1,"OD_zone_measures"),":",ADDRESS(VLOOKUP($N$24,OD_zone_measures!$K$2:$M$122,2,0),$L$2,1,1))),0))),$O$24,0),IF(AND($J$25=1,AW$2=$K$25,ISNUMBER(MATCH($U8,INDIRECT(CONCATENATE(ADDRESS(VLOOKUP($N$25,OD_zone_measures!$K$2:$M$122,2,0),$K$2,1,1,"OD_zone_measures"),":",ADDRESS(VLOOKUP($N$25,OD_zone_measures!$K$2:$M$122,2,0),$L$2,1,1))),0))),$O$25,0),IF(AND($J$26=1,AW$2=$K$26,ISNUMBER(MATCH($U8,INDIRECT(CONCATENATE(ADDRESS(VLOOKUP($N$26,OD_zone_measures!$K$2:$M$122,2,0),$K$2,1,1,"OD_zone_measures"),":",ADDRESS(VLOOKUP($N$26,OD_zone_measures!$K$2:$M$122,2,0),$L$2,1,1))),0))),$O$26,0),IF(AND($J$27=1,AW$2=$K$27,ISNUMBER(MATCH($U8,INDIRECT(CONCATENATE(ADDRESS(VLOOKUP($N$27,OD_zone_measures!$K$2:$M$122,2,0),$K$2,1,1,"OD_zone_measures"),":",ADDRESS(VLOOKUP($N$27,OD_zone_measures!$K$2:$M$122,2,0),$L$2,1,1))),0))),$O$27,0),IF(AND($J$28=1,AW$2=$K$28,ISNUMBER(MATCH($U8,INDIRECT(CONCATENATE(ADDRESS(VLOOKUP($N$28,OD_zone_measures!$K$2:$M$122,2,0),$K$2,1,1,"OD_zone_measures"),":",ADDRESS(VLOOKUP($N$28,OD_zone_measures!$K$2:$M$122,2,0),$L$2,1,1))),0))),$O$28,0),IF(AND($J$29=1,AW$2=$K$29,ISNUMBER(MATCH($U8,INDIRECT(CONCATENATE(ADDRESS(VLOOKUP($N$29,OD_zone_measures!$K$2:$M$122,2,0),$K$2,1,1,"OD_zone_measures"),":",ADDRESS(VLOOKUP($N$29,OD_zone_measures!$K$2:$M$122,2,0),$L$2,1,1))),0))),$O$29,0),IF(AND($J$30=1,AW$2=$K$30,ISNUMBER(MATCH($U8,INDIRECT(CONCATENATE(ADDRESS(VLOOKUP($N$30,OD_zone_measures!$K$2:$M$122,2,0),$K$2,1,1,"OD_zone_measures"),":",ADDRESS(VLOOKUP($N$30,OD_zone_measures!$K$2:$M$122,2,0),$L$2,1,1))),0))),$O$30,0),IF(AND($J$31=1,AW$2=$K$31,ISNUMBER(MATCH($U8,INDIRECT(CONCATENATE(ADDRESS(VLOOKUP($N$31,OD_zone_measures!$K$2:$M$122,2,0),$K$2,1,1,"OD_zone_measures"),":",ADDRESS(VLOOKUP($N$31,OD_zone_measures!$K$2:$M$122,2,0),$L$2,1,1))),0))),$O$31,0),IF(AND($J$32=1,AW$2=$K$32,ISNUMBER(MATCH($U8,INDIRECT(CONCATENATE(ADDRESS(VLOOKUP($N$32,OD_zone_measures!$K$2:$M$122,2,0),$K$2,1,1,"OD_zone_measures"),":",ADDRESS(VLOOKUP($N$32,OD_zone_measures!$K$2:$M$122,2,0),$L$2,1,1))),0))),$O$32,0),IF(AND($J$33=1,AW$2=$K$33,ISNUMBER(MATCH($U8,INDIRECT(CONCATENATE(ADDRESS(VLOOKUP($N$33,OD_zone_measures!$K$2:$M$122,2,0),$K$2,1,1,"OD_zone_measures"),":",ADDRESS(VLOOKUP($N$33,OD_zone_measures!$K$2:$M$122,2,0),$L$2,1,1))),0))),$O$33,0)) -> 1 | AX8: =1+MIN(IF(AND($J$19=1,AX$2=$K$19,ISNUMBER(MATCH($U8,INDIRECT(CONCATENATE(ADDRESS(VLOOKUP($N$19,OD_zone_measures!$K$2:$M$122,2,0),$K$2,1,1,"OD_zone_measures"),":",ADDRESS(VLOOKUP($N$19,OD_zone_measures!$K$2:$M$122,2,0),$L$2,1,1))),0))),$O$19,0),IF(AND($J$20=1,AX$2=$K$20,ISNUMBER(MATCH($U8,INDIRECT(CONCATENATE(ADDRESS(VLOOKUP($N$20,OD_zone_measures!$K$2:$M$122,2,0),$K$2,1,1,"OD_zone_measures"),":",ADDRESS(VLOOKUP($N$20,OD_zone_measures!$K$2:$M$122,2,0),$L$2,1,1))),0))),$O$20,0),IF(AND($J$21=1,AX$2=$K$21,ISNUMBER(MATCH($U8,INDIRECT(CONCATENATE(ADDRESS(VLOOKUP($N$21,OD_zone_measures!$K$2:$M$122,2,0),$K$2,1,1,"OD_zone_measures"),":",ADDRESS(VLOOKUP($N$21,OD_zone_measures!$K$2:$M$122,2,0),$L$2,1,1))),0))),$O$21,0),IF(AND($J$22=1,AX$2=$K$22,ISNUMBER(MATCH($U8,INDIRECT(CONCATENATE(ADDRESS(VLOOKUP($N$22,OD_zone_measures!$K$2:$M$122,2,0),$K$2,1,1,"OD_zone_measures"),":",ADDRESS(VLOOKUP($N$22,OD_zone_measures!$K$2:$M$122,2,0),$L$2,1,1))),0))),$O$22,0),IF(AND($J$23=1,AX$2=$K$23,ISNUMBER(MATCH($U8,INDIRECT(CONCATENATE(ADDRESS(VLOOKUP($N$23,OD_zone_measures!$K$2:$M$122,2,0),$K$2,1,1,"OD_zone_measures"),":",ADDRESS(VLOOKUP($N$23,OD_zone_measures!$K$2:$M$122,2,0),$L$2,1,1))),0))),$O$23,0),IF(AND($J$24=1,AX$2=$K$24,ISNUMBER(MATCH($U8,INDIRECT(CONCATENATE(ADDRESS(VLOOKUP($N$24,OD_zone_measures!$K$2:$M$122,2,0),$K$2,1,1,"OD_zone_measures"),":",ADDRESS(VLOOKUP($N$24,OD_zone_measures!$K$2:$M$122,2,0),$L$2,1,1))),0))),$O$24,0),IF(AND($J$25=1,AX$2=$K$25,ISNUMBER(MATCH($U8,INDIRECT(CONCATENATE(ADDRESS(VLOOKUP($N$25,OD_zone_measures!$K$2:$M$122,2,0),$K$2,1,1,"OD_zone_measures"),":",ADDRESS(VLOOKUP($N$25,OD_zone_measures!$K$2:$M$122,2,0),$L$2,1,1))),0))),$O$25,0),IF(AND($J$26=1,AX$2=$K$26,ISNUMBER(MATCH($U8,INDIRECT(CONCATENATE(ADDRESS(VLOOKUP($N$26,OD_zone_measures!$K$2:$M$122,2,0),$K$2,1,1,"OD_zone_measures"),":",ADDRESS(VLOOKUP($N$26,OD_zone_measures!$K$2:$M$122,2,0),$L$2,1,1))),0))),$O$26,0),IF(AND($J$27=1,AX$2=$K$27,ISNUMBER(MATCH($U8,INDIRECT(CONCATENATE(ADDRESS(VLOOKUP($N$27,OD_zone_measures!$K$2:$M$122,2,0),$K$2,1,1,"OD_zone_measures"),":",ADDRESS(VLOOKUP($N$27,OD_zone_measures!$K$2:$M$122,2,0),$L$2,1,1))),0))),$O$27,0),IF(AND($J$28=1,AX$2=$K$28,ISNUMBER(MATCH($U8,INDIRECT(CONCATENATE(ADDRESS(VLOOKUP($N$28,OD_zone_measures!$K$2:$M$122,2,0),$K$2,1,1,"OD_zone_measures"),":",ADDRESS(VLOOKUP($N$28,OD_zone_measures!$K$2:$M$122,2,0),$L$2,1,1))),0))),$O$28,0),IF(AND($J$29=1,AX$2=$K$29,ISNUMBER(MATCH($U8,INDIRECT(CONCATENATE(ADDRESS(VLOOKUP($N$29,OD_zone_measures!$K$2:$M$122,2,0),$K$2,1,1,"OD_zone_measures"),":",ADDRESS(VLOOKUP($N$29,OD_zone_measures!$K$2:$M$122,2,0),$L$2,1,1))),0))),$O$29,0),IF(AND($J$30=1,AX$2=$K$30,ISNUMBER(MATCH($U8,INDIRECT(CONCATENATE(ADDRESS(VLOOKUP($N$30,OD_zone_measures!$K$2:$M$122,2,0),$K$2,1,1,"OD_zone_measures"),":",ADDRESS(VLOOKUP($N$30,OD_zone_measures!$K$2:$M$122,2,0),$L$2,1,1))),0))),$O$30,0),IF(AND($J$31=1,AX$2=$K$31,ISNUMBER(MATCH($U8,INDIRECT(CONCATENATE(ADDRESS(VLOOKUP($N$31,OD_zone_measures!$K$2:$M$122,2,0),$K$2,1,1,"OD_zone_measures"),":",ADDRESS(VLOOKUP($N$31,OD_zone_measures!$K$2:$M$122,2,0),$L$2,1,1))),0))),$O$31,0),IF(AND($J$32=1,AX$2=$K$32,ISNUMBER(MATCH($U8,INDIRECT(CONCATENATE(ADDRESS(VLOOKUP($N$32,OD_zone_measures!$K$2:$M$122,2,0),$K$2,1,1,"OD_zone_measures"),":",ADDRESS(VLOOKUP($N$32,OD_zone_measures!$K$2:$M$122,2,0),$L$2,1,1))),0))),$O$32,0),IF(AND($J$33=1,AX$2=$K$33,ISNUMBER(MATCH($U8,INDIRECT(CONCATENATE(ADDRESS(VLOOKUP($N$33,OD_zone_measures!$K$2:$M$122,2,0),$K$2,1,1,"OD_zone_measures"),":",ADDRESS(VLOOKUP($N$33,OD_zone_measures!$K$2:$M$122,2,0),$L$2,1,1))),0))),$O$33,0)) -> 1 | AY8: =1+MIN(IF(AND($J$19=1,AY$2=$K$19,ISNUMBER(MATCH($U8,INDIRECT(CONCATENATE(ADDRESS(VLOOKUP($N$19,OD_zone_measures!$K$2:$M$122,2,0),$K$2,1,1,"OD_zone_measures"),":",ADDRESS(VLOOKUP($N$19,OD_zone_measures!$K$2:$M$122,2,0),$L$2,1,1))),0))),$O$19,0),IF(AND($J$20=1,AY$2=$K$20,ISNUMBER(MATCH($U8,INDIRECT(CONCATENATE(ADDRESS(VLOOKUP($N$20,OD_zone_measures!$K$2:$M$122,2,0),$K$2,1,1,"OD_zone_measures"),":",ADDRESS(VLOOKUP($N$20,OD_zone_measures!$K$2:$M$122,2,0),$L$2,1,1))),0))),$O$20,0),IF(AND($J$21=1,AY$2=$K$21,ISNUMBER(MATCH($U8,INDIRECT(CONCATENATE(ADDRESS(VLOOKUP($N$21,OD_zone_measures!$K$2:$M$122,2,0),$K$2,1,1,"OD_zone_measures"),":",ADDRESS(VLOOKUP($N$21,OD_zone_measures!$K$2:$M$122,2,0),$L$2,1,1))),0))),$O$21,0),IF(AND($J$22=1,AY$2=$K$22,ISNUMBER(MATCH($U8,INDIRECT(CONCATENATE(ADDRESS(VLOOKUP($N$22,OD_zone_measures!$K$2:$M$122,2,0),$K$2,1,1,"OD_zone_measures"),":",ADDRESS(VLOOKUP($N$22,OD_zone_measures!$K$2:$M$122,2,0),$L$2,1,1))),0))),$O$22,0),IF(AND($J$23=1,AY$2=$K$23,ISNUMBER(MATCH($U8,INDIRECT(CONCATENATE(ADDRESS(VLOOKUP($N$23,OD_zone_measures!$K$2:$M$122,2,0),$K$2,1,1,"OD_zone_measures"),":",ADDRESS(VLOOKUP($N$23,OD_zone_measures!$K$2:$M$122,2,0),$L$2,1,1))),0))),$O$23,0),IF(AND($J$24=1,AY$2=$K$24,ISNUMBER(MATCH($U8,INDIRECT(CONCATENATE(ADDRESS(VLOOKUP($N$24,OD_zone_measures!$K$2:$M$122,2,0),$K$2,1,1,"OD_zone_measures"),":",ADDRESS(VLOOKUP($N$24,OD_zone_measures!$K$2:$M$122,2,0),$L$2,1,1))),0))),$O$24,0),IF(AND($J$25=1,AY$2=$K$25,ISNUMBER(MATCH($U8,INDIRECT(CONCATENATE(ADDRESS(VLOOKUP($N$25,OD_zone_measures!$K$2:$M$122,2,0),$K$2,1,1,"OD_zone_measures"),":",ADDRESS(VLOOKUP($N$25,OD_zone_measures!$K$2:$M$122,2,0),$L$2,1,1))),0))),$O$25,0),IF(AND($J$26=1,AY$2=$K$26,ISNUMBER(MATCH($U8,INDIRECT(CONCATENATE(ADDRESS(VLOOKUP($N$26,OD_zone_measures!$K$2:$M$122,2,0),$K$2,1,1,"OD_zone_measures"),":",ADDRESS(VLOOKUP($N$26,OD_zone_measures!$K$2:$M$122,2,0),$L$2,1,1))),0))),$O$26,0),IF(AND($J$27=1,AY$2=$K$27,ISNUMBER(MATCH($U8,INDIRECT(CONCATENATE(ADDRESS(VLOOKUP($N$27,OD_zone_measures!$K$2:$M$122,2,0),$K$2,1,1,"OD_zone_measures"),":",ADDRESS(VLOOKUP($N$27,OD_zone_measures!$K$2:$M$122,2,0),$L$2,1,1))),0))),$O$27,0),IF(AND($J$28=1,AY$2=$K$28,ISNUMBER(MATCH($U8,INDIRECT(CONCATENATE(ADDRESS(VLOOKUP($N$28,OD_zone_measures!$K$2:$M$122,2,0),$K$2,1,1,"OD_zone_measures"),":",ADDRESS(VLOOKUP($N$28,OD_zone_measures!$K$2:$M$122,2,0),$L$2,1,1))),0))),$O$28,0),IF(AND($J$29=1,AY$2=$K$29,ISNUMBER(MATCH($U8,INDIRECT(CONCATENATE(ADDRESS(VLOOKUP($N$29,OD_zone_measures!$K$2:$M$122,2,0),$K$2,1,1,"OD_zone_measures"),":",ADDRESS(VLOOKUP($N$29,OD_zone_measures!$K$2:$M$122,2,0),$L$2,1,1))),0))),$O$29,0),IF(AND($J$30=1,AY$2=$K$30,ISNUMBER(MATCH($U8,INDIRECT(CONCATENATE(ADDRESS(VLOOKUP($N$30,OD_zone_measures!$K$2:$M$122,2,0),$K$2,1,1,"OD_zone_measures"),":",ADDRESS(VLOOKUP($N$30,OD_zone_measures!$K$2:$M$122,2,0),$L$2,1,1))),0))),$O$30,0),IF(AND($J$31=1,AY$2=$K$31,ISNUMBER(MATCH($U8,INDIRECT(CONCATENATE(ADDRESS(VLOOKUP($N$31,OD_zone_measures!$K$2:$M$122,2,0),$K$2,1,1,"OD_zone_measures"),":",ADDRESS(VLOOKUP($N$31,OD_zone_measures!$K$2:$M$122,2,0),$L$2,1,1))),0))),$O$31,0),IF(AND($J$32=1,AY$2=$K$32,ISNUMBER(MATCH($U8,INDIRECT(CONCATENATE(ADDRESS(VLOOKUP($N$32,OD_zone_measures!$K$2:$M$122,2,0),$K$2,1,1,"OD_zone_measures"),":",ADDRESS(VLOOKUP($N$32,OD_zone_measures!$K$2:$M$122,2,0),$L$2,1,1))),0))),$O$32,0),IF(AND($J$33=1,AY$2=$K$33,ISNUMBER(MATCH($U8,INDIRECT(CONCATENATE(ADDRESS(VLOOKUP($N$33,OD_zone_measures!$K$2:$M$122,2,0),$K$2,1,1,"OD_zone_measures"),":",ADDRESS(VLOOKUP($N$33,OD_zone_measures!$K$2:$M$122,2,0),$L$2,1,1))),0))),$O$33,0)) -> 0.85 | AZ8: =1+MIN(IF(AND($J$19=1,AZ$2=$K$19,ISNUMBER(MATCH($U8,INDIRECT(CONCATENATE(ADDRESS(VLOOKUP($N$19,OD_zone_measures!$K$2:$M$122,2,0),$K$2,1,1,"OD_zone_measures"),":",ADDRESS(VLOOKUP($N$19,OD_zone_measures!$K$2:$M$122,2,0),$L$2,1,1))),0))),$O$19,0),IF(AND($J$20=1,AZ$2=$K$20,ISNUMBER(MATCH($U8,INDIRECT(CONCATENATE(ADDRESS(VLOOKUP($N$20,OD_zone_measures!$K$2:$M$122,2,0),$K$2,1,1,"OD_zone_measures"),":",ADDRESS(VLOOKUP($N$20,OD_zone_measures!$K$2:$M$122,2,0),$L$2,1,1))),0))),$O$20,0),IF(AND($J$21=1,AZ$2=$K$21,ISNUMBER(MATCH($U8,INDIRECT(CONCATENATE(ADDRESS(VLOOKUP($N$21,OD_zone_measures!$K$2:$M$122,2,0),$K$2,1,1,"OD_zone_measures"),":",ADDRESS(VLOOKUP($N$21,OD_zone_measures!$K$2:$M$122,2,0),$L$2,1,1))),0))),$O$21,0),IF(AND($J$22=1,AZ$2=$K$22,ISNUMBER(MATCH($U8,INDIRECT(CONCATENATE(ADDRESS(VLOOKUP($N$22,OD_zone_measures!$K$2:$M$122,2,0),$K$2,1,1,"OD_zone_measures"),":",ADDRESS(VLOOKUP($N$22,OD_zone_measures!$K$2:$M$122,2,0),$L$2,1,1))),0))),$O$22,0),IF(AND($J$23=1,AZ$2=$K$23,ISNUMBER(MATCH($U8,INDIRECT(CONCATENATE(ADDRESS(VLOOKUP($N$23,OD_zone_measures!$K$2:$M$122,2,0),$K$2,1,1,"OD_zone_measures"),":",ADDRESS(VLOOKUP($N$23,OD_zone_measures!$K$2:$M$122,2,0),$L$2,1,1))),0))),$O$23,0),IF(AND($J$24=1,AZ$2=$K$24,ISNUMBER(MATCH($U8,INDIRECT(CONCATENATE(ADDRESS(VLOOKUP($N$24,OD_zone_measures!$K$2:$M$122,2,0),$K$2,1,1,"OD_zone_measures"),":",ADDRESS(VLOOKUP($N$24,OD_zone_measures!$K$2:$M$122,2,0),$L$2,1,1))),0))),$O$24,0),IF(AND($J$25=1,AZ$2=$K$25,ISNUMBER(MATCH($U8,INDIRECT(CONCATENATE(ADDRESS(VLOOKUP($N$25,OD_zone_measures!$K$2:$M$122,2,0),$K$2,1,1,"OD_zone_measures"),":",ADDRESS(VLOOKUP($N$25,OD_zone_measures!$K$2:$M$122,2,0),$L$2,1,1))),0))),$O$25,0),IF(AND($J$26=1,AZ$2=$K$26,ISNUMBER(MATCH($U8,INDIRECT(CONCATENATE(ADDRESS(VLOOKUP($N$26,OD_zone_measures!$K$2:$M$122,2,0),$K$2,1,1,"OD_zone_measures"),":",ADDRESS(VLOOKUP($N$26,OD_zone_measures!$K$2:$M$122,2,0),$L$2,1,1))),0))),$O$26,0),IF(AND($J$27=1,AZ$2=$K$27,ISNUMBER(MATCH($U8,INDIRECT(CONCATENATE(ADDRESS(VLOOKUP($N$27,OD_zone_measures!$K$2:$M$122,2,0),$K$2,1,1,"OD_zone_measures"),":",ADDRESS(VLOOKUP($N$27,OD_zone_measures!$K$2:$M$122,2,0),$L$2,1,1))),0))),$O$27,0),IF(AND($J$28=1,AZ$2=$K$28,ISNUMBER(MATCH($U8,INDIRECT(CONCATENATE(ADDRESS(VLOOKUP($N$28,OD_zone_measures!$K$2:$M$122,2,0),$K$2,1,1,"OD_zone_measures"),":",ADDRESS(VLOOKUP($N$28,OD_zone_measures!$K$2:$M$122,2,0),$L$2,1,1))),0))),$O$28,0),IF(AND($J$29=1,AZ$2=$K$29,ISNUMBER(MATCH($U8,INDIRECT(CONCATENATE(ADDRESS(VLOOKUP($N$29,OD_zone_measures!$K$2:$M$122,2,0),$K$2,1,1,"OD_zone_measures"),":",ADDRESS(VLOOKUP($N$29,OD_zone_measures!$K$2:$M$122,2,0),$L$2,1,1))),0))),$O$29,0),IF(AND($J$30=1,AZ$2=$K$30,ISNUMBER(MATCH($U8,INDIRECT(CONCATENATE(ADDRESS(VLOOKUP($N$30,OD_zone_measures!$K$2:$M$122,2,0),$K$2,1,1,"OD_zone_measures"),":",ADDRESS(VLOOKUP($N$30,OD_zone_measures!$K$2:$M$122,2,0),$L$2,1,1))),0))),$O$30,0),IF(AND($J$31=1,AZ$2=$K$31,ISNUMBER(MATCH($U8,INDIRECT(CONCATENATE(ADDRESS(VLOOKUP($N$31,OD_zone_measures!$K$2:$M$122,2,0),$K$2,1,1,"OD_zone_measures"),":",ADDRESS(VLOOKUP($N$31,OD_zone_measures!$K$2:$M$122,2,0),$L$2,1,1))),0))),$O$31,0),IF(AND($J$32=1,AZ$2=$K$32,ISNUMBER(MATCH($U8,INDIRECT(CONCATENATE(ADDRESS(VLOOKUP($N$32,OD_zone_measures!$K$2:$M$122,2,0),$K$2,1,1,"OD_zone_measures"),":",ADDRESS(VLOOKUP($N$32,OD_zone_measures!$K$2:$M$122,2,0),$L$2,1,1))),0))),$O$32,0),IF(AND($J$33=1,AZ$2=$K$33,ISNUMBER(MATCH($U8,INDIRECT(CONCATENATE(ADDRESS(VLOOKUP($N$33,OD_zone_measures!$K$2:$M$122,2,0),$K$2,1,1,"OD_zone_measures"),":",ADDRESS(VLOOKUP($N$33,OD_zone_measures!$K$2:$M$122,2,0),$L$2,1,1))),0))),$O$33,0)) -> 1 | BA8: =1+MIN(IF(AND($J$19=1,BA$2=$K$19,ISNUMBER(MATCH($U8,INDIRECT(CONCATENATE(ADDRESS(VLOOKUP($N$19,OD_zone_measures!$K$2:$M$122,2,0),$K$2,1,1,"OD_zone_measures"),":",ADDRESS(VLOOKUP($N$19,OD_zone_measures!$K$2:$M$122,2,0),$L$2,1,1))),0))),$O$19,0),IF(AND($J$20=1,BA$2=$K$20,ISNUMBER(MATCH($U8,INDIRECT(CONCATENATE(ADDRESS(VLOOKUP($N$20,OD_zone_measures!$K$2:$M$122,2,0),$K$2,1,1,"OD_zone_measures"),":",ADDRESS(VLOOKUP($N$20,OD_zone_measures!$K$2:$M$122,2,0),$L$2,1,1))),0))),$O$20,0),IF(AND($J$21=1,BA$2=$K$21,ISNUMBER(MATCH($U8,INDIRECT(CONCATENATE(ADDRESS(VLOOKUP($N$21,OD_zone_measures!$K$2:$M$122,2,0),$K$2,1,1,"OD_zone_measures"),":",ADDRESS(VLOOKUP($N$21,OD_zone_measures!$K$2:$M$122,2,0),$L$2,1,1))),0))),$O$21,0),IF(AND($J$22=1,BA$2=$K$22,ISNUMBER(MATCH($U8,INDIRECT(CONCATENATE(ADDRESS(VLOOKUP($N$22,OD_zone_measures!$K$2:$M$122,2,0),$K$2,1,1,"OD_zone_measures"),":",ADDRESS(VLOOKUP($N$22,OD_zone_measures!$K$2:$M$122,2,0),$L$2,1,1))),0))),$O$22,0),IF(AND($J$23=1,BA$2=$K$23,ISNUMBER(MATCH($U8,INDIRECT(CONCATENATE(ADDRESS(VLOOKUP($N$23,OD_zone_measures!$K$2:$M$122,2,0),$K$2,1,1,"OD_zone_measures"),":",ADDRESS(VLOOKUP($N$23,OD_zone_measures!$K$2:$M$122,2,0),$L$2,1,1))),0))),$O$23,0),IF(AND($J$24=1,BA$2=$K$24,ISNUMBER(MATCH($U8,INDIRECT(CONCATENATE(ADDRESS(VLOOKUP($N$24,OD_zone_measures!$K$2:$M$122,2,0),$K$2,1,1,"OD_zone_measures"),":",ADDRESS(VLOOKUP($N$24,OD_zone_measures!$K$2:$M$122,2,0),$L$2,1,1))),0))),$O$24,0),IF(AND($J$25=1,BA$2=$K$25,ISNUMBER(MATCH($U8,INDIRECT(CONCATENATE(ADDRESS(VLOOKUP($N$25,OD_zone_measures!$K$2:$M$122,2,0),$K$2,1,1,"OD_zone_measures"),":",ADDRESS(VLOOKUP($N$25,OD_zone_measures!$K$2:$M$122,2,0),$L$2,1,1))),0))),$O$25,0),IF(AND($J$26=1,BA$2=$K$26,ISNUMBER(MATCH($U8,INDIRECT(CONCATENATE(ADDRESS(VLOOKUP($N$26,OD_zone_measures!$K$2:$M$122,2,0),$K$2,1,1,"OD_zone_measures"),":",ADDRESS(VLOOKUP($N$26,OD_zone_measures!$K$2:$M$122,2,0),$L$2,1,1))),0))),$O$26,0),IF(AND($J$27=1,BA$2=$K$27,ISNUMBER(MATCH($U8,INDIRECT(CONCATENATE(ADDRESS(VLOOKUP($N$27,OD_zone_measures!$K$2:$M$122,2,0),$K$2,1,1,"OD_zone_measures"),":",ADDRESS(VLOOKUP($N$27,OD_zone_measures!$K$2:$M$122,2,0),$L$2,1,1))),0))),$O$27,0),IF(AND($J$28=1,BA$2=$K$28,ISNUMBER(MATCH($U8,INDIRECT(CONCATENATE(ADDRESS(VLOOKUP($N$28,OD_zone_measures!$K$2:$M$122,2,0),$K$2,1,1,"OD_zone_measures"),":",ADDRESS(VLOOKUP($N$28,OD_zone_measures!$K$2:$M$122,2,0),$L$2,1,1))),0))),$O$28,0),IF(AND($J$29=1,BA$2=$K$29,ISNUMBER(MATCH($U8,INDIRECT(CONCATENATE(ADDRESS(VLOOKUP($N$29,OD_zone_measures!$K$2:$M$122,2,0),$K$2,1,1,"OD_zone_measures"),":",ADDRESS(VLOOKUP($N$29,OD_zone_measures!$K$2:$M$122,2,0),$L$2,1,1))),0))),$O$29,0),IF(AND($J$30=1,BA$2=$K$30,ISNUMBER(MATCH($U8,INDIRECT(CONCATENATE(ADDRESS(VLOOKUP($N$30,OD_zone_measures!$K$2:$M$122,2,0),$K$2,1,1,"OD_zone_measures"),":",ADDRESS(VLOOKUP($N$30,OD_zone_measures!$K$2:$M$122,2,0),$L$2,1,1))),0))),$O$30,0),IF(AND($J$31=1,BA$2=$K$31,ISNUMBER(MATCH($U8,INDIRECT(CONCATENATE(ADDRESS(VLOOKUP($N$31,OD_zone_measures!$K$2:$M$122,2,0),$K$2,1,1,"OD_zone_measures"),":",ADDRESS(VLOOKUP($N$31,OD_zone_measures!$K$2:$M$122,2,0),$L$2,1,1))),0))),$O$31,0),IF(AND($J$32=1,BA$2=$K$32,ISNUMBER(MATCH($U8,INDIRECT(CONCATENATE(ADDRESS(VLOOKUP($N$32,OD_zone_measures!$K$2:$M$122,2,0),$K$2,1,1,"OD_zone_measures"),":",ADDRESS(VLOOKUP($N$32,OD_zone_measures!$K$2:$M$122,2,0),$L$2,1,1))),0))),$O$32,0),IF(AND($J$33=1,BA$2=$K$33,ISNUMBER(MATCH($U8,INDIRECT(CONCATENATE(ADDRESS(VLOOKUP($N$33,OD_zone_measures!$K$2:$M$122,2,0),$K$2,1,1,"OD_zone_measures"),":",ADDRESS(VLOOKUP($N$33,OD_zone_measures!$K$2:$M$122,2,0),$L$2,1,1))),0))),$O$33,0)) -> 1 | BB8: 0 | BC8: =BB8 -> 0 | BD8: 0 | BE8: 0 | BF8: 0 | BG8: 0 | BH8: 0 | BI8: 0 | BJ8: 0 | BK8: =BJ8 -> 0 | BL8: 0 | BM8: 0 | BN8: 0 | BO8: 0 | BP8: 0 | BQ8: 0
